Workbook

Sheet Velkomst

Sheet Tabel 1 S
A1: Tabel 1. Forsikrede medlemmer
A4: Sjælland
B6: 0
B7: 0 | C7: Mænd | D7: 0 | E7: Kvinder | F7: 0 | G7: I alt
B8: 0
A9: Civ. ing. | B9: 0 | C9: 1571 | D9: 0 | E9: 581 | F9: 0 | G9: 2152
A10: Diplom ing. | B10: 0 | C10: 3081 | D10: 0 | E10: 688 | F10: 0 | G10: 3769
A11: Cand. Scient. Tek. | B11: 0 | C11: 557 | D11: 0 | E11: 503 | F11: 0 | G11: 1060
A12: MA. Hum. | B12: 0 | C12: 855 | D12: 0 | E12: 1980 | F12: 0 | G12: 2835
A13: MA. Nat. | B13: 0 | C13: 709 | D13: 0 | E13: 712 | F13: 0 | G13: 1421
A14: MA. Ph.d. | B14: 0 | C14: 73 | D14: 0 | E14: 66 | F14: 0 | G14: 139
A15: MA. Samf. | B15: 0 | C15: 89 | D15: 0 | E15: 250 | F15: 0 | G15: 339
A16: Øvrige Mag. | B16: 0 | C16: 87 | D16: 0 | E16: 157 | F16: 0 | G16: 244
A17: Agronom | B17: 0 | C17: 216 | D17: 0 | E17: 239 | F17: 0 | G17: 455
A18: Landsk. Arkt. | B18: 0 | C18: 26 | D18: 0 | E18: 72 | F18: 0 | G18: 98
A19: Hortonom | B19: 0 | C19: 21 | D19: 0 | E19: 37 | F19: 0 | G19: 58
A20: Forstkand. | B20: 0 | C20: 58 | D20: 0 | E20: 16 | F20: 0 | G20: 74
A21: Jordbrugsakad. | B21: 0 | C21: 321 | D21: 0 | E21: 364 | F21: 0 | G21: 685
A22: Mejeriing. | B22: 0 | C22: 14 | D22: 0 | E22: 21 | F22: 0 | G22: 35
A23: Levn.m.kand. | B23: 0 | C23: 7 | D23: 0 | E23: 37 | F23: 0 | G23: 44
A24: Dyrlæge | B24: 0 | C24: 84 | D24: 0 | E24: 310 | F24: 0 | G24: 394
A25: Farmaceut | B25: 0 | C25: 133 | D25: 0 | E25: 411 | F25: 0 | G25: 544
A26: Læge | B26: 0 | C26: 225 | D26: 0 | E26: 458 | F26: 0 | G26: 683
A27: Tandlæge | B27: 0 | C27: 29 | D27: 0 | E27: 147 | F27: 0 | G27: 176
A28: Arkitekt | B28: 0 | C28: 102 | D28: 0 | E28: 127 | F28: 0 | G28: 229
A29: Landinspek. | B29: 0 | C29: 51 | D29: 0 | E29: 23 | F29: 0 | G29: 74
A30: Bibliotekar | B30: 0 | C30: 112 | D30: 0 | E30: 295 | F30: 0 | G30: 407
A31: Musikudd. | B31: 0 | C31: 39 | D31: 0 | E31: 69 | F31: 0 | G31: 108
A32: Teolog | B32: 0 | C32: 80 | D32: 0 | E32: 145 | F32: 0 | G32: 225
A33: Psykolog | B33: 0 | C33: 93 | D33: 0 | E33: 438 | F33: 0 | G33: 531
A34: Jurist | B34: 0 | C34: 306 | D34: 0 | E34: 739 | F34: 0 | G34: 1045
A35: Økonom | B35: 0 | C35: 325 | D35: 0 | E35: 252 | F35: 0 | G35: 577
A36: Samf. Adm. | B36: 0 | C36: 767 | D36: 0 | E36: 1060 | F36: 0 | G36: 1827
A37: Cand. Merc. | B37: 0 | C37: 1017 | D37: 0 | E37: 986 | F37: 0 | G37: 2003
A38: HA | B38: 0 | C38: 316 | D38: 0 | E38: 237 | F38: 0 | G38: 553
A39: HD | B39: 0 | C39: 314 | D39: 0 | E39: 214 | F39: 0 | G39: 528
A40: Komm. og Sprog | B40: 0 | C40: 66 | D40: 0 | E40: 542 | F40: 0 | G40: 608
A41: Cand. IT. | B41: 0 | C41: 95 | D41: 0 | E41: 78 | F41: 0 | G41: 173
A42: Bac. Samf. | B42: 0 | C42: 42 | D42: 0 | E42: 45 | F42: 0 | G42: 87
A43: Bac. Hum. | B43: 0 | C43: 92 | D43: 0 | E43: 170 | F43: 0 | G43: 262
A44: Bac. Nat. | B44: 0 | C44: 108 | D44: 0 | E44: 54 | F44: 0 | G44: 162
A45: Andre | B45: 0 | C45: 895 | D45: 0 | E45: 741 | F45: 0 | G45: 1636
A47: Total | B47: 0 | C47: 12655 | D47: 0 | E47: 12900 | F47: 0 | G47: 25555
A49: Ingeniører i alt | B49: 0 | C49: 4652 | D49: 0 | E49: 1269 | F49: 0 | G49: 5921
A50: Magistre i alt | B50: 0 | C50: 1813 | D50: 0 | E50: 3165 | F50: 0 | G50: 4978
A51: DJØF'ere i alt | B51: 0 | C51: 2731 | D51: 0 | E51: 3274 | F51: 0 | G51: 6005
A57: Greve | B57: 0
B58: 0
B59: 0 | C59: Mænd | D59: 0 | E59: Kvinder | F59: 0 | G59: I alt
B60: 0
A61: Civ. ing. | B61: 0 | C61: 131 | D61: 0 | E61: 50 | F61: 0 | G61: 181
A62: Diplom ing. | B62: 0 | C62: 281 | D62: 0 | E62: 56 | F62: 0 | G62: 337
A63: Cand. Scient. Tek. | B63: 0 | C63: 46 | D63: 0 | E63: 38 | F63: 0 | G63: 84
A64: MA. Hum. | B64: 0 | C64: 26 | D64: 0 | E64: 99 | F64: 0 | G64: 125
A65: MA. Nat. | B65: 0 | C65: 44 | D65: 0 | E65: 42 | F65: 0 | G65: 86
A66: MA. Ph.d. | B66: 0 | C66: 2 | D66: 0 | E66: 5 | F66: 0 | G66: 7
A67: MA. Samf. | B67: 0 | C67: 4 | D67: 0 | E67: 8 | F67: 0 | G67: 12
A68: Øvrige Mag. | B68: 0 | C68: 2 | D68: 0 | E68: 14 | F68: 0 | G68: 16
A69: Agronom | B69: 0 | C69: 5 | D69: 0 | E69: 9 | F69: 0 | G69: 14
A70: Landsk. Arkt. | B70: 0 | C70: 2 | D70: 0 | E70: 3 | F70: 0 | G70: 5
A71: Hortonom | B71: 0 | C71: 0 | D71: 0 | E71: 2 | F71: 0 | G71: 2
A72: Forstkand. | B72: 0 | C72: 1 | D72: 0 | E72: 0 | F72: 0 | G72: 1
A73: Jordbrugsakad. | B73: 0 | C73: 8 | D73: 0 | E73: 14 | F73: 0 | G73: 22
A74: Mejeriing. | B74: 0 | C74: 1 | D74: 0 | E74: 1 | F74: 0 | G74: 2
A75: Levn.m.kand. | B75: 0 | C75: 0 | D75: 0 | E75: 2 | F75: 0 | G75: 2
A76: Dyrlæge | B76: 0 | C76: 3 | D76: 0 | E76: 10 | F76: 0 | G76: 13
A77: Farmaceut | B77: 0 | C77: 18 | D77: 0 | E77: 49 | F77: 0 | G77: 67
A78: Læge | B78: 0 | C78: 12 | D78: 0 | E78: 33 | F78: 0 | G78: 45
A79: Tandlæge | B79: 0 | C79: 2 | D79: 0 | E79: 16 | F79: 0 | G79: 18
A80: Arkitekt | B80: 0 | C80: 5 | D80: 0 | E80: 7 | F80: 0 | G80: 12
A81: Landinspek. | B81: 0 | C81: 3 | D81: 0 | E81: 2 | F81: 0 | G81: 5
A82: Bibliotekar | B82: 0 | C82: 5 | D82: 0 | E82: 13 | F82: 0 | G82: 18
A83: Musikudd. | B83: 0 | C83: 2 | D83: 0 | E83: 4 | F83: 0 | G83: 6
A84: Teolog | B84: 0 | C84: 7 | D84: 0 | E84: 10 | F84: 0 | G84: 17
A85: Psykolog | B85: 0 | C85: 4 | D85: 0 | E85: 19 | F85: 0 | G85: 23
A86: Jurist | B86: 0 | C86: 35 | D86: 0 | E86: 76 | F86: 0 | G86: 111
A87: Økonom | B87: 0 | C87: 30 | D87: 0 | E87: 27 | F87: 0 | G87: 57
A88: Samf. Adm. | B88: 0 | C88: 47 | D88: 0 | E88: 71 | F88: 0 | G88: 118
A89: Cand. Merc. | B89: 0 | C89: 133 | D89: 0 | E89: 143 | F89: 0 | G89: 276
A90: HA | B90: 0 | C90: 49 | D90: 0 | E90: 24 | F90: 0 | G90: 73
A91: HD | B91: 0 | C91: 45 | D91: 0 | E91: 31 | F91: 0 | G91: 76
A92: Komm. og Sprog | B92: 0 | C92: 5 | D92: 0 | E92: 58 | F92: 0 | G92: 63
A93: Cand. IT. | B93: 0 | C93: 14 | D93: 0 | E93: 8 | F93: 0 | G93: 22
A94: Bac. Samf. | B94: 0 | C94: 3 | D94: 0 | E94: 5 | F94: 0 | G94: 8
A95: Bac. Hum. | B95: 0 | C95: 5 | D95: 0 | E95: 11 | F95: 0 | G95: 16
A96: Bac. Nat. | B96: 0 | C96: 9 | D96: 0 | E96: 5 | F96: 0 | G96: 14
A97: Andre | B97: 0 | C97: 71 | D97: 0 | E97: 72 | F97: 0 | G97: 143
A99: Total | B99: 0 | C99: 1052 | D99: 0 | E99: 1023 | F99: 0 | G99: 2075
A101: Ingeniører i alt | B101: 0 | C101: 412 | D101: 0 | E101: 106 | F101: 0 | G101: 518
A102: Magistre i alt | B102: 0 | C102: 78 | D102: 0 | E102: 168 | F102: 0 | G102: 246
A103: DJØF'ere i alt | B103: 0 | C103: 294 | D103: 0 | E103: 341 | F103: 0 | G103: 635
A110: Køge | B110: 0 | F110: 0
B111: 0 | F111: 0
B112: 0 | C112: Mænd | D112: 0 | E112: Kvinder | F112: 0 | G112: I alt
B113: 0 | F113: 0
A114: Civ. ing. | B114: 0 | C114: 136 | D114: 0 | E114: 49 | F114: 0 | G114: 185
A115: Diplom ing. | B115: 0 | C115: 284 | D115: 0 | E115: 60 | F115: 0 | G115: 344
A116: Cand. Scient. Tek. | B116: 0 | C116: 48 | D116: 0 | E116: 21 | F116: 0 | G116: 69
A117: MA. Hum. | B117: 0 | C117: 58 | D117: 0 | E117: 145 | F117: 0 | G117: 203
A118: MA. Nat. | B118: 0 | C118: 41 | D118: 0 | E118: 53 | F118: 0 | G118: 94
A119: MA. Ph.d. | B119: 0 | C119: 1 | D119: 0 | E119: 4 | F119: 0 | G119: 5
A120: MA. Samf. | B120: 0 | C120: 7 | D120: 0 | E120: 27 | F120: 0 | G120: 34
A121: Øvrige Mag. | B121: 0 | C121: 8 | D121: 0 | E121: 13 | F121: 0 | G121: 21
A122: Agronom | B122: 0 | C122: 15 | D122: 0 | E122: 24 | F122: 0 | G122: 39
A123: Landsk. Arkt. | B123: 0 | C123: 0 | D123: 0 | E123: 8 | F123: 0 | G123: 8
A124: Hortonom | B124: 0 | C124: 3 | D124: 0 | E124: 4 | F124: 0 | G124: 7
A125: Forstkand. | B125: 0 | C125: 3 | D125: 0 | E125: 2 | F125: 0 | G125: 5
A126: Jordbrugsakad. | B126: 0 | C126: 21 | D126: 0 | E126: 38 | F126: 0 | G126: 59
A127: Mejeriing. | B127: 0 | C127: 0 | D127: 0 | E127: 0 | F127: 0 | G127: 0
A128: Levn.m.kand. | B128: 0 | C128: 1 | D128: 0 | E128: 4 | F128: 0 | G128: 5
A129: Dyrlæge | B129: 0 | C129: 6 | D129: 0 | E129: 25 | F129: 0 | G129: 31
A130: Farmaceut | B130: 0 | C130: 8 | D130: 0 | E130: 38 | F130: 0 | G130: 46
A131: Læge | B131: 0 | C131: 22 | D131: 0 | E131: 30 | F131: 0 | G131: 52
A132: Tandlæge | B132: 0 | C132: 1 | D132: 0 | E132: 15 | F132: 0 | G132: 16
A133: Arkitekt | B133: 0 | C133: 9 | D133: 0 | E133: 8 | F133: 0 | G133: 17
A134: Landinspek. | B134: 0 | C134: 5 | D134: 0 | E134: 3 | F134: 0 | G134: 8
A135: Bibliotekar | B135: 0 | C135: 2 | D135: 0 | E135: 24 | F135: 0 | G135: 26
A136: Musikudd. | B136: 0 | C136: 2 | D136: 0 | E136: 5 | F136: 0 | G136: 7
A137: Teolog | B137: 0 | C137: 3 | D137: 0 | E137: 6 | F137: 0 | G137: 9
A138: Psykolog | B138: 0 | C138: 6 | D138: 0 | E138: 45 | F138: 0 | G138: 51
A139: Jurist | B139: 0 | C139: 28 | D139: 0 | E139: 79 | F139: 0 | G139: 107
A140: Økonom | B140: 0 | C140: 38 | D140: 0 | E140: 27 | F140: 0 | G140: 65
A141: Samf. Adm. | B141: 0 | C141: 60 | D141: 0 | E141: 81 | F141: 0 | G141: 141
A142: Cand. Merc. | B142: 0 | C142: 103 | D142: 0 | E142: 105 | F142: 0 | G142: 208
A143: HA | B143: 0 | C143: 24 | D143: 0 | E143: 18 | F143: 0 | G143: 42
A144: HD | B144: 0 | C144: 28 | D144: 0 | E144: 22 | F144: 0 | G144: 50
A145: Komm. og Sprog | B145: 0 | C145: 7 | D145: 0 | E145: 59 | F145: 0 | G145: 66
A146: Cand. IT. | B146: 0 | C146: 12 | D146: 0 | E146: 4 | F146: 0 | G146: 16
A147: Bac. Samf. | B147: 0 | C147: 4 | D147: 0 | E147: 2 | F147: 0 | G147: 6
A148: Bac. Hum. | B148: 0 | C148: 5 | D148: 0 | E148: 18 | F148: 0 | G148: 23
A149: Bac. Nat. | B149: 0 | C149: 6 | D149: 0 | E149: 4 | F149: 0 | G149: 10
A150: Andre | B150: 0 | C150: 77 | D150: 0 | E150: 68 | F150: 0 | G150: 145
A152: Total | B152: 0 | C152: 1061 | D152: 0 | E152: 1100 | F152: 0 | G152: 2161
A154: Ingeniører i alt | B154: 0 | C154: 420 | D154: 0 | E154: 109 | F154: 0 | G154: 529
A155: Magistre i alt | B155: 0 | C155: 115 | D155: 0 | E155: 242 | F155: 0 | G155: 357
A156: DJØF'ere i alt | B156: 0 | C156: 253 | D156: 0 | E156: 310 | F156: 0 | G156: 563
A163: Roskilde | B163: 0
B164: 0
B165: 0 | C165: Mænd | D165: 0 | E165: Kvinder
B166: 0
A167: Civ. ing. | B167: 0 | C167: 496 | D167: 0 | E167: 181 | F167: 0 | G167: 677
A168: Diplom ing. | B168: 0 | C168: 625 | D168: 0 | E168: 157 | F168: 0 | G168: 782
A169: Cand. Scient. Tek. | B169: 0 | C169: 148 | D169: 0 | E169: 145 | F169: 0 | G169: 293
A170: MA. Hum. | B170: 0 | C170: 195 | D170: 0 | E170: 474 | F170: 0 | G170: 669
A171: MA. Nat. | B171: 0 | C171: 198 | D171: 0 | E171: 193 | F171: 0 | G171: 391
A172: MA. Ph.d. | B172: 0 | C172: 33 | D172: 0 | E172: 16 | F172: 0 | G172: 49
A173: MA. Samf. | B173: 0 | C173: 37 | D173: 0 | E173: 77 | F173: 0 | G173: 114
A174: Øvrige Mag. | B174: 0 | C174: 19 | D174: 0 | E174: 37 | F174: 0 | G174: 56
A175: Agronom | B175: 0 | C175: 37 | D175: 0 | E175: 41 | F175: 0 | G175: 78
A176: Landsk. Arkt. | B176: 0 | C176: 3 | D176: 0 | E176: 22 | F176: 0 | G176: 25
A177: Hortonom | B177: 0 | C177: 2 | D177: 0 | E177: 2 | F177: 0 | G177: 4
A178: Forstkand. | B178: 0 | C178: 10 | D178: 0 | E178: 3 | F178: 0 | G178: 13
A179: Jordbrugsakad. | B179: 0 | C179: 52 | D179: 0 | E179: 68 | F179: 0 | G179: 120
A180: Mejeriing. | B180: 0 | C180: 2 | D180: 0 | E180: 1 | F180: 0 | G180: 3
A181: Levn.m.kand. | B181: 0 | C181: 3 | D181: 0 | E181: 9 | F181: 0 | G181: 12
A182: Dyrlæge | B182: 0 | C182: 17 | D182: 0 | E182: 42 | F182: 0 | G182: 59
A183: Farmaceut | B183: 0 | C183: 37 | D183: 0 | E183: 123 | F183: 0 | G183: 160
A184: Læge | B184: 0 | C184: 69 | D184: 0 | E184: 145 | F184: 0 | G184: 214
A185: Tandlæge | B185: 0 | C185: 8 | D185: 0 | E185: 33 | F185: 0 | G185: 41
A186: Arkitekt | B186: 0 | C186: 25 | D186: 0 | E186: 35 | F186: 0 | G186: 60
A187: Landinspek. | B187: 0 | C187: 13 | D187: 0 | E187: 4 | F187: 0 | G187: 17
A188: Bibliotekar | B188: 0 | C188: 22 | D188: 0 | E188: 70 | F188: 0 | G188: 92
A189: Musikudd. | B189: 0 | C189: 5 | D189: 0 | E189: 12 | F189: 0 | G189: 17
A190: Teolog | B190: 0 | C190: 15 | D190: 0 | E190: 16 | F190: 0 | G190: 31
A191: Psykolog | B191: 0 | C191: 19 | D191: 0 | E191: 98 | F191: 0 | G191: 117
A192: Jurist | B192: 0 | C192: 69 | D192: 0 | E192: 166 | F192: 0 | G192: 235
A193: Økonom | B193: 0 | C193: 99 | D193: 0 | E193: 66 | F193: 0 | G193: 165
A194: Samf. Adm. | B194: 0 | C194: 281 | D194: 0 | E194: 351 | F194: 0 | G194: 632
A195: Cand. Merc. | B195: 0 | C195: 252 | D195: 0 | E195: 267 | F195: 0 | G195: 519
A196: HA | B196: 0 | C196: 51 | D196: 0 | E196: 53 | F196: 0 | G196: 104
A197: HD | B197: 0 | C197: 52 | D197: 0 | E197: 45 | F197: 0 | G197: 97
A198: Komm. og Sprog | B198: 0 | C198: 11 | D198: 0 | E198: 102 | F198: 0 | G198: 113
A199: Cand. IT. | B199: 0 | C199: 26 | D199: 0 | E199: 24 | F199: 0 | G199: 50
A200: Bac. Samf. | B200: 0 | C200: 10 | D200: 0 | E200: 12 | F200: 0 | G200: 22
A201: Bac. Hum. | B201: 0 | C201: 26 | D201: 0 | E201: 31 | F201: 0 | G201: 57
A202: Bac. Nat. | B202: 0 | C202: 18 | D202: 0 | E202: 9 | F202: 0 | G202: 27
A203: Andre | B203: 0 | C203: 151 | D203: 0 | E203: 181 | F203: 0 | G203: 332
A205: Total | B205: 0 | C205: 3084 | D205: 0 | E205: 3243 | F205: 0 | G205: 6327
A207: Ingeniører i alt | B207: 0 | C207: 1121 | D207: 0 | E207: 338 | F207: 0 | G207: 1459
A208: Magistre i alt | B208: 0 | C208: 482 | D208: 0 | E208: 797 | F208: 0 | G208: 1279
A209: DJØF'ere i alt | B209: 0 | C209: 752 | D209: 0 | E209: 903 | F209: 0 | G209: 1655
A216: Solrød | B216: 0
B217: 0
B218: 0 | C218: Mænd | D218: 0 | E218: Kvinder
B219: 0
A220: Civ. ing. | B220: 0 | C220: 90 | D220: 0 | E220: 33 | F220: 0 | G220: 123
A221: Diplom ing. | B221: 0 | C221: 149 | D221: 0 | E221: 30 | F221: 0 | G221: 179
A222: Cand. Scient. Tek. | B222: 0 | C222: 14 | D222: 0 | E222: 22 | F222: 0 | G222: 36
A223: MA. Hum. | B223: 0 | C223: 19 | D223: 0 | E223: 59 | F223: 0 | G223: 78
A224: MA. Nat. | B224: 0 | C224: 18 | D224: 0 | E224: 14 | F224: 0 | G224: 32
A225: MA. Ph.d. | B225: 0 | C225: 1 | D225: 0 | E225: 2 | F225: 0 | G225: 3
A226: MA. Samf. | B226: 0 | C226: 3 | D226: 0 | E226: 11 | F226: 0 | G226: 14
A227: Øvrige Mag. | B227: 0 | C227: 3 | D227: 0 | E227: 6 | F227: 0 | G227: 9
A228: Agronom | B228: 0 | C228: 2 | D228: 0 | E228: 2 | F228: 0 | G228: 4
A229: Landsk. Arkt. | B229: 0 | C229: 0 | D229: 0 | E229: 1 | F229: 0 | G229: 1
A230: Hortonom | B230: 0 | C230: 0 | D230: 0 | E230: 1 | F230: 0 | G230: 1
A231: Forstkand. | B231: 0 | C231: 1 | D231: 0 | E231: 0 | F231: 0 | G231: 1
A232: Jordbrugsakad. | B232: 0 | C232: 3 | D232: 0 | E232: 4 | F232: 0 | G232: 7
A233: Mejeriing. | B233: 0 | C233: 0 | D233: 0 | E233: 2 | F233: 0 | G233: 2
A234: Levn.m.kand. | B234: 0 | C234: 1 | D234: 0 | E234: 2 | F234: 0 | G234: 3
... 611 more rows

Sheet Tabel 2 S
A1: Tabel 2. Antal bruttoledighedsberørte og gennemsnitlig antal ledige brutto
A3: Sjælland
C5: Mænd | F5: Kvinder | I5: I alt
C6: Ledigheds- berørte | D6: Gns. brutto- ledighed | F6: Ledigheds- berørte | G6: Gns. brutto- ledighed | I6: Ledigheds- berørte | J6: Gns. brutto- ledighed
A9: Civ. ing. | C9: 25 | D9: 20.32058879 | F9: 14 | G9: 13.50028067 | I9: 39 | J9: 33.82086946
A10: Diplom ing. | C10: 51 | D10: 44.76205327 | F10: 19 | G10: 17.53258904 | I10: 70 | J10: 62.2946423
A11: Cand. Scient. Tek. | C11: 49 | D11: 44.42524793 | F11: 33 | G11: 29.56340049 | I11: 82 | J11: 73.98864841
A12: MA. Hum. | C12: 52 | D12: 44.41402108 | F12: 150 | G12: 134.1745151 | I12: 202 | J12: 178.5885361
A13: MA. Nat. | C13: 13 | D13: 11.93974927 | F13: 20 | G13: 18.61785068 | I13: 33 | J13: 30.55759995
A14: MA. Ph.d. | C14: 1 | D14: 0.7690388574 | F14: 3 | G14: 2.676978731 | I14: 4 | J14: 3.446017589
A15: MA. Samf. | C15: 9 | D15: 8.398303499 | F15: 31 | G15: 26.56396183 | I15: 40 | J15: 34.96226533
A16: Øvrige Mag. | C16: 2 | D16: 1.523108589 | F16: 9 | G16: 7.319902701 | I16: 11 | J16: 8.843011289
A17: Agronom | C17: 6 | D17: 4.886795983 | F17: 9 | G17: 7.481444521 | I17: 15 | J17: 12.3682405
A18: Landsk. Arkt. | C18: 2 | D18: 1.999625772 | F18: 2 | G18: 1.999625772 | I18: 4 | J18: 3.999251544
A19: Hortonom | C19: 0 | D19: 0 | F19: 0 | G19: 0 | I19: 0 | J19: 0
A20: Forstkand. | C20: 1 | D20: 0.9998128859 | F20: 0 | G20: 0 | I20: 1 | J20: 0.9998128859
A21: Jordbrugsakad. | C21: 9 | D21: 7.886234641 | F21: 11 | G21: 9.481070293 | I21: 20 | J21: 17.36730493
A22: Mejeriing. | C22: 0 | D22: 0 | F22: 0 | G22: 0 | I22: 0 | J22: 0
A23: Levn.m.kand. | C23: 1 | D23: 0.9998128859 | F23: 1 | G23: 0.9998128859 | I23: 2 | J23: 1.999625772
A24: Dyrlæge | C24: 3 | D24: 2.23726065 | F24: 10 | G24: 8.385829227 | I24: 13 | J24: 10.62308988
A25: Farmaceut | C25: 4 | D25: 3.325640866 | F25: 8 | G25: 6.865839207 | I25: 12 | J25: 10.19148007
A26: Læge | C26: 3 | D26: 2.860974241 | F26: 5 | G26: 3.756626957 | I26: 8 | J26: 6.617601198
A27: Tandlæge | C27: 0 | D27: 0 | F27: 1 | G27: 0.5382648288 | I27: 1 | J27: 0.5382648288
A28: Arkitekt | C28: 4 | D28: 3.722322709 | F28: 7 | G28: 6.436100543 | I28: 11 | J28: 10.15842325
A29: Landinspek. | C29: 0 | D29: 0 | F29: 0 | G29: 0 | I29: 0 | J29: 0
A30: Bibliotekar | C30: 8 | D30: 7.53695503 | F30: 9 | G30: 7.563151001 | I30: 17 | J30: 15.10010603
A31: Musikudd. | C31: 0 | D31: 0 | F31: 0 | G31: 0 | I31: 0 | J31: 0
A32: Teolog | C32: 3 | D32: 2.275930893 | F32: 2 | G32: 1.536830288 | I32: 5 | J32: 3.81276118
A33: Psykolog | C33: 5 | D33: 4.573691761 | F33: 16 | G33: 14.42025822 | I33: 21 | J33: 18.99394998
A34: Jurist | C34: 4 | D34: 3.722322709 | F34: 16 | G34: 12.94579929 | I34: 20 | J34: 16.668122
A35: Økonom | C35: 12 | D35: 9.70997318 | F35: 3 | G35: 2.94080958 | I35: 15 | J35: 12.65078276
A36: Samf. Adm. | C36: 38 | D36: 33.74914239 | F36: 61 | G36: 54.39156739 | I36: 99 | J36: 88.14070979
A37: Cand. Merc. | C37: 40 | D37: 36.45980166 | F37: 65 | G37: 54.29177322 | I37: 105 | J37: 90.75157488
A38: HA | C38: 13 | D38: 11.4270567 | F38: 6 | G38: 5.254163288 | I38: 19 | J38: 16.68121998
A39: HD | C39: 13 | D39: 11.40086072 | F39: 15 | G39: 12.12998191 | I39: 28 | J39: 23.53084264
A40: Komm. og Sprog | C40: 6 | D40: 4.090313728 | F40: 39 | G40: 34.5113204 | I40: 45 | J40: 38.60163413
A41: Cand. IT. | C41: 3 | D41: 2.999438658 | F41: 7 | G41: 5.703860787 | I41: 10 | J41: 8.703299445
A42: Bac. Samf. | C42: 4 | D42: 3.537703487 | F42: 1 | G42: 0.9998128859 | I42: 5 | J42: 4.537516372
A43: Bac. Hum. | C43: 5 | D43: 3.828977733 | F43: 21 | G43: 17.62864093 | I43: 26 | J43: 21.45761866
A44: Bac. Nat. | C44: 6 | D44: 4.535645232 | F44: 3 | G44: 2.152435602 | I44: 9 | J44: 6.688080833
A45: Andre | C45: 40 | D45: 31.00542631 | F45: 65 | G45: 58.17127175 | I45: 105 | J45: 89.17669806
A47: Total | C47: 426 | D47: 368.4375975 | F47: 651 | G47: 571.0546997 | I47: 1077 | J47: 939.4922971
A49: Ingeniører i alt | C49: 76 | D49: 65.08264205 | F49: 33 | G49: 31.03286971 | I49: 109 | J49: 96.11551176
A50: Magistre i alt | C50: 77 | D50: 67.04422129 | F50: 213 | G50: 189.353209 | I50: 290 | J50: 256.3974303
A51: DJØF'ere i alt | C51: 107 | D51: 95.06829664 | F51: 151 | G51: 129.8241128 | I51: 258 | J51: 224.8924094
A55: Greve
C57: Mænd | F57: Kvinder | I57: I alt
C58: Ledigheds- berørte | D58: Gns. brutto- ledighed | F58: Ledigheds- berørte | G58: Gns. brutto- ledighed | I58: Ledigheds- berørte | J58: Gns. brutto- ledighed
A61: Civ. ing. | C61: 3 | D61: 1.873635627 | F61: 0 | G61: 0 | I61: 3 | J61: 1.873635627
A62: Diplom ing. | C62: 6 | D62: 5.118193725 | F62: 3 | G62: 2.999438658 | I62: 9 | J62: 8.117632383
A63: Cand. Scient. Tek. | C63: 1 | D63: 0.9998128859 | F63: 4 | G63: 3.999251544 | I63: 5 | J63: 4.99906443
A64: MA. Hum. | C64: 3 | D64: 1.929146136 | F64: 8 | G64: 7.86003867 | I64: 11 | J64: 9.789184806
A65: MA. Nat. | C65: 0 | D65: 0 | F65: 0 | G65: 0 | I65: 0 | J65: 0
A66: MA. Ph.d. | C66: 0 | D66: 0 | F66: 0 | G66: 0 | I66: 0 | J66: 0
A67: MA. Samf. | C67: 2 | D67: 1.999625772 | F67: 2 | G67: 1.999625772 | I67: 4 | J67: 3.999251544
A68: Øvrige Mag. | C68: 0 | D68: 0 | F68: 2 | G68: 1.245556041 | I68: 2 | J68: 1.245556041
A69: Agronom | C69: 0 | D69: 0 | F69: 0 | G69: 0 | I69: 0 | J69: 0
A70: Landsk. Arkt. | C70: 1 | D70: 0.9998128859 | F70: 0 | G70: 0 | I70: 1 | J70: 0.9998128859
A71: Hortonom | C71: 0 | D71: 0 | F71: 0 | G71: 0 | I71: 0 | J71: 0
A72: Forstkand. | C72: 0 | D72: 0 | F72: 0 | G72: 0 | I72: 0 | J72: 0
A73: Jordbrugsakad. | C73: 1 | D73: 0.9998128859 | F73: 0 | G73: 0 | I73: 1 | J73: 0.9998128859
A74: Mejeriing. | C74: 0 | D74: 0 | F74: 0 | G74: 0 | I74: 0 | J74: 0
A75: Levn.m.kand. | C75: 0 | D75: 0 | F75: 0 | G75: 0 | I75: 0 | J75: 0
A76: Dyrlæge | C76: 1 | D76: 0.9998128859 | F76: 0 | G76: 0 | I76: 1 | J76: 0.9998128859
A77: Farmaceut | C77: 0 | D77: 0 | F77: 0 | G77: 0 | I77: 0 | J77: 0
A78: Læge | C78: 0 | D78: 0 | F78: 1 | G78: 0.4122746835 | I78: 1 | J78: 0.4122746835
A79: Tandlæge | C79: 0 | D79: 0 | F79: 1 | G79: 0.5382648288 | I79: 1 | J79: 0.5382648288
A80: Arkitekt | C80: 0 | D80: 0 | F80: 2 | G80: 1.953470966 | I80: 2 | J80: 1.953470966
A81: Landinspek. | C81: 0 | D81: 0 | F81: 0 | G81: 0 | I81: 0 | J81: 0
A82: Bibliotekar | C82: 0 | D82: 0 | F82: 0 | G82: 0 | I82: 0 | J82: 0
A83: Musikudd. | C83: 0 | D83: 0 | F83: 0 | G83: 0 | I83: 0 | J83: 0
A84: Teolog | C84: 0 | D84: 0 | F84: 0 | G84: 0 | I84: 0 | J84: 0
A85: Psykolog | C85: 0 | D85: 0 | F85: 1 | G85: 0.9998128859 | I85: 1 | J85: 0.9998128859
A86: Jurist | C86: 1 | D86: 0.7228840516 | F86: 1 | G86: 0.2613359945 | I86: 2 | J86: 0.9842200462
A87: Økonom | C87: 0 | D87: 0 | F87: 0 | G87: 0 | I87: 0 | J87: 0
A88: Samf. Adm. | C88: 1 | D88: 0.2151811888 | F88: 9 | G88: 8.340921849 | I88: 10 | J88: 8.556103037
A89: Cand. Merc. | C89: 5 | D89: 4.113391131 | F89: 8 | G89: 7.308052142 | I89: 13 | J89: 11.42144327
A90: HA | C90: 3 | D90: 2.753695503 | F90: 1 | G90: 0.9998128859 | I90: 4 | J90: 3.753508389
A91: HD | C91: 2 | D91: 1.90731616 | F91: 1 | G91: 0.9998128859 | I91: 3 | J91: 2.907129046
A92: Komm. og Sprog | C92: 1 | D92: 0.4459552174 | F92: 1 | G92: 0.9998128859 | I92: 2 | J92: 1.445768103
A93: Cand. IT. | C93: 0 | D93: 0 | F93: 0 | G93: 0 | I93: 0 | J93: 0
A94: Bac. Samf. | C94: 0 | D94: 0 | F94: 0 | G94: 0 | I94: 0 | J94: 0
A95: Bac. Hum. | C95: 0 | D95: 0 | F95: 1 | G95: 0.5382648288 | I95: 1 | J95: 0.5382648288
A96: Bac. Nat. | C96: 1 | D96: 0.9998128859 | F96: 0 | G96: 0 | I96: 1 | J96: 0.9998128859
A97: Andre | C97: 2 | D97: 1.538077715 | F97: 5 | G97: 4.67598079 | I97: 7 | J97: 6.214058504
A99: Total | C99: 33 | D99: 26.61635377 | F99: 51 | G99: 46.13172831 | I99: 84 | J99: 72.74808208
A101: Ingeniører i alt | C101: 9 | D101: 6.991829352 | F101: 3 | G101: 2.999438658 | I101: 12 | J101: 9.99126801
A102: Magistre i alt | C102: 5 | D102: 3.928771908 | F102: 12 | G102: 11.10522048 | I102: 17 | J102: 15.03399239
A103: DJØF'ere i alt | C103: 10 | D103: 7.805151874 | F103: 19 | G103: 16.91012287 | I103: 29 | J103: 24.71527475
A108: Køge
C110: Mænd | F110: Kvinder | I110: I alt
C111: Ledigheds- berørte | D111: Gns. brutto- ledighed | F111: Ledigheds- berørte | G111: Gns. brutto- ledighed | I111: Ledigheds- berørte | J111: Gns. brutto- ledighed
A114: Civ. ing. | C114: 1 | D114: 0.9998128859 | F114: 4 | G114: 3.999251544 | I114: 5 | J114: 4.99906443
A115: Diplom ing. | C115: 6 | D115: 5.04085324 | F115: 2 | G115: 1.999625772 | I115: 8 | J115: 7.040479012
A116: Cand. Scient. Tek. | C116: 9 | D116: 8.737603692 | F116: 1 | G116: 0.9998128859 | I116: 10 | J116: 9.737416578
A117: MA. Hum. | C117: 2 | D117: 1.645356452 | F117: 9 | G117: 8.541133911 | I117: 11 | J117: 10.18649036
A118: MA. Nat. | C118: 1 | D118: 0.9998128859 | F118: 2 | G118: 1.959084388 | I118: 3 | J118: 2.958897274
A119: MA. Ph.d. | C119: 0 | D119: 0 | F119: 0 | G119: 0 | I119: 0 | J119: 0
A120: MA. Samf. | C120: 1 | D120: 0.9998128859 | F120: 3 | G120: 2.999438658 | I120: 4 | J120: 3.999251544
A121: Øvrige Mag. | C121: 0 | D121: 0 | F121: 3 | G121: 2.999438658 | I121: 3 | J121: 2.999438658
A122: Agronom | C122: 0 | D122: 0 | F122: 3 | G122: 2.128734485 | I122: 3 | J122: 2.128734485
A123: Landsk. Arkt. | C123: 0 | D123: 0 | F123: 0 | G123: 0 | I123: 0 | J123: 0
A124: Hortonom | C124: 0 | D124: 0 | F124: 0 | G124: 0 | I124: 0 | J124: 0
A125: Forstkand. | C125: 0 | D125: 0 | F125: 0 | G125: 0 | I125: 0 | J125: 0
A126: Jordbrugsakad. | C126: 0 | D126: 0 | F126: 3 | G126: 2.128734485 | I126: 3 | J126: 2.128734485
A127: Mejeriing. | C127: 0 | D127: 0 | F127: 0 | G127: 0 | I127: 0 | J127: 0
A128: Levn.m.kand. | C128: 0 | D128: 0 | F128: 0 | G128: 0 | I128: 0 | J128: 0
A129: Dyrlæge | C129: 1 | D129: 0.7690388574 | F129: 0 | G129: 0 | I129: 1 | J129: 0.7690388574
A130: Farmaceut | C130: 0 | D130: 0 | F130: 2 | G130: 1.999625772 | I130: 2 | J130: 1.999625772
A131: Læge | C131: 0 | D131: 0 | F131: 0 | G131: 0 | I131: 0 | J131: 0
A132: Tandlæge | C132: 0 | D132: 0 | F132: 0 | G132: 0 | I132: 0 | J132: 0
A133: Arkitekt | C133: 0 | D133: 0 | F133: 0 | G133: 0 | I133: 0 | J133: 0
A134: Landinspek. | C134: 0 | D134: 0 | F134: 0 | G134: 0 | I134: 0 | J134: 0
A135: Bibliotekar | C135: 0 | D135: 0 | F135: 1 | G135: 0.9998128859 | I135: 1 | J135: 0.9998128859
A136: Musikudd. | C136: 0 | D136: 0 | F136: 0 | G136: 0 | I136: 0 | J136: 0
A137: Teolog | C137: 0 | D137: 0 | F137: 1 | G137: 0.6754818187 | I137: 1 | J137: 0.6754818187
A138: Psykolog | C138: 1 | D138: 0.9998128859 | F138: 3 | G138: 2.416890164 | I138: 4 | J138: 3.41670305
A139: Jurist | C139: 0 | D139: 0 | F139: 3 | G139: 2.999438658 | I139: 3 | J139: 2.999438658
A140: Økonom | C140: 2 | D140: 1.538077715 | F140: 0 | G140: 0 | I140: 2 | J140: 1.538077715
A141: Samf. Adm. | C141: 2 | D141: 1.34784507 | F141: 7 | G141: 6.398677727 | I141: 9 | J141: 7.746522797
A142: Cand. Merc. | C142: 4 | D142: 3.722322709 | F142: 9 | G142: 6.09867149 | I142: 13 | J142: 9.820994199
A143: HA | C143: 0 | D143: 0 | F143: 0 | G143: 0 | I143: 0 | J143: 0
A144: HD | C144: 0 | D144: 0 | F144: 2 | G144: 1.445768103 | I144: 2 | J144: 1.445768103
A145: Komm. og Sprog | C145: 0 | D145: 0 | F145: 8 | G145: 7.121561779 | I145: 8 | J145: 7.121561779
A146: Cand. IT. | C146: 0 | D146: 0 | F146: 1 | G146: 0.5788062122 | I146: 1 | J146: 0.5788062122
A147: Bac. Samf. | C147: 1 | D147: 0.9998128859 | F147: 0 | G147: 0 | I147: 1 | J147: 0.9998128859
A148: Bac. Hum. | C148: 1 | D148: 0.9998128859 | F148: 2 | G148: 1.216241502 | I148: 3 | J148: 2.216054388
A149: Bac. Nat. | C149: 1 | D149: 0.9499157987 | F149: 0 | G149: 0 | I149: 1 | J149: 0.9499157987
A150: Andre | C150: 1 | D150: 0.9998128859 | F150: 8 | G150: 7.293083016 | I150: 9 | J150: 8.292895902
A152: Total | C152: 34 | D152: 30.74970374 | F152: 74 | G152: 64.87057943 | I152: 108 | J152: 95.62028317
A154: Ingeniører i alt | C154: 7 | D154: 6.040666126 | F154: 6 | G154: 5.998877316 | I154: 13 | J154: 12.03954344
A155: Magistre i alt | C155: 4 | D155: 3.644982224 | F155: 17 | G155: 16.49909562 | I155: 21 | J155: 20.14407784
A156: DJØF'ere i alt | C156: 8 | D156: 6.608245494 | F156: 19 | G156: 15.49678788 | I156: 27 | J156: 22.10503337
A161: Roskilde
C163: Mænd | F163: Kvinder | I163: I alt
C164: Ledigheds- berørte | D164: Gns. brutto- ledighed | F164: Ledigheds- berørte | G164: Gns. brutto- ledighed | I164: Ledigheds- berørte | J164: Gns. brutto- ledighed
A167: Civ. ing. | C167: 5 | D167: 3.581987152 | F167: 2 | G167: 1.90731616 | I167: 7 | J167: 5.489303312
A168: Diplom ing. | C168: 10 | D168: 8.891660949 | F168: 4 | G168: 3.412337055 | I168: 14 | J168: 12.303998
A169: Cand. Scient. Tek. | C169: 14 | D169: 12.94455186 | F169: 10 | G169: 8.634067236 | I169: 24 | J169: 21.5786191
A170: MA. Hum. | C170: 11 | D170: 10.99794175 | F170: 31 | G170: 26.01447016 | I170: 42 | J170: 37.0124119
A171: MA. Nat. | C171: 4 | D171: 3.537703487 | F171: 4 | G171: 3.999251544 | I171: 8 | J171: 7.53695503
A172: MA. Ph.d. | C172: 1 | D172: 0.7690388574 | F172: 1 | G172: 0.9998128859 | I172: 2 | J172: 1.768851743
A173: MA. Samf. | C173: 2 | D173: 1.999625772 | F173: 9 | G173: 8.168153184 | I173: 11 | J173: 10.16777896
A174: Øvrige Mag. | C174: 2 | D174: 1.523108589 | F174: 0 | G174: 0 | I174: 2 | J174: 1.523108589
A175: Agronom | C175: 2 | D175: 0.979854051 | F175: 2 | G175: 1.999625772 | I175: 4 | J175: 2.979479823
A176: Landsk. Arkt. | C176: 0 | D176: 0 | F176: 0 | G176: 0 | I176: 0 | J176: 0
A177: Hortonom | C177: 0 | D177: 0 | F177: 0 | G177: 0 | I177: 0 | J177: 0
A178: Forstkand. | C178: 0 | D178: 0 | F178: 0 | G178: 0 | I178: 0 | J178: 0
A179: Jordbrugsakad. | C179: 2 | D179: 0.979854051 | F179: 2 | G179: 1.999625772 | I179: 4 | J179: 2.979479823
A180: Mejeriing. | C180: 0 | D180: 0 | F180: 0 | G180: 0 | I180: 0 | J180: 0
A181: Levn.m.kand. | C181: 0 | D181: 0 | F181: 0 | G181: 0 | I181: 0 | J181: 0
A182: Dyrlæge | C182: 0 | D182: 0 | F182: 3 | G182: 1.939125554 | I182: 3 | J182: 1.939125554
A183: Farmaceut | C183: 1 | D183: 0.9998128859 | F183: 3 | G183: 2.814819435 | I183: 4 | J183: 3.814632321
A184: Læge | C184: 1 | D184: 0.9998128859 | F184: 1 | G184: 0.9075032745 | I184: 2 | J184: 1.90731616
A185: Tandlæge | C185: 0 | D185: 0 | F185: 0 | G185: 0 | I185: 0 | J185: 0
A186: Arkitekt | C186: 0 | D186: 0 | F186: 1 | G186: 0.5756876442 | I186: 1 | J186: 0.5756876442
A187: Landinspek. | C187: 0 | D187: 0 | F187: 0 | G187: 0 | I187: 0 | J187: 0
A188: Bibliotekar | C188: 0 | D188: 0 | F188: 2 | G188: 1.810640554 | I188: 2 | J188: 1.810640554
A189: Musikudd. | C189: 0 | D189: 0 | F189: 0 | G189: 0 | I189: 0 | J189: 0
A190: Teolog | C190: 0 | D190: 0 | F190: 0 | G190: 0 | I190: 0 | J190: 0
A191: Psykolog | C191: 0 | D191: 0 | F191: 3 | G191: 2.589035115 | I191: 3 | J191: 2.589035115
A192: Jurist | C192: 0 | D192: 0 | F192: 3 | G192: 2.307116572 | I192: 3 | J192: 2.307116572
A193: Økonom | C193: 1 | D193: 0.9998128859 | F193: 2 | G193: 1.940996694 | I193: 3 | J193: 2.94080958
A194: Samf. Adm. | C194: 9 | D194: 8.372107528 | F194: 15 | G194: 13.67429676 | I194: 24 | J194: 22.04640429
A195: Cand. Merc. | C195: 10 | D195: 9.123058691 | F195: 10 | G195: 8.783134785 | I195: 20 | J195: 17.90619348
A196: HA | C196: 2 | D196: 1.999625772 | F196: 1 | G196: 0.9998128859 | I196: 3 | J196: 2.999438658
A197: HD | C197: 3 | D197: 2.838520551 | F197: 3 | G197: 2.572818562 | I197: 6 | J197: 5.411339113
A198: Komm. og Sprog | C198: 0 | D198: 0 | F198: 8 | G198: 7.719079399 | I198: 8 | J198: 7.719079399
A199: Cand. IT. | C199: 1 | D199: 0.9998128859 | F199: 1 | G199: 0.9998128859 | I199: 2 | J199: 1.999625772
A200: Bac. Samf. | C200: 0 | D200: 0 | F200: 0 | G200: 0 | I200: 0 | J200: 0
A201: Bac. Hum. | C201: 2 | D201: 1.534335433 | F201: 8 | G201: 7.260026196 | I201: 10 | J201: 8.794361629
A202: Bac. Nat. | C202: 1 | D202: 0.3536456059 | F202: 1 | G202: 0.9998128859 | I202: 2 | J202: 1.353458492
A203: Andre | C203: 10 | D203: 9.410590657 | F203: 14 | G203: 12.6064991 | I203: 24 | J203: 22.01708975
A205: Total | C205: 92 | D205: 82.85660825 | F205: 142 | G205: 125.6352523 | I205: 234 | J205: 208.4918605
A207: Ingeniører i alt | C207: 15 | D207: 12.4736481 | F207: 6 | G207: 5.319653215 | I207: 21 | J207: 17.79330132
A208: Magistre i alt | C208: 20 | D208: 18.82741845 | F208: 45 | G208: 39.18168777 | I208: 65 | J208: 58.00910622
A209: DJØF'ere i alt | C209: 22 | D209: 20.49460488 | F209: 31 | G209: 27.7053577 | I209: 53 | J209: 48.19996258
A214: Solrød
C216: Mænd | F216: Kvinder | I216: I alt
C217: Ledigheds- berørte | D217: Gns. brutto- ledighed | F217: Ledigheds- berørte | G217: Gns. brutto- ledighed | I217: Ledigheds- berørte | J217: Gns. brutto- ledighed
A220: Civ. ing. | C220: 1 | D220: 0.9536580802 | F220: 0 | G220: 0 | I220: 1 | J220: 0.9536580802
A221: Diplom ing. | C221: 0 | D221: 0 | F221: 2 | G221: 1.90731616 | I221: 2 | J221: 1.90731616
A222: Cand. Scient. Tek. | C222: 3 | D222: 2.999438658 | F222: 0 | G222: 0 | I222: 3 | J222: 2.999438658
A223: MA. Hum. | C223: 2 | D223: 1.793176573 | F223: 2 | G223: 1.738289777 | I223: 4 | J223: 3.531466351
A224: MA. Nat. | C224: 0 | D224: 0 | F224: 0 | G224: 0 | I224: 0 | J224: 0
A225: MA. Ph.d. | C225: 0 | D225: 0 | F225: 0 | G225: 0 | I225: 0 | J225: 0
A226: MA. Samf. | C226: 1 | D226: 0.9998128859 | F226: 1 | G226: 0.1185055822 | I226: 2 | J226: 1.118318468
A227: Øvrige Mag. | C227: 0 | D227: 0 | F227: 0 | G227: 0 | I227: 0 | J227: 0
A228: Agronom | C228: 0 | D228: 0 | F228: 0 | G228: 0 | I228: 0 | J228: 0
A229: Landsk. Arkt. | C229: 0 | D229: 0 | F229: 0 | G229: 0 | I229: 0 | J229: 0
A230: Hortonom | C230: 0 | D230: 0 | F230: 0 | G230: 0 | I230: 0 | J230: 0
A231: Forstkand. | C231: 0 | D231: 0 | F231: 0 | G231: 0 | I231: 0 | J231: 0
A232: Jordbrugsakad. | C232: 0 | D232: 0 | F232: 0 | G232: 0 | I232: 0 | J232: 0
A233: Mejeriing. | C233: 0 | D233: 0 | F233: 0 | G233: 0 | I233: 0 | J233: 0
A234: Levn.m.kand. | C234: 1 | D234: 0.9998128859 | F234: 0 | G234: 0 | I234: 1 | J234: 0.9998128859
A235: Dyrlæge | C235: 0 | D235: 0 | F235: 0 | G235: 0 | I235: 0 | J235: 0
A236: Farmaceut | C236: 0 | D236: 0 | F236: 2 | G236: 1.513129171 | I236: 2 | J236: 1.513129171
A237: Læge | C237: 0 | D237: 0 | F237: 0 | G237: 0 | I237: 0 | J237: 0
A238: Tandlæge | C238: 0 | D238: 0 | F238: 0 | G238: 0 | I238: 0 | J238: 0
A239: Arkitekt | C239: 0 | D239: 0 | F239: 0 | G239: 0 | I239: 0 | J239: 0
... 593 more rows

Sheet Tabel 3 S
A1: Tabel 3. Ledige i procent af forsikrede
A3: ='Tabel 2 S'!A3 -> Sjælland
C5: Mænd | F5: Kvinder | I5: I alt
C6: Ledigheds- berørte | D6: Gns. brutto- ledighed | F6: Ledigheds- berørte | G6: Gns. brutto- ledighed | I6: Ledigheds- berørte | J6: Gns. brutto- ledighed
A9: Civ. ing. | C9: =IF(OR('Tabel 1 S'!C9<5,'Tabel 2 S'!C9<0.5),"-",IFERROR('Tabel 2 S'!C9/'Tabel 1 S'!C9*100,"-")) -> 1.591343094 | D9: =IF(OR('Tabel 1 S'!C9<5,'Tabel 2 S'!D9<0.5),"-",IFERROR('Tabel 2 S'!D9/'Tabel 1 S'!C9*100,"-")) -> 1.293481145 | F9: =IF(OR('Tabel 1 S'!E9<5,'Tabel 2 S'!F9<0.5),"-",IFERROR('Tabel 2 S'!F9/'Tabel 1 S'!E9*100,"-")) -> 2.409638554 | G9: =IF(OR('Tabel 1 S'!E9<5,'Tabel 2 S'!G9<0.5),"-",IFERROR('Tabel 2 S'!G9/'Tabel 1 S'!E9*100,"-")) -> 2.323628343 | I9: =IF(OR('Tabel 1 S'!G9<5,'Tabel 2 S'!I9<0.5),"-",IFERROR('Tabel 2 S'!I9/'Tabel 1 S'!G9*100,"-")) -> 1.812267658 | J9: =IF(OR('Tabel 1 S'!G9<5,'Tabel 2 S'!J9<0.5),"-",IFERROR('Tabel 2 S'!J9/'Tabel 1 S'!G9*100,"-")) -> 1.571601741
A10: Diplom ing. | C10: =IF(OR('Tabel 1 S'!C10<5,'Tabel 2 S'!C10<0.5),"-",IFERROR('Tabel 2 S'!C10/'Tabel 1 S'!C10*100,"-")) -> 1.655306719 | D10: =IF(OR('Tabel 1 S'!C10<5,'Tabel 2 S'!D10<0.5),"-",IFERROR('Tabel 2 S'!D10/'Tabel 1 S'!C10*100,"-")) -> 1.452841716 | F10: =IF(OR('Tabel 1 S'!E10<5,'Tabel 2 S'!F10<0.5),"-",IFERROR('Tabel 2 S'!F10/'Tabel 1 S'!E10*100,"-")) -> 2.761627907 | G10: =IF(OR('Tabel 1 S'!E10<5,'Tabel 2 S'!G10<0.5),"-",IFERROR('Tabel 2 S'!G10/'Tabel 1 S'!E10*100,"-")) -> 2.54834143 | I10: =IF(OR('Tabel 1 S'!G10<5,'Tabel 2 S'!I10<0.5),"-",IFERROR('Tabel 2 S'!I10/'Tabel 1 S'!G10*100,"-")) -> 1.857256567 | J10: =IF(OR('Tabel 1 S'!G10<5,'Tabel 2 S'!J10<0.5),"-",IFERROR('Tabel 2 S'!J10/'Tabel 1 S'!G10*100,"-")) -> 1.652816193
A11: Cand. Scient. Tek. | C11: =IF(OR('Tabel 1 S'!C11<5,'Tabel 2 S'!C11<0.5),"-",IFERROR('Tabel 2 S'!C11/'Tabel 1 S'!C11*100,"-")) -> 8.797127469 | D11: =IF(OR('Tabel 1 S'!C11<5,'Tabel 2 S'!D11<0.5),"-",IFERROR('Tabel 2 S'!D11/'Tabel 1 S'!C11*100,"-")) -> 7.975807527 | F11: =IF(OR('Tabel 1 S'!E11<5,'Tabel 2 S'!F11<0.5),"-",IFERROR('Tabel 2 S'!F11/'Tabel 1 S'!E11*100,"-")) -> 6.560636183 | G11: =IF(OR('Tabel 1 S'!E11<5,'Tabel 2 S'!G11<0.5),"-",IFERROR('Tabel 2 S'!G11/'Tabel 1 S'!E11*100,"-")) -> 5.877415604 | I11: =IF(OR('Tabel 1 S'!G11<5,'Tabel 2 S'!I11<0.5),"-",IFERROR('Tabel 2 S'!I11/'Tabel 1 S'!G11*100,"-")) -> 7.735849057 | J11: =IF(OR('Tabel 1 S'!G11<5,'Tabel 2 S'!J11<0.5),"-",IFERROR('Tabel 2 S'!J11/'Tabel 1 S'!G11*100,"-")) -> 6.980061171
A12: MA. Hum. | C12: =IF(OR('Tabel 1 S'!C12<5,'Tabel 2 S'!C12<0.5),"-",IFERROR('Tabel 2 S'!C12/'Tabel 1 S'!C12*100,"-")) -> 6.081871345 | D12: =IF(OR('Tabel 1 S'!C12<5,'Tabel 2 S'!D12<0.5),"-",IFERROR('Tabel 2 S'!D12/'Tabel 1 S'!C12*100,"-")) -> 5.194622349 | F12: =IF(OR('Tabel 1 S'!E12<5,'Tabel 2 S'!F12<0.5),"-",IFERROR('Tabel 2 S'!F12/'Tabel 1 S'!E12*100,"-")) -> 7.575757576 | G12: =IF(OR('Tabel 1 S'!E12<5,'Tabel 2 S'!G12<0.5),"-",IFERROR('Tabel 2 S'!G12/'Tabel 1 S'!E12*100,"-")) -> 6.77649066 | I12: =IF(OR('Tabel 1 S'!G12<5,'Tabel 2 S'!I12<0.5),"-",IFERROR('Tabel 2 S'!I12/'Tabel 1 S'!G12*100,"-")) -> 7.125220459 | J12: =IF(OR('Tabel 1 S'!G12<5,'Tabel 2 S'!J12<0.5),"-",IFERROR('Tabel 2 S'!J12/'Tabel 1 S'!G12*100,"-")) -> 6.299419264
A13: MA. Nat. | C13: =IF(OR('Tabel 1 S'!C13<5,'Tabel 2 S'!C13<0.5),"-",IFERROR('Tabel 2 S'!C13/'Tabel 1 S'!C13*100,"-")) -> 1.833568406 | D13: =IF(OR('Tabel 1 S'!C13<5,'Tabel 2 S'!D13<0.5),"-",IFERROR('Tabel 2 S'!D13/'Tabel 1 S'!C13*100,"-")) -> 1.684026695 | F13: =IF(OR('Tabel 1 S'!E13<5,'Tabel 2 S'!F13<0.5),"-",IFERROR('Tabel 2 S'!F13/'Tabel 1 S'!E13*100,"-")) -> 2.808988764 | G13: =IF(OR('Tabel 1 S'!E13<5,'Tabel 2 S'!G13<0.5),"-",IFERROR('Tabel 2 S'!G13/'Tabel 1 S'!E13*100,"-")) -> 2.614866669 | I13: =IF(OR('Tabel 1 S'!G13<5,'Tabel 2 S'!I13<0.5),"-",IFERROR('Tabel 2 S'!I13/'Tabel 1 S'!G13*100,"-")) -> 2.322308234 | J13: =IF(OR('Tabel 1 S'!G13<5,'Tabel 2 S'!J13<0.5),"-",IFERROR('Tabel 2 S'!J13/'Tabel 1 S'!G13*100,"-")) -> 2.150429272
A14: MA. Ph.d. | C14: =IF(OR('Tabel 1 S'!C14<5,'Tabel 2 S'!C14<0.5),"-",IFERROR('Tabel 2 S'!C14/'Tabel 1 S'!C14*100,"-")) -> 1.369863014 | D14: =IF(OR('Tabel 1 S'!C14<5,'Tabel 2 S'!D14<0.5),"-",IFERROR('Tabel 2 S'!D14/'Tabel 1 S'!C14*100,"-")) -> 1.053477887 | F14: =IF(OR('Tabel 1 S'!E14<5,'Tabel 2 S'!F14<0.5),"-",IFERROR('Tabel 2 S'!F14/'Tabel 1 S'!E14*100,"-")) -> 4.545454545 | G14: =IF(OR('Tabel 1 S'!E14<5,'Tabel 2 S'!G14<0.5),"-",IFERROR('Tabel 2 S'!G14/'Tabel 1 S'!E14*100,"-")) -> 4.056028381 | I14: =IF(OR('Tabel 1 S'!G14<5,'Tabel 2 S'!I14<0.5),"-",IFERROR('Tabel 2 S'!I14/'Tabel 1 S'!G14*100,"-")) -> 2.877697842 | J14: =IF(OR('Tabel 1 S'!G14<5,'Tabel 2 S'!J14<0.5),"-",IFERROR('Tabel 2 S'!J14/'Tabel 1 S'!G14*100,"-")) -> 2.479149344
A15: MA. Samf. | C15: =IF(OR('Tabel 1 S'!C15<5,'Tabel 2 S'!C15<0.5),"-",IFERROR('Tabel 2 S'!C15/'Tabel 1 S'!C15*100,"-")) -> 10.11235955 | D15: =IF(OR('Tabel 1 S'!C15<5,'Tabel 2 S'!D15<0.5),"-",IFERROR('Tabel 2 S'!D15/'Tabel 1 S'!C15*100,"-")) -> 9.436296066 | F15: =IF(OR('Tabel 1 S'!E15<5,'Tabel 2 S'!F15<0.5),"-",IFERROR('Tabel 2 S'!F15/'Tabel 1 S'!E15*100,"-")) -> 12.4 | G15: =IF(OR('Tabel 1 S'!E15<5,'Tabel 2 S'!G15<0.5),"-",IFERROR('Tabel 2 S'!G15/'Tabel 1 S'!E15*100,"-")) -> 10.62558473 | I15: =IF(OR('Tabel 1 S'!G15<5,'Tabel 2 S'!I15<0.5),"-",IFERROR('Tabel 2 S'!I15/'Tabel 1 S'!G15*100,"-")) -> 11.79941003 | J15: =IF(OR('Tabel 1 S'!G15<5,'Tabel 2 S'!J15<0.5),"-",IFERROR('Tabel 2 S'!J15/'Tabel 1 S'!G15*100,"-")) -> 10.3133526
A16: Øvrige Mag. | C16: =IF(OR('Tabel 1 S'!C16<5,'Tabel 2 S'!C16<0.5),"-",IFERROR('Tabel 2 S'!C16/'Tabel 1 S'!C16*100,"-")) -> 2.298850575 | D16: =IF(OR('Tabel 1 S'!C16<5,'Tabel 2 S'!D16<0.5),"-",IFERROR('Tabel 2 S'!D16/'Tabel 1 S'!C16*100,"-")) -> 1.750699527 | F16: =IF(OR('Tabel 1 S'!E16<5,'Tabel 2 S'!F16<0.5),"-",IFERROR('Tabel 2 S'!F16/'Tabel 1 S'!E16*100,"-")) -> 5.732484076 | G16: =IF(OR('Tabel 1 S'!E16<5,'Tabel 2 S'!G16<0.5),"-",IFERROR('Tabel 2 S'!G16/'Tabel 1 S'!E16*100,"-")) -> 4.662358408 | I16: =IF(OR('Tabel 1 S'!G16<5,'Tabel 2 S'!I16<0.5),"-",IFERROR('Tabel 2 S'!I16/'Tabel 1 S'!G16*100,"-")) -> 4.508196721 | J16: =IF(OR('Tabel 1 S'!G16<5,'Tabel 2 S'!J16<0.5),"-",IFERROR('Tabel 2 S'!J16/'Tabel 1 S'!G16*100,"-")) -> 3.624184955
A17: Agronom | C17: =IF(OR('Tabel 1 S'!C17<5,'Tabel 2 S'!C17<0.5),"-",IFERROR('Tabel 2 S'!C17/'Tabel 1 S'!C17*100,"-")) -> 2.777777778 | D17: =IF(OR('Tabel 1 S'!C17<5,'Tabel 2 S'!D17<0.5),"-",IFERROR('Tabel 2 S'!D17/'Tabel 1 S'!C17*100,"-")) -> 2.262405548 | F17: =IF(OR('Tabel 1 S'!E17<5,'Tabel 2 S'!F17<0.5),"-",IFERROR('Tabel 2 S'!F17/'Tabel 1 S'!E17*100,"-")) -> 3.765690377 | G17: =IF(OR('Tabel 1 S'!E17<5,'Tabel 2 S'!G17<0.5),"-",IFERROR('Tabel 2 S'!G17/'Tabel 1 S'!E17*100,"-")) -> 3.130311515 | I17: =IF(OR('Tabel 1 S'!G17<5,'Tabel 2 S'!I17<0.5),"-",IFERROR('Tabel 2 S'!I17/'Tabel 1 S'!G17*100,"-")) -> 3.296703297 | J17: =IF(OR('Tabel 1 S'!G17<5,'Tabel 2 S'!J17<0.5),"-",IFERROR('Tabel 2 S'!J17/'Tabel 1 S'!G17*100,"-")) -> 2.718294616
A18: Landsk. Arkt. | C18: =IF(OR('Tabel 1 S'!C18<5,'Tabel 2 S'!C18<0.5),"-",IFERROR('Tabel 2 S'!C18/'Tabel 1 S'!C18*100,"-")) -> 7.692307692 | D18: =IF(OR('Tabel 1 S'!C18<5,'Tabel 2 S'!D18<0.5),"-",IFERROR('Tabel 2 S'!D18/'Tabel 1 S'!C18*100,"-")) -> 7.690868353 | F18: =IF(OR('Tabel 1 S'!E18<5,'Tabel 2 S'!F18<0.5),"-",IFERROR('Tabel 2 S'!F18/'Tabel 1 S'!E18*100,"-")) -> 2.777777778 | G18: =IF(OR('Tabel 1 S'!E18<5,'Tabel 2 S'!G18<0.5),"-",IFERROR('Tabel 2 S'!G18/'Tabel 1 S'!E18*100,"-")) -> 2.777258016 | I18: =IF(OR('Tabel 1 S'!G18<5,'Tabel 2 S'!I18<0.5),"-",IFERROR('Tabel 2 S'!I18/'Tabel 1 S'!G18*100,"-")) -> 4.081632653 | J18: =IF(OR('Tabel 1 S'!G18<5,'Tabel 2 S'!J18<0.5),"-",IFERROR('Tabel 2 S'!J18/'Tabel 1 S'!G18*100,"-")) -> 4.080868922
A19: Hortonom | C19: =IF(OR('Tabel 1 S'!C19<5,'Tabel 2 S'!C19<0.5),"-",IFERROR('Tabel 2 S'!C19/'Tabel 1 S'!C19*100,"-")) -> - | D19: =IF(OR('Tabel 1 S'!C19<5,'Tabel 2 S'!D19<0.5),"-",IFERROR('Tabel 2 S'!D19/'Tabel 1 S'!C19*100,"-")) -> - | F19: =IF(OR('Tabel 1 S'!E19<5,'Tabel 2 S'!F19<0.5),"-",IFERROR('Tabel 2 S'!F19/'Tabel 1 S'!E19*100,"-")) -> - | G19: =IF(OR('Tabel 1 S'!E19<5,'Tabel 2 S'!G19<0.5),"-",IFERROR('Tabel 2 S'!G19/'Tabel 1 S'!E19*100,"-")) -> - | I19: =IF(OR('Tabel 1 S'!G19<5,'Tabel 2 S'!I19<0.5),"-",IFERROR('Tabel 2 S'!I19/'Tabel 1 S'!G19*100,"-")) -> - | J19: =IF(OR('Tabel 1 S'!G19<5,'Tabel 2 S'!J19<0.5),"-",IFERROR('Tabel 2 S'!J19/'Tabel 1 S'!G19*100,"-")) -> -
A20: Forstkand. | C20: =IF(OR('Tabel 1 S'!C20<5,'Tabel 2 S'!C20<0.5),"-",IFERROR('Tabel 2 S'!C20/'Tabel 1 S'!C20*100,"-")) -> 1.724137931 | D20: =IF(OR('Tabel 1 S'!C20<5,'Tabel 2 S'!D20<0.5),"-",IFERROR('Tabel 2 S'!D20/'Tabel 1 S'!C20*100,"-")) -> 1.723815321 | F20: =IF(OR('Tabel 1 S'!E20<5,'Tabel 2 S'!F20<0.5),"-",IFERROR('Tabel 2 S'!F20/'Tabel 1 S'!E20*100,"-")) -> - | G20: =IF(OR('Tabel 1 S'!E20<5,'Tabel 2 S'!G20<0.5),"-",IFERROR('Tabel 2 S'!G20/'Tabel 1 S'!E20*100,"-")) -> - | I20: =IF(OR('Tabel 1 S'!G20<5,'Tabel 2 S'!I20<0.5),"-",IFERROR('Tabel 2 S'!I20/'Tabel 1 S'!G20*100,"-")) -> 1.351351351 | J20: =IF(OR('Tabel 1 S'!G20<5,'Tabel 2 S'!J20<0.5),"-",IFERROR('Tabel 2 S'!J20/'Tabel 1 S'!G20*100,"-")) -> 1.351098494
A21: Jordbrugsakad. | C21: =IF(OR('Tabel 1 S'!C21<5,'Tabel 2 S'!C21<0.5),"-",IFERROR('Tabel 2 S'!C21/'Tabel 1 S'!C21*100,"-")) -> 2.803738318 | D21: =IF(OR('Tabel 1 S'!C21<5,'Tabel 2 S'!D21<0.5),"-",IFERROR('Tabel 2 S'!D21/'Tabel 1 S'!C21*100,"-")) -> 2.456770916 | F21: =IF(OR('Tabel 1 S'!E21<5,'Tabel 2 S'!F21<0.5),"-",IFERROR('Tabel 2 S'!F21/'Tabel 1 S'!E21*100,"-")) -> 3.021978022 | G21: =IF(OR('Tabel 1 S'!E21<5,'Tabel 2 S'!G21<0.5),"-",IFERROR('Tabel 2 S'!G21/'Tabel 1 S'!E21*100,"-")) -> 2.604689641 | I21: =IF(OR('Tabel 1 S'!G21<5,'Tabel 2 S'!I21<0.5),"-",IFERROR('Tabel 2 S'!I21/'Tabel 1 S'!G21*100,"-")) -> 2.919708029 | J21: =IF(OR('Tabel 1 S'!G21<5,'Tabel 2 S'!J21<0.5),"-",IFERROR('Tabel 2 S'!J21/'Tabel 1 S'!G21*100,"-")) -> 2.535372983
A22: Mejeriing. | C22: =IF(OR('Tabel 1 S'!C22<5,'Tabel 2 S'!C22<0.5),"-",IFERROR('Tabel 2 S'!C22/'Tabel 1 S'!C22*100,"-")) -> - | D22: =IF(OR('Tabel 1 S'!C22<5,'Tabel 2 S'!D22<0.5),"-",IFERROR('Tabel 2 S'!D22/'Tabel 1 S'!C22*100,"-")) -> - | F22: =IF(OR('Tabel 1 S'!E22<5,'Tabel 2 S'!F22<0.5),"-",IFERROR('Tabel 2 S'!F22/'Tabel 1 S'!E22*100,"-")) -> - | G22: =IF(OR('Tabel 1 S'!E22<5,'Tabel 2 S'!G22<0.5),"-",IFERROR('Tabel 2 S'!G22/'Tabel 1 S'!E22*100,"-")) -> - | I22: =IF(OR('Tabel 1 S'!G22<5,'Tabel 2 S'!I22<0.5),"-",IFERROR('Tabel 2 S'!I22/'Tabel 1 S'!G22*100,"-")) -> - | J22: =IF(OR('Tabel 1 S'!G22<5,'Tabel 2 S'!J22<0.5),"-",IFERROR('Tabel 2 S'!J22/'Tabel 1 S'!G22*100,"-")) -> -
A23: Levn.m.kand. | C23: =IF(OR('Tabel 1 S'!C23<5,'Tabel 2 S'!C23<0.5),"-",IFERROR('Tabel 2 S'!C23/'Tabel 1 S'!C23*100,"-")) -> 14.28571429 | D23: =IF(OR('Tabel 1 S'!C23<5,'Tabel 2 S'!D23<0.5),"-",IFERROR('Tabel 2 S'!D23/'Tabel 1 S'!C23*100,"-")) -> 14.28304123 | F23: =IF(OR('Tabel 1 S'!E23<5,'Tabel 2 S'!F23<0.5),"-",IFERROR('Tabel 2 S'!F23/'Tabel 1 S'!E23*100,"-")) -> 2.702702703 | G23: =IF(OR('Tabel 1 S'!E23<5,'Tabel 2 S'!G23<0.5),"-",IFERROR('Tabel 2 S'!G23/'Tabel 1 S'!E23*100,"-")) -> 2.702196989 | I23: =IF(OR('Tabel 1 S'!G23<5,'Tabel 2 S'!I23<0.5),"-",IFERROR('Tabel 2 S'!I23/'Tabel 1 S'!G23*100,"-")) -> 4.545454545 | J23: =IF(OR('Tabel 1 S'!G23<5,'Tabel 2 S'!J23<0.5),"-",IFERROR('Tabel 2 S'!J23/'Tabel 1 S'!G23*100,"-")) -> 4.544604027
A24: Dyrlæge | C24: =IF(OR('Tabel 1 S'!C24<5,'Tabel 2 S'!C24<0.5),"-",IFERROR('Tabel 2 S'!C24/'Tabel 1 S'!C24*100,"-")) -> 3.571428571 | D24: =IF(OR('Tabel 1 S'!C24<5,'Tabel 2 S'!D24<0.5),"-",IFERROR('Tabel 2 S'!D24/'Tabel 1 S'!C24*100,"-")) -> 2.663405536 | F24: =IF(OR('Tabel 1 S'!E24<5,'Tabel 2 S'!F24<0.5),"-",IFERROR('Tabel 2 S'!F24/'Tabel 1 S'!E24*100,"-")) -> 3.225806452 | G24: =IF(OR('Tabel 1 S'!E24<5,'Tabel 2 S'!G24<0.5),"-",IFERROR('Tabel 2 S'!G24/'Tabel 1 S'!E24*100,"-")) -> 2.705106202 | I24: =IF(OR('Tabel 1 S'!G24<5,'Tabel 2 S'!I24<0.5),"-",IFERROR('Tabel 2 S'!I24/'Tabel 1 S'!G24*100,"-")) -> 3.299492386 | J24: =IF(OR('Tabel 1 S'!G24<5,'Tabel 2 S'!J24<0.5),"-",IFERROR('Tabel 2 S'!J24/'Tabel 1 S'!G24*100,"-")) -> 2.696215705
A25: Farmaceut | C25: =IF(OR('Tabel 1 S'!C25<5,'Tabel 2 S'!C25<0.5),"-",IFERROR('Tabel 2 S'!C25/'Tabel 1 S'!C25*100,"-")) -> 3.007518797 | D25: =IF(OR('Tabel 1 S'!C25<5,'Tabel 2 S'!D25<0.5),"-",IFERROR('Tabel 2 S'!D25/'Tabel 1 S'!C25*100,"-")) -> 2.500481854 | F25: =IF(OR('Tabel 1 S'!E25<5,'Tabel 2 S'!F25<0.5),"-",IFERROR('Tabel 2 S'!F25/'Tabel 1 S'!E25*100,"-")) -> 1.946472019 | G25: =IF(OR('Tabel 1 S'!E25<5,'Tabel 2 S'!G25<0.5),"-",IFERROR('Tabel 2 S'!G25/'Tabel 1 S'!E25*100,"-")) -> 1.670520488 | I25: =IF(OR('Tabel 1 S'!G25<5,'Tabel 2 S'!I25<0.5),"-",IFERROR('Tabel 2 S'!I25/'Tabel 1 S'!G25*100,"-")) -> 2.205882353 | J25: =IF(OR('Tabel 1 S'!G25<5,'Tabel 2 S'!J25<0.5),"-",IFERROR('Tabel 2 S'!J25/'Tabel 1 S'!G25*100,"-")) -> 1.873433837
A26: Læge | C26: =IF(OR('Tabel 1 S'!C26<5,'Tabel 2 S'!C26<0.5),"-",IFERROR('Tabel 2 S'!C26/'Tabel 1 S'!C26*100,"-")) -> 1.333333333 | D26: =IF(OR('Tabel 1 S'!C26<5,'Tabel 2 S'!D26<0.5),"-",IFERROR('Tabel 2 S'!D26/'Tabel 1 S'!C26*100,"-")) -> 1.271544107 | F26: =IF(OR('Tabel 1 S'!E26<5,'Tabel 2 S'!F26<0.5),"-",IFERROR('Tabel 2 S'!F26/'Tabel 1 S'!E26*100,"-")) -> 1.091703057 | G26: =IF(OR('Tabel 1 S'!E26<5,'Tabel 2 S'!G26<0.5),"-",IFERROR('Tabel 2 S'!G26/'Tabel 1 S'!E26*100,"-")) -> 0.8202242264 | I26: =IF(OR('Tabel 1 S'!G26<5,'Tabel 2 S'!I26<0.5),"-",IFERROR('Tabel 2 S'!I26/'Tabel 1 S'!G26*100,"-")) -> 1.171303075 | J26: =IF(OR('Tabel 1 S'!G26<5,'Tabel 2 S'!J26<0.5),"-",IFERROR('Tabel 2 S'!J26/'Tabel 1 S'!G26*100,"-")) -> 0.9689020787
A27: Tandlæge | C27: =IF(OR('Tabel 1 S'!C27<5,'Tabel 2 S'!C27<0.5),"-",IFERROR('Tabel 2 S'!C27/'Tabel 1 S'!C27*100,"-")) -> - | D27: =IF(OR('Tabel 1 S'!C27<5,'Tabel 2 S'!D27<0.5),"-",IFERROR('Tabel 2 S'!D27/'Tabel 1 S'!C27*100,"-")) -> - | F27: =IF(OR('Tabel 1 S'!E27<5,'Tabel 2 S'!F27<0.5),"-",IFERROR('Tabel 2 S'!F27/'Tabel 1 S'!E27*100,"-")) -> 0.6802721088 | G27: =IF(OR('Tabel 1 S'!E27<5,'Tabel 2 S'!G27<0.5),"-",IFERROR('Tabel 2 S'!G27/'Tabel 1 S'!E27*100,"-")) -> 0.3661665502 | I27: =IF(OR('Tabel 1 S'!G27<5,'Tabel 2 S'!I27<0.5),"-",IFERROR('Tabel 2 S'!I27/'Tabel 1 S'!G27*100,"-")) -> 0.5681818182 | J27: =IF(OR('Tabel 1 S'!G27<5,'Tabel 2 S'!J27<0.5),"-",IFERROR('Tabel 2 S'!J27/'Tabel 1 S'!G27*100,"-")) -> 0.3058322891
A28: Arkitekt | C28: =IF(OR('Tabel 1 S'!C28<5,'Tabel 2 S'!C28<0.5),"-",IFERROR('Tabel 2 S'!C28/'Tabel 1 S'!C28*100,"-")) -> 3.921568627 | D28: =IF(OR('Tabel 1 S'!C28<5,'Tabel 2 S'!D28<0.5),"-",IFERROR('Tabel 2 S'!D28/'Tabel 1 S'!C28*100,"-")) -> 3.64933599 | F28: =IF(OR('Tabel 1 S'!E28<5,'Tabel 2 S'!F28<0.5),"-",IFERROR('Tabel 2 S'!F28/'Tabel 1 S'!E28*100,"-")) -> 5.511811024 | G28: =IF(OR('Tabel 1 S'!E28<5,'Tabel 2 S'!G28<0.5),"-",IFERROR('Tabel 2 S'!G28/'Tabel 1 S'!E28*100,"-")) -> 5.067795703 | I28: =IF(OR('Tabel 1 S'!G28<5,'Tabel 2 S'!I28<0.5),"-",IFERROR('Tabel 2 S'!I28/'Tabel 1 S'!G28*100,"-")) -> 4.80349345 | J28: =IF(OR('Tabel 1 S'!G28<5,'Tabel 2 S'!J28<0.5),"-",IFERROR('Tabel 2 S'!J28/'Tabel 1 S'!G28*100,"-")) -> 4.435992686
A29: Landinspek. | C29: =IF(OR('Tabel 1 S'!C29<5,'Tabel 2 S'!C29<0.5),"-",IFERROR('Tabel 2 S'!C29/'Tabel 1 S'!C29*100,"-")) -> - | D29: =IF(OR('Tabel 1 S'!C29<5,'Tabel 2 S'!D29<0.5),"-",IFERROR('Tabel 2 S'!D29/'Tabel 1 S'!C29*100,"-")) -> - | F29: =IF(OR('Tabel 1 S'!E29<5,'Tabel 2 S'!F29<0.5),"-",IFERROR('Tabel 2 S'!F29/'Tabel 1 S'!E29*100,"-")) -> - | G29: =IF(OR('Tabel 1 S'!E29<5,'Tabel 2 S'!G29<0.5),"-",IFERROR('Tabel 2 S'!G29/'Tabel 1 S'!E29*100,"-")) -> - | I29: =IF(OR('Tabel 1 S'!G29<5,'Tabel 2 S'!I29<0.5),"-",IFERROR('Tabel 2 S'!I29/'Tabel 1 S'!G29*100,"-")) -> - | J29: =IF(OR('Tabel 1 S'!G29<5,'Tabel 2 S'!J29<0.5),"-",IFERROR('Tabel 2 S'!J29/'Tabel 1 S'!G29*100,"-")) -> -
A30: Bibliotekar | C30: =IF(OR('Tabel 1 S'!C30<5,'Tabel 2 S'!C30<0.5),"-",IFERROR('Tabel 2 S'!C30/'Tabel 1 S'!C30*100,"-")) -> 7.142857143 | D30: =IF(OR('Tabel 1 S'!C30<5,'Tabel 2 S'!D30<0.5),"-",IFERROR('Tabel 2 S'!D30/'Tabel 1 S'!C30*100,"-")) -> 6.729424134 | F30: =IF(OR('Tabel 1 S'!E30<5,'Tabel 2 S'!F30<0.5),"-",IFERROR('Tabel 2 S'!F30/'Tabel 1 S'!E30*100,"-")) -> 3.050847458 | G30: =IF(OR('Tabel 1 S'!E30<5,'Tabel 2 S'!G30<0.5),"-",IFERROR('Tabel 2 S'!G30/'Tabel 1 S'!E30*100,"-")) -> 2.56378 | I30: =IF(OR('Tabel 1 S'!G30<5,'Tabel 2 S'!I30<0.5),"-",IFERROR('Tabel 2 S'!I30/'Tabel 1 S'!G30*100,"-")) -> 4.176904177 | J30: =IF(OR('Tabel 1 S'!G30<5,'Tabel 2 S'!J30<0.5),"-",IFERROR('Tabel 2 S'!J30/'Tabel 1 S'!G30*100,"-")) -> 3.710099762
A31: Musikudd. | C31: =IF(OR('Tabel 1 S'!C31<5,'Tabel 2 S'!C31<0.5),"-",IFERROR('Tabel 2 S'!C31/'Tabel 1 S'!C31*100,"-")) -> - | D31: =IF(OR('Tabel 1 S'!C31<5,'Tabel 2 S'!D31<0.5),"-",IFERROR('Tabel 2 S'!D31/'Tabel 1 S'!C31*100,"-")) -> - | F31: =IF(OR('Tabel 1 S'!E31<5,'Tabel 2 S'!F31<0.5),"-",IFERROR('Tabel 2 S'!F31/'Tabel 1 S'!E31*100,"-")) -> - | G31: =IF(OR('Tabel 1 S'!E31<5,'Tabel 2 S'!G31<0.5),"-",IFERROR('Tabel 2 S'!G31/'Tabel 1 S'!E31*100,"-")) -> - | I31: =IF(OR('Tabel 1 S'!G31<5,'Tabel 2 S'!I31<0.5),"-",IFERROR('Tabel 2 S'!I31/'Tabel 1 S'!G31*100,"-")) -> - | J31: =IF(OR('Tabel 1 S'!G31<5,'Tabel 2 S'!J31<0.5),"-",IFERROR('Tabel 2 S'!J31/'Tabel 1 S'!G31*100,"-")) -> -
A32: Teolog | C32: =IF(OR('Tabel 1 S'!C32<5,'Tabel 2 S'!C32<0.5),"-",IFERROR('Tabel 2 S'!C32/'Tabel 1 S'!C32*100,"-")) -> 3.75 | D32: =IF(OR('Tabel 1 S'!C32<5,'Tabel 2 S'!D32<0.5),"-",IFERROR('Tabel 2 S'!D32/'Tabel 1 S'!C32*100,"-")) -> 2.844913616 | F32: =IF(OR('Tabel 1 S'!E32<5,'Tabel 2 S'!F32<0.5),"-",IFERROR('Tabel 2 S'!F32/'Tabel 1 S'!E32*100,"-")) -> 1.379310345 | G32: =IF(OR('Tabel 1 S'!E32<5,'Tabel 2 S'!G32<0.5),"-",IFERROR('Tabel 2 S'!G32/'Tabel 1 S'!E32*100,"-")) -> 1.059882957 | I32: =IF(OR('Tabel 1 S'!G32<5,'Tabel 2 S'!I32<0.5),"-",IFERROR('Tabel 2 S'!I32/'Tabel 1 S'!G32*100,"-")) -> 2.222222222 | J32: =IF(OR('Tabel 1 S'!G32<5,'Tabel 2 S'!J32<0.5),"-",IFERROR('Tabel 2 S'!J32/'Tabel 1 S'!G32*100,"-")) -> 1.694560524
A33: Psykolog | C33: =IF(OR('Tabel 1 S'!C33<5,'Tabel 2 S'!C33<0.5),"-",IFERROR('Tabel 2 S'!C33/'Tabel 1 S'!C33*100,"-")) -> 5.376344086 | D33: =IF(OR('Tabel 1 S'!C33<5,'Tabel 2 S'!D33<0.5),"-",IFERROR('Tabel 2 S'!D33/'Tabel 1 S'!C33*100,"-")) -> 4.91794813 | F33: =IF(OR('Tabel 1 S'!E33<5,'Tabel 2 S'!F33<0.5),"-",IFERROR('Tabel 2 S'!F33/'Tabel 1 S'!E33*100,"-")) -> 3.652968037 | G33: =IF(OR('Tabel 1 S'!E33<5,'Tabel 2 S'!G33<0.5),"-",IFERROR('Tabel 2 S'!G33/'Tabel 1 S'!E33*100,"-")) -> 3.292296397 | I33: =IF(OR('Tabel 1 S'!G33<5,'Tabel 2 S'!I33<0.5),"-",IFERROR('Tabel 2 S'!I33/'Tabel 1 S'!G33*100,"-")) -> 3.95480226 | J33: =IF(OR('Tabel 1 S'!G33<5,'Tabel 2 S'!J33<0.5),"-",IFERROR('Tabel 2 S'!J33/'Tabel 1 S'!G33*100,"-")) -> 3.577015062
A34: Jurist | C34: =IF(OR('Tabel 1 S'!C34<5,'Tabel 2 S'!C34<0.5),"-",IFERROR('Tabel 2 S'!C34/'Tabel 1 S'!C34*100,"-")) -> 1.307189542 | D34: =IF(OR('Tabel 1 S'!C34<5,'Tabel 2 S'!D34<0.5),"-",IFERROR('Tabel 2 S'!D34/'Tabel 1 S'!C34*100,"-")) -> 1.21644533 | F34: =IF(OR('Tabel 1 S'!E34<5,'Tabel 2 S'!F34<0.5),"-",IFERROR('Tabel 2 S'!F34/'Tabel 1 S'!E34*100,"-")) -> 2.165087957 | G34: =IF(OR('Tabel 1 S'!E34<5,'Tabel 2 S'!G34<0.5),"-",IFERROR('Tabel 2 S'!G34/'Tabel 1 S'!E34*100,"-")) -> 1.751799633 | I34: =IF(OR('Tabel 1 S'!G34<5,'Tabel 2 S'!I34<0.5),"-",IFERROR('Tabel 2 S'!I34/'Tabel 1 S'!G34*100,"-")) -> 1.913875598 | J34: =IF(OR('Tabel 1 S'!G34<5,'Tabel 2 S'!J34<0.5),"-",IFERROR('Tabel 2 S'!J34/'Tabel 1 S'!G34*100,"-")) -> 1.595035598
A35: Økonom | C35: =IF(OR('Tabel 1 S'!C35<5,'Tabel 2 S'!C35<0.5),"-",IFERROR('Tabel 2 S'!C35/'Tabel 1 S'!C35*100,"-")) -> 3.692307692 | D35: =IF(OR('Tabel 1 S'!C35<5,'Tabel 2 S'!D35<0.5),"-",IFERROR('Tabel 2 S'!D35/'Tabel 1 S'!C35*100,"-")) -> 2.987684055 | F35: =IF(OR('Tabel 1 S'!E35<5,'Tabel 2 S'!F35<0.5),"-",IFERROR('Tabel 2 S'!F35/'Tabel 1 S'!E35*100,"-")) -> 1.19047619 | G35: =IF(OR('Tabel 1 S'!E35<5,'Tabel 2 S'!G35<0.5),"-",IFERROR('Tabel 2 S'!G35/'Tabel 1 S'!E35*100,"-")) -> 1.166987929 | I35: =IF(OR('Tabel 1 S'!G35<5,'Tabel 2 S'!I35<0.5),"-",IFERROR('Tabel 2 S'!I35/'Tabel 1 S'!G35*100,"-")) -> 2.59965338 | J35: =IF(OR('Tabel 1 S'!G35<5,'Tabel 2 S'!J35<0.5),"-",IFERROR('Tabel 2 S'!J35/'Tabel 1 S'!G35*100,"-")) -> 2.19251001
A36: Samf. Adm. | C36: =IF(OR('Tabel 1 S'!C36<5,'Tabel 2 S'!C36<0.5),"-",IFERROR('Tabel 2 S'!C36/'Tabel 1 S'!C36*100,"-")) -> 4.954367666 | D36: =IF(OR('Tabel 1 S'!C36<5,'Tabel 2 S'!D36<0.5),"-",IFERROR('Tabel 2 S'!D36/'Tabel 1 S'!C36*100,"-")) -> 4.400148943 | F36: =IF(OR('Tabel 1 S'!E36<5,'Tabel 2 S'!F36<0.5),"-",IFERROR('Tabel 2 S'!F36/'Tabel 1 S'!E36*100,"-")) -> 5.754716981 | G36: =IF(OR('Tabel 1 S'!E36<5,'Tabel 2 S'!G36<0.5),"-",IFERROR('Tabel 2 S'!G36/'Tabel 1 S'!E36*100,"-")) -> 5.131279943 | I36: =IF(OR('Tabel 1 S'!G36<5,'Tabel 2 S'!I36<0.5),"-",IFERROR('Tabel 2 S'!I36/'Tabel 1 S'!G36*100,"-")) -> 5.418719212 | J36: =IF(OR('Tabel 1 S'!G36<5,'Tabel 2 S'!J36<0.5),"-",IFERROR('Tabel 2 S'!J36/'Tabel 1 S'!G36*100,"-")) -> 4.824340984
A37: Cand. Merc. | C37: =IF(OR('Tabel 1 S'!C37<5,'Tabel 2 S'!C37<0.5),"-",IFERROR('Tabel 2 S'!C37/'Tabel 1 S'!C37*100,"-")) -> 3.933136676 | D37: =IF(OR('Tabel 1 S'!C37<5,'Tabel 2 S'!D37<0.5),"-",IFERROR('Tabel 2 S'!D37/'Tabel 1 S'!C37*100,"-")) -> 3.585034578 | F37: =IF(OR('Tabel 1 S'!E37<5,'Tabel 2 S'!F37<0.5),"-",IFERROR('Tabel 2 S'!F37/'Tabel 1 S'!E37*100,"-")) -> 6.592292089 | G37: =IF(OR('Tabel 1 S'!E37<5,'Tabel 2 S'!G37<0.5),"-",IFERROR('Tabel 2 S'!G37/'Tabel 1 S'!E37*100,"-")) -> 5.506265032 | I37: =IF(OR('Tabel 1 S'!G37<5,'Tabel 2 S'!I37<0.5),"-",IFERROR('Tabel 2 S'!I37/'Tabel 1 S'!G37*100,"-")) -> 5.242136795 | J37: =IF(OR('Tabel 1 S'!G37<5,'Tabel 2 S'!J37<0.5),"-",IFERROR('Tabel 2 S'!J37/'Tabel 1 S'!G37*100,"-")) -> 4.53078257
A38: HA | C38: =IF(OR('Tabel 1 S'!C38<5,'Tabel 2 S'!C38<0.5),"-",IFERROR('Tabel 2 S'!C38/'Tabel 1 S'!C38*100,"-")) -> 4.113924051 | D38: =IF(OR('Tabel 1 S'!C38<5,'Tabel 2 S'!D38<0.5),"-",IFERROR('Tabel 2 S'!D38/'Tabel 1 S'!C38*100,"-")) -> 3.616157182 | F38: =IF(OR('Tabel 1 S'!E38<5,'Tabel 2 S'!F38<0.5),"-",IFERROR('Tabel 2 S'!F38/'Tabel 1 S'!E38*100,"-")) -> 2.53164557 | G38: =IF(OR('Tabel 1 S'!E38<5,'Tabel 2 S'!G38<0.5),"-",IFERROR('Tabel 2 S'!G38/'Tabel 1 S'!E38*100,"-")) -> 2.216946535 | I38: =IF(OR('Tabel 1 S'!G38<5,'Tabel 2 S'!I38<0.5),"-",IFERROR('Tabel 2 S'!I38/'Tabel 1 S'!G38*100,"-")) -> 3.435804702 | J38: =IF(OR('Tabel 1 S'!G38<5,'Tabel 2 S'!J38<0.5),"-",IFERROR('Tabel 2 S'!J38/'Tabel 1 S'!G38*100,"-")) -> 3.016495476
A39: HD | C39: =IF(OR('Tabel 1 S'!C39<5,'Tabel 2 S'!C39<0.5),"-",IFERROR('Tabel 2 S'!C39/'Tabel 1 S'!C39*100,"-")) -> 4.140127389 | D39: =IF(OR('Tabel 1 S'!C39<5,'Tabel 2 S'!D39<0.5),"-",IFERROR('Tabel 2 S'!D39/'Tabel 1 S'!C39*100,"-")) -> 3.630847365 | F39: =IF(OR('Tabel 1 S'!E39<5,'Tabel 2 S'!F39<0.5),"-",IFERROR('Tabel 2 S'!F39/'Tabel 1 S'!E39*100,"-")) -> 7.009345794 | G39: =IF(OR('Tabel 1 S'!E39<5,'Tabel 2 S'!G39<0.5),"-",IFERROR('Tabel 2 S'!G39/'Tabel 1 S'!E39*100,"-")) -> 5.668215847 | I39: =IF(OR('Tabel 1 S'!G39<5,'Tabel 2 S'!I39<0.5),"-",IFERROR('Tabel 2 S'!I39/'Tabel 1 S'!G39*100,"-")) -> 5.303030303 | J39: =IF(OR('Tabel 1 S'!G39<5,'Tabel 2 S'!J39<0.5),"-",IFERROR('Tabel 2 S'!J39/'Tabel 1 S'!G39*100,"-")) -> 4.456598984
A40: Komm. og Sprog | C40: =IF(OR('Tabel 1 S'!C40<5,'Tabel 2 S'!C40<0.5),"-",IFERROR('Tabel 2 S'!C40/'Tabel 1 S'!C40*100,"-")) -> 9.090909091 | D40: =IF(OR('Tabel 1 S'!C40<5,'Tabel 2 S'!D40<0.5),"-",IFERROR('Tabel 2 S'!D40/'Tabel 1 S'!C40*100,"-")) -> 6.197445042 | F40: =IF(OR('Tabel 1 S'!E40<5,'Tabel 2 S'!F40<0.5),"-",IFERROR('Tabel 2 S'!F40/'Tabel 1 S'!E40*100,"-")) -> 7.195571956 | G40: =IF(OR('Tabel 1 S'!E40<5,'Tabel 2 S'!G40<0.5),"-",IFERROR('Tabel 2 S'!G40/'Tabel 1 S'!E40*100,"-")) -> 6.367402288 | I40: =IF(OR('Tabel 1 S'!G40<5,'Tabel 2 S'!I40<0.5),"-",IFERROR('Tabel 2 S'!I40/'Tabel 1 S'!G40*100,"-")) -> 7.401315789 | J40: =IF(OR('Tabel 1 S'!G40<5,'Tabel 2 S'!J40<0.5),"-",IFERROR('Tabel 2 S'!J40/'Tabel 1 S'!G40*100,"-")) -> 6.348952982
A41: Cand. IT. | C41: =IF(OR('Tabel 1 S'!C41<5,'Tabel 2 S'!C41<0.5),"-",IFERROR('Tabel 2 S'!C41/'Tabel 1 S'!C41*100,"-")) -> 3.157894737 | D41: =IF(OR('Tabel 1 S'!C41<5,'Tabel 2 S'!D41<0.5),"-",IFERROR('Tabel 2 S'!D41/'Tabel 1 S'!C41*100,"-")) -> 3.15730385 | F41: =IF(OR('Tabel 1 S'!E41<5,'Tabel 2 S'!F41<0.5),"-",IFERROR('Tabel 2 S'!F41/'Tabel 1 S'!E41*100,"-")) -> 8.974358974 | G41: =IF(OR('Tabel 1 S'!E41<5,'Tabel 2 S'!G41<0.5),"-",IFERROR('Tabel 2 S'!G41/'Tabel 1 S'!E41*100,"-")) -> 7.312642035 | I41: =IF(OR('Tabel 1 S'!G41<5,'Tabel 2 S'!I41<0.5),"-",IFERROR('Tabel 2 S'!I41/'Tabel 1 S'!G41*100,"-")) -> 5.780346821 | J41: =IF(OR('Tabel 1 S'!G41<5,'Tabel 2 S'!J41<0.5),"-",IFERROR('Tabel 2 S'!J41/'Tabel 1 S'!G41*100,"-")) -> 5.030808928
A42: Bac. Samf. | C42: =IF(OR('Tabel 1 S'!C42<5,'Tabel 2 S'!C42<0.5),"-",IFERROR('Tabel 2 S'!C42/'Tabel 1 S'!C42*100,"-")) -> 9.523809524 | D42: =IF(OR('Tabel 1 S'!C42<5,'Tabel 2 S'!D42<0.5),"-",IFERROR('Tabel 2 S'!D42/'Tabel 1 S'!C42*100,"-")) -> 8.423103539 | F42: =IF(OR('Tabel 1 S'!E42<5,'Tabel 2 S'!F42<0.5),"-",IFERROR('Tabel 2 S'!F42/'Tabel 1 S'!E42*100,"-")) -> 2.222222222 | G42: =IF(OR('Tabel 1 S'!E42<5,'Tabel 2 S'!G42<0.5),"-",IFERROR('Tabel 2 S'!G42/'Tabel 1 S'!E42*100,"-")) -> 2.221806413 | I42: =IF(OR('Tabel 1 S'!G42<5,'Tabel 2 S'!I42<0.5),"-",IFERROR('Tabel 2 S'!I42/'Tabel 1 S'!G42*100,"-")) -> 5.747126437 | J42: =IF(OR('Tabel 1 S'!G42<5,'Tabel 2 S'!J42<0.5),"-",IFERROR('Tabel 2 S'!J42/'Tabel 1 S'!G42*100,"-")) -> 5.21553606
A43: Bac. Hum. | C43: =IF(OR('Tabel 1 S'!C43<5,'Tabel 2 S'!C43<0.5),"-",IFERROR('Tabel 2 S'!C43/'Tabel 1 S'!C43*100,"-")) -> 5.434782609 | D43: =IF(OR('Tabel 1 S'!C43<5,'Tabel 2 S'!D43<0.5),"-",IFERROR('Tabel 2 S'!D43/'Tabel 1 S'!C43*100,"-")) -> 4.161932319 | F43: =IF(OR('Tabel 1 S'!E43<5,'Tabel 2 S'!F43<0.5),"-",IFERROR('Tabel 2 S'!F43/'Tabel 1 S'!E43*100,"-")) -> 12.35294118 | G43: =IF(OR('Tabel 1 S'!E43<5,'Tabel 2 S'!G43<0.5),"-",IFERROR('Tabel 2 S'!G43/'Tabel 1 S'!E43*100,"-")) -> 10.36978878 | I43: =IF(OR('Tabel 1 S'!G43<5,'Tabel 2 S'!I43<0.5),"-",IFERROR('Tabel 2 S'!I43/'Tabel 1 S'!G43*100,"-")) -> 9.923664122 | J43: =IF(OR('Tabel 1 S'!G43<5,'Tabel 2 S'!J43<0.5),"-",IFERROR('Tabel 2 S'!J43/'Tabel 1 S'!G43*100,"-")) -> 8.189930787
A44: Bac. Nat. | C44: =IF(OR('Tabel 1 S'!C44<5,'Tabel 2 S'!C44<0.5),"-",IFERROR('Tabel 2 S'!C44/'Tabel 1 S'!C44*100,"-")) -> 5.555555556 | D44: =IF(OR('Tabel 1 S'!C44<5,'Tabel 2 S'!D44<0.5),"-",IFERROR('Tabel 2 S'!D44/'Tabel 1 S'!C44*100,"-")) -> 4.199671511 | F44: =IF(OR('Tabel 1 S'!E44<5,'Tabel 2 S'!F44<0.5),"-",IFERROR('Tabel 2 S'!F44/'Tabel 1 S'!E44*100,"-")) -> 5.555555556 | G44: =IF(OR('Tabel 1 S'!E44<5,'Tabel 2 S'!G44<0.5),"-",IFERROR('Tabel 2 S'!G44/'Tabel 1 S'!E44*100,"-")) -> 3.985991855 | I44: =IF(OR('Tabel 1 S'!G44<5,'Tabel 2 S'!I44<0.5),"-",IFERROR('Tabel 2 S'!I44/'Tabel 1 S'!G44*100,"-")) -> 5.555555556 | J44: =IF(OR('Tabel 1 S'!G44<5,'Tabel 2 S'!J44<0.5),"-",IFERROR('Tabel 2 S'!J44/'Tabel 1 S'!G44*100,"-")) -> 4.128444959
A45: Andre | C45: =IF(OR('Tabel 1 S'!C45<5,'Tabel 2 S'!C45<0.5),"-",IFERROR('Tabel 2 S'!C45/'Tabel 1 S'!C45*100,"-")) -> 4.469273743 | D45: =IF(OR('Tabel 1 S'!C45<5,'Tabel 2 S'!D45<0.5),"-",IFERROR('Tabel 2 S'!D45/'Tabel 1 S'!C45*100,"-")) -> 3.464293442 | F45: =IF(OR('Tabel 1 S'!E45<5,'Tabel 2 S'!F45<0.5),"-",IFERROR('Tabel 2 S'!F45/'Tabel 1 S'!E45*100,"-")) -> 8.771929825 | G45: =IF(OR('Tabel 1 S'!E45<5,'Tabel 2 S'!G45<0.5),"-",IFERROR('Tabel 2 S'!G45/'Tabel 1 S'!E45*100,"-")) -> 7.850374056 | I45: =IF(OR('Tabel 1 S'!G45<5,'Tabel 2 S'!I45<0.5),"-",IFERROR('Tabel 2 S'!I45/'Tabel 1 S'!G45*100,"-")) -> 6.41809291 | J45: =IF(OR('Tabel 1 S'!G45<5,'Tabel 2 S'!J45<0.5),"-",IFERROR('Tabel 2 S'!J45/'Tabel 1 S'!G45*100,"-")) -> 5.450898414
A47: Total | C47: =IF(OR('Tabel 1 S'!C47<5,'Tabel 2 S'!C47<0.5),"-",IFERROR('Tabel 2 S'!C47/'Tabel 1 S'!C47*100,"-")) -> 3.366258396 | D47: =IF(OR('Tabel 1 S'!C47<5,'Tabel 2 S'!D47<0.5),"-",IFERROR('Tabel 2 S'!D47/'Tabel 1 S'!C47*100,"-")) -> 2.911399427 | F47: =IF(OR('Tabel 1 S'!E47<5,'Tabel 2 S'!F47<0.5),"-",IFERROR('Tabel 2 S'!F47/'Tabel 1 S'!E47*100,"-")) -> 5.046511628 | G47: =IF(OR('Tabel 1 S'!E47<5,'Tabel 2 S'!G47<0.5),"-",IFERROR('Tabel 2 S'!G47/'Tabel 1 S'!E47*100,"-")) -> 4.426780618 | I47: =IF(OR('Tabel 1 S'!G47<5,'Tabel 2 S'!I47<0.5),"-",IFERROR('Tabel 2 S'!I47/'Tabel 1 S'!G47*100,"-")) -> 4.214439444 | J47: =IF(OR('Tabel 1 S'!G47<5,'Tabel 2 S'!J47<0.5),"-",IFERROR('Tabel 2 S'!J47/'Tabel 1 S'!G47*100,"-")) -> 3.676354127
A49: Ingeniører i alt | C49: =IF(OR('Tabel 1 S'!C49<5,'Tabel 2 S'!C49<0.5),"-",IFERROR('Tabel 2 S'!C49/'Tabel 1 S'!C49*100,"-")) -> 1.633705933 | D49: =IF(OR('Tabel 1 S'!C49<5,'Tabel 2 S'!D49<0.5),"-",IFERROR('Tabel 2 S'!D49/'Tabel 1 S'!C49*100,"-")) -> 1.39902498 | F49: =IF(OR('Tabel 1 S'!E49<5,'Tabel 2 S'!F49<0.5),"-",IFERROR('Tabel 2 S'!F49/'Tabel 1 S'!E49*100,"-")) -> 2.600472813 | G49: =IF(OR('Tabel 1 S'!E49<5,'Tabel 2 S'!G49<0.5),"-",IFERROR('Tabel 2 S'!G49/'Tabel 1 S'!E49*100,"-")) -> 2.445458606 | I49: =IF(OR('Tabel 1 S'!G49<5,'Tabel 2 S'!I49<0.5),"-",IFERROR('Tabel 2 S'!I49/'Tabel 1 S'!G49*100,"-")) -> 1.840905252 | J49: =IF(OR('Tabel 1 S'!G49<5,'Tabel 2 S'!J49<0.5),"-",IFERROR('Tabel 2 S'!J49/'Tabel 1 S'!G49*100,"-")) -> 1.623298628
A50: Magistre i alt | C50: =IF(OR('Tabel 1 S'!C50<5,'Tabel 2 S'!C50<0.5),"-",IFERROR('Tabel 2 S'!C50/'Tabel 1 S'!C50*100,"-")) -> 4.247104247 | D50: =IF(OR('Tabel 1 S'!C50<5,'Tabel 2 S'!D50<0.5),"-",IFERROR('Tabel 2 S'!D50/'Tabel 1 S'!C50*100,"-")) -> 3.69797139 | F50: =IF(OR('Tabel 1 S'!E50<5,'Tabel 2 S'!F50<0.5),"-",IFERROR('Tabel 2 S'!F50/'Tabel 1 S'!E50*100,"-")) -> 6.72985782 | G50: =IF(OR('Tabel 1 S'!E50<5,'Tabel 2 S'!G50<0.5),"-",IFERROR('Tabel 2 S'!G50/'Tabel 1 S'!E50*100,"-")) -> 5.982723823 | I50: =IF(OR('Tabel 1 S'!G50<5,'Tabel 2 S'!I50<0.5),"-",IFERROR('Tabel 2 S'!I50/'Tabel 1 S'!G50*100,"-")) -> 5.825632784 | J50: =IF(OR('Tabel 1 S'!G50<5,'Tabel 2 S'!J50<0.5),"-",IFERROR('Tabel 2 S'!J50/'Tabel 1 S'!G50*100,"-")) -> 5.150611296
A51: DJØF'ere i alt | C51: =IF(OR('Tabel 1 S'!C51<5,'Tabel 2 S'!C51<0.5),"-",IFERROR('Tabel 2 S'!C51/'Tabel 1 S'!C51*100,"-")) -> 3.917978762 | D51: =IF(OR('Tabel 1 S'!C51<5,'Tabel 2 S'!D51<0.5),"-",IFERROR('Tabel 2 S'!D51/'Tabel 1 S'!C51*100,"-")) -> 3.481080067 | F51: =IF(OR('Tabel 1 S'!E51<5,'Tabel 2 S'!F51<0.5),"-",IFERROR('Tabel 2 S'!F51/'Tabel 1 S'!E51*100,"-")) -> 4.612095296 | G51: =IF(OR('Tabel 1 S'!E51<5,'Tabel 2 S'!G51<0.5),"-",IFERROR('Tabel 2 S'!G51/'Tabel 1 S'!E51*100,"-")) -> 3.965305827 | I51: =IF(OR('Tabel 1 S'!G51<5,'Tabel 2 S'!I51<0.5),"-",IFERROR('Tabel 2 S'!I51/'Tabel 1 S'!G51*100,"-")) -> 4.29641965 | J51: =IF(OR('Tabel 1 S'!G51<5,'Tabel 2 S'!J51<0.5),"-",IFERROR('Tabel 2 S'!J51/'Tabel 1 S'!G51*100,"-")) -> 3.745085918
A55: ='Tabel 2 S'!A55 -> Greve
C57: Mænd | F57: Kvinder | I57: I alt
C58: Ledigheds- berørte | D58: Gns. brutto- ledighed | F58: Ledigheds- berørte | G58: Gns. brutto- ledighed | I58: Ledigheds- berørte | J58: Gns. brutto- ledighed
A61: Civ. ing. | C61: =IF(OR('Tabel 1 S'!C61<5,'Tabel 2 S'!C61<0.5),"-",IFERROR('Tabel 2 S'!C61/'Tabel 1 S'!C61*100,"-")) -> 2.290076336 | D61: =IF(OR('Tabel 1 S'!C61<5,'Tabel 2 S'!D61<0.5),"-",IFERROR('Tabel 2 S'!D61/'Tabel 1 S'!C61*100,"-")) -> 1.430256203 | F61: =IF(OR('Tabel 1 S'!E61<5,'Tabel 2 S'!F61<0.5),"-",IFERROR('Tabel 2 S'!F61/'Tabel 1 S'!E61*100,"-")) -> - | G61: =IF(OR('Tabel 1 S'!E61<5,'Tabel 2 S'!G61<0.5),"-",IFERROR('Tabel 2 S'!G61/'Tabel 1 S'!E61*100,"-")) -> - | I61: =IF(OR('Tabel 1 S'!G61<5,'Tabel 2 S'!I61<0.5),"-",IFERROR('Tabel 2 S'!I61/'Tabel 1 S'!G61*100,"-")) -> 1.657458564 | J61: =IF(OR('Tabel 1 S'!G61<5,'Tabel 2 S'!J61<0.5),"-",IFERROR('Tabel 2 S'!J61/'Tabel 1 S'!G61*100,"-")) -> 1.035157805
A62: Diplom ing. | C62: =IF(OR('Tabel 1 S'!C62<5,'Tabel 2 S'!C62<0.5),"-",IFERROR('Tabel 2 S'!C62/'Tabel 1 S'!C62*100,"-")) -> 2.135231317 | D62: =IF(OR('Tabel 1 S'!C62<5,'Tabel 2 S'!D62<0.5),"-",IFERROR('Tabel 2 S'!D62/'Tabel 1 S'!C62*100,"-")) -> 1.821421255 | F62: =IF(OR('Tabel 1 S'!E62<5,'Tabel 2 S'!F62<0.5),"-",IFERROR('Tabel 2 S'!F62/'Tabel 1 S'!E62*100,"-")) -> 5.357142857 | G62: =IF(OR('Tabel 1 S'!E62<5,'Tabel 2 S'!G62<0.5),"-",IFERROR('Tabel 2 S'!G62/'Tabel 1 S'!E62*100,"-")) -> 5.35614046 | I62: =IF(OR('Tabel 1 S'!G62<5,'Tabel 2 S'!I62<0.5),"-",IFERROR('Tabel 2 S'!I62/'Tabel 1 S'!G62*100,"-")) -> 2.670623145 | J62: =IF(OR('Tabel 1 S'!G62<5,'Tabel 2 S'!J62<0.5),"-",IFERROR('Tabel 2 S'!J62/'Tabel 1 S'!G62*100,"-")) -> 2.408792992
A63: Cand. Scient. Tek. | C63: =IF(OR('Tabel 1 S'!C63<5,'Tabel 2 S'!C63<0.5),"-",IFERROR('Tabel 2 S'!C63/'Tabel 1 S'!C63*100,"-")) -> 2.173913043 | D63: =IF(OR('Tabel 1 S'!C63<5,'Tabel 2 S'!D63<0.5),"-",IFERROR('Tabel 2 S'!D63/'Tabel 1 S'!C63*100,"-")) -> 2.173506274 | F63: =IF(OR('Tabel 1 S'!E63<5,'Tabel 2 S'!F63<0.5),"-",IFERROR('Tabel 2 S'!F63/'Tabel 1 S'!E63*100,"-")) -> 10.52631579 | G63: =IF(OR('Tabel 1 S'!E63<5,'Tabel 2 S'!G63<0.5),"-",IFERROR('Tabel 2 S'!G63/'Tabel 1 S'!E63*100,"-")) -> 10.52434617 | I63: =IF(OR('Tabel 1 S'!G63<5,'Tabel 2 S'!I63<0.5),"-",IFERROR('Tabel 2 S'!I63/'Tabel 1 S'!G63*100,"-")) -> 5.952380952 | J63: =IF(OR('Tabel 1 S'!G63<5,'Tabel 2 S'!J63<0.5),"-",IFERROR('Tabel 2 S'!J63/'Tabel 1 S'!G63*100,"-")) -> 5.951267178
A64: MA. Hum. | C64: =IF(OR('Tabel 1 S'!C64<5,'Tabel 2 S'!C64<0.5),"-",IFERROR('Tabel 2 S'!C64/'Tabel 1 S'!C64*100,"-")) -> 11.53846154 | D64: =IF(OR('Tabel 1 S'!C64<5,'Tabel 2 S'!D64<0.5),"-",IFERROR('Tabel 2 S'!D64/'Tabel 1 S'!C64*100,"-")) -> 7.419792831 | F64: =IF(OR('Tabel 1 S'!E64<5,'Tabel 2 S'!F64<0.5),"-",IFERROR('Tabel 2 S'!F64/'Tabel 1 S'!E64*100,"-")) -> 8.080808081 | G64: =IF(OR('Tabel 1 S'!E64<5,'Tabel 2 S'!G64<0.5),"-",IFERROR('Tabel 2 S'!G64/'Tabel 1 S'!E64*100,"-")) -> 7.939433 | I64: =IF(OR('Tabel 1 S'!G64<5,'Tabel 2 S'!I64<0.5),"-",IFERROR('Tabel 2 S'!I64/'Tabel 1 S'!G64*100,"-")) -> 8.8 | J64: =IF(OR('Tabel 1 S'!G64<5,'Tabel 2 S'!J64<0.5),"-",IFERROR('Tabel 2 S'!J64/'Tabel 1 S'!G64*100,"-")) -> 7.831347845
A65: MA. Nat. | C65: =IF(OR('Tabel 1 S'!C65<5,'Tabel 2 S'!C65<0.5),"-",IFERROR('Tabel 2 S'!C65/'Tabel 1 S'!C65*100,"-")) -> - | D65: =IF(OR('Tabel 1 S'!C65<5,'Tabel 2 S'!D65<0.5),"-",IFERROR('Tabel 2 S'!D65/'Tabel 1 S'!C65*100,"-")) -> - | F65: =IF(OR('Tabel 1 S'!E65<5,'Tabel 2 S'!F65<0.5),"-",IFERROR('Tabel 2 S'!F65/'Tabel 1 S'!E65*100,"-")) -> - | G65: =IF(OR('Tabel 1 S'!E65<5,'Tabel 2 S'!G65<0.5),"-",IFERROR('Tabel 2 S'!G65/'Tabel 1 S'!E65*100,"-")) -> - | I65: =IF(OR('Tabel 1 S'!G65<5,'Tabel 2 S'!I65<0.5),"-",IFERROR('Tabel 2 S'!I65/'Tabel 1 S'!G65*100,"-")) -> - | J65: =IF(OR('Tabel 1 S'!G65<5,'Tabel 2 S'!J65<0.5),"-",IFERROR('Tabel 2 S'!J65/'Tabel 1 S'!G65*100,"-")) -> -
A66: MA. Ph.d. | C66: =IF(OR('Tabel 1 S'!C66<5,'Tabel 2 S'!C66<0.5),"-",IFERROR('Tabel 2 S'!C66/'Tabel 1 S'!C66*100,"-")) -> - | D66: =IF(OR('Tabel 1 S'!C66<5,'Tabel 2 S'!D66<0.5),"-",IFERROR('Tabel 2 S'!D66/'Tabel 1 S'!C66*100,"-")) -> - | F66: =IF(OR('Tabel 1 S'!E66<5,'Tabel 2 S'!F66<0.5),"-",IFERROR('Tabel 2 S'!F66/'Tabel 1 S'!E66*100,"-")) -> - | G66: =IF(OR('Tabel 1 S'!E66<5,'Tabel 2 S'!G66<0.5),"-",IFERROR('Tabel 2 S'!G66/'Tabel 1 S'!E66*100,"-")) -> - | I66: =IF(OR('Tabel 1 S'!G66<5,'Tabel 2 S'!I66<0.5),"-",IFERROR('Tabel 2 S'!I66/'Tabel 1 S'!G66*100,"-")) -> - | J66: =IF(OR('Tabel 1 S'!G66<5,'Tabel 2 S'!J66<0.5),"-",IFERROR('Tabel 2 S'!J66/'Tabel 1 S'!G66*100,"-")) -> -
A67: MA. Samf. | C67: =IF(OR('Tabel 1 S'!C67<5,'Tabel 2 S'!C67<0.5),"-",IFERROR('Tabel 2 S'!C67/'Tabel 1 S'!C67*100,"-")) -> - | D67: =IF(OR('Tabel 1 S'!C67<5,'Tabel 2 S'!D67<0.5),"-",IFERROR('Tabel 2 S'!D67/'Tabel 1 S'!C67*100,"-")) -> - | F67: =IF(OR('Tabel 1 S'!E67<5,'Tabel 2 S'!F67<0.5),"-",IFERROR('Tabel 2 S'!F67/'Tabel 1 S'!E67*100,"-")) -> 25 | G67: =IF(OR('Tabel 1 S'!E67<5,'Tabel 2 S'!G67<0.5),"-",IFERROR('Tabel 2 S'!G67/'Tabel 1 S'!E67*100,"-")) -> 24.99532215 | I67: =IF(OR('Tabel 1 S'!G67<5,'Tabel 2 S'!I67<0.5),"-",IFERROR('Tabel 2 S'!I67/'Tabel 1 S'!G67*100,"-")) -> 33.33333333 | J67: =IF(OR('Tabel 1 S'!G67<5,'Tabel 2 S'!J67<0.5),"-",IFERROR('Tabel 2 S'!J67/'Tabel 1 S'!G67*100,"-")) -> 33.3270962
A68: Øvrige Mag. | C68: =IF(OR('Tabel 1 S'!C68<5,'Tabel 2 S'!C68<0.5),"-",IFERROR('Tabel 2 S'!C68/'Tabel 1 S'!C68*100,"-")) -> - | D68: =IF(OR('Tabel 1 S'!C68<5,'Tabel 2 S'!D68<0.5),"-",IFERROR('Tabel 2 S'!D68/'Tabel 1 S'!C68*100,"-")) -> - | F68: =IF(OR('Tabel 1 S'!E68<5,'Tabel 2 S'!F68<0.5),"-",IFERROR('Tabel 2 S'!F68/'Tabel 1 S'!E68*100,"-")) -> 14.28571429 | G68: =IF(OR('Tabel 1 S'!E68<5,'Tabel 2 S'!G68<0.5),"-",IFERROR('Tabel 2 S'!G68/'Tabel 1 S'!E68*100,"-")) -> 8.896828862 | I68: =IF(OR('Tabel 1 S'!G68<5,'Tabel 2 S'!I68<0.5),"-",IFERROR('Tabel 2 S'!I68/'Tabel 1 S'!G68*100,"-")) -> 12.5 | J68: =IF(OR('Tabel 1 S'!G68<5,'Tabel 2 S'!J68<0.5),"-",IFERROR('Tabel 2 S'!J68/'Tabel 1 S'!G68*100,"-")) -> 7.784725254
A69: Agronom | C69: =IF(OR('Tabel 1 S'!C69<5,'Tabel 2 S'!C69<0.5),"-",IFERROR('Tabel 2 S'!C69/'Tabel 1 S'!C69*100,"-")) -> - | D69: =IF(OR('Tabel 1 S'!C69<5,'Tabel 2 S'!D69<0.5),"-",IFERROR('Tabel 2 S'!D69/'Tabel 1 S'!C69*100,"-")) -> - | F69: =IF(OR('Tabel 1 S'!E69<5,'Tabel 2 S'!F69<0.5),"-",IFERROR('Tabel 2 S'!F69/'Tabel 1 S'!E69*100,"-")) -> - | G69: =IF(OR('Tabel 1 S'!E69<5,'Tabel 2 S'!G69<0.5),"-",IFERROR('Tabel 2 S'!G69/'Tabel 1 S'!E69*100,"-")) -> - | I69: =IF(OR('Tabel 1 S'!G69<5,'Tabel 2 S'!I69<0.5),"-",IFERROR('Tabel 2 S'!I69/'Tabel 1 S'!G69*100,"-")) -> - | J69: =IF(OR('Tabel 1 S'!G69<5,'Tabel 2 S'!J69<0.5),"-",IFERROR('Tabel 2 S'!J69/'Tabel 1 S'!G69*100,"-")) -> -
A70: Landsk. Arkt. | C70: =IF(OR('Tabel 1 S'!C70<5,'Tabel 2 S'!C70<0.5),"-",IFERROR('Tabel 2 S'!C70/'Tabel 1 S'!C70*100,"-")) -> - | D70: =IF(OR('Tabel 1 S'!C70<5,'Tabel 2 S'!D70<0.5),"-",IFERROR('Tabel 2 S'!D70/'Tabel 1 S'!C70*100,"-")) -> - | F70: =IF(OR('Tabel 1 S'!E70<5,'Tabel 2 S'!F70<0.5),"-",IFERROR('Tabel 2 S'!F70/'Tabel 1 S'!E70*100,"-")) -> - | G70: =IF(OR('Tabel 1 S'!E70<5,'Tabel 2 S'!G70<0.5),"-",IFERROR('Tabel 2 S'!G70/'Tabel 1 S'!E70*100,"-")) -> - | I70: =IF(OR('Tabel 1 S'!G70<5,'Tabel 2 S'!I70<0.5),"-",IFERROR('Tabel 2 S'!I70/'Tabel 1 S'!G70*100,"-")) -> 20 | J70: =IF(OR('Tabel 1 S'!G70<5,'Tabel 2 S'!J70<0.5),"-",IFERROR('Tabel 2 S'!J70/'Tabel 1 S'!G70*100,"-")) -> 19.99625772
A71: Hortonom | C71: =IF(OR('Tabel 1 S'!C71<5,'Tabel 2 S'!C71<0.5),"-",IFERROR('Tabel 2 S'!C71/'Tabel 1 S'!C71*100,"-")) -> - | D71: =IF(OR('Tabel 1 S'!C71<5,'Tabel 2 S'!D71<0.5),"-",IFERROR('Tabel 2 S'!D71/'Tabel 1 S'!C71*100,"-")) -> - | F71: =IF(OR('Tabel 1 S'!E71<5,'Tabel 2 S'!F71<0.5),"-",IFERROR('Tabel 2 S'!F71/'Tabel 1 S'!E71*100,"-")) -> - | G71: =IF(OR('Tabel 1 S'!E71<5,'Tabel 2 S'!G71<0.5),"-",IFERROR('Tabel 2 S'!G71/'Tabel 1 S'!E71*100,"-")) -> - | I71: =IF(OR('Tabel 1 S'!G71<5,'Tabel 2 S'!I71<0.5),"-",IFERROR('Tabel 2 S'!I71/'Tabel 1 S'!G71*100,"-")) -> - | J71: =IF(OR('Tabel 1 S'!G71<5,'Tabel 2 S'!J71<0.5),"-",IFERROR('Tabel 2 S'!J71/'Tabel 1 S'!G71*100,"-")) -> -
A72: Forstkand. | C72: =IF(OR('Tabel 1 S'!C72<5,'Tabel 2 S'!C72<0.5),"-",IFERROR('Tabel 2 S'!C72/'Tabel 1 S'!C72*100,"-")) -> - | D72: =IF(OR('Tabel 1 S'!C72<5,'Tabel 2 S'!D72<0.5),"-",IFERROR('Tabel 2 S'!D72/'Tabel 1 S'!C72*100,"-")) -> - | F72: =IF(OR('Tabel 1 S'!E72<5,'Tabel 2 S'!F72<0.5),"-",IFERROR('Tabel 2 S'!F72/'Tabel 1 S'!E72*100,"-")) -> - | G72: =IF(OR('Tabel 1 S'!E72<5,'Tabel 2 S'!G72<0.5),"-",IFERROR('Tabel 2 S'!G72/'Tabel 1 S'!E72*100,"-")) -> - | I72: =IF(OR('Tabel 1 S'!G72<5,'Tabel 2 S'!I72<0.5),"-",IFERROR('Tabel 2 S'!I72/'Tabel 1 S'!G72*100,"-")) -> - | J72: =IF(OR('Tabel 1 S'!G72<5,'Tabel 2 S'!J72<0.5),"-",IFERROR('Tabel 2 S'!J72/'Tabel 1 S'!G72*100,"-")) -> -
A73: Jordbrugsakad. | C73: =IF(OR('Tabel 1 S'!C73<5,'Tabel 2 S'!C73<0.5),"-",IFERROR('Tabel 2 S'!C73/'Tabel 1 S'!C73*100,"-")) -> 12.5 | D73: =IF(OR('Tabel 1 S'!C73<5,'Tabel 2 S'!D73<0.5),"-",IFERROR('Tabel 2 S'!D73/'Tabel 1 S'!C73*100,"-")) -> 12.49766107 | F73: =IF(OR('Tabel 1 S'!E73<5,'Tabel 2 S'!F73<0.5),"-",IFERROR('Tabel 2 S'!F73/'Tabel 1 S'!E73*100,"-")) -> - | G73: =IF(OR('Tabel 1 S'!E73<5,'Tabel 2 S'!G73<0.5),"-",IFERROR('Tabel 2 S'!G73/'Tabel 1 S'!E73*100,"-")) -> - | I73: =IF(OR('Tabel 1 S'!G73<5,'Tabel 2 S'!I73<0.5),"-",IFERROR('Tabel 2 S'!I73/'Tabel 1 S'!G73*100,"-")) -> 4.545454545 | J73: =IF(OR('Tabel 1 S'!G73<5,'Tabel 2 S'!J73<0.5),"-",IFERROR('Tabel 2 S'!J73/'Tabel 1 S'!G73*100,"-")) -> 4.544604027
A74: Mejeriing. | C74: =IF(OR('Tabel 1 S'!C74<5,'Tabel 2 S'!C74<0.5),"-",IFERROR('Tabel 2 S'!C74/'Tabel 1 S'!C74*100,"-")) -> - | D74: =IF(OR('Tabel 1 S'!C74<5,'Tabel 2 S'!D74<0.5),"-",IFERROR('Tabel 2 S'!D74/'Tabel 1 S'!C74*100,"-")) -> - | F74: =IF(OR('Tabel 1 S'!E74<5,'Tabel 2 S'!F74<0.5),"-",IFERROR('Tabel 2 S'!F74/'Tabel 1 S'!E74*100,"-")) -> - | G74: =IF(OR('Tabel 1 S'!E74<5,'Tabel 2 S'!G74<0.5),"-",IFERROR('Tabel 2 S'!G74/'Tabel 1 S'!E74*100,"-")) -> - | I74: =IF(OR('Tabel 1 S'!G74<5,'Tabel 2 S'!I74<0.5),"-",IFERROR('Tabel 2 S'!I74/'Tabel 1 S'!G74*100,"-")) -> - | J74: =IF(OR('Tabel 1 S'!G74<5,'Tabel 2 S'!J74<0.5),"-",IFERROR('Tabel 2 S'!J74/'Tabel 1 S'!G74*100,"-")) -> -
A75: Levn.m.kand. | C75: =IF(OR('Tabel 1 S'!C75<5,'Tabel 2 S'!C75<0.5),"-",IFERROR('Tabel 2 S'!C75/'Tabel 1 S'!C75*100,"-")) -> - | D75: =IF(OR('Tabel 1 S'!C75<5,'Tabel 2 S'!D75<0.5),"-",IFERROR('Tabel 2 S'!D75/'Tabel 1 S'!C75*100,"-")) -> - | F75: =IF(OR('Tabel 1 S'!E75<5,'Tabel 2 S'!F75<0.5),"-",IFERROR('Tabel 2 S'!F75/'Tabel 1 S'!E75*100,"-")) -> - | G75: =IF(OR('Tabel 1 S'!E75<5,'Tabel 2 S'!G75<0.5),"-",IFERROR('Tabel 2 S'!G75/'Tabel 1 S'!E75*100,"-")) -> - | I75: =IF(OR('Tabel 1 S'!G75<5,'Tabel 2 S'!I75<0.5),"-",IFERROR('Tabel 2 S'!I75/'Tabel 1 S'!G75*100,"-")) -> - | J75: =IF(OR('Tabel 1 S'!G75<5,'Tabel 2 S'!J75<0.5),"-",IFERROR('Tabel 2 S'!J75/'Tabel 1 S'!G75*100,"-")) -> -
A76: Dyrlæge | C76: =IF(OR('Tabel 1 S'!C76<5,'Tabel 2 S'!C76<0.5),"-",IFERROR('Tabel 2 S'!C76/'Tabel 1 S'!C76*100,"-")) -> - | D76: =IF(OR('Tabel 1 S'!C76<5,'Tabel 2 S'!D76<0.5),"-",IFERROR('Tabel 2 S'!D76/'Tabel 1 S'!C76*100,"-")) -> - | F76: =IF(OR('Tabel 1 S'!E76<5,'Tabel 2 S'!F76<0.5),"-",IFERROR('Tabel 2 S'!F76/'Tabel 1 S'!E76*100,"-")) -> - | G76: =IF(OR('Tabel 1 S'!E76<5,'Tabel 2 S'!G76<0.5),"-",IFERROR('Tabel 2 S'!G76/'Tabel 1 S'!E76*100,"-")) -> - | I76: =IF(OR('Tabel 1 S'!G76<5,'Tabel 2 S'!I76<0.5),"-",IFERROR('Tabel 2 S'!I76/'Tabel 1 S'!G76*100,"-")) -> 7.692307692 | J76: =IF(OR('Tabel 1 S'!G76<5,'Tabel 2 S'!J76<0.5),"-",IFERROR('Tabel 2 S'!J76/'Tabel 1 S'!G76*100,"-")) -> 7.690868353
A77: Farmaceut | C77: =IF(OR('Tabel 1 S'!C77<5,'Tabel 2 S'!C77<0.5),"-",IFERROR('Tabel 2 S'!C77/'Tabel 1 S'!C77*100,"-")) -> - | D77: =IF(OR('Tabel 1 S'!C77<5,'Tabel 2 S'!D77<0.5),"-",IFERROR('Tabel 2 S'!D77/'Tabel 1 S'!C77*100,"-")) -> - | F77: =IF(OR('Tabel 1 S'!E77<5,'Tabel 2 S'!F77<0.5),"-",IFERROR('Tabel 2 S'!F77/'Tabel 1 S'!E77*100,"-")) -> - | G77: =IF(OR('Tabel 1 S'!E77<5,'Tabel 2 S'!G77<0.5),"-",IFERROR('Tabel 2 S'!G77/'Tabel 1 S'!E77*100,"-")) -> - | I77: =IF(OR('Tabel 1 S'!G77<5,'Tabel 2 S'!I77<0.5),"-",IFERROR('Tabel 2 S'!I77/'Tabel 1 S'!G77*100,"-")) -> - | J77: =IF(OR('Tabel 1 S'!G77<5,'Tabel 2 S'!J77<0.5),"-",IFERROR('Tabel 2 S'!J77/'Tabel 1 S'!G77*100,"-")) -> -
A78: Læge | C78: =IF(OR('Tabel 1 S'!C78<5,'Tabel 2 S'!C78<0.5),"-",IFERROR('Tabel 2 S'!C78/'Tabel 1 S'!C78*100,"-")) -> - | D78: =IF(OR('Tabel 1 S'!C78<5,'Tabel 2 S'!D78<0.5),"-",IFERROR('Tabel 2 S'!D78/'Tabel 1 S'!C78*100,"-")) -> - | F78: =IF(OR('Tabel 1 S'!E78<5,'Tabel 2 S'!F78<0.5),"-",IFERROR('Tabel 2 S'!F78/'Tabel 1 S'!E78*100,"-")) -> 3.03030303 | G78: =IF(OR('Tabel 1 S'!E78<5,'Tabel 2 S'!G78<0.5),"-",IFERROR('Tabel 2 S'!G78/'Tabel 1 S'!E78*100,"-")) -> - | I78: =IF(OR('Tabel 1 S'!G78<5,'Tabel 2 S'!I78<0.5),"-",IFERROR('Tabel 2 S'!I78/'Tabel 1 S'!G78*100,"-")) -> 2.222222222 | J78: =IF(OR('Tabel 1 S'!G78<5,'Tabel 2 S'!J78<0.5),"-",IFERROR('Tabel 2 S'!J78/'Tabel 1 S'!G78*100,"-")) -> -
A79: Tandlæge | C79: =IF(OR('Tabel 1 S'!C79<5,'Tabel 2 S'!C79<0.5),"-",IFERROR('Tabel 2 S'!C79/'Tabel 1 S'!C79*100,"-")) -> - | D79: =IF(OR('Tabel 1 S'!C79<5,'Tabel 2 S'!D79<0.5),"-",IFERROR('Tabel 2 S'!D79/'Tabel 1 S'!C79*100,"-")) -> - | F79: =IF(OR('Tabel 1 S'!E79<5,'Tabel 2 S'!F79<0.5),"-",IFERROR('Tabel 2 S'!F79/'Tabel 1 S'!E79*100,"-")) -> 6.25 | G79: =IF(OR('Tabel 1 S'!E79<5,'Tabel 2 S'!G79<0.5),"-",IFERROR('Tabel 2 S'!G79/'Tabel 1 S'!E79*100,"-")) -> 3.36415518 | I79: =IF(OR('Tabel 1 S'!G79<5,'Tabel 2 S'!I79<0.5),"-",IFERROR('Tabel 2 S'!I79/'Tabel 1 S'!G79*100,"-")) -> 5.555555556 | J79: =IF(OR('Tabel 1 S'!G79<5,'Tabel 2 S'!J79<0.5),"-",IFERROR('Tabel 2 S'!J79/'Tabel 1 S'!G79*100,"-")) -> 2.99036016
A80: Arkitekt | C80: =IF(OR('Tabel 1 S'!C80<5,'Tabel 2 S'!C80<0.5),"-",IFERROR('Tabel 2 S'!C80/'Tabel 1 S'!C80*100,"-")) -> - | D80: =IF(OR('Tabel 1 S'!C80<5,'Tabel 2 S'!D80<0.5),"-",IFERROR('Tabel 2 S'!D80/'Tabel 1 S'!C80*100,"-")) -> - | F80: =IF(OR('Tabel 1 S'!E80<5,'Tabel 2 S'!F80<0.5),"-",IFERROR('Tabel 2 S'!F80/'Tabel 1 S'!E80*100,"-")) -> 28.57142857 | G80: =IF(OR('Tabel 1 S'!E80<5,'Tabel 2 S'!G80<0.5),"-",IFERROR('Tabel 2 S'!G80/'Tabel 1 S'!E80*100,"-")) -> 27.90672809 | I80: =IF(OR('Tabel 1 S'!G80<5,'Tabel 2 S'!I80<0.5),"-",IFERROR('Tabel 2 S'!I80/'Tabel 1 S'!G80*100,"-")) -> 16.66666667 | J80: =IF(OR('Tabel 1 S'!G80<5,'Tabel 2 S'!J80<0.5),"-",IFERROR('Tabel 2 S'!J80/'Tabel 1 S'!G80*100,"-")) -> 16.27892472
A81: Landinspek. | C81: =IF(OR('Tabel 1 S'!C81<5,'Tabel 2 S'!C81<0.5),"-",IFERROR('Tabel 2 S'!C81/'Tabel 1 S'!C81*100,"-")) -> - | D81: =IF(OR('Tabel 1 S'!C81<5,'Tabel 2 S'!D81<0.5),"-",IFERROR('Tabel 2 S'!D81/'Tabel 1 S'!C81*100,"-")) -> - | F81: =IF(OR('Tabel 1 S'!E81<5,'Tabel 2 S'!F81<0.5),"-",IFERROR('Tabel 2 S'!F81/'Tabel 1 S'!E81*100,"-")) -> - | G81: =IF(OR('Tabel 1 S'!E81<5,'Tabel 2 S'!G81<0.5),"-",IFERROR('Tabel 2 S'!G81/'Tabel 1 S'!E81*100,"-")) -> - | I81: =IF(OR('Tabel 1 S'!G81<5,'Tabel 2 S'!I81<0.5),"-",IFERROR('Tabel 2 S'!I81/'Tabel 1 S'!G81*100,"-")) -> - | J81: =IF(OR('Tabel 1 S'!G81<5,'Tabel 2 S'!J81<0.5),"-",IFERROR('Tabel 2 S'!J81/'Tabel 1 S'!G81*100,"-")) -> -
A82: Bibliotekar | C82: =IF(OR('Tabel 1 S'!C82<5,'Tabel 2 S'!C82<0.5),"-",IFERROR('Tabel 2 S'!C82/'Tabel 1 S'!C82*100,"-")) -> - | D82: =IF(OR('Tabel 1 S'!C82<5,'Tabel 2 S'!D82<0.5),"-",IFERROR('Tabel 2 S'!D82/'Tabel 1 S'!C82*100,"-")) -> - | F82: =IF(OR('Tabel 1 S'!E82<5,'Tabel 2 S'!F82<0.5),"-",IFERROR('Tabel 2 S'!F82/'Tabel 1 S'!E82*100,"-")) -> - | G82: =IF(OR('Tabel 1 S'!E82<5,'Tabel 2 S'!G82<0.5),"-",IFERROR('Tabel 2 S'!G82/'Tabel 1 S'!E82*100,"-")) -> - | I82: =IF(OR('Tabel 1 S'!G82<5,'Tabel 2 S'!I82<0.5),"-",IFERROR('Tabel 2 S'!I82/'Tabel 1 S'!G82*100,"-")) -> - | J82: =IF(OR('Tabel 1 S'!G82<5,'Tabel 2 S'!J82<0.5),"-",IFERROR('Tabel 2 S'!J82/'Tabel 1 S'!G82*100,"-")) -> -
A83: Musikudd. | C83: =IF(OR('Tabel 1 S'!C83<5,'Tabel 2 S'!C83<0.5),"-",IFERROR('Tabel 2 S'!C83/'Tabel 1 S'!C83*100,"-")) -> - | D83: =IF(OR('Tabel 1 S'!C83<5,'Tabel 2 S'!D83<0.5),"-",IFERROR('Tabel 2 S'!D83/'Tabel 1 S'!C83*100,"-")) -> - | F83: =IF(OR('Tabel 1 S'!E83<5,'Tabel 2 S'!F83<0.5),"-",IFERROR('Tabel 2 S'!F83/'Tabel 1 S'!E83*100,"-")) -> - | G83: =IF(OR('Tabel 1 S'!E83<5,'Tabel 2 S'!G83<0.5),"-",IFERROR('Tabel 2 S'!G83/'Tabel 1 S'!E83*100,"-")) -> - | I83: =IF(OR('Tabel 1 S'!G83<5,'Tabel 2 S'!I83<0.5),"-",IFERROR('Tabel 2 S'!I83/'Tabel 1 S'!G83*100,"-")) -> - | J83: =IF(OR('Tabel 1 S'!G83<5,'Tabel 2 S'!J83<0.5),"-",IFERROR('Tabel 2 S'!J83/'Tabel 1 S'!G83*100,"-")) -> -
A84: Teolog | C84: =IF(OR('Tabel 1 S'!C84<5,'Tabel 2 S'!C84<0.5),"-",IFERROR('Tabel 2 S'!C84/'Tabel 1 S'!C84*100,"-")) -> - | D84: =IF(OR('Tabel 1 S'!C84<5,'Tabel 2 S'!D84<0.5),"-",IFERROR('Tabel 2 S'!D84/'Tabel 1 S'!C84*100,"-")) -> - | F84: =IF(OR('Tabel 1 S'!E84<5,'Tabel 2 S'!F84<0.5),"-",IFERROR('Tabel 2 S'!F84/'Tabel 1 S'!E84*100,"-")) -> - | G84: =IF(OR('Tabel 1 S'!E84<5,'Tabel 2 S'!G84<0.5),"-",IFERROR('Tabel 2 S'!G84/'Tabel 1 S'!E84*100,"-")) -> - | I84: =IF(OR('Tabel 1 S'!G84<5,'Tabel 2 S'!I84<0.5),"-",IFERROR('Tabel 2 S'!I84/'Tabel 1 S'!G84*100,"-")) -> - | J84: =IF(OR('Tabel 1 S'!G84<5,'Tabel 2 S'!J84<0.5),"-",IFERROR('Tabel 2 S'!J84/'Tabel 1 S'!G84*100,"-")) -> -
A85: Psykolog | C85: =IF(OR('Tabel 1 S'!C85<5,'Tabel 2 S'!C85<0.5),"-",IFERROR('Tabel 2 S'!C85/'Tabel 1 S'!C85*100,"-")) -> - | D85: =IF(OR('Tabel 1 S'!C85<5,'Tabel 2 S'!D85<0.5),"-",IFERROR('Tabel 2 S'!D85/'Tabel 1 S'!C85*100,"-")) -> - | F85: =IF(OR('Tabel 1 S'!E85<5,'Tabel 2 S'!F85<0.5),"-",IFERROR('Tabel 2 S'!F85/'Tabel 1 S'!E85*100,"-")) -> 5.263157895 | G85: =IF(OR('Tabel 1 S'!E85<5,'Tabel 2 S'!G85<0.5),"-",IFERROR('Tabel 2 S'!G85/'Tabel 1 S'!E85*100,"-")) -> 5.262173084 | I85: =IF(OR('Tabel 1 S'!G85<5,'Tabel 2 S'!I85<0.5),"-",IFERROR('Tabel 2 S'!I85/'Tabel 1 S'!G85*100,"-")) -> 4.347826087 | J85: =IF(OR('Tabel 1 S'!G85<5,'Tabel 2 S'!J85<0.5),"-",IFERROR('Tabel 2 S'!J85/'Tabel 1 S'!G85*100,"-")) -> 4.347012547
A86: Jurist | C86: =IF(OR('Tabel 1 S'!C86<5,'Tabel 2 S'!C86<0.5),"-",IFERROR('Tabel 2 S'!C86/'Tabel 1 S'!C86*100,"-")) -> 2.857142857 | D86: =IF(OR('Tabel 1 S'!C86<5,'Tabel 2 S'!D86<0.5),"-",IFERROR('Tabel 2 S'!D86/'Tabel 1 S'!C86*100,"-")) -> 2.065383005 | F86: =IF(OR('Tabel 1 S'!E86<5,'Tabel 2 S'!F86<0.5),"-",IFERROR('Tabel 2 S'!F86/'Tabel 1 S'!E86*100,"-")) -> 1.315789474 | G86: =IF(OR('Tabel 1 S'!E86<5,'Tabel 2 S'!G86<0.5),"-",IFERROR('Tabel 2 S'!G86/'Tabel 1 S'!E86*100,"-")) -> - | I86: =IF(OR('Tabel 1 S'!G86<5,'Tabel 2 S'!I86<0.5),"-",IFERROR('Tabel 2 S'!I86/'Tabel 1 S'!G86*100,"-")) -> 1.801801802 | J86: =IF(OR('Tabel 1 S'!G86<5,'Tabel 2 S'!J86<0.5),"-",IFERROR('Tabel 2 S'!J86/'Tabel 1 S'!G86*100,"-")) -> 0.8866847263
A87: Økonom | C87: =IF(OR('Tabel 1 S'!C87<5,'Tabel 2 S'!C87<0.5),"-",IFERROR('Tabel 2 S'!C87/'Tabel 1 S'!C87*100,"-")) -> - | D87: =IF(OR('Tabel 1 S'!C87<5,'Tabel 2 S'!D87<0.5),"-",IFERROR('Tabel 2 S'!D87/'Tabel 1 S'!C87*100,"-")) -> - | F87: =IF(OR('Tabel 1 S'!E87<5,'Tabel 2 S'!F87<0.5),"-",IFERROR('Tabel 2 S'!F87/'Tabel 1 S'!E87*100,"-")) -> - | G87: =IF(OR('Tabel 1 S'!E87<5,'Tabel 2 S'!G87<0.5),"-",IFERROR('Tabel 2 S'!G87/'Tabel 1 S'!E87*100,"-")) -> - | I87: =IF(OR('Tabel 1 S'!G87<5,'Tabel 2 S'!I87<0.5),"-",IFERROR('Tabel 2 S'!I87/'Tabel 1 S'!G87*100,"-")) -> - | J87: =IF(OR('Tabel 1 S'!G87<5,'Tabel 2 S'!J87<0.5),"-",IFERROR('Tabel 2 S'!J87/'Tabel 1 S'!G87*100,"-")) -> -
A88: Samf. Adm. | C88: =IF(OR('Tabel 1 S'!C88<5,'Tabel 2 S'!C88<0.5),"-",IFERROR('Tabel 2 S'!C88/'Tabel 1 S'!C88*100,"-")) -> 2.127659574 | D88: =IF(OR('Tabel 1 S'!C88<5,'Tabel 2 S'!D88<0.5),"-",IFERROR('Tabel 2 S'!D88/'Tabel 1 S'!C88*100,"-")) -> - | F88: =IF(OR('Tabel 1 S'!E88<5,'Tabel 2 S'!F88<0.5),"-",IFERROR('Tabel 2 S'!F88/'Tabel 1 S'!E88*100,"-")) -> 12.67605634 | G88: =IF(OR('Tabel 1 S'!E88<5,'Tabel 2 S'!G88<0.5),"-",IFERROR('Tabel 2 S'!G88/'Tabel 1 S'!E88*100,"-")) -> 11.74777725 | I88: =IF(OR('Tabel 1 S'!G88<5,'Tabel 2 S'!I88<0.5),"-",IFERROR('Tabel 2 S'!I88/'Tabel 1 S'!G88*100,"-")) -> 8.474576271 | J88: =IF(OR('Tabel 1 S'!G88<5,'Tabel 2 S'!J88<0.5),"-",IFERROR('Tabel 2 S'!J88/'Tabel 1 S'!G88*100,"-")) -> 7.250934778
A89: Cand. Merc. | C89: =IF(OR('Tabel 1 S'!C89<5,'Tabel 2 S'!C89<0.5),"-",IFERROR('Tabel 2 S'!C89/'Tabel 1 S'!C89*100,"-")) -> 3.759398496 | D89: =IF(OR('Tabel 1 S'!C89<5,'Tabel 2 S'!D89<0.5),"-",IFERROR('Tabel 2 S'!D89/'Tabel 1 S'!C89*100,"-")) -> 3.092775286 | F89: =IF(OR('Tabel 1 S'!E89<5,'Tabel 2 S'!F89<0.5),"-",IFERROR('Tabel 2 S'!F89/'Tabel 1 S'!E89*100,"-")) -> 5.594405594 | G89: =IF(OR('Tabel 1 S'!E89<5,'Tabel 2 S'!G89<0.5),"-",IFERROR('Tabel 2 S'!G89/'Tabel 1 S'!E89*100,"-")) -> 5.110525974 | I89: =IF(OR('Tabel 1 S'!G89<5,'Tabel 2 S'!I89<0.5),"-",IFERROR('Tabel 2 S'!I89/'Tabel 1 S'!G89*100,"-")) -> 4.710144928 | J89: =IF(OR('Tabel 1 S'!G89<5,'Tabel 2 S'!J89<0.5),"-",IFERROR('Tabel 2 S'!J89/'Tabel 1 S'!G89*100,"-")) -> 4.138204085
A90: HA | C90: =IF(OR('Tabel 1 S'!C90<5,'Tabel 2 S'!C90<0.5),"-",IFERROR('Tabel 2 S'!C90/'Tabel 1 S'!C90*100,"-")) -> 6.12244898 | D90: =IF(OR('Tabel 1 S'!C90<5,'Tabel 2 S'!D90<0.5),"-",IFERROR('Tabel 2 S'!D90/'Tabel 1 S'!C90*100,"-")) -> 5.619786741 | F90: =IF(OR('Tabel 1 S'!E90<5,'Tabel 2 S'!F90<0.5),"-",IFERROR('Tabel 2 S'!F90/'Tabel 1 S'!E90*100,"-")) -> 4.166666667 | G90: =IF(OR('Tabel 1 S'!E90<5,'Tabel 2 S'!G90<0.5),"-",IFERROR('Tabel 2 S'!G90/'Tabel 1 S'!E90*100,"-")) -> 4.165887025 | I90: =IF(OR('Tabel 1 S'!G90<5,'Tabel 2 S'!I90<0.5),"-",IFERROR('Tabel 2 S'!I90/'Tabel 1 S'!G90*100,"-")) -> 5.479452055 | J90: =IF(OR('Tabel 1 S'!G90<5,'Tabel 2 S'!J90<0.5),"-",IFERROR('Tabel 2 S'!J90/'Tabel 1 S'!G90*100,"-")) -> 5.141792314
A91: HD | C91: =IF(OR('Tabel 1 S'!C91<5,'Tabel 2 S'!C91<0.5),"-",IFERROR('Tabel 2 S'!C91/'Tabel 1 S'!C91*100,"-")) -> 4.444444444 | D91: =IF(OR('Tabel 1 S'!C91<5,'Tabel 2 S'!D91<0.5),"-",IFERROR('Tabel 2 S'!D91/'Tabel 1 S'!C91*100,"-")) -> 4.238480356 | F91: =IF(OR('Tabel 1 S'!E91<5,'Tabel 2 S'!F91<0.5),"-",IFERROR('Tabel 2 S'!F91/'Tabel 1 S'!E91*100,"-")) -> 3.225806452 | G91: =IF(OR('Tabel 1 S'!E91<5,'Tabel 2 S'!G91<0.5),"-",IFERROR('Tabel 2 S'!G91/'Tabel 1 S'!E91*100,"-")) -> 3.225202858 | I91: =IF(OR('Tabel 1 S'!G91<5,'Tabel 2 S'!I91<0.5),"-",IFERROR('Tabel 2 S'!I91/'Tabel 1 S'!G91*100,"-")) -> 3.947368421 | J91: =IF(OR('Tabel 1 S'!G91<5,'Tabel 2 S'!J91<0.5),"-",IFERROR('Tabel 2 S'!J91/'Tabel 1 S'!G91*100,"-")) -> 3.825169798
A92: Komm. og Sprog | C92: =IF(OR('Tabel 1 S'!C92<5,'Tabel 2 S'!C92<0.5),"-",IFERROR('Tabel 2 S'!C92/'Tabel 1 S'!C92*100,"-")) -> 20 | D92: =IF(OR('Tabel 1 S'!C92<5,'Tabel 2 S'!D92<0.5),"-",IFERROR('Tabel 2 S'!D92/'Tabel 1 S'!C92*100,"-")) -> - | F92: =IF(OR('Tabel 1 S'!E92<5,'Tabel 2 S'!F92<0.5),"-",IFERROR('Tabel 2 S'!F92/'Tabel 1 S'!E92*100,"-")) -> 1.724137931 | G92: =IF(OR('Tabel 1 S'!E92<5,'Tabel 2 S'!G92<0.5),"-",IFERROR('Tabel 2 S'!G92/'Tabel 1 S'!E92*100,"-")) -> 1.723815321 | I92: =IF(OR('Tabel 1 S'!G92<5,'Tabel 2 S'!I92<0.5),"-",IFERROR('Tabel 2 S'!I92/'Tabel 1 S'!G92*100,"-")) -> 3.174603175 | J92: =IF(OR('Tabel 1 S'!G92<5,'Tabel 2 S'!J92<0.5),"-",IFERROR('Tabel 2 S'!J92/'Tabel 1 S'!G92*100,"-")) -> 2.294870005
A93: Cand. IT. | C93: =IF(OR('Tabel 1 S'!C93<5,'Tabel 2 S'!C93<0.5),"-",IFERROR('Tabel 2 S'!C93/'Tabel 1 S'!C93*100,"-")) -> - | D93: =IF(OR('Tabel 1 S'!C93<5,'Tabel 2 S'!D93<0.5),"-",IFERROR('Tabel 2 S'!D93/'Tabel 1 S'!C93*100,"-")) -> - | F93: =IF(OR('Tabel 1 S'!E93<5,'Tabel 2 S'!F93<0.5),"-",IFERROR('Tabel 2 S'!F93/'Tabel 1 S'!E93*100,"-")) -> - | G93: =IF(OR('Tabel 1 S'!E93<5,'Tabel 2 S'!G93<0.5),"-",IFERROR('Tabel 2 S'!G93/'Tabel 1 S'!E93*100,"-")) -> - | I93: =IF(OR('Tabel 1 S'!G93<5,'Tabel 2 S'!I93<0.5),"-",IFERROR('Tabel 2 S'!I93/'Tabel 1 S'!G93*100,"-")) -> - | J93: =IF(OR('Tabel 1 S'!G93<5,'Tabel 2 S'!J93<0.5),"-",IFERROR('Tabel 2 S'!J93/'Tabel 1 S'!G93*100,"-")) -> -
A94: Bac. Samf. | C94: =IF(OR('Tabel 1 S'!C94<5,'Tabel 2 S'!C94<0.5),"-",IFERROR('Tabel 2 S'!C94/'Tabel 1 S'!C94*100,"-")) -> - | D94: =IF(OR('Tabel 1 S'!C94<5,'Tabel 2 S'!D94<0.5),"-",IFERROR('Tabel 2 S'!D94/'Tabel 1 S'!C94*100,"-")) -> - | F94: =IF(OR('Tabel 1 S'!E94<5,'Tabel 2 S'!F94<0.5),"-",IFERROR('Tabel 2 S'!F94/'Tabel 1 S'!E94*100,"-")) -> - | G94: =IF(OR('Tabel 1 S'!E94<5,'Tabel 2 S'!G94<0.5),"-",IFERROR('Tabel 2 S'!G94/'Tabel 1 S'!E94*100,"-")) -> - | I94: =IF(OR('Tabel 1 S'!G94<5,'Tabel 2 S'!I94<0.5),"-",IFERROR('Tabel 2 S'!I94/'Tabel 1 S'!G94*100,"-")) -> - | J94: =IF(OR('Tabel 1 S'!G94<5,'Tabel 2 S'!J94<0.5),"-",IFERROR('Tabel 2 S'!J94/'Tabel 1 S'!G94*100,"-")) -> -
A95: Bac. Hum. | C95: =IF(OR('Tabel 1 S'!C95<5,'Tabel 2 S'!C95<0.5),"-",IFERROR('Tabel 2 S'!C95/'Tabel 1 S'!C95*100,"-")) -> - | D95: =IF(OR('Tabel 1 S'!C95<5,'Tabel 2 S'!D95<0.5),"-",IFERROR('Tabel 2 S'!D95/'Tabel 1 S'!C95*100,"-")) -> - | F95: =IF(OR('Tabel 1 S'!E95<5,'Tabel 2 S'!F95<0.5),"-",IFERROR('Tabel 2 S'!F95/'Tabel 1 S'!E95*100,"-")) -> 9.090909091 | G95: =IF(OR('Tabel 1 S'!E95<5,'Tabel 2 S'!G95<0.5),"-",IFERROR('Tabel 2 S'!G95/'Tabel 1 S'!E95*100,"-")) -> 4.893316625 | I95: =IF(OR('Tabel 1 S'!G95<5,'Tabel 2 S'!I95<0.5),"-",IFERROR('Tabel 2 S'!I95/'Tabel 1 S'!G95*100,"-")) -> 6.25 | J95: =IF(OR('Tabel 1 S'!G95<5,'Tabel 2 S'!J95<0.5),"-",IFERROR('Tabel 2 S'!J95/'Tabel 1 S'!G95*100,"-")) -> 3.36415518
A96: Bac. Nat. | C96: =IF(OR('Tabel 1 S'!C96<5,'Tabel 2 S'!C96<0.5),"-",IFERROR('Tabel 2 S'!C96/'Tabel 1 S'!C96*100,"-")) -> 11.11111111 | D96: =IF(OR('Tabel 1 S'!C96<5,'Tabel 2 S'!D96<0.5),"-",IFERROR('Tabel 2 S'!D96/'Tabel 1 S'!C96*100,"-")) -> 11.10903207 | F96: =IF(OR('Tabel 1 S'!E96<5,'Tabel 2 S'!F96<0.5),"-",IFERROR('Tabel 2 S'!F96/'Tabel 1 S'!E96*100,"-")) -> - | G96: =IF(OR('Tabel 1 S'!E96<5,'Tabel 2 S'!G96<0.5),"-",IFERROR('Tabel 2 S'!G96/'Tabel 1 S'!E96*100,"-")) -> - | I96: =IF(OR('Tabel 1 S'!G96<5,'Tabel 2 S'!I96<0.5),"-",IFERROR('Tabel 2 S'!I96/'Tabel 1 S'!G96*100,"-")) -> 7.142857143 | J96: =IF(OR('Tabel 1 S'!G96<5,'Tabel 2 S'!J96<0.5),"-",IFERROR('Tabel 2 S'!J96/'Tabel 1 S'!G96*100,"-")) -> 7.141520614
A97: Andre | C97: =IF(OR('Tabel 1 S'!C97<5,'Tabel 2 S'!C97<0.5),"-",IFERROR('Tabel 2 S'!C97/'Tabel 1 S'!C97*100,"-")) -> 2.816901408 | D97: =IF(OR('Tabel 1 S'!C97<5,'Tabel 2 S'!D97<0.5),"-",IFERROR('Tabel 2 S'!D97/'Tabel 1 S'!C97*100,"-")) -> 2.16630664 | F97: =IF(OR('Tabel 1 S'!E97<5,'Tabel 2 S'!F97<0.5),"-",IFERROR('Tabel 2 S'!F97/'Tabel 1 S'!E97*100,"-")) -> 6.944444444 | G97: =IF(OR('Tabel 1 S'!E97<5,'Tabel 2 S'!G97<0.5),"-",IFERROR('Tabel 2 S'!G97/'Tabel 1 S'!E97*100,"-")) -> 6.494417763 | I97: =IF(OR('Tabel 1 S'!G97<5,'Tabel 2 S'!I97<0.5),"-",IFERROR('Tabel 2 S'!I97/'Tabel 1 S'!G97*100,"-")) -> 4.895104895 | J97: =IF(OR('Tabel 1 S'!G97<5,'Tabel 2 S'!J97<0.5),"-",IFERROR('Tabel 2 S'!J97/'Tabel 1 S'!G97*100,"-")) -> 4.345495458
A99: Total | C99: =IF(OR('Tabel 1 S'!C99<5,'Tabel 2 S'!C99<0.5),"-",IFERROR('Tabel 2 S'!C99/'Tabel 1 S'!C99*100,"-")) -> 3.136882129 | D99: =IF(OR('Tabel 1 S'!C99<5,'Tabel 2 S'!D99<0.5),"-",IFERROR('Tabel 2 S'!D99/'Tabel 1 S'!C99*100,"-")) -> 2.530071651 | F99: =IF(OR('Tabel 1 S'!E99<5,'Tabel 2 S'!F99<0.5),"-",IFERROR('Tabel 2 S'!F99/'Tabel 1 S'!E99*100,"-")) -> 4.985337243 | G99: =IF(OR('Tabel 1 S'!E99<5,'Tabel 2 S'!G99<0.5),"-",IFERROR('Tabel 2 S'!G99/'Tabel 1 S'!E99*100,"-")) -> 4.509455358 | I99: =IF(OR('Tabel 1 S'!G99<5,'Tabel 2 S'!I99<0.5),"-",IFERROR('Tabel 2 S'!I99/'Tabel 1 S'!G99*100,"-")) -> 4.048192771 | J99: =IF(OR('Tabel 1 S'!G99<5,'Tabel 2 S'!J99<0.5),"-",IFERROR('Tabel 2 S'!J99/'Tabel 1 S'!G99*100,"-")) -> 3.505931667
A101: Ingeniører i alt | C101: =IF(OR('Tabel 1 S'!C101<5,'Tabel 2 S'!C101<0.5),"-",IFERROR('Tabel 2 S'!C101/'Tabel 1 S'!C101*100,"-")) -> 2.184466019 | D101: =IF(OR('Tabel 1 S'!C101<5,'Tabel 2 S'!D101<0.5),"-",IFERROR('Tabel 2 S'!D101/'Tabel 1 S'!C101*100,"-")) -> 1.697045959 | F101: =IF(OR('Tabel 1 S'!E101<5,'Tabel 2 S'!F101<0.5),"-",IFERROR('Tabel 2 S'!F101/'Tabel 1 S'!E101*100,"-")) -> 2.830188679 | G101: =IF(OR('Tabel 1 S'!E101<5,'Tabel 2 S'!G101<0.5),"-",IFERROR('Tabel 2 S'!G101/'Tabel 1 S'!E101*100,"-")) -> 2.829659111 | I101: =IF(OR('Tabel 1 S'!G101<5,'Tabel 2 S'!I101<0.5),"-",IFERROR('Tabel 2 S'!I101/'Tabel 1 S'!G101*100,"-")) -> 2.316602317 | J101: =IF(OR('Tabel 1 S'!G101<5,'Tabel 2 S'!J101<0.5),"-",IFERROR('Tabel 2 S'!J101/'Tabel 1 S'!G101*100,"-")) -> 1.928816218
A102: Magistre i alt | C102: =IF(OR('Tabel 1 S'!C102<5,'Tabel 2 S'!C102<0.5),"-",IFERROR('Tabel 2 S'!C102/'Tabel 1 S'!C102*100,"-")) -> 6.41025641 | D102: =IF(OR('Tabel 1 S'!C102<5,'Tabel 2 S'!D102<0.5),"-",IFERROR('Tabel 2 S'!D102/'Tabel 1 S'!C102*100,"-")) -> 5.036887061 | F102: =IF(OR('Tabel 1 S'!E102<5,'Tabel 2 S'!F102<0.5),"-",IFERROR('Tabel 2 S'!F102/'Tabel 1 S'!E102*100,"-")) -> 7.142857143 | G102: =IF(OR('Tabel 1 S'!E102<5,'Tabel 2 S'!G102<0.5),"-",IFERROR('Tabel 2 S'!G102/'Tabel 1 S'!E102*100,"-")) -> 6.610250287 | I102: =IF(OR('Tabel 1 S'!G102<5,'Tabel 2 S'!I102<0.5),"-",IFERROR('Tabel 2 S'!I102/'Tabel 1 S'!G102*100,"-")) -> 6.910569106 | J102: =IF(OR('Tabel 1 S'!G102<5,'Tabel 2 S'!J102<0.5),"-",IFERROR('Tabel 2 S'!J102/'Tabel 1 S'!G102*100,"-")) -> 6.111379021
A103: DJØF'ere i alt | C103: =IF(OR('Tabel 1 S'!C103<5,'Tabel 2 S'!C103<0.5),"-",IFERROR('Tabel 2 S'!C103/'Tabel 1 S'!C103*100,"-")) -> 3.401360544 | D103: =IF(OR('Tabel 1 S'!C103<5,'Tabel 2 S'!D103<0.5),"-",IFERROR('Tabel 2 S'!D103/'Tabel 1 S'!C103*100,"-")) -> 2.654813563 | F103: =IF(OR('Tabel 1 S'!E103<5,'Tabel 2 S'!F103<0.5),"-",IFERROR('Tabel 2 S'!F103/'Tabel 1 S'!E103*100,"-")) -> 5.571847507 | G103: =IF(OR('Tabel 1 S'!E103<5,'Tabel 2 S'!G103<0.5),"-",IFERROR('Tabel 2 S'!G103/'Tabel 1 S'!E103*100,"-")) -> 4.958980314 | I103: =IF(OR('Tabel 1 S'!G103<5,'Tabel 2 S'!I103<0.5),"-",IFERROR('Tabel 2 S'!I103/'Tabel 1 S'!G103*100,"-")) -> 4.566929134 | J103: =IF(OR('Tabel 1 S'!G103<5,'Tabel 2 S'!J103<0.5),"-",IFERROR('Tabel 2 S'!J103/'Tabel 1 S'!G103*100,"-")) -> 3.892169251
A108: ='Tabel 2 S'!A108 -> Køge
C110: Mænd | F110: Kvinder | I110: I alt
C111: Ledigheds- berørte | D111: Gns. brutto- ledighed | F111: Ledigheds- berørte | G111: Gns. brutto- ledighed | I111: Ledigheds- berørte | J111: Gns. brutto- ledighed
A114: Civ. ing. | C114: =IF(OR('Tabel 1 S'!C114<5,'Tabel 2 S'!C114<0.5),"-",IFERROR('Tabel 2 S'!C114/'Tabel 1 S'!C114*100,"-")) -> 0.7352941176 | D114: =IF(OR('Tabel 1 S'!C114<5,'Tabel 2 S'!D114<0.5),"-",IFERROR('Tabel 2 S'!D114/'Tabel 1 S'!C114*100,"-")) -> 0.7351565338 | F114: =IF(OR('Tabel 1 S'!E114<5,'Tabel 2 S'!F114<0.5),"-",IFERROR('Tabel 2 S'!F114/'Tabel 1 S'!E114*100,"-")) -> 8.163265306 | G114: =IF(OR('Tabel 1 S'!E114<5,'Tabel 2 S'!G114<0.5),"-",IFERROR('Tabel 2 S'!G114/'Tabel 1 S'!E114*100,"-")) -> 8.161737844 | I114: =IF(OR('Tabel 1 S'!G114<5,'Tabel 2 S'!I114<0.5),"-",IFERROR('Tabel 2 S'!I114/'Tabel 1 S'!G114*100,"-")) -> 2.702702703 | J114: =IF(OR('Tabel 1 S'!G114<5,'Tabel 2 S'!J114<0.5),"-",IFERROR('Tabel 2 S'!J114/'Tabel 1 S'!G114*100,"-")) -> 2.702196989
A115: Diplom ing. | C115: =IF(OR('Tabel 1 S'!C115<5,'Tabel 2 S'!C115<0.5),"-",IFERROR('Tabel 2 S'!C115/'Tabel 1 S'!C115*100,"-")) -> 2.112676056 | D115: =IF(OR('Tabel 1 S'!C115<5,'Tabel 2 S'!D115<0.5),"-",IFERROR('Tabel 2 S'!D115/'Tabel 1 S'!C115*100,"-")) -> 1.774948324 | F115: =IF(OR('Tabel 1 S'!E115<5,'Tabel 2 S'!F115<0.5),"-",IFERROR('Tabel 2 S'!F115/'Tabel 1 S'!E115*100,"-")) -> 3.333333333 | G115: =IF(OR('Tabel 1 S'!E115<5,'Tabel 2 S'!G115<0.5),"-",IFERROR('Tabel 2 S'!G115/'Tabel 1 S'!E115*100,"-")) -> 3.33270962 | I115: =IF(OR('Tabel 1 S'!G115<5,'Tabel 2 S'!I115<0.5),"-",IFERROR('Tabel 2 S'!I115/'Tabel 1 S'!G115*100,"-")) -> 2.325581395 | J115: =IF(OR('Tabel 1 S'!G115<5,'Tabel 2 S'!J115<0.5),"-",IFERROR('Tabel 2 S'!J115/'Tabel 1 S'!G115*100,"-")) -> 2.046650876
A116: Cand. Scient. Tek. | C116: =IF(OR('Tabel 1 S'!C116<5,'Tabel 2 S'!C116<0.5),"-",IFERROR('Tabel 2 S'!C116/'Tabel 1 S'!C116*100,"-")) -> 18.75 | D116: =IF(OR('Tabel 1 S'!C116<5,'Tabel 2 S'!D116<0.5),"-",IFERROR('Tabel 2 S'!D116/'Tabel 1 S'!C116*100,"-")) -> 18.20334103 | F116: =IF(OR('Tabel 1 S'!E116<5,'Tabel 2 S'!F116<0.5),"-",IFERROR('Tabel 2 S'!F116/'Tabel 1 S'!E116*100,"-")) -> 4.761904762 | G116: =IF(OR('Tabel 1 S'!E116<5,'Tabel 2 S'!G116<0.5),"-",IFERROR('Tabel 2 S'!G116/'Tabel 1 S'!E116*100,"-")) -> 4.761013742 | I116: =IF(OR('Tabel 1 S'!G116<5,'Tabel 2 S'!I116<0.5),"-",IFERROR('Tabel 2 S'!I116/'Tabel 1 S'!G116*100,"-")) -> 14.49275362 | J116: =IF(OR('Tabel 1 S'!G116<5,'Tabel 2 S'!J116<0.5),"-",IFERROR('Tabel 2 S'!J116/'Tabel 1 S'!G116*100,"-")) -> 14.11219794
A117: MA. Hum. | C117: =IF(OR('Tabel 1 S'!C117<5,'Tabel 2 S'!C117<0.5),"-",IFERROR('Tabel 2 S'!C117/'Tabel 1 S'!C117*100,"-")) -> 3.448275862 | D117: =IF(OR('Tabel 1 S'!C117<5,'Tabel 2 S'!D117<0.5),"-",IFERROR('Tabel 2 S'!D117/'Tabel 1 S'!C117*100,"-")) -> 2.83682147 | F117: =IF(OR('Tabel 1 S'!E117<5,'Tabel 2 S'!F117<0.5),"-",IFERROR('Tabel 2 S'!F117/'Tabel 1 S'!E117*100,"-")) -> 6.206896552 | G117: =IF(OR('Tabel 1 S'!E117<5,'Tabel 2 S'!G117<0.5),"-",IFERROR('Tabel 2 S'!G117/'Tabel 1 S'!E117*100,"-")) -> 5.89043718 | I117: =IF(OR('Tabel 1 S'!G117<5,'Tabel 2 S'!I117<0.5),"-",IFERROR('Tabel 2 S'!I117/'Tabel 1 S'!G117*100,"-")) -> 5.418719212 | J117: =IF(OR('Tabel 1 S'!G117<5,'Tabel 2 S'!J117<0.5),"-",IFERROR('Tabel 2 S'!J117/'Tabel 1 S'!G117*100,"-")) -> 5.017975549
A118: MA. Nat. | C118: =IF(OR('Tabel 1 S'!C118<5,'Tabel 2 S'!C118<0.5),"-",IFERROR('Tabel 2 S'!C118/'Tabel 1 S'!C118*100,"-")) -> 2.43902439 | D118: =IF(OR('Tabel 1 S'!C118<5,'Tabel 2 S'!D118<0.5),"-",IFERROR('Tabel 2 S'!D118/'Tabel 1 S'!C118*100,"-")) -> 2.438568014 | F118: =IF(OR('Tabel 1 S'!E118<5,'Tabel 2 S'!F118<0.5),"-",IFERROR('Tabel 2 S'!F118/'Tabel 1 S'!E118*100,"-")) -> 3.773584906 | G118: =IF(OR('Tabel 1 S'!E118<5,'Tabel 2 S'!G118<0.5),"-",IFERROR('Tabel 2 S'!G118/'Tabel 1 S'!E118*100,"-")) -> 3.696385639 | I118: =IF(OR('Tabel 1 S'!G118<5,'Tabel 2 S'!I118<0.5),"-",IFERROR('Tabel 2 S'!I118/'Tabel 1 S'!G118*100,"-")) -> 3.191489362 | J118: =IF(OR('Tabel 1 S'!G118<5,'Tabel 2 S'!J118<0.5),"-",IFERROR('Tabel 2 S'!J118/'Tabel 1 S'!G118*100,"-")) -> 3.147763058
A119: MA. Ph.d. | C119: =IF(OR('Tabel 1 S'!C119<5,'Tabel 2 S'!C119<0.5),"-",IFERROR('Tabel 2 S'!C119/'Tabel 1 S'!C119*100,"-")) -> - | D119: =IF(OR('Tabel 1 S'!C119<5,'Tabel 2 S'!D119<0.5),"-",IFERROR('Tabel 2 S'!D119/'Tabel 1 S'!C119*100,"-")) -> - | F119: =IF(OR('Tabel 1 S'!E119<5,'Tabel 2 S'!F119<0.5),"-",IFERROR('Tabel 2 S'!F119/'Tabel 1 S'!E119*100,"-")) -> - | G119: =IF(OR('Tabel 1 S'!E119<5,'Tabel 2 S'!G119<0.5),"-",IFERROR('Tabel 2 S'!G119/'Tabel 1 S'!E119*100,"-")) -> - | I119: =IF(OR('Tabel 1 S'!G119<5,'Tabel 2 S'!I119<0.5),"-",IFERROR('Tabel 2 S'!I119/'Tabel 1 S'!G119*100,"-")) -> - | J119: =IF(OR('Tabel 1 S'!G119<5,'Tabel 2 S'!J119<0.5),"-",IFERROR('Tabel 2 S'!J119/'Tabel 1 S'!G119*100,"-")) -> -
A120: MA. Samf. | C120: =IF(OR('Tabel 1 S'!C120<5,'Tabel 2 S'!C120<0.5),"-",IFERROR('Tabel 2 S'!C120/'Tabel 1 S'!C120*100,"-")) -> 14.28571429 | D120: =IF(OR('Tabel 1 S'!C120<5,'Tabel 2 S'!D120<0.5),"-",IFERROR('Tabel 2 S'!D120/'Tabel 1 S'!C120*100,"-")) -> 14.28304123 | F120: =IF(OR('Tabel 1 S'!E120<5,'Tabel 2 S'!F120<0.5),"-",IFERROR('Tabel 2 S'!F120/'Tabel 1 S'!E120*100,"-")) -> 11.11111111 | G120: =IF(OR('Tabel 1 S'!E120<5,'Tabel 2 S'!G120<0.5),"-",IFERROR('Tabel 2 S'!G120/'Tabel 1 S'!E120*100,"-")) -> 11.10903207 | I120: =IF(OR('Tabel 1 S'!G120<5,'Tabel 2 S'!I120<0.5),"-",IFERROR('Tabel 2 S'!I120/'Tabel 1 S'!G120*100,"-")) -> 11.76470588 | J120: =IF(OR('Tabel 1 S'!G120<5,'Tabel 2 S'!J120<0.5),"-",IFERROR('Tabel 2 S'!J120/'Tabel 1 S'!G120*100,"-")) -> 11.76250454
A121: Øvrige Mag. | C121: =IF(OR('Tabel 1 S'!C121<5,'Tabel 2 S'!C121<0.5),"-",IFERROR('Tabel 2 S'!C121/'Tabel 1 S'!C121*100,"-")) -> - | D121: =IF(OR('Tabel 1 S'!C121<5,'Tabel 2 S'!D121<0.5),"-",IFERROR('Tabel 2 S'!D121/'Tabel 1 S'!C121*100,"-")) -> - | F121: =IF(OR('Tabel 1 S'!E121<5,'Tabel 2 S'!F121<0.5),"-",IFERROR('Tabel 2 S'!F121/'Tabel 1 S'!E121*100,"-")) -> 23.07692308 | G121: =IF(OR('Tabel 1 S'!E121<5,'Tabel 2 S'!G121<0.5),"-",IFERROR('Tabel 2 S'!G121/'Tabel 1 S'!E121*100,"-")) -> 23.07260506 | I121: =IF(OR('Tabel 1 S'!G121<5,'Tabel 2 S'!I121<0.5),"-",IFERROR('Tabel 2 S'!I121/'Tabel 1 S'!G121*100,"-")) -> 14.28571429 | J121: =IF(OR('Tabel 1 S'!G121<5,'Tabel 2 S'!J121<0.5),"-",IFERROR('Tabel 2 S'!J121/'Tabel 1 S'!G121*100,"-")) -> 14.28304123
A122: Agronom | C122: =IF(OR('Tabel 1 S'!C122<5,'Tabel 2 S'!C122<0.5),"-",IFERROR('Tabel 2 S'!C122/'Tabel 1 S'!C122*100,"-")) -> - | D122: =IF(OR('Tabel 1 S'!C122<5,'Tabel 2 S'!D122<0.5),"-",IFERROR('Tabel 2 S'!D122/'Tabel 1 S'!C122*100,"-")) -> - | F122: =IF(OR('Tabel 1 S'!E122<5,'Tabel 2 S'!F122<0.5),"-",IFERROR('Tabel 2 S'!F122/'Tabel 1 S'!E122*100,"-")) -> 12.5 | G122: =IF(OR('Tabel 1 S'!E122<5,'Tabel 2 S'!G122<0.5),"-",IFERROR('Tabel 2 S'!G122/'Tabel 1 S'!E122*100,"-")) -> 8.869727021 | I122: =IF(OR('Tabel 1 S'!G122<5,'Tabel 2 S'!I122<0.5),"-",IFERROR('Tabel 2 S'!I122/'Tabel 1 S'!G122*100,"-")) -> 7.692307692 | J122: =IF(OR('Tabel 1 S'!G122<5,'Tabel 2 S'!J122<0.5),"-",IFERROR('Tabel 2 S'!J122/'Tabel 1 S'!G122*100,"-")) -> 5.458293552
A123: Landsk. Arkt. | C123: =IF(OR('Tabel 1 S'!C123<5,'Tabel 2 S'!C123<0.5),"-",IFERROR('Tabel 2 S'!C123/'Tabel 1 S'!C123*100,"-")) -> - | D123: =IF(OR('Tabel 1 S'!C123<5,'Tabel 2 S'!D123<0.5),"-",IFERROR('Tabel 2 S'!D123/'Tabel 1 S'!C123*100,"-")) -> - | F123: =IF(OR('Tabel 1 S'!E123<5,'Tabel 2 S'!F123<0.5),"-",IFERROR('Tabel 2 S'!F123/'Tabel 1 S'!E123*100,"-")) -> - | G123: =IF(OR('Tabel 1 S'!E123<5,'Tabel 2 S'!G123<0.5),"-",IFERROR('Tabel 2 S'!G123/'Tabel 1 S'!E123*100,"-")) -> - | I123: =IF(OR('Tabel 1 S'!G123<5,'Tabel 2 S'!I123<0.5),"-",IFERROR('Tabel 2 S'!I123/'Tabel 1 S'!G123*100,"-")) -> - | J123: =IF(OR('Tabel 1 S'!G123<5,'Tabel 2 S'!J123<0.5),"-",IFERROR('Tabel 2 S'!J123/'Tabel 1 S'!G123*100,"-")) -> -
A124: Hortonom | C124: =IF(OR('Tabel 1 S'!C124<5,'Tabel 2 S'!C124<0.5),"-",IFERROR('Tabel 2 S'!C124/'Tabel 1 S'!C124*100,"-")) -> - | D124: =IF(OR('Tabel 1 S'!C124<5,'Tabel 2 S'!D124<0.5),"-",IFERROR('Tabel 2 S'!D124/'Tabel 1 S'!C124*100,"-")) -> - | F124: =IF(OR('Tabel 1 S'!E124<5,'Tabel 2 S'!F124<0.5),"-",IFERROR('Tabel 2 S'!F124/'Tabel 1 S'!E124*100,"-")) -> - | G124: =IF(OR('Tabel 1 S'!E124<5,'Tabel 2 S'!G124<0.5),"-",IFERROR('Tabel 2 S'!G124/'Tabel 1 S'!E124*100,"-")) -> - | I124: =IF(OR('Tabel 1 S'!G124<5,'Tabel 2 S'!I124<0.5),"-",IFERROR('Tabel 2 S'!I124/'Tabel 1 S'!G124*100,"-")) -> - | J124: =IF(OR('Tabel 1 S'!G124<5,'Tabel 2 S'!J124<0.5),"-",IFERROR('Tabel 2 S'!J124/'Tabel 1 S'!G124*100,"-")) -> -
A125: Forstkand. | C125: =IF(OR('Tabel 1 S'!C125<5,'Tabel 2 S'!C125<0.5),"-",IFERROR('Tabel 2 S'!C125/'Tabel 1 S'!C125*100,"-")) -> - | D125: =IF(OR('Tabel 1 S'!C125<5,'Tabel 2 S'!D125<0.5),"-",IFERROR('Tabel 2 S'!D125/'Tabel 1 S'!C125*100,"-")) -> - | F125: =IF(OR('Tabel 1 S'!E125<5,'Tabel 2 S'!F125<0.5),"-",IFERROR('Tabel 2 S'!F125/'Tabel 1 S'!E125*100,"-")) -> - | G125: =IF(OR('Tabel 1 S'!E125<5,'Tabel 2 S'!G125<0.5),"-",IFERROR('Tabel 2 S'!G125/'Tabel 1 S'!E125*100,"-")) -> - | I125: =IF(OR('Tabel 1 S'!G125<5,'Tabel 2 S'!I125<0.5),"-",IFERROR('Tabel 2 S'!I125/'Tabel 1 S'!G125*100,"-")) -> - | J125: =IF(OR('Tabel 1 S'!G125<5,'Tabel 2 S'!J125<0.5),"-",IFERROR('Tabel 2 S'!J125/'Tabel 1 S'!G125*100,"-")) -> -
A126: Jordbrugsakad. | C126: =IF(OR('Tabel 1 S'!C126<5,'Tabel 2 S'!C126<0.5),"-",IFERROR('Tabel 2 S'!C126/'Tabel 1 S'!C126*100,"-")) -> - | D126: =IF(OR('Tabel 1 S'!C126<5,'Tabel 2 S'!D126<0.5),"-",IFERROR('Tabel 2 S'!D126/'Tabel 1 S'!C126*100,"-")) -> - | F126: =IF(OR('Tabel 1 S'!E126<5,'Tabel 2 S'!F126<0.5),"-",IFERROR('Tabel 2 S'!F126/'Tabel 1 S'!E126*100,"-")) -> 7.894736842 | G126: =IF(OR('Tabel 1 S'!E126<5,'Tabel 2 S'!G126<0.5),"-",IFERROR('Tabel 2 S'!G126/'Tabel 1 S'!E126*100,"-")) -> 5.601932856 | I126: =IF(OR('Tabel 1 S'!G126<5,'Tabel 2 S'!I126<0.5),"-",IFERROR('Tabel 2 S'!I126/'Tabel 1 S'!G126*100,"-")) -> 5.084745763 | J126: =IF(OR('Tabel 1 S'!G126<5,'Tabel 2 S'!J126<0.5),"-",IFERROR('Tabel 2 S'!J126/'Tabel 1 S'!G126*100,"-")) -> 3.608024551
A127: Mejeriing. | C127: =IF(OR('Tabel 1 S'!C127<5,'Tabel 2 S'!C127<0.5),"-",IFERROR('Tabel 2 S'!C127/'Tabel 1 S'!C127*100,"-")) -> - | D127: =IF(OR('Tabel 1 S'!C127<5,'Tabel 2 S'!D127<0.5),"-",IFERROR('Tabel 2 S'!D127/'Tabel 1 S'!C127*100,"-")) -> - | F127: =IF(OR('Tabel 1 S'!E127<5,'Tabel 2 S'!F127<0.5),"-",IFERROR('Tabel 2 S'!F127/'Tabel 1 S'!E127*100,"-")) -> - | G127: =IF(OR('Tabel 1 S'!E127<5,'Tabel 2 S'!G127<0.5),"-",IFERROR('Tabel 2 S'!G127/'Tabel 1 S'!E127*100,"-")) -> - | I127: =IF(OR('Tabel 1 S'!G127<5,'Tabel 2 S'!I127<0.5),"-",IFERROR('Tabel 2 S'!I127/'Tabel 1 S'!G127*100,"-")) -> - | J127: =IF(OR('Tabel 1 S'!G127<5,'Tabel 2 S'!J127<0.5),"-",IFERROR('Tabel 2 S'!J127/'Tabel 1 S'!G127*100,"-")) -> -
A128: Levn.m.kand. | C128: =IF(OR('Tabel 1 S'!C128<5,'Tabel 2 S'!C128<0.5),"-",IFERROR('Tabel 2 S'!C128/'Tabel 1 S'!C128*100,"-")) -> - | D128: =IF(OR('Tabel 1 S'!C128<5,'Tabel 2 S'!D128<0.5),"-",IFERROR('Tabel 2 S'!D128/'Tabel 1 S'!C128*100,"-")) -> - | F128: =IF(OR('Tabel 1 S'!E128<5,'Tabel 2 S'!F128<0.5),"-",IFERROR('Tabel 2 S'!F128/'Tabel 1 S'!E128*100,"-")) -> - | G128: =IF(OR('Tabel 1 S'!E128<5,'Tabel 2 S'!G128<0.5),"-",IFERROR('Tabel 2 S'!G128/'Tabel 1 S'!E128*100,"-")) -> - | I128: =IF(OR('Tabel 1 S'!G128<5,'Tabel 2 S'!I128<0.5),"-",IFERROR('Tabel 2 S'!I128/'Tabel 1 S'!G128*100,"-")) -> - | J128: =IF(OR('Tabel 1 S'!G128<5,'Tabel 2 S'!J128<0.5),"-",IFERROR('Tabel 2 S'!J128/'Tabel 1 S'!G128*100,"-")) -> -
A129: Dyrlæge | C129: =IF(OR('Tabel 1 S'!C129<5,'Tabel 2 S'!C129<0.5),"-",IFERROR('Tabel 2 S'!C129/'Tabel 1 S'!C129*100,"-")) -> 16.66666667 | D129: =IF(OR('Tabel 1 S'!C129<5,'Tabel 2 S'!D129<0.5),"-",IFERROR('Tabel 2 S'!D129/'Tabel 1 S'!C129*100,"-")) -> 12.81731429 | F129: =IF(OR('Tabel 1 S'!E129<5,'Tabel 2 S'!F129<0.5),"-",IFERROR('Tabel 2 S'!F129/'Tabel 1 S'!E129*100,"-")) -> - | G129: =IF(OR('Tabel 1 S'!E129<5,'Tabel 2 S'!G129<0.5),"-",IFERROR('Tabel 2 S'!G129/'Tabel 1 S'!E129*100,"-")) -> - | I129: =IF(OR('Tabel 1 S'!G129<5,'Tabel 2 S'!I129<0.5),"-",IFERROR('Tabel 2 S'!I129/'Tabel 1 S'!G129*100,"-")) -> 3.225806452 | J129: =IF(OR('Tabel 1 S'!G129<5,'Tabel 2 S'!J129<0.5),"-",IFERROR('Tabel 2 S'!J129/'Tabel 1 S'!G129*100,"-")) -> 2.480770508
A130: Farmaceut | C130: =IF(OR('Tabel 1 S'!C130<5,'Tabel 2 S'!C130<0.5),"-",IFERROR('Tabel 2 S'!C130/'Tabel 1 S'!C130*100,"-")) -> - | D130: =IF(OR('Tabel 1 S'!C130<5,'Tabel 2 S'!D130<0.5),"-",IFERROR('Tabel 2 S'!D130/'Tabel 1 S'!C130*100,"-")) -> - | F130: =IF(OR('Tabel 1 S'!E130<5,'Tabel 2 S'!F130<0.5),"-",IFERROR('Tabel 2 S'!F130/'Tabel 1 S'!E130*100,"-")) -> 5.263157895 | G130: =IF(OR('Tabel 1 S'!E130<5,'Tabel 2 S'!G130<0.5),"-",IFERROR('Tabel 2 S'!G130/'Tabel 1 S'!E130*100,"-")) -> 5.262173084 | I130: =IF(OR('Tabel 1 S'!G130<5,'Tabel 2 S'!I130<0.5),"-",IFERROR('Tabel 2 S'!I130/'Tabel 1 S'!G130*100,"-")) -> 4.347826087 | J130: =IF(OR('Tabel 1 S'!G130<5,'Tabel 2 S'!J130<0.5),"-",IFERROR('Tabel 2 S'!J130/'Tabel 1 S'!G130*100,"-")) -> 4.347012547
A131: Læge | C131: =IF(OR('Tabel 1 S'!C131<5,'Tabel 2 S'!C131<0.5),"-",IFERROR('Tabel 2 S'!C131/'Tabel 1 S'!C131*100,"-")) -> - | D131: =IF(OR('Tabel 1 S'!C131<5,'Tabel 2 S'!D131<0.5),"-",IFERROR('Tabel 2 S'!D131/'Tabel 1 S'!C131*100,"-")) -> - | F131: =IF(OR('Tabel 1 S'!E131<5,'Tabel 2 S'!F131<0.5),"-",IFERROR('Tabel 2 S'!F131/'Tabel 1 S'!E131*100,"-")) -> - | G131: =IF(OR('Tabel 1 S'!E131<5,'Tabel 2 S'!G131<0.5),"-",IFERROR('Tabel 2 S'!G131/'Tabel 1 S'!E131*100,"-")) -> - | I131: =IF(OR('Tabel 1 S'!G131<5,'Tabel 2 S'!I131<0.5),"-",IFERROR('Tabel 2 S'!I131/'Tabel 1 S'!G131*100,"-")) -> - | J131: =IF(OR('Tabel 1 S'!G131<5,'Tabel 2 S'!J131<0.5),"-",IFERROR('Tabel 2 S'!J131/'Tabel 1 S'!G131*100,"-")) -> -
A132: Tandlæge | C132: =IF(OR('Tabel 1 S'!C132<5,'Tabel 2 S'!C132<0.5),"-",IFERROR('Tabel 2 S'!C132/'Tabel 1 S'!C132*100,"-")) -> - | D132: =IF(OR('Tabel 1 S'!C132<5,'Tabel 2 S'!D132<0.5),"-",IFERROR('Tabel 2 S'!D132/'Tabel 1 S'!C132*100,"-")) -> - | F132: =IF(OR('Tabel 1 S'!E132<5,'Tabel 2 S'!F132<0.5),"-",IFERROR('Tabel 2 S'!F132/'Tabel 1 S'!E132*100,"-")) -> - | G132: =IF(OR('Tabel 1 S'!E132<5,'Tabel 2 S'!G132<0.5),"-",IFERROR('Tabel 2 S'!G132/'Tabel 1 S'!E132*100,"-")) -> - | I132: =IF(OR('Tabel 1 S'!G132<5,'Tabel 2 S'!I132<0.5),"-",IFERROR('Tabel 2 S'!I132/'Tabel 1 S'!G132*100,"-")) -> - | J132: =IF(OR('Tabel 1 S'!G132<5,'Tabel 2 S'!J132<0.5),"-",IFERROR('Tabel 2 S'!J132/'Tabel 1 S'!G132*100,"-")) -> -
A133: Arkitekt | C133: =IF(OR('Tabel 1 S'!C133<5,'Tabel 2 S'!C133<0.5),"-",IFERROR('Tabel 2 S'!C133/'Tabel 1 S'!C133*100,"-")) -> - | D133: =IF(OR('Tabel 1 S'!C133<5,'Tabel 2 S'!D133<0.5),"-",IFERROR('Tabel 2 S'!D133/'Tabel 1 S'!C133*100,"-")) -> - | F133: =IF(OR('Tabel 1 S'!E133<5,'Tabel 2 S'!F133<0.5),"-",IFERROR('Tabel 2 S'!F133/'Tabel 1 S'!E133*100,"-")) -> - | G133: =IF(OR('Tabel 1 S'!E133<5,'Tabel 2 S'!G133<0.5),"-",IFERROR('Tabel 2 S'!G133/'Tabel 1 S'!E133*100,"-")) -> - | I133: =IF(OR('Tabel 1 S'!G133<5,'Tabel 2 S'!I133<0.5),"-",IFERROR('Tabel 2 S'!I133/'Tabel 1 S'!G133*100,"-")) -> - | J133: =IF(OR('Tabel 1 S'!G133<5,'Tabel 2 S'!J133<0.5),"-",IFERROR('Tabel 2 S'!J133/'Tabel 1 S'!G133*100,"-")) -> -
A134: Landinspek. | C134: =IF(OR('Tabel 1 S'!C134<5,'Tabel 2 S'!C134<0.5),"-",IFERROR('Tabel 2 S'!C134/'Tabel 1 S'!C134*100,"-")) -> - | D134: =IF(OR('Tabel 1 S'!C134<5,'Tabel 2 S'!D134<0.5),"-",IFERROR('Tabel 2 S'!D134/'Tabel 1 S'!C134*100,"-")) -> - | F134: =IF(OR('Tabel 1 S'!E134<5,'Tabel 2 S'!F134<0.5),"-",IFERROR('Tabel 2 S'!F134/'Tabel 1 S'!E134*100,"-")) -> - | G134: =IF(OR('Tabel 1 S'!E134<5,'Tabel 2 S'!G134<0.5),"-",IFERROR('Tabel 2 S'!G134/'Tabel 1 S'!E134*100,"-")) -> - | I134: =IF(OR('Tabel 1 S'!G134<5,'Tabel 2 S'!I134<0.5),"-",IFERROR('Tabel 2 S'!I134/'Tabel 1 S'!G134*100,"-")) -> - | J134: =IF(OR('Tabel 1 S'!G134<5,'Tabel 2 S'!J134<0.5),"-",IFERROR('Tabel 2 S'!J134/'Tabel 1 S'!G134*100,"-")) -> -
A135: Bibliotekar | C135: =IF(OR('Tabel 1 S'!C135<5,'Tabel 2 S'!C135<0.5),"-",IFERROR('Tabel 2 S'!C135/'Tabel 1 S'!C135*100,"-")) -> - | D135: =IF(OR('Tabel 1 S'!C135<5,'Tabel 2 S'!D135<0.5),"-",IFERROR('Tabel 2 S'!D135/'Tabel 1 S'!C135*100,"-")) -> - | F135: =IF(OR('Tabel 1 S'!E135<5,'Tabel 2 S'!F135<0.5),"-",IFERROR('Tabel 2 S'!F135/'Tabel 1 S'!E135*100,"-")) -> 4.166666667 | G135: =IF(OR('Tabel 1 S'!E135<5,'Tabel 2 S'!G135<0.5),"-",IFERROR('Tabel 2 S'!G135/'Tabel 1 S'!E135*100,"-")) -> 4.165887025 | I135: =IF(OR('Tabel 1 S'!G135<5,'Tabel 2 S'!I135<0.5),"-",IFERROR('Tabel 2 S'!I135/'Tabel 1 S'!G135*100,"-")) -> 3.846153846 | J135: =IF(OR('Tabel 1 S'!G135<5,'Tabel 2 S'!J135<0.5),"-",IFERROR('Tabel 2 S'!J135/'Tabel 1 S'!G135*100,"-")) -> 3.845434177
A136: Musikudd. | C136: =IF(OR('Tabel 1 S'!C136<5,'Tabel 2 S'!C136<0.5),"-",IFERROR('Tabel 2 S'!C136/'Tabel 1 S'!C136*100,"-")) -> - | D136: =IF(OR('Tabel 1 S'!C136<5,'Tabel 2 S'!D136<0.5),"-",IFERROR('Tabel 2 S'!D136/'Tabel 1 S'!C136*100,"-")) -> - | F136: =IF(OR('Tabel 1 S'!E136<5,'Tabel 2 S'!F136<0.5),"-",IFERROR('Tabel 2 S'!F136/'Tabel 1 S'!E136*100,"-")) -> - | G136: =IF(OR('Tabel 1 S'!E136<5,'Tabel 2 S'!G136<0.5),"-",IFERROR('Tabel 2 S'!G136/'Tabel 1 S'!E136*100,"-")) -> - | I136: =IF(OR('Tabel 1 S'!G136<5,'Tabel 2 S'!I136<0.5),"-",IFERROR('Tabel 2 S'!I136/'Tabel 1 S'!G136*100,"-")) -> - | J136: =IF(OR('Tabel 1 S'!G136<5,'Tabel 2 S'!J136<0.5),"-",IFERROR('Tabel 2 S'!J136/'Tabel 1 S'!G136*100,"-")) -> -
A137: Teolog | C137: =IF(OR('Tabel 1 S'!C137<5,'Tabel 2 S'!C137<0.5),"-",IFERROR('Tabel 2 S'!C137/'Tabel 1 S'!C137*100,"-")) -> - | D137: =IF(OR('Tabel 1 S'!C137<5,'Tabel 2 S'!D137<0.5),"-",IFERROR('Tabel 2 S'!D137/'Tabel 1 S'!C137*100,"-")) -> - | F137: =IF(OR('Tabel 1 S'!E137<5,'Tabel 2 S'!F137<0.5),"-",IFERROR('Tabel 2 S'!F137/'Tabel 1 S'!E137*100,"-")) -> 16.66666667 | G137: =IF(OR('Tabel 1 S'!E137<5,'Tabel 2 S'!G137<0.5),"-",IFERROR('Tabel 2 S'!G137/'Tabel 1 S'!E137*100,"-")) -> 11.25803031 | I137: =IF(OR('Tabel 1 S'!G137<5,'Tabel 2 S'!I137<0.5),"-",IFERROR('Tabel 2 S'!I137/'Tabel 1 S'!G137*100,"-")) -> 11.11111111 | J137: =IF(OR('Tabel 1 S'!G137<5,'Tabel 2 S'!J137<0.5),"-",IFERROR('Tabel 2 S'!J137/'Tabel 1 S'!G137*100,"-")) -> 7.505353542
A138: Psykolog | C138: =IF(OR('Tabel 1 S'!C138<5,'Tabel 2 S'!C138<0.5),"-",IFERROR('Tabel 2 S'!C138/'Tabel 1 S'!C138*100,"-")) -> 16.66666667 | D138: =IF(OR('Tabel 1 S'!C138<5,'Tabel 2 S'!D138<0.5),"-",IFERROR('Tabel 2 S'!D138/'Tabel 1 S'!C138*100,"-")) -> 16.6635481 | F138: =IF(OR('Tabel 1 S'!E138<5,'Tabel 2 S'!F138<0.5),"-",IFERROR('Tabel 2 S'!F138/'Tabel 1 S'!E138*100,"-")) -> 6.666666667 | G138: =IF(OR('Tabel 1 S'!E138<5,'Tabel 2 S'!G138<0.5),"-",IFERROR('Tabel 2 S'!G138/'Tabel 1 S'!E138*100,"-")) -> 5.370867031 | I138: =IF(OR('Tabel 1 S'!G138<5,'Tabel 2 S'!I138<0.5),"-",IFERROR('Tabel 2 S'!I138/'Tabel 1 S'!G138*100,"-")) -> 7.843137255 | J138: =IF(OR('Tabel 1 S'!G138<5,'Tabel 2 S'!J138<0.5),"-",IFERROR('Tabel 2 S'!J138/'Tabel 1 S'!G138*100,"-")) -> 6.699417745
A139: Jurist | C139: =IF(OR('Tabel 1 S'!C139<5,'Tabel 2 S'!C139<0.5),"-",IFERROR('Tabel 2 S'!C139/'Tabel 1 S'!C139*100,"-")) -> - | D139: =IF(OR('Tabel 1 S'!C139<5,'Tabel 2 S'!D139<0.5),"-",IFERROR('Tabel 2 S'!D139/'Tabel 1 S'!C139*100,"-")) -> - | F139: =IF(OR('Tabel 1 S'!E139<5,'Tabel 2 S'!F139<0.5),"-",IFERROR('Tabel 2 S'!F139/'Tabel 1 S'!E139*100,"-")) -> 3.797468354 | G139: =IF(OR('Tabel 1 S'!E139<5,'Tabel 2 S'!G139<0.5),"-",IFERROR('Tabel 2 S'!G139/'Tabel 1 S'!E139*100,"-")) -> 3.796757795 | I139: =IF(OR('Tabel 1 S'!G139<5,'Tabel 2 S'!I139<0.5),"-",IFERROR('Tabel 2 S'!I139/'Tabel 1 S'!G139*100,"-")) -> 2.803738318 | J139: =IF(OR('Tabel 1 S'!G139<5,'Tabel 2 S'!J139<0.5),"-",IFERROR('Tabel 2 S'!J139/'Tabel 1 S'!G139*100,"-")) -> 2.803213699
A140: Økonom | C140: =IF(OR('Tabel 1 S'!C140<5,'Tabel 2 S'!C140<0.5),"-",IFERROR('Tabel 2 S'!C140/'Tabel 1 S'!C140*100,"-")) -> 5.263157895 | D140: =IF(OR('Tabel 1 S'!C140<5,'Tabel 2 S'!D140<0.5),"-",IFERROR('Tabel 2 S'!D140/'Tabel 1 S'!C140*100,"-")) -> 4.047572933 | F140: =IF(OR('Tabel 1 S'!E140<5,'Tabel 2 S'!F140<0.5),"-",IFERROR('Tabel 2 S'!F140/'Tabel 1 S'!E140*100,"-")) -> - | G140: =IF(OR('Tabel 1 S'!E140<5,'Tabel 2 S'!G140<0.5),"-",IFERROR('Tabel 2 S'!G140/'Tabel 1 S'!E140*100,"-")) -> - | I140: =IF(OR('Tabel 1 S'!G140<5,'Tabel 2 S'!I140<0.5),"-",IFERROR('Tabel 2 S'!I140/'Tabel 1 S'!G140*100,"-")) -> 3.076923077 | J140: =IF(OR('Tabel 1 S'!G140<5,'Tabel 2 S'!J140<0.5),"-",IFERROR('Tabel 2 S'!J140/'Tabel 1 S'!G140*100,"-")) -> 2.366273407
A141: Samf. Adm. | C141: =IF(OR('Tabel 1 S'!C141<5,'Tabel 2 S'!C141<0.5),"-",IFERROR('Tabel 2 S'!C141/'Tabel 1 S'!C141*100,"-")) -> 3.333333333 | D141: =IF(OR('Tabel 1 S'!C141<5,'Tabel 2 S'!D141<0.5),"-",IFERROR('Tabel 2 S'!D141/'Tabel 1 S'!C141*100,"-")) -> 2.246408449 | F141: =IF(OR('Tabel 1 S'!E141<5,'Tabel 2 S'!F141<0.5),"-",IFERROR('Tabel 2 S'!F141/'Tabel 1 S'!E141*100,"-")) -> 8.641975309 | G141: =IF(OR('Tabel 1 S'!E141<5,'Tabel 2 S'!G141<0.5),"-",IFERROR('Tabel 2 S'!G141/'Tabel 1 S'!E141*100,"-")) -> 7.899602132 | I141: =IF(OR('Tabel 1 S'!G141<5,'Tabel 2 S'!I141<0.5),"-",IFERROR('Tabel 2 S'!I141/'Tabel 1 S'!G141*100,"-")) -> 6.382978723 | J141: =IF(OR('Tabel 1 S'!G141<5,'Tabel 2 S'!J141<0.5),"-",IFERROR('Tabel 2 S'!J141/'Tabel 1 S'!G141*100,"-")) -> 5.493987799
A142: Cand. Merc. | C142: =IF(OR('Tabel 1 S'!C142<5,'Tabel 2 S'!C142<0.5),"-",IFERROR('Tabel 2 S'!C142/'Tabel 1 S'!C142*100,"-")) -> 3.883495146 | D142: =IF(OR('Tabel 1 S'!C142<5,'Tabel 2 S'!D142<0.5),"-",IFERROR('Tabel 2 S'!D142/'Tabel 1 S'!C142*100,"-")) -> 3.613905543 | F142: =IF(OR('Tabel 1 S'!E142<5,'Tabel 2 S'!F142<0.5),"-",IFERROR('Tabel 2 S'!F142/'Tabel 1 S'!E142*100,"-")) -> 8.571428571 | G142: =IF(OR('Tabel 1 S'!E142<5,'Tabel 2 S'!G142<0.5),"-",IFERROR('Tabel 2 S'!G142/'Tabel 1 S'!E142*100,"-")) -> 5.808258562 | I142: =IF(OR('Tabel 1 S'!G142<5,'Tabel 2 S'!I142<0.5),"-",IFERROR('Tabel 2 S'!I142/'Tabel 1 S'!G142*100,"-")) -> 6.25 | J142: =IF(OR('Tabel 1 S'!G142<5,'Tabel 2 S'!J142<0.5),"-",IFERROR('Tabel 2 S'!J142/'Tabel 1 S'!G142*100,"-")) -> 4.721631827
A143: HA | C143: =IF(OR('Tabel 1 S'!C143<5,'Tabel 2 S'!C143<0.5),"-",IFERROR('Tabel 2 S'!C143/'Tabel 1 S'!C143*100,"-")) -> - | D143: =IF(OR('Tabel 1 S'!C143<5,'Tabel 2 S'!D143<0.5),"-",IFERROR('Tabel 2 S'!D143/'Tabel 1 S'!C143*100,"-")) -> - | F143: =IF(OR('Tabel 1 S'!E143<5,'Tabel 2 S'!F143<0.5),"-",IFERROR('Tabel 2 S'!F143/'Tabel 1 S'!E143*100,"-")) -> - | G143: =IF(OR('Tabel 1 S'!E143<5,'Tabel 2 S'!G143<0.5),"-",IFERROR('Tabel 2 S'!G143/'Tabel 1 S'!E143*100,"-")) -> - | I143: =IF(OR('Tabel 1 S'!G143<5,'Tabel 2 S'!I143<0.5),"-",IFERROR('Tabel 2 S'!I143/'Tabel 1 S'!G143*100,"-")) -> - | J143: =IF(OR('Tabel 1 S'!G143<5,'Tabel 2 S'!J143<0.5),"-",IFERROR('Tabel 2 S'!J143/'Tabel 1 S'!G143*100,"-")) -> -
A144: HD | C144: =IF(OR('Tabel 1 S'!C144<5,'Tabel 2 S'!C144<0.5),"-",IFERROR('Tabel 2 S'!C144/'Tabel 1 S'!C144*100,"-")) -> - | D144: =IF(OR('Tabel 1 S'!C144<5,'Tabel 2 S'!D144<0.5),"-",IFERROR('Tabel 2 S'!D144/'Tabel 1 S'!C144*100,"-")) -> - | F144: =IF(OR('Tabel 1 S'!E144<5,'Tabel 2 S'!F144<0.5),"-",IFERROR('Tabel 2 S'!F144/'Tabel 1 S'!E144*100,"-")) -> 9.090909091 | G144: =IF(OR('Tabel 1 S'!E144<5,'Tabel 2 S'!G144<0.5),"-",IFERROR('Tabel 2 S'!G144/'Tabel 1 S'!E144*100,"-")) -> 6.571673197 | I144: =IF(OR('Tabel 1 S'!G144<5,'Tabel 2 S'!I144<0.5),"-",IFERROR('Tabel 2 S'!I144/'Tabel 1 S'!G144*100,"-")) -> 4 | J144: =IF(OR('Tabel 1 S'!G144<5,'Tabel 2 S'!J144<0.5),"-",IFERROR('Tabel 2 S'!J144/'Tabel 1 S'!G144*100,"-")) -> 2.891536207
A145: Komm. og Sprog | C145: =IF(OR('Tabel 1 S'!C145<5,'Tabel 2 S'!C145<0.5),"-",IFERROR('Tabel 2 S'!C145/'Tabel 1 S'!C145*100,"-")) -> - | D145: =IF(OR('Tabel 1 S'!C145<5,'Tabel 2 S'!D145<0.5),"-",IFERROR('Tabel 2 S'!D145/'Tabel 1 S'!C145*100,"-")) -> - | F145: =IF(OR('Tabel 1 S'!E145<5,'Tabel 2 S'!F145<0.5),"-",IFERROR('Tabel 2 S'!F145/'Tabel 1 S'!E145*100,"-")) -> 13.55932203 | G145: =IF(OR('Tabel 1 S'!E145<5,'Tabel 2 S'!G145<0.5),"-",IFERROR('Tabel 2 S'!G145/'Tabel 1 S'!E145*100,"-")) -> 12.07044369 | I145: =IF(OR('Tabel 1 S'!G145<5,'Tabel 2 S'!I145<0.5),"-",IFERROR('Tabel 2 S'!I145/'Tabel 1 S'!G145*100,"-")) -> 12.12121212 | J145: =IF(OR('Tabel 1 S'!G145<5,'Tabel 2 S'!J145<0.5),"-",IFERROR('Tabel 2 S'!J145/'Tabel 1 S'!G145*100,"-")) -> 10.79024512
A146: Cand. IT. | C146: =IF(OR('Tabel 1 S'!C146<5,'Tabel 2 S'!C146<0.5),"-",IFERROR('Tabel 2 S'!C146/'Tabel 1 S'!C146*100,"-")) -> - | D146: =IF(OR('Tabel 1 S'!C146<5,'Tabel 2 S'!D146<0.5),"-",IFERROR('Tabel 2 S'!D146/'Tabel 1 S'!C146*100,"-")) -> - | F146: =IF(OR('Tabel 1 S'!E146<5,'Tabel 2 S'!F146<0.5),"-",IFERROR('Tabel 2 S'!F146/'Tabel 1 S'!E146*100,"-")) -> - | G146: =IF(OR('Tabel 1 S'!E146<5,'Tabel 2 S'!G146<0.5),"-",IFERROR('Tabel 2 S'!G146/'Tabel 1 S'!E146*100,"-")) -> - | I146: =IF(OR('Tabel 1 S'!G146<5,'Tabel 2 S'!I146<0.5),"-",IFERROR('Tabel 2 S'!I146/'Tabel 1 S'!G146*100,"-")) -> 6.25 | J146: =IF(OR('Tabel 1 S'!G146<5,'Tabel 2 S'!J146<0.5),"-",IFERROR('Tabel 2 S'!J146/'Tabel 1 S'!G146*100,"-")) -> 3.617538826
A147: Bac. Samf. | C147: =IF(OR('Tabel 1 S'!C147<5,'Tabel 2 S'!C147<0.5),"-",IFERROR('Tabel 2 S'!C147/'Tabel 1 S'!C147*100,"-")) -> - | D147: =IF(OR('Tabel 1 S'!C147<5,'Tabel 2 S'!D147<0.5),"-",IFERROR('Tabel 2 S'!D147/'Tabel 1 S'!C147*100,"-")) -> - | F147: =IF(OR('Tabel 1 S'!E147<5,'Tabel 2 S'!F147<0.5),"-",IFERROR('Tabel 2 S'!F147/'Tabel 1 S'!E147*100,"-")) -> - | G147: =IF(OR('Tabel 1 S'!E147<5,'Tabel 2 S'!G147<0.5),"-",IFERROR('Tabel 2 S'!G147/'Tabel 1 S'!E147*100,"-")) -> - | I147: =IF(OR('Tabel 1 S'!G147<5,'Tabel 2 S'!I147<0.5),"-",IFERROR('Tabel 2 S'!I147/'Tabel 1 S'!G147*100,"-")) -> 16.66666667 | J147: =IF(OR('Tabel 1 S'!G147<5,'Tabel 2 S'!J147<0.5),"-",IFERROR('Tabel 2 S'!J147/'Tabel 1 S'!G147*100,"-")) -> 16.6635481
A148: Bac. Hum. | C148: =IF(OR('Tabel 1 S'!C148<5,'Tabel 2 S'!C148<0.5),"-",IFERROR('Tabel 2 S'!C148/'Tabel 1 S'!C148*100,"-")) -> 20 | D148: =IF(OR('Tabel 1 S'!C148<5,'Tabel 2 S'!D148<0.5),"-",IFERROR('Tabel 2 S'!D148/'Tabel 1 S'!C148*100,"-")) -> 19.99625772 | F148: =IF(OR('Tabel 1 S'!E148<5,'Tabel 2 S'!F148<0.5),"-",IFERROR('Tabel 2 S'!F148/'Tabel 1 S'!E148*100,"-")) -> 11.11111111 | G148: =IF(OR('Tabel 1 S'!E148<5,'Tabel 2 S'!G148<0.5),"-",IFERROR('Tabel 2 S'!G148/'Tabel 1 S'!E148*100,"-")) -> 6.756897233 | I148: =IF(OR('Tabel 1 S'!G148<5,'Tabel 2 S'!I148<0.5),"-",IFERROR('Tabel 2 S'!I148/'Tabel 1 S'!G148*100,"-")) -> 13.04347826 | J148: =IF(OR('Tabel 1 S'!G148<5,'Tabel 2 S'!J148<0.5),"-",IFERROR('Tabel 2 S'!J148/'Tabel 1 S'!G148*100,"-")) -> 9.635019078
A149: Bac. Nat. | C149: =IF(OR('Tabel 1 S'!C149<5,'Tabel 2 S'!C149<0.5),"-",IFERROR('Tabel 2 S'!C149/'Tabel 1 S'!C149*100,"-")) -> 16.66666667 | D149: =IF(OR('Tabel 1 S'!C149<5,'Tabel 2 S'!D149<0.5),"-",IFERROR('Tabel 2 S'!D149/'Tabel 1 S'!C149*100,"-")) -> 15.83192998 | F149: =IF(OR('Tabel 1 S'!E149<5,'Tabel 2 S'!F149<0.5),"-",IFERROR('Tabel 2 S'!F149/'Tabel 1 S'!E149*100,"-")) -> - | G149: =IF(OR('Tabel 1 S'!E149<5,'Tabel 2 S'!G149<0.5),"-",IFERROR('Tabel 2 S'!G149/'Tabel 1 S'!E149*100,"-")) -> - | I149: =IF(OR('Tabel 1 S'!G149<5,'Tabel 2 S'!I149<0.5),"-",IFERROR('Tabel 2 S'!I149/'Tabel 1 S'!G149*100,"-")) -> 10 | J149: =IF(OR('Tabel 1 S'!G149<5,'Tabel 2 S'!J149<0.5),"-",IFERROR('Tabel 2 S'!J149/'Tabel 1 S'!G149*100,"-")) -> 9.499157987
A150: Andre | C150: =IF(OR('Tabel 1 S'!C150<5,'Tabel 2 S'!C150<0.5),"-",IFERROR('Tabel 2 S'!C150/'Tabel 1 S'!C150*100,"-")) -> 1.298701299 | D150: =IF(OR('Tabel 1 S'!C150<5,'Tabel 2 S'!D150<0.5),"-",IFERROR('Tabel 2 S'!D150/'Tabel 1 S'!C150*100,"-")) -> 1.298458293 | F150: =IF(OR('Tabel 1 S'!E150<5,'Tabel 2 S'!F150<0.5),"-",IFERROR('Tabel 2 S'!F150/'Tabel 1 S'!E150*100,"-")) -> 11.76470588 | G150: =IF(OR('Tabel 1 S'!E150<5,'Tabel 2 S'!G150<0.5),"-",IFERROR('Tabel 2 S'!G150/'Tabel 1 S'!E150*100,"-")) -> 10.72512208 | I150: =IF(OR('Tabel 1 S'!G150<5,'Tabel 2 S'!I150<0.5),"-",IFERROR('Tabel 2 S'!I150/'Tabel 1 S'!G150*100,"-")) -> 6.206896552 | J150: =IF(OR('Tabel 1 S'!G150<5,'Tabel 2 S'!J150<0.5),"-",IFERROR('Tabel 2 S'!J150/'Tabel 1 S'!G150*100,"-")) -> 5.719238553
A152: Total | C152: =IF(OR('Tabel 1 S'!C152<5,'Tabel 2 S'!C152<0.5),"-",IFERROR('Tabel 2 S'!C152/'Tabel 1 S'!C152*100,"-")) -> 3.204524034 | D152: =IF(OR('Tabel 1 S'!C152<5,'Tabel 2 S'!D152<0.5),"-",IFERROR('Tabel 2 S'!D152/'Tabel 1 S'!C152*100,"-")) -> 2.898181313 | F152: =IF(OR('Tabel 1 S'!E152<5,'Tabel 2 S'!F152<0.5),"-",IFERROR('Tabel 2 S'!F152/'Tabel 1 S'!E152*100,"-")) -> 6.727272727 | G152: =IF(OR('Tabel 1 S'!E152<5,'Tabel 2 S'!G152<0.5),"-",IFERROR('Tabel 2 S'!G152/'Tabel 1 S'!E152*100,"-")) -> 5.897325403 | I152: =IF(OR('Tabel 1 S'!G152<5,'Tabel 2 S'!I152<0.5),"-",IFERROR('Tabel 2 S'!I152/'Tabel 1 S'!G152*100,"-")) -> 4.997686256 | J152: =IF(OR('Tabel 1 S'!G152<5,'Tabel 2 S'!J152<0.5),"-",IFERROR('Tabel 2 S'!J152/'Tabel 1 S'!G152*100,"-")) -> 4.424816435
A154: Ingeniører i alt | C154: =IF(OR('Tabel 1 S'!C154<5,'Tabel 2 S'!C154<0.5),"-",IFERROR('Tabel 2 S'!C154/'Tabel 1 S'!C154*100,"-")) -> 1.666666667 | D154: =IF(OR('Tabel 1 S'!C154<5,'Tabel 2 S'!D154<0.5),"-",IFERROR('Tabel 2 S'!D154/'Tabel 1 S'!C154*100,"-")) -> 1.43825384 | F154: =IF(OR('Tabel 1 S'!E154<5,'Tabel 2 S'!F154<0.5),"-",IFERROR('Tabel 2 S'!F154/'Tabel 1 S'!E154*100,"-")) -> 5.504587156 | G154: =IF(OR('Tabel 1 S'!E154<5,'Tabel 2 S'!G154<0.5),"-",IFERROR('Tabel 2 S'!G154/'Tabel 1 S'!E154*100,"-")) -> 5.50355717 | I154: =IF(OR('Tabel 1 S'!G154<5,'Tabel 2 S'!I154<0.5),"-",IFERROR('Tabel 2 S'!I154/'Tabel 1 S'!G154*100,"-")) -> 2.457466919 | J154: =IF(OR('Tabel 1 S'!G154<5,'Tabel 2 S'!J154<0.5),"-",IFERROR('Tabel 2 S'!J154/'Tabel 1 S'!G154*100,"-")) -> 2.275906133
A155: Magistre i alt | C155: =IF(OR('Tabel 1 S'!C155<5,'Tabel 2 S'!C155<0.5),"-",IFERROR('Tabel 2 S'!C155/'Tabel 1 S'!C155*100,"-")) -> 3.47826087 | D155: =IF(OR('Tabel 1 S'!C155<5,'Tabel 2 S'!D155<0.5),"-",IFERROR('Tabel 2 S'!D155/'Tabel 1 S'!C155*100,"-")) -> 3.16954976 | F155: =IF(OR('Tabel 1 S'!E155<5,'Tabel 2 S'!F155<0.5),"-",IFERROR('Tabel 2 S'!F155/'Tabel 1 S'!E155*100,"-")) -> 7.024793388 | G155: =IF(OR('Tabel 1 S'!E155<5,'Tabel 2 S'!G155<0.5),"-",IFERROR('Tabel 2 S'!G155/'Tabel 1 S'!E155*100,"-")) -> 6.817808105 | I155: =IF(OR('Tabel 1 S'!G155<5,'Tabel 2 S'!I155<0.5),"-",IFERROR('Tabel 2 S'!I155/'Tabel 1 S'!G155*100,"-")) -> 5.882352941 | J155: =IF(OR('Tabel 1 S'!G155<5,'Tabel 2 S'!J155<0.5),"-",IFERROR('Tabel 2 S'!J155/'Tabel 1 S'!G155*100,"-")) -> 5.642598835
A156: DJØF'ere i alt | C156: =IF(OR('Tabel 1 S'!C156<5,'Tabel 2 S'!C156<0.5),"-",IFERROR('Tabel 2 S'!C156/'Tabel 1 S'!C156*100,"-")) -> 3.162055336 | D156: =IF(OR('Tabel 1 S'!C156<5,'Tabel 2 S'!D156<0.5),"-",IFERROR('Tabel 2 S'!D156/'Tabel 1 S'!C156*100,"-")) -> 2.611954741 | F156: =IF(OR('Tabel 1 S'!E156<5,'Tabel 2 S'!F156<0.5),"-",IFERROR('Tabel 2 S'!F156/'Tabel 1 S'!E156*100,"-")) -> 6.129032258 | G156: =IF(OR('Tabel 1 S'!E156<5,'Tabel 2 S'!G156<0.5),"-",IFERROR('Tabel 2 S'!G156/'Tabel 1 S'!E156*100,"-")) -> 4.998963831 | I156: =IF(OR('Tabel 1 S'!G156<5,'Tabel 2 S'!I156<0.5),"-",IFERROR('Tabel 2 S'!I156/'Tabel 1 S'!G156*100,"-")) -> 4.795737123 | J156: =IF(OR('Tabel 1 S'!G156<5,'Tabel 2 S'!J156<0.5),"-",IFERROR('Tabel 2 S'!J156/'Tabel 1 S'!G156*100,"-")) -> 3.926293671
A161: ='Tabel 2 S'!A161 -> Roskilde
C163: Mænd | F163: Kvinder | I163: I alt
C164: Ledigheds- berørte | D164: Gns. brutto- ledighed | F164: Ledigheds- berørte | G164: Gns. brutto- ledighed | I164: Ledigheds- berørte | J164: Gns. brutto- ledighed
A167: Civ. ing. | C167: =IF(OR('Tabel 1 S'!C167<5,'Tabel 2 S'!C167<0.5),"-",IFERROR('Tabel 2 S'!C167/'Tabel 1 S'!C167*100,"-")) -> 1.008064516 | D167: =IF(OR('Tabel 1 S'!C167<5,'Tabel 2 S'!D167<0.5),"-",IFERROR('Tabel 2 S'!D167/'Tabel 1 S'!C167*100,"-")) -> 0.7221748289 | F167: =IF(OR('Tabel 1 S'!E167<5,'Tabel 2 S'!F167<0.5),"-",IFERROR('Tabel 2 S'!F167/'Tabel 1 S'!E167*100,"-")) -> 1.104972376 | G167: =IF(OR('Tabel 1 S'!E167<5,'Tabel 2 S'!G167<0.5),"-",IFERROR('Tabel 2 S'!G167/'Tabel 1 S'!E167*100,"-")) -> 1.053765834 | I167: =IF(OR('Tabel 1 S'!G167<5,'Tabel 2 S'!I167<0.5),"-",IFERROR('Tabel 2 S'!I167/'Tabel 1 S'!G167*100,"-")) -> 1.033973412 | J167: =IF(OR('Tabel 1 S'!G167<5,'Tabel 2 S'!J167<0.5),"-",IFERROR('Tabel 2 S'!J167/'Tabel 1 S'!G167*100,"-")) -> 0.8108276679
A168: Diplom ing. | C168: =IF(OR('Tabel 1 S'!C168<5,'Tabel 2 S'!C168<0.5),"-",IFERROR('Tabel 2 S'!C168/'Tabel 1 S'!C168*100,"-")) -> 1.6 | D168: =IF(OR('Tabel 1 S'!C168<5,'Tabel 2 S'!D168<0.5),"-",IFERROR('Tabel 2 S'!D168/'Tabel 1 S'!C168*100,"-")) -> 1.422665752 | F168: =IF(OR('Tabel 1 S'!E168<5,'Tabel 2 S'!F168<0.5),"-",IFERROR('Tabel 2 S'!F168/'Tabel 1 S'!E168*100,"-")) -> 2.547770701 | G168: =IF(OR('Tabel 1 S'!E168<5,'Tabel 2 S'!G168<0.5),"-",IFERROR('Tabel 2 S'!G168/'Tabel 1 S'!E168*100,"-")) -> 2.173463092 | I168: =IF(OR('Tabel 1 S'!G168<5,'Tabel 2 S'!I168<0.5),"-",IFERROR('Tabel 2 S'!I168/'Tabel 1 S'!G168*100,"-")) -> 1.79028133 | J168: =IF(OR('Tabel 1 S'!G168<5,'Tabel 2 S'!J168<0.5),"-",IFERROR('Tabel 2 S'!J168/'Tabel 1 S'!G168*100,"-")) -> 1.573401279
A169: Cand. Scient. Tek. | C169: =IF(OR('Tabel 1 S'!C169<5,'Tabel 2 S'!C169<0.5),"-",IFERROR('Tabel 2 S'!C169/'Tabel 1 S'!C169*100,"-")) -> 9.459459459 | D169: =IF(OR('Tabel 1 S'!C169<5,'Tabel 2 S'!D169<0.5),"-",IFERROR('Tabel 2 S'!D169/'Tabel 1 S'!C169*100,"-")) -> 8.746318826 | F169: =IF(OR('Tabel 1 S'!E169<5,'Tabel 2 S'!F169<0.5),"-",IFERROR('Tabel 2 S'!F169/'Tabel 1 S'!E169*100,"-")) -> 6.896551724 | G169: =IF(OR('Tabel 1 S'!E169<5,'Tabel 2 S'!G169<0.5),"-",IFERROR('Tabel 2 S'!G169/'Tabel 1 S'!E169*100,"-")) -> 5.954529129 | I169: =IF(OR('Tabel 1 S'!G169<5,'Tabel 2 S'!I169<0.5),"-",IFERROR('Tabel 2 S'!I169/'Tabel 1 S'!G169*100,"-")) -> 8.19112628 | J169: =IF(OR('Tabel 1 S'!G169<5,'Tabel 2 S'!J169<0.5),"-",IFERROR('Tabel 2 S'!J169/'Tabel 1 S'!G169*100,"-")) -> 7.364716416
A170: MA. Hum. | C170: =IF(OR('Tabel 1 S'!C170<5,'Tabel 2 S'!C170<0.5),"-",IFERROR('Tabel 2 S'!C170/'Tabel 1 S'!C170*100,"-")) -> 5.641025641 | D170: =IF(OR('Tabel 1 S'!C170<5,'Tabel 2 S'!D170<0.5),"-",IFERROR('Tabel 2 S'!D170/'Tabel 1 S'!C170*100,"-")) -> 5.639970126 | F170: =IF(OR('Tabel 1 S'!E170<5,'Tabel 2 S'!F170<0.5),"-",IFERROR('Tabel 2 S'!F170/'Tabel 1 S'!E170*100,"-")) -> 6.540084388 | G170: =IF(OR('Tabel 1 S'!E170<5,'Tabel 2 S'!G170<0.5),"-",IFERROR('Tabel 2 S'!G170/'Tabel 1 S'!E170*100,"-")) -> 5.488284843 | I170: =IF(OR('Tabel 1 S'!G170<5,'Tabel 2 S'!I170<0.5),"-",IFERROR('Tabel 2 S'!I170/'Tabel 1 S'!G170*100,"-")) -> 6.278026906 | J170: =IF(OR('Tabel 1 S'!G170<5,'Tabel 2 S'!J170<0.5),"-",IFERROR('Tabel 2 S'!J170/'Tabel 1 S'!G170*100,"-")) -> 5.532498042
A171: MA. Nat. | C171: =IF(OR('Tabel 1 S'!C171<5,'Tabel 2 S'!C171<0.5),"-",IFERROR('Tabel 2 S'!C171/'Tabel 1 S'!C171*100,"-")) -> 2.02020202 | D171: =IF(OR('Tabel 1 S'!C171<5,'Tabel 2 S'!D171<0.5),"-",IFERROR('Tabel 2 S'!D171/'Tabel 1 S'!C171*100,"-")) -> 1.786718933 | F171: =IF(OR('Tabel 1 S'!E171<5,'Tabel 2 S'!F171<0.5),"-",IFERROR('Tabel 2 S'!F171/'Tabel 1 S'!E171*100,"-")) -> 2.07253886 | G171: =IF(OR('Tabel 1 S'!E171<5,'Tabel 2 S'!G171<0.5),"-",IFERROR('Tabel 2 S'!G171/'Tabel 1 S'!E171*100,"-")) -> 2.072151059 | I171: =IF(OR('Tabel 1 S'!G171<5,'Tabel 2 S'!I171<0.5),"-",IFERROR('Tabel 2 S'!I171/'Tabel 1 S'!G171*100,"-")) -> 2.046035806 | J171: =IF(OR('Tabel 1 S'!G171<5,'Tabel 2 S'!J171<0.5),"-",IFERROR('Tabel 2 S'!J171/'Tabel 1 S'!G171*100,"-")) -> 1.927609982
A172: MA. Ph.d. | C172: =IF(OR('Tabel 1 S'!C172<5,'Tabel 2 S'!C172<0.5),"-",IFERROR('Tabel 2 S'!C172/'Tabel 1 S'!C172*100,"-")) -> 3.03030303 | D172: =IF(OR('Tabel 1 S'!C172<5,'Tabel 2 S'!D172<0.5),"-",IFERROR('Tabel 2 S'!D172/'Tabel 1 S'!C172*100,"-")) -> 2.33042078 | F172: =IF(OR('Tabel 1 S'!E172<5,'Tabel 2 S'!F172<0.5),"-",IFERROR('Tabel 2 S'!F172/'Tabel 1 S'!E172*100,"-")) -> 6.25 | G172: =IF(OR('Tabel 1 S'!E172<5,'Tabel 2 S'!G172<0.5),"-",IFERROR('Tabel 2 S'!G172/'Tabel 1 S'!E172*100,"-")) -> 6.248830537 | I172: =IF(OR('Tabel 1 S'!G172<5,'Tabel 2 S'!I172<0.5),"-",IFERROR('Tabel 2 S'!I172/'Tabel 1 S'!G172*100,"-")) -> 4.081632653 | J172: =IF(OR('Tabel 1 S'!G172<5,'Tabel 2 S'!J172<0.5),"-",IFERROR('Tabel 2 S'!J172/'Tabel 1 S'!G172*100,"-")) -> 3.609901517
A173: MA. Samf. | C173: =IF(OR('Tabel 1 S'!C173<5,'Tabel 2 S'!C173<0.5),"-",IFERROR('Tabel 2 S'!C173/'Tabel 1 S'!C173*100,"-")) -> 5.405405405 | D173: =IF(OR('Tabel 1 S'!C173<5,'Tabel 2 S'!D173<0.5),"-",IFERROR('Tabel 2 S'!D173/'Tabel 1 S'!C173*100,"-")) -> 5.404393978 | F173: =IF(OR('Tabel 1 S'!E173<5,'Tabel 2 S'!F173<0.5),"-",IFERROR('Tabel 2 S'!F173/'Tabel 1 S'!E173*100,"-")) -> 11.68831169 | G173: =IF(OR('Tabel 1 S'!E173<5,'Tabel 2 S'!G173<0.5),"-",IFERROR('Tabel 2 S'!G173/'Tabel 1 S'!E173*100,"-")) -> 10.60799115 | I173: =IF(OR('Tabel 1 S'!G173<5,'Tabel 2 S'!I173<0.5),"-",IFERROR('Tabel 2 S'!I173/'Tabel 1 S'!G173*100,"-")) -> 9.649122807 | J173: =IF(OR('Tabel 1 S'!G173<5,'Tabel 2 S'!J173<0.5),"-",IFERROR('Tabel 2 S'!J173/'Tabel 1 S'!G173*100,"-")) -> 8.919104347
A174: Øvrige Mag. | C174: =IF(OR('Tabel 1 S'!C174<5,'Tabel 2 S'!C174<0.5),"-",IFERROR('Tabel 2 S'!C174/'Tabel 1 S'!C174*100,"-")) -> 10.52631579 | D174: =IF(OR('Tabel 1 S'!C174<5,'Tabel 2 S'!D174<0.5),"-",IFERROR('Tabel 2 S'!D174/'Tabel 1 S'!C174*100,"-")) -> 8.016360992 | F174: =IF(OR('Tabel 1 S'!E174<5,'Tabel 2 S'!F174<0.5),"-",IFERROR('Tabel 2 S'!F174/'Tabel 1 S'!E174*100,"-")) -> - | G174: =IF(OR('Tabel 1 S'!E174<5,'Tabel 2 S'!G174<0.5),"-",IFERROR('Tabel 2 S'!G174/'Tabel 1 S'!E174*100,"-")) -> - | I174: =IF(OR('Tabel 1 S'!G174<5,'Tabel 2 S'!I174<0.5),"-",IFERROR('Tabel 2 S'!I174/'Tabel 1 S'!G174*100,"-")) -> 3.571428571 | J174: =IF(OR('Tabel 1 S'!G174<5,'Tabel 2 S'!J174<0.5),"-",IFERROR('Tabel 2 S'!J174/'Tabel 1 S'!G174*100,"-")) -> 2.719836765
A175: Agronom | C175: =IF(OR('Tabel 1 S'!C175<5,'Tabel 2 S'!C175<0.5),"-",IFERROR('Tabel 2 S'!C175/'Tabel 1 S'!C175*100,"-")) -> 5.405405405 | D175: =IF(OR('Tabel 1 S'!C175<5,'Tabel 2 S'!D175<0.5),"-",IFERROR('Tabel 2 S'!D175/'Tabel 1 S'!C175*100,"-")) -> 2.648254192 | F175: =IF(OR('Tabel 1 S'!E175<5,'Tabel 2 S'!F175<0.5),"-",IFERROR('Tabel 2 S'!F175/'Tabel 1 S'!E175*100,"-")) -> 4.87804878 | G175: =IF(OR('Tabel 1 S'!E175<5,'Tabel 2 S'!G175<0.5),"-",IFERROR('Tabel 2 S'!G175/'Tabel 1 S'!E175*100,"-")) -> 4.877136029 | I175: =IF(OR('Tabel 1 S'!G175<5,'Tabel 2 S'!I175<0.5),"-",IFERROR('Tabel 2 S'!I175/'Tabel 1 S'!G175*100,"-")) -> 5.128205128 | J175: =IF(OR('Tabel 1 S'!G175<5,'Tabel 2 S'!J175<0.5),"-",IFERROR('Tabel 2 S'!J175/'Tabel 1 S'!G175*100,"-")) -> 3.819845927
A176: Landsk. Arkt. | C176: =IF(OR('Tabel 1 S'!C176<5,'Tabel 2 S'!C176<0.5),"-",IFERROR('Tabel 2 S'!C176/'Tabel 1 S'!C176*100,"-")) -> - | D176: =IF(OR('Tabel 1 S'!C176<5,'Tabel 2 S'!D176<0.5),"-",IFERROR('Tabel 2 S'!D176/'Tabel 1 S'!C176*100,"-")) -> - | F176: =IF(OR('Tabel 1 S'!E176<5,'Tabel 2 S'!F176<0.5),"-",IFERROR('Tabel 2 S'!F176/'Tabel 1 S'!E176*100,"-")) -> - | G176: =IF(OR('Tabel 1 S'!E176<5,'Tabel 2 S'!G176<0.5),"-",IFERROR('Tabel 2 S'!G176/'Tabel 1 S'!E176*100,"-")) -> - | I176: =IF(OR('Tabel 1 S'!G176<5,'Tabel 2 S'!I176<0.5),"-",IFERROR('Tabel 2 S'!I176/'Tabel 1 S'!G176*100,"-")) -> - | J176: =IF(OR('Tabel 1 S'!G176<5,'Tabel 2 S'!J176<0.5),"-",IFERROR('Tabel 2 S'!J176/'Tabel 1 S'!G176*100,"-")) -> -
A177: Hortonom | C177: =IF(OR('Tabel 1 S'!C177<5,'Tabel 2 S'!C177<0.5),"-",IFERROR('Tabel 2 S'!C177/'Tabel 1 S'!C177*100,"-")) -> - | D177: =IF(OR('Tabel 1 S'!C177<5,'Tabel 2 S'!D177<0.5),"-",IFERROR('Tabel 2 S'!D177/'Tabel 1 S'!C177*100,"-")) -> - | F177: =IF(OR('Tabel 1 S'!E177<5,'Tabel 2 S'!F177<0.5),"-",IFERROR('Tabel 2 S'!F177/'Tabel 1 S'!E177*100,"-")) -> - | G177: =IF(OR('Tabel 1 S'!E177<5,'Tabel 2 S'!G177<0.5),"-",IFERROR('Tabel 2 S'!G177/'Tabel 1 S'!E177*100,"-")) -> - | I177: =IF(OR('Tabel 1 S'!G177<5,'Tabel 2 S'!I177<0.5),"-",IFERROR('Tabel 2 S'!I177/'Tabel 1 S'!G177*100,"-")) -> - | J177: =IF(OR('Tabel 1 S'!G177<5,'Tabel 2 S'!J177<0.5),"-",IFERROR('Tabel 2 S'!J177/'Tabel 1 S'!G177*100,"-")) -> -
A178: Forstkand. | C178: =IF(OR('Tabel 1 S'!C178<5,'Tabel 2 S'!C178<0.5),"-",IFERROR('Tabel 2 S'!C178/'Tabel 1 S'!C178*100,"-")) -> - | D178: =IF(OR('Tabel 1 S'!C178<5,'Tabel 2 S'!D178<0.5),"-",IFERROR('Tabel 2 S'!D178/'Tabel 1 S'!C178*100,"-")) -> - | F178: =IF(OR('Tabel 1 S'!E178<5,'Tabel 2 S'!F178<0.5),"-",IFERROR('Tabel 2 S'!F178/'Tabel 1 S'!E178*100,"-")) -> - | G178: =IF(OR('Tabel 1 S'!E178<5,'Tabel 2 S'!G178<0.5),"-",IFERROR('Tabel 2 S'!G178/'Tabel 1 S'!E178*100,"-")) -> - | I178: =IF(OR('Tabel 1 S'!G178<5,'Tabel 2 S'!I178<0.5),"-",IFERROR('Tabel 2 S'!I178/'Tabel 1 S'!G178*100,"-")) -> - | J178: =IF(OR('Tabel 1 S'!G178<5,'Tabel 2 S'!J178<0.5),"-",IFERROR('Tabel 2 S'!J178/'Tabel 1 S'!G178*100,"-")) -> -
A179: Jordbrugsakad. | C179: =IF(OR('Tabel 1 S'!C179<5,'Tabel 2 S'!C179<0.5),"-",IFERROR('Tabel 2 S'!C179/'Tabel 1 S'!C179*100,"-")) -> 3.846153846 | D179: =IF(OR('Tabel 1 S'!C179<5,'Tabel 2 S'!D179<0.5),"-",IFERROR('Tabel 2 S'!D179/'Tabel 1 S'!C179*100,"-")) -> 1.884334713 | F179: =IF(OR('Tabel 1 S'!E179<5,'Tabel 2 S'!F179<0.5),"-",IFERROR('Tabel 2 S'!F179/'Tabel 1 S'!E179*100,"-")) -> 2.941176471 | G179: =IF(OR('Tabel 1 S'!E179<5,'Tabel 2 S'!G179<0.5),"-",IFERROR('Tabel 2 S'!G179/'Tabel 1 S'!E179*100,"-")) -> 2.940626135 | I179: =IF(OR('Tabel 1 S'!G179<5,'Tabel 2 S'!I179<0.5),"-",IFERROR('Tabel 2 S'!I179/'Tabel 1 S'!G179*100,"-")) -> 3.333333333 | J179: =IF(OR('Tabel 1 S'!G179<5,'Tabel 2 S'!J179<0.5),"-",IFERROR('Tabel 2 S'!J179/'Tabel 1 S'!G179*100,"-")) -> 2.482899852
A180: Mejeriing. | C180: =IF(OR('Tabel 1 S'!C180<5,'Tabel 2 S'!C180<0.5),"-",IFERROR('Tabel 2 S'!C180/'Tabel 1 S'!C180*100,"-")) -> - | D180: =IF(OR('Tabel 1 S'!C180<5,'Tabel 2 S'!D180<0.5),"-",IFERROR('Tabel 2 S'!D180/'Tabel 1 S'!C180*100,"-")) -> - | F180: =IF(OR('Tabel 1 S'!E180<5,'Tabel 2 S'!F180<0.5),"-",IFERROR('Tabel 2 S'!F180/'Tabel 1 S'!E180*100,"-")) -> - | G180: =IF(OR('Tabel 1 S'!E180<5,'Tabel 2 S'!G180<0.5),"-",IFERROR('Tabel 2 S'!G180/'Tabel 1 S'!E180*100,"-")) -> - | I180: =IF(OR('Tabel 1 S'!G180<5,'Tabel 2 S'!I180<0.5),"-",IFERROR('Tabel 2 S'!I180/'Tabel 1 S'!G180*100,"-")) -> - | J180: =IF(OR('Tabel 1 S'!G180<5,'Tabel 2 S'!J180<0.5),"-",IFERROR('Tabel 2 S'!J180/'Tabel 1 S'!G180*100,"-")) -> -
A181: Levn.m.kand. | C181: =IF(OR('Tabel 1 S'!C181<5,'Tabel 2 S'!C181<0.5),"-",IFERROR('Tabel 2 S'!C181/'Tabel 1 S'!C181*100,"-")) -> - | D181: =IF(OR('Tabel 1 S'!C181<5,'Tabel 2 S'!D181<0.5),"-",IFERROR('Tabel 2 S'!D181/'Tabel 1 S'!C181*100,"-")) -> - | F181: =IF(OR('Tabel 1 S'!E181<5,'Tabel 2 S'!F181<0.5),"-",IFERROR('Tabel 2 S'!F181/'Tabel 1 S'!E181*100,"-")) -> - | G181: =IF(OR('Tabel 1 S'!E181<5,'Tabel 2 S'!G181<0.5),"-",IFERROR('Tabel 2 S'!G181/'Tabel 1 S'!E181*100,"-")) -> - | I181: =IF(OR('Tabel 1 S'!G181<5,'Tabel 2 S'!I181<0.5),"-",IFERROR('Tabel 2 S'!I181/'Tabel 1 S'!G181*100,"-")) -> - | J181: =IF(OR('Tabel 1 S'!G181<5,'Tabel 2 S'!J181<0.5),"-",IFERROR('Tabel 2 S'!J181/'Tabel 1 S'!G181*100,"-")) -> -
A182: Dyrlæge | C182: =IF(OR('Tabel 1 S'!C182<5,'Tabel 2 S'!C182<0.5),"-",IFERROR('Tabel 2 S'!C182/'Tabel 1 S'!C182*100,"-")) -> - | D182: =IF(OR('Tabel 1 S'!C182<5,'Tabel 2 S'!D182<0.5),"-",IFERROR('Tabel 2 S'!D182/'Tabel 1 S'!C182*100,"-")) -> - | F182: =IF(OR('Tabel 1 S'!E182<5,'Tabel 2 S'!F182<0.5),"-",IFERROR('Tabel 2 S'!F182/'Tabel 1 S'!E182*100,"-")) -> 7.142857143 | G182: =IF(OR('Tabel 1 S'!E182<5,'Tabel 2 S'!G182<0.5),"-",IFERROR('Tabel 2 S'!G182/'Tabel 1 S'!E182*100,"-")) -> 4.616965604 | I182: =IF(OR('Tabel 1 S'!G182<5,'Tabel 2 S'!I182<0.5),"-",IFERROR('Tabel 2 S'!I182/'Tabel 1 S'!G182*100,"-")) -> 5.084745763 | J182: =IF(OR('Tabel 1 S'!G182<5,'Tabel 2 S'!J182<0.5),"-",IFERROR('Tabel 2 S'!J182/'Tabel 1 S'!G182*100,"-")) -> 3.286653481
A183: Farmaceut | C183: =IF(OR('Tabel 1 S'!C183<5,'Tabel 2 S'!C183<0.5),"-",IFERROR('Tabel 2 S'!C183/'Tabel 1 S'!C183*100,"-")) -> 2.702702703 | D183: =IF(OR('Tabel 1 S'!C183<5,'Tabel 2 S'!D183<0.5),"-",IFERROR('Tabel 2 S'!D183/'Tabel 1 S'!C183*100,"-")) -> 2.702196989 | F183: =IF(OR('Tabel 1 S'!E183<5,'Tabel 2 S'!F183<0.5),"-",IFERROR('Tabel 2 S'!F183/'Tabel 1 S'!E183*100,"-")) -> 2.43902439 | G183: =IF(OR('Tabel 1 S'!E183<5,'Tabel 2 S'!G183<0.5),"-",IFERROR('Tabel 2 S'!G183/'Tabel 1 S'!E183*100,"-")) -> 2.288471085 | I183: =IF(OR('Tabel 1 S'!G183<5,'Tabel 2 S'!I183<0.5),"-",IFERROR('Tabel 2 S'!I183/'Tabel 1 S'!G183*100,"-")) -> 2.5 | J183: =IF(OR('Tabel 1 S'!G183<5,'Tabel 2 S'!J183<0.5),"-",IFERROR('Tabel 2 S'!J183/'Tabel 1 S'!G183*100,"-")) -> 2.384145201
A184: Læge | C184: =IF(OR('Tabel 1 S'!C184<5,'Tabel 2 S'!C184<0.5),"-",IFERROR('Tabel 2 S'!C184/'Tabel 1 S'!C184*100,"-")) -> 1.449275362 | D184: =IF(OR('Tabel 1 S'!C184<5,'Tabel 2 S'!D184<0.5),"-",IFERROR('Tabel 2 S'!D184/'Tabel 1 S'!C184*100,"-")) -> 1.449004182 | F184: =IF(OR('Tabel 1 S'!E184<5,'Tabel 2 S'!F184<0.5),"-",IFERROR('Tabel 2 S'!F184/'Tabel 1 S'!E184*100,"-")) -> 0.6896551724 | G184: =IF(OR('Tabel 1 S'!E184<5,'Tabel 2 S'!G184<0.5),"-",IFERROR('Tabel 2 S'!G184/'Tabel 1 S'!E184*100,"-")) -> 0.6258643272 | I184: =IF(OR('Tabel 1 S'!G184<5,'Tabel 2 S'!I184<0.5),"-",IFERROR('Tabel 2 S'!I184/'Tabel 1 S'!G184*100,"-")) -> 0.9345794393 | J184: =IF(OR('Tabel 1 S'!G184<5,'Tabel 2 S'!J184<0.5),"-",IFERROR('Tabel 2 S'!J184/'Tabel 1 S'!G184*100,"-")) -> 0.8912692338
A185: Tandlæge | C185: =IF(OR('Tabel 1 S'!C185<5,'Tabel 2 S'!C185<0.5),"-",IFERROR('Tabel 2 S'!C185/'Tabel 1 S'!C185*100,"-")) -> - | D185: =IF(OR('Tabel 1 S'!C185<5,'Tabel 2 S'!D185<0.5),"-",IFERROR('Tabel 2 S'!D185/'Tabel 1 S'!C185*100,"-")) -> - | F185: =IF(OR('Tabel 1 S'!E185<5,'Tabel 2 S'!F185<0.5),"-",IFERROR('Tabel 2 S'!F185/'Tabel 1 S'!E185*100,"-")) -> - | G185: =IF(OR('Tabel 1 S'!E185<5,'Tabel 2 S'!G185<0.5),"-",IFERROR('Tabel 2 S'!G185/'Tabel 1 S'!E185*100,"-")) -> - | I185: =IF(OR('Tabel 1 S'!G185<5,'Tabel 2 S'!I185<0.5),"-",IFERROR('Tabel 2 S'!I185/'Tabel 1 S'!G185*100,"-")) -> - | J185: =IF(OR('Tabel 1 S'!G185<5,'Tabel 2 S'!J185<0.5),"-",IFERROR('Tabel 2 S'!J185/'Tabel 1 S'!G185*100,"-")) -> -
A186: Arkitekt | C186: =IF(OR('Tabel 1 S'!C186<5,'Tabel 2 S'!C186<0.5),"-",IFERROR('Tabel 2 S'!C186/'Tabel 1 S'!C186*100,"-")) -> - | D186: =IF(OR('Tabel 1 S'!C186<5,'Tabel 2 S'!D186<0.5),"-",IFERROR('Tabel 2 S'!D186/'Tabel 1 S'!C186*100,"-")) -> - | F186: =IF(OR('Tabel 1 S'!E186<5,'Tabel 2 S'!F186<0.5),"-",IFERROR('Tabel 2 S'!F186/'Tabel 1 S'!E186*100,"-")) -> 2.857142857 | G186: =IF(OR('Tabel 1 S'!E186<5,'Tabel 2 S'!G186<0.5),"-",IFERROR('Tabel 2 S'!G186/'Tabel 1 S'!E186*100,"-")) -> 1.644821841 | I186: =IF(OR('Tabel 1 S'!G186<5,'Tabel 2 S'!I186<0.5),"-",IFERROR('Tabel 2 S'!I186/'Tabel 1 S'!G186*100,"-")) -> 1.666666667 | J186: =IF(OR('Tabel 1 S'!G186<5,'Tabel 2 S'!J186<0.5),"-",IFERROR('Tabel 2 S'!J186/'Tabel 1 S'!G186*100,"-")) -> 0.9594794071
A187: Landinspek. | C187: =IF(OR('Tabel 1 S'!C187<5,'Tabel 2 S'!C187<0.5),"-",IFERROR('Tabel 2 S'!C187/'Tabel 1 S'!C187*100,"-")) -> - | D187: =IF(OR('Tabel 1 S'!C187<5,'Tabel 2 S'!D187<0.5),"-",IFERROR('Tabel 2 S'!D187/'Tabel 1 S'!C187*100,"-")) -> - | F187: =IF(OR('Tabel 1 S'!E187<5,'Tabel 2 S'!F187<0.5),"-",IFERROR('Tabel 2 S'!F187/'Tabel 1 S'!E187*100,"-")) -> - | G187: =IF(OR('Tabel 1 S'!E187<5,'Tabel 2 S'!G187<0.5),"-",IFERROR('Tabel 2 S'!G187/'Tabel 1 S'!E187*100,"-")) -> - | I187: =IF(OR('Tabel 1 S'!G187<5,'Tabel 2 S'!I187<0.5),"-",IFERROR('Tabel 2 S'!I187/'Tabel 1 S'!G187*100,"-")) -> - | J187: =IF(OR('Tabel 1 S'!G187<5,'Tabel 2 S'!J187<0.5),"-",IFERROR('Tabel 2 S'!J187/'Tabel 1 S'!G187*100,"-")) -> -
A188: Bibliotekar | C188: =IF(OR('Tabel 1 S'!C188<5,'Tabel 2 S'!C188<0.5),"-",IFERROR('Tabel 2 S'!C188/'Tabel 1 S'!C188*100,"-")) -> - | D188: =IF(OR('Tabel 1 S'!C188<5,'Tabel 2 S'!D188<0.5),"-",IFERROR('Tabel 2 S'!D188/'Tabel 1 S'!C188*100,"-")) -> - | F188: =IF(OR('Tabel 1 S'!E188<5,'Tabel 2 S'!F188<0.5),"-",IFERROR('Tabel 2 S'!F188/'Tabel 1 S'!E188*100,"-")) -> 2.857142857 | G188: =IF(OR('Tabel 1 S'!E188<5,'Tabel 2 S'!G188<0.5),"-",IFERROR('Tabel 2 S'!G188/'Tabel 1 S'!E188*100,"-")) -> 2.586629363 | I188: =IF(OR('Tabel 1 S'!G188<5,'Tabel 2 S'!I188<0.5),"-",IFERROR('Tabel 2 S'!I188/'Tabel 1 S'!G188*100,"-")) -> 2.173913043 | J188: =IF(OR('Tabel 1 S'!G188<5,'Tabel 2 S'!J188<0.5),"-",IFERROR('Tabel 2 S'!J188/'Tabel 1 S'!G188*100,"-")) -> 1.968087559
A189: Musikudd. | C189: =IF(OR('Tabel 1 S'!C189<5,'Tabel 2 S'!C189<0.5),"-",IFERROR('Tabel 2 S'!C189/'Tabel 1 S'!C189*100,"-")) -> - | D189: =IF(OR('Tabel 1 S'!C189<5,'Tabel 2 S'!D189<0.5),"-",IFERROR('Tabel 2 S'!D189/'Tabel 1 S'!C189*100,"-")) -> - | F189: =IF(OR('Tabel 1 S'!E189<5,'Tabel 2 S'!F189<0.5),"-",IFERROR('Tabel 2 S'!F189/'Tabel 1 S'!E189*100,"-")) -> - | G189: =IF(OR('Tabel 1 S'!E189<5,'Tabel 2 S'!G189<0.5),"-",IFERROR('Tabel 2 S'!G189/'Tabel 1 S'!E189*100,"-")) -> - | I189: =IF(OR('Tabel 1 S'!G189<5,'Tabel 2 S'!I189<0.5),"-",IFERROR('Tabel 2 S'!I189/'Tabel 1 S'!G189*100,"-")) -> - | J189: =IF(OR('Tabel 1 S'!G189<5,'Tabel 2 S'!J189<0.5),"-",IFERROR('Tabel 2 S'!J189/'Tabel 1 S'!G189*100,"-")) -> -
A190: Teolog | C190: =IF(OR('Tabel 1 S'!C190<5,'Tabel 2 S'!C190<0.5),"-",IFERROR('Tabel 2 S'!C190/'Tabel 1 S'!C190*100,"-")) -> - | D190: =IF(OR('Tabel 1 S'!C190<5,'Tabel 2 S'!D190<0.5),"-",IFERROR('Tabel 2 S'!D190/'Tabel 1 S'!C190*100,"-")) -> - | F190: =IF(OR('Tabel 1 S'!E190<5,'Tabel 2 S'!F190<0.5),"-",IFERROR('Tabel 2 S'!F190/'Tabel 1 S'!E190*100,"-")) -> - | G190: =IF(OR('Tabel 1 S'!E190<5,'Tabel 2 S'!G190<0.5),"-",IFERROR('Tabel 2 S'!G190/'Tabel 1 S'!E190*100,"-")) -> - | I190: =IF(OR('Tabel 1 S'!G190<5,'Tabel 2 S'!I190<0.5),"-",IFERROR('Tabel 2 S'!I190/'Tabel 1 S'!G190*100,"-")) -> - | J190: =IF(OR('Tabel 1 S'!G190<5,'Tabel 2 S'!J190<0.5),"-",IFERROR('Tabel 2 S'!J190/'Tabel 1 S'!G190*100,"-")) -> -
A191: Psykolog | C191: =IF(OR('Tabel 1 S'!C191<5,'Tabel 2 S'!C191<0.5),"-",IFERROR('Tabel 2 S'!C191/'Tabel 1 S'!C191*100,"-")) -> - | D191: =IF(OR('Tabel 1 S'!C191<5,'Tabel 2 S'!D191<0.5),"-",IFERROR('Tabel 2 S'!D191/'Tabel 1 S'!C191*100,"-")) -> - | F191: =IF(OR('Tabel 1 S'!E191<5,'Tabel 2 S'!F191<0.5),"-",IFERROR('Tabel 2 S'!F191/'Tabel 1 S'!E191*100,"-")) -> 3.06122449 | G191: =IF(OR('Tabel 1 S'!E191<5,'Tabel 2 S'!G191<0.5),"-",IFERROR('Tabel 2 S'!G191/'Tabel 1 S'!E191*100,"-")) -> 2.641872566 | I191: =IF(OR('Tabel 1 S'!G191<5,'Tabel 2 S'!I191<0.5),"-",IFERROR('Tabel 2 S'!I191/'Tabel 1 S'!G191*100,"-")) -> 2.564102564 | J191: =IF(OR('Tabel 1 S'!G191<5,'Tabel 2 S'!J191<0.5),"-",IFERROR('Tabel 2 S'!J191/'Tabel 1 S'!G191*100,"-")) -> 2.212850526
A192: Jurist | C192: =IF(OR('Tabel 1 S'!C192<5,'Tabel 2 S'!C192<0.5),"-",IFERROR('Tabel 2 S'!C192/'Tabel 1 S'!C192*100,"-")) -> - | D192: =IF(OR('Tabel 1 S'!C192<5,'Tabel 2 S'!D192<0.5),"-",IFERROR('Tabel 2 S'!D192/'Tabel 1 S'!C192*100,"-")) -> - | F192: =IF(OR('Tabel 1 S'!E192<5,'Tabel 2 S'!F192<0.5),"-",IFERROR('Tabel 2 S'!F192/'Tabel 1 S'!E192*100,"-")) -> 1.807228916 | G192: =IF(OR('Tabel 1 S'!E192<5,'Tabel 2 S'!G192<0.5),"-",IFERROR('Tabel 2 S'!G192/'Tabel 1 S'!E192*100,"-")) -> 1.38982926 | I192: =IF(OR('Tabel 1 S'!G192<5,'Tabel 2 S'!I192<0.5),"-",IFERROR('Tabel 2 S'!I192/'Tabel 1 S'!G192*100,"-")) -> 1.276595745 | J192: =IF(OR('Tabel 1 S'!G192<5,'Tabel 2 S'!J192<0.5),"-",IFERROR('Tabel 2 S'!J192/'Tabel 1 S'!G192*100,"-")) -> 0.9817517328
A193: Økonom | C193: =IF(OR('Tabel 1 S'!C193<5,'Tabel 2 S'!C193<0.5),"-",IFERROR('Tabel 2 S'!C193/'Tabel 1 S'!C193*100,"-")) -> 1.01010101 | D193: =IF(OR('Tabel 1 S'!C193<5,'Tabel 2 S'!D193<0.5),"-",IFERROR('Tabel 2 S'!D193/'Tabel 1 S'!C193*100,"-")) -> 1.009912006 | F193: =IF(OR('Tabel 1 S'!E193<5,'Tabel 2 S'!F193<0.5),"-",IFERROR('Tabel 2 S'!F193/'Tabel 1 S'!E193*100,"-")) -> 3.03030303 | G193: =IF(OR('Tabel 1 S'!E193<5,'Tabel 2 S'!G193<0.5),"-",IFERROR('Tabel 2 S'!G193/'Tabel 1 S'!E193*100,"-")) -> 2.940904082 | I193: =IF(OR('Tabel 1 S'!G193<5,'Tabel 2 S'!I193<0.5),"-",IFERROR('Tabel 2 S'!I193/'Tabel 1 S'!G193*100,"-")) -> 1.818181818 | J193: =IF(OR('Tabel 1 S'!G193<5,'Tabel 2 S'!J193<0.5),"-",IFERROR('Tabel 2 S'!J193/'Tabel 1 S'!G193*100,"-")) -> 1.782308837
A194: Samf. Adm. | C194: =IF(OR('Tabel 1 S'!C194<5,'Tabel 2 S'!C194<0.5),"-",IFERROR('Tabel 2 S'!C194/'Tabel 1 S'!C194*100,"-")) -> 3.202846975 | D194: =IF(OR('Tabel 1 S'!C194<5,'Tabel 2 S'!D194<0.5),"-",IFERROR('Tabel 2 S'!D194/'Tabel 1 S'!C194*100,"-")) -> 2.979397697 | F194: =IF(OR('Tabel 1 S'!E194<5,'Tabel 2 S'!F194<0.5),"-",IFERROR('Tabel 2 S'!F194/'Tabel 1 S'!E194*100,"-")) -> 4.273504274 | G194: =IF(OR('Tabel 1 S'!E194<5,'Tabel 2 S'!G194<0.5),"-",IFERROR('Tabel 2 S'!G194/'Tabel 1 S'!E194*100,"-")) -> 3.895811044 | I194: =IF(OR('Tabel 1 S'!G194<5,'Tabel 2 S'!I194<0.5),"-",IFERROR('Tabel 2 S'!I194/'Tabel 1 S'!G194*100,"-")) -> 3.797468354 | J194: =IF(OR('Tabel 1 S'!G194<5,'Tabel 2 S'!J194<0.5),"-",IFERROR('Tabel 2 S'!J194/'Tabel 1 S'!G194*100,"-")) -> 3.488355109
A195: Cand. Merc. | C195: =IF(OR('Tabel 1 S'!C195<5,'Tabel 2 S'!C195<0.5),"-",IFERROR('Tabel 2 S'!C195/'Tabel 1 S'!C195*100,"-")) -> 3.968253968 | D195: =IF(OR('Tabel 1 S'!C195<5,'Tabel 2 S'!D195<0.5),"-",IFERROR('Tabel 2 S'!D195/'Tabel 1 S'!C195*100,"-")) -> 3.620261385 | F195: =IF(OR('Tabel 1 S'!E195<5,'Tabel 2 S'!F195<0.5),"-",IFERROR('Tabel 2 S'!F195/'Tabel 1 S'!E195*100,"-")) -> 3.745318352 | G195: =IF(OR('Tabel 1 S'!E195<5,'Tabel 2 S'!G195<0.5),"-",IFERROR('Tabel 2 S'!G195/'Tabel 1 S'!E195*100,"-")) -> 3.28956359 | I195: =IF(OR('Tabel 1 S'!G195<5,'Tabel 2 S'!I195<0.5),"-",IFERROR('Tabel 2 S'!I195/'Tabel 1 S'!G195*100,"-")) -> 3.853564547 | J195: =IF(OR('Tabel 1 S'!G195<5,'Tabel 2 S'!J195<0.5),"-",IFERROR('Tabel 2 S'!J195/'Tabel 1 S'!G195*100,"-")) -> 3.450133618
A196: HA | C196: =IF(OR('Tabel 1 S'!C196<5,'Tabel 2 S'!C196<0.5),"-",IFERROR('Tabel 2 S'!C196/'Tabel 1 S'!C196*100,"-")) -> 3.921568627 | D196: =IF(OR('Tabel 1 S'!C196<5,'Tabel 2 S'!D196<0.5),"-",IFERROR('Tabel 2 S'!D196/'Tabel 1 S'!C196*100,"-")) -> 3.920834847 | F196: =IF(OR('Tabel 1 S'!E196<5,'Tabel 2 S'!F196<0.5),"-",IFERROR('Tabel 2 S'!F196/'Tabel 1 S'!E196*100,"-")) -> 1.886792453 | G196: =IF(OR('Tabel 1 S'!E196<5,'Tabel 2 S'!G196<0.5),"-",IFERROR('Tabel 2 S'!G196/'Tabel 1 S'!E196*100,"-")) -> 1.886439407 | I196: =IF(OR('Tabel 1 S'!G196<5,'Tabel 2 S'!I196<0.5),"-",IFERROR('Tabel 2 S'!I196/'Tabel 1 S'!G196*100,"-")) -> 2.884615385 | J196: =IF(OR('Tabel 1 S'!G196<5,'Tabel 2 S'!J196<0.5),"-",IFERROR('Tabel 2 S'!J196/'Tabel 1 S'!G196*100,"-")) -> 2.884075632
A197: HD | C197: =IF(OR('Tabel 1 S'!C197<5,'Tabel 2 S'!C197<0.5),"-",IFERROR('Tabel 2 S'!C197/'Tabel 1 S'!C197*100,"-")) -> 5.769230769 | D197: =IF(OR('Tabel 1 S'!C197<5,'Tabel 2 S'!D197<0.5),"-",IFERROR('Tabel 2 S'!D197/'Tabel 1 S'!C197*100,"-")) -> 5.458693368 | F197: =IF(OR('Tabel 1 S'!E197<5,'Tabel 2 S'!F197<0.5),"-",IFERROR('Tabel 2 S'!F197/'Tabel 1 S'!E197*100,"-")) -> 6.666666667 | G197: =IF(OR('Tabel 1 S'!E197<5,'Tabel 2 S'!G197<0.5),"-",IFERROR('Tabel 2 S'!G197/'Tabel 1 S'!E197*100,"-")) -> 5.717374582 | I197: =IF(OR('Tabel 1 S'!G197<5,'Tabel 2 S'!I197<0.5),"-",IFERROR('Tabel 2 S'!I197/'Tabel 1 S'!G197*100,"-")) -> 6.18556701 | J197: =IF(OR('Tabel 1 S'!G197<5,'Tabel 2 S'!J197<0.5),"-",IFERROR('Tabel 2 S'!J197/'Tabel 1 S'!G197*100,"-")) -> 5.578700117
A198: Komm. og Sprog | C198: =IF(OR('Tabel 1 S'!C198<5,'Tabel 2 S'!C198<0.5),"-",IFERROR('Tabel 2 S'!C198/'Tabel 1 S'!C198*100,"-")) -> - | D198: =IF(OR('Tabel 1 S'!C198<5,'Tabel 2 S'!D198<0.5),"-",IFERROR('Tabel 2 S'!D198/'Tabel 1 S'!C198*100,"-")) -> - | F198: =IF(OR('Tabel 1 S'!E198<5,'Tabel 2 S'!F198<0.5),"-",IFERROR('Tabel 2 S'!F198/'Tabel 1 S'!E198*100,"-")) -> 7.843137255 | G198: =IF(OR('Tabel 1 S'!E198<5,'Tabel 2 S'!G198<0.5),"-",IFERROR('Tabel 2 S'!G198/'Tabel 1 S'!E198*100,"-")) -> 7.567724901 | I198: =IF(OR('Tabel 1 S'!G198<5,'Tabel 2 S'!I198<0.5),"-",IFERROR('Tabel 2 S'!I198/'Tabel 1 S'!G198*100,"-")) -> 7.079646018 | J198: =IF(OR('Tabel 1 S'!G198<5,'Tabel 2 S'!J198<0.5),"-",IFERROR('Tabel 2 S'!J198/'Tabel 1 S'!G198*100,"-")) -> 6.831043716
A199: Cand. IT. | C199: =IF(OR('Tabel 1 S'!C199<5,'Tabel 2 S'!C199<0.5),"-",IFERROR('Tabel 2 S'!C199/'Tabel 1 S'!C199*100,"-")) -> 3.846153846 | D199: =IF(OR('Tabel 1 S'!C199<5,'Tabel 2 S'!D199<0.5),"-",IFERROR('Tabel 2 S'!D199/'Tabel 1 S'!C199*100,"-")) -> 3.845434177 | F199: =IF(OR('Tabel 1 S'!E199<5,'Tabel 2 S'!F199<0.5),"-",IFERROR('Tabel 2 S'!F199/'Tabel 1 S'!E199*100,"-")) -> 4.166666667 | G199: =IF(OR('Tabel 1 S'!E199<5,'Tabel 2 S'!G199<0.5),"-",IFERROR('Tabel 2 S'!G199/'Tabel 1 S'!E199*100,"-")) -> 4.165887025 | I199: =IF(OR('Tabel 1 S'!G199<5,'Tabel 2 S'!I199<0.5),"-",IFERROR('Tabel 2 S'!I199/'Tabel 1 S'!G199*100,"-")) -> 4 | J199: =IF(OR('Tabel 1 S'!G199<5,'Tabel 2 S'!J199<0.5),"-",IFERROR('Tabel 2 S'!J199/'Tabel 1 S'!G199*100,"-")) -> 3.999251544
A200: Bac. Samf. | C200: =IF(OR('Tabel 1 S'!C200<5,'Tabel 2 S'!C200<0.5),"-",IFERROR('Tabel 2 S'!C200/'Tabel 1 S'!C200*100,"-")) -> - | D200: =IF(OR('Tabel 1 S'!C200<5,'Tabel 2 S'!D200<0.5),"-",IFERROR('Tabel 2 S'!D200/'Tabel 1 S'!C200*100,"-")) -> - | F200: =IF(OR('Tabel 1 S'!E200<5,'Tabel 2 S'!F200<0.5),"-",IFERROR('Tabel 2 S'!F200/'Tabel 1 S'!E200*100,"-")) -> - | G200: =IF(OR('Tabel 1 S'!E200<5,'Tabel 2 S'!G200<0.5),"-",IFERROR('Tabel 2 S'!G200/'Tabel 1 S'!E200*100,"-")) -> - | I200: =IF(OR('Tabel 1 S'!G200<5,'Tabel 2 S'!I200<0.5),"-",IFERROR('Tabel 2 S'!I200/'Tabel 1 S'!G200*100,"-")) -> - | J200: =IF(OR('Tabel 1 S'!G200<5,'Tabel 2 S'!J200<0.5),"-",IFERROR('Tabel 2 S'!J200/'Tabel 1 S'!G200*100,"-")) -> -
A201: Bac. Hum. | C201: =IF(OR('Tabel 1 S'!C201<5,'Tabel 2 S'!C201<0.5),"-",IFERROR('Tabel 2 S'!C201/'Tabel 1 S'!C201*100,"-")) -> 7.692307692 | D201: =IF(OR('Tabel 1 S'!C201<5,'Tabel 2 S'!D201<0.5),"-",IFERROR('Tabel 2 S'!D201/'Tabel 1 S'!C201*100,"-")) -> 5.901290128 | F201: =IF(OR('Tabel 1 S'!E201<5,'Tabel 2 S'!F201<0.5),"-",IFERROR('Tabel 2 S'!F201/'Tabel 1 S'!E201*100,"-")) -> 25.80645161 | G201: =IF(OR('Tabel 1 S'!E201<5,'Tabel 2 S'!G201<0.5),"-",IFERROR('Tabel 2 S'!G201/'Tabel 1 S'!E201*100,"-")) -> 23.41943934 | I201: =IF(OR('Tabel 1 S'!G201<5,'Tabel 2 S'!I201<0.5),"-",IFERROR('Tabel 2 S'!I201/'Tabel 1 S'!G201*100,"-")) -> 17.54385965 | J201: =IF(OR('Tabel 1 S'!G201<5,'Tabel 2 S'!J201<0.5),"-",IFERROR('Tabel 2 S'!J201/'Tabel 1 S'!G201*100,"-")) -> 15.42870461
A202: Bac. Nat. | C202: =IF(OR('Tabel 1 S'!C202<5,'Tabel 2 S'!C202<0.5),"-",IFERROR('Tabel 2 S'!C202/'Tabel 1 S'!C202*100,"-")) -> 5.555555556 | D202: =IF(OR('Tabel 1 S'!C202<5,'Tabel 2 S'!D202<0.5),"-",IFERROR('Tabel 2 S'!D202/'Tabel 1 S'!C202*100,"-")) -> - | F202: =IF(OR('Tabel 1 S'!E202<5,'Tabel 2 S'!F202<0.5),"-",IFERROR('Tabel 2 S'!F202/'Tabel 1 S'!E202*100,"-")) -> 11.11111111 | G202: =IF(OR('Tabel 1 S'!E202<5,'Tabel 2 S'!G202<0.5),"-",IFERROR('Tabel 2 S'!G202/'Tabel 1 S'!E202*100,"-")) -> 11.10903207 | I202: =IF(OR('Tabel 1 S'!G202<5,'Tabel 2 S'!I202<0.5),"-",IFERROR('Tabel 2 S'!I202/'Tabel 1 S'!G202*100,"-")) -> 7.407407407 | J202: =IF(OR('Tabel 1 S'!G202<5,'Tabel 2 S'!J202<0.5),"-",IFERROR('Tabel 2 S'!J202/'Tabel 1 S'!G202*100,"-")) -> 5.012809229
A203: Andre | C203: =IF(OR('Tabel 1 S'!C203<5,'Tabel 2 S'!C203<0.5),"-",IFERROR('Tabel 2 S'!C203/'Tabel 1 S'!C203*100,"-")) -> 6.622516556 | D203: =IF(OR('Tabel 1 S'!C203<5,'Tabel 2 S'!D203<0.5),"-",IFERROR('Tabel 2 S'!D203/'Tabel 1 S'!C203*100,"-")) -> 6.232179243 | F203: =IF(OR('Tabel 1 S'!E203<5,'Tabel 2 S'!F203<0.5),"-",IFERROR('Tabel 2 S'!F203/'Tabel 1 S'!E203*100,"-")) -> 7.73480663 | G203: =IF(OR('Tabel 1 S'!E203<5,'Tabel 2 S'!G203<0.5),"-",IFERROR('Tabel 2 S'!G203/'Tabel 1 S'!E203*100,"-")) -> 6.964916627 | I203: =IF(OR('Tabel 1 S'!G203<5,'Tabel 2 S'!I203<0.5),"-",IFERROR('Tabel 2 S'!I203/'Tabel 1 S'!G203*100,"-")) -> 7.228915663 | J203: =IF(OR('Tabel 1 S'!G203<5,'Tabel 2 S'!J203<0.5),"-",IFERROR('Tabel 2 S'!J203/'Tabel 1 S'!G203*100,"-")) -> 6.63165354
A205: Total | C205: =IF(OR('Tabel 1 S'!C205<5,'Tabel 2 S'!C205<0.5),"-",IFERROR('Tabel 2 S'!C205/'Tabel 1 S'!C205*100,"-")) -> 2.983138781 | D205: =IF(OR('Tabel 1 S'!C205<5,'Tabel 2 S'!D205<0.5),"-",IFERROR('Tabel 2 S'!D205/'Tabel 1 S'!C205*100,"-")) -> 2.686660449 | F205: =IF(OR('Tabel 1 S'!E205<5,'Tabel 2 S'!F205<0.5),"-",IFERROR('Tabel 2 S'!F205/'Tabel 1 S'!E205*100,"-")) -> 4.378661733 | G205: =IF(OR('Tabel 1 S'!E205<5,'Tabel 2 S'!G205<0.5),"-",IFERROR('Tabel 2 S'!G205/'Tabel 1 S'!E205*100,"-")) -> 3.874044166 | I205: =IF(OR('Tabel 1 S'!G205<5,'Tabel 2 S'!I205<0.5),"-",IFERROR('Tabel 2 S'!I205/'Tabel 1 S'!G205*100,"-")) -> 3.698435277 | J205: =IF(OR('Tabel 1 S'!G205<5,'Tabel 2 S'!J205<0.5),"-",IFERROR('Tabel 2 S'!J205/'Tabel 1 S'!G205*100,"-")) -> 3.295272017
A207: Ingeniører i alt | C207: =IF(OR('Tabel 1 S'!C207<5,'Tabel 2 S'!C207<0.5),"-",IFERROR('Tabel 2 S'!C207/'Tabel 1 S'!C207*100,"-")) -> 1.33809099 | D207: =IF(OR('Tabel 1 S'!C207<5,'Tabel 2 S'!D207<0.5),"-",IFERROR('Tabel 2 S'!D207/'Tabel 1 S'!C207*100,"-")) -> 1.112725076 | F207: =IF(OR('Tabel 1 S'!E207<5,'Tabel 2 S'!F207<0.5),"-",IFERROR('Tabel 2 S'!F207/'Tabel 1 S'!E207*100,"-")) -> 1.775147929 | G207: =IF(OR('Tabel 1 S'!E207<5,'Tabel 2 S'!G207<0.5),"-",IFERROR('Tabel 2 S'!G207/'Tabel 1 S'!E207*100,"-")) -> 1.573861898 | I207: =IF(OR('Tabel 1 S'!G207<5,'Tabel 2 S'!I207<0.5),"-",IFERROR('Tabel 2 S'!I207/'Tabel 1 S'!G207*100,"-")) -> 1.439342015 | J207: =IF(OR('Tabel 1 S'!G207<5,'Tabel 2 S'!J207<0.5),"-",IFERROR('Tabel 2 S'!J207/'Tabel 1 S'!G207*100,"-")) -> 1.21955458
A208: Magistre i alt | C208: =IF(OR('Tabel 1 S'!C208<5,'Tabel 2 S'!C208<0.5),"-",IFERROR('Tabel 2 S'!C208/'Tabel 1 S'!C208*100,"-")) -> 4.149377593 | D208: =IF(OR('Tabel 1 S'!C208<5,'Tabel 2 S'!D208<0.5),"-",IFERROR('Tabel 2 S'!D208/'Tabel 1 S'!C208*100,"-")) -> 3.906103413 | F208: =IF(OR('Tabel 1 S'!E208<5,'Tabel 2 S'!F208<0.5),"-",IFERROR('Tabel 2 S'!F208/'Tabel 1 S'!E208*100,"-")) -> 5.646173149 | G208: =IF(OR('Tabel 1 S'!E208<5,'Tabel 2 S'!G208<0.5),"-",IFERROR('Tabel 2 S'!G208/'Tabel 1 S'!E208*100,"-")) -> 4.916146521 | I208: =IF(OR('Tabel 1 S'!G208<5,'Tabel 2 S'!I208<0.5),"-",IFERROR('Tabel 2 S'!I208/'Tabel 1 S'!G208*100,"-")) -> 5.082095387 | J208: =IF(OR('Tabel 1 S'!G208<5,'Tabel 2 S'!J208<0.5),"-",IFERROR('Tabel 2 S'!J208/'Tabel 1 S'!G208*100,"-")) -> 4.535504786
A209: DJØF'ere i alt | C209: =IF(OR('Tabel 1 S'!C209<5,'Tabel 2 S'!C209<0.5),"-",IFERROR('Tabel 2 S'!C209/'Tabel 1 S'!C209*100,"-")) -> 2.925531915 | D209: =IF(OR('Tabel 1 S'!C209<5,'Tabel 2 S'!D209<0.5),"-",IFERROR('Tabel 2 S'!D209/'Tabel 1 S'!C209*100,"-")) -> 2.725346393 | F209: =IF(OR('Tabel 1 S'!E209<5,'Tabel 2 S'!F209<0.5),"-",IFERROR('Tabel 2 S'!F209/'Tabel 1 S'!E209*100,"-")) -> 3.433001107 | G209: =IF(OR('Tabel 1 S'!E209<5,'Tabel 2 S'!G209<0.5),"-",IFERROR('Tabel 2 S'!G209/'Tabel 1 S'!E209*100,"-")) -> 3.068145925 | I209: =IF(OR('Tabel 1 S'!G209<5,'Tabel 2 S'!I209<0.5),"-",IFERROR('Tabel 2 S'!I209/'Tabel 1 S'!G209*100,"-")) -> 3.202416918 | J209: =IF(OR('Tabel 1 S'!G209<5,'Tabel 2 S'!J209<0.5),"-",IFERROR('Tabel 2 S'!J209/'Tabel 1 S'!G209*100,"-")) -> 2.912384446
A214: ='Tabel 2 S'!A214 -> Solrød
C216: Mænd | F216: Kvinder | I216: I alt
C217: Ledigheds- berørte | D217: Gns. brutto- ledighed | F217: Ledigheds- berørte | G217: Gns. brutto- ledighed | I217: Ledigheds- berørte | J217: Gns. brutto- ledighed
A220: Civ. ing. | C220: =IF(OR('Tabel 1 S'!C220<5,'Tabel 2 S'!C220<0.5),"-",IFERROR('Tabel 2 S'!C220/'Tabel 1 S'!C220*100,"-")) -> 1.111111111 | D220: =IF(OR('Tabel 1 S'!C220<5,'Tabel 2 S'!D220<0.5),"-",IFERROR('Tabel 2 S'!D220/'Tabel 1 S'!C220*100,"-")) -> 1.059620089 | F220: =IF(OR('Tabel 1 S'!E220<5,'Tabel 2 S'!F220<0.5),"-",IFERROR('Tabel 2 S'!F220/'Tabel 1 S'!E220*100,"-")) -> - | G220: =IF(OR('Tabel 1 S'!E220<5,'Tabel 2 S'!G220<0.5),"-",IFERROR('Tabel 2 S'!G220/'Tabel 1 S'!E220*100,"-")) -> - | I220: =IF(OR('Tabel 1 S'!G220<5,'Tabel 2 S'!I220<0.5),"-",IFERROR('Tabel 2 S'!I220/'Tabel 1 S'!G220*100,"-")) -> 0.8130081301 | J220: =IF(OR('Tabel 1 S'!G220<5,'Tabel 2 S'!J220<0.5),"-",IFERROR('Tabel 2 S'!J220/'Tabel 1 S'!G220*100,"-")) -> 0.7753317725
A221: Diplom ing. | C221: =IF(OR('Tabel 1 S'!C221<5,'Tabel 2 S'!C221<0.5),"-",IFERROR('Tabel 2 S'!C221/'Tabel 1 S'!C221*100,"-")) -> - | D221: =IF(OR('Tabel 1 S'!C221<5,'Tabel 2 S'!D221<0.5),"-",IFERROR('Tabel 2 S'!D221/'Tabel 1 S'!C221*100,"-")) -> - | F221: =IF(OR('Tabel 1 S'!E221<5,'Tabel 2 S'!F221<0.5),"-",IFERROR('Tabel 2 S'!F221/'Tabel 1 S'!E221*100,"-")) -> 6.666666667 | G221: =IF(OR('Tabel 1 S'!E221<5,'Tabel 2 S'!G221<0.5),"-",IFERROR('Tabel 2 S'!G221/'Tabel 1 S'!E221*100,"-")) -> 6.357720535 | I221: =IF(OR('Tabel 1 S'!G221<5,'Tabel 2 S'!I221<0.5),"-",IFERROR('Tabel 2 S'!I221/'Tabel 1 S'!G221*100,"-")) -> 1.117318436 | J221: =IF(OR('Tabel 1 S'!G221<5,'Tabel 2 S'!J221<0.5),"-",IFERROR('Tabel 2 S'!J221/'Tabel 1 S'!G221*100,"-")) -> 1.065539754
A222: Cand. Scient. Tek. | C222: =IF(OR('Tabel 1 S'!C222<5,'Tabel 2 S'!C222<0.5),"-",IFERROR('Tabel 2 S'!C222/'Tabel 1 S'!C222*100,"-")) -> 21.42857143 | D222: =IF(OR('Tabel 1 S'!C222<5,'Tabel 2 S'!D222<0.5),"-",IFERROR('Tabel 2 S'!D222/'Tabel 1 S'!C222*100,"-")) -> 21.42456184 | F222: =IF(OR('Tabel 1 S'!E222<5,'Tabel 2 S'!F222<0.5),"-",IFERROR('Tabel 2 S'!F222/'Tabel 1 S'!E222*100,"-")) -> - | G222: =IF(OR('Tabel 1 S'!E222<5,'Tabel 2 S'!G222<0.5),"-",IFERROR('Tabel 2 S'!G222/'Tabel 1 S'!E222*100,"-")) -> - | I222: =IF(OR('Tabel 1 S'!G222<5,'Tabel 2 S'!I222<0.5),"-",IFERROR('Tabel 2 S'!I222/'Tabel 1 S'!G222*100,"-")) -> 8.333333333 | J222: =IF(OR('Tabel 1 S'!G222<5,'Tabel 2 S'!J222<0.5),"-",IFERROR('Tabel 2 S'!J222/'Tabel 1 S'!G222*100,"-")) -> 8.331774049
A223: MA. Hum. | C223: =IF(OR('Tabel 1 S'!C223<5,'Tabel 2 S'!C223<0.5),"-",IFERROR('Tabel 2 S'!C223/'Tabel 1 S'!C223*100,"-")) -> 10.52631579 | D223: =IF(OR('Tabel 1 S'!C223<5,'Tabel 2 S'!D223<0.5),"-",IFERROR('Tabel 2 S'!D223/'Tabel 1 S'!C223*100,"-")) -> 9.437771439 | F223: =IF(OR('Tabel 1 S'!E223<5,'Tabel 2 S'!F223<0.5),"-",IFERROR('Tabel 2 S'!F223/'Tabel 1 S'!E223*100,"-")) -> 3.389830508 | G223: =IF(OR('Tabel 1 S'!E223<5,'Tabel 2 S'!G223<0.5),"-",IFERROR('Tabel 2 S'!G223/'Tabel 1 S'!E223*100,"-")) -> 2.94625386 | I223: =IF(OR('Tabel 1 S'!G223<5,'Tabel 2 S'!I223<0.5),"-",IFERROR('Tabel 2 S'!I223/'Tabel 1 S'!G223*100,"-")) -> 5.128205128 | J223: =IF(OR('Tabel 1 S'!G223<5,'Tabel 2 S'!J223<0.5),"-",IFERROR('Tabel 2 S'!J223/'Tabel 1 S'!G223*100,"-")) -> 4.527520962
A224: MA. Nat. | C224: =IF(OR('Tabel 1 S'!C224<5,'Tabel 2 S'!C224<0.5),"-",IFERROR('Tabel 2 S'!C224/'Tabel 1 S'!C224*100,"-")) -> - | D224: =IF(OR('Tabel 1 S'!C224<5,'Tabel 2 S'!D224<0.5),"-",IFERROR('Tabel 2 S'!D224/'Tabel 1 S'!C224*100,"-")) -> - | F224: =IF(OR('Tabel 1 S'!E224<5,'Tabel 2 S'!F224<0.5),"-",IFERROR('Tabel 2 S'!F224/'Tabel 1 S'!E224*100,"-")) -> - | G224: =IF(OR('Tabel 1 S'!E224<5,'Tabel 2 S'!G224<0.5),"-",IFERROR('Tabel 2 S'!G224/'Tabel 1 S'!E224*100,"-")) -> - | I224: =IF(OR('Tabel 1 S'!G224<5,'Tabel 2 S'!I224<0.5),"-",IFERROR('Tabel 2 S'!I224/'Tabel 1 S'!G224*100,"-")) -> - | J224: =IF(OR('Tabel 1 S'!G224<5,'Tabel 2 S'!J224<0.5),"-",IFERROR('Tabel 2 S'!J224/'Tabel 1 S'!G224*100,"-")) -> -
A225: MA. Ph.d. | C225: =IF(OR('Tabel 1 S'!C225<5,'Tabel 2 S'!C225<0.5),"-",IFERROR('Tabel 2 S'!C225/'Tabel 1 S'!C225*100,"-")) -> - | D225: =IF(OR('Tabel 1 S'!C225<5,'Tabel 2 S'!D225<0.5),"-",IFERROR('Tabel 2 S'!D225/'Tabel 1 S'!C225*100,"-")) -> - | F225: =IF(OR('Tabel 1 S'!E225<5,'Tabel 2 S'!F225<0.5),"-",IFERROR('Tabel 2 S'!F225/'Tabel 1 S'!E225*100,"-")) -> - | G225: =IF(OR('Tabel 1 S'!E225<5,'Tabel 2 S'!G225<0.5),"-",IFERROR('Tabel 2 S'!G225/'Tabel 1 S'!E225*100,"-")) -> - | I225: =IF(OR('Tabel 1 S'!G225<5,'Tabel 2 S'!I225<0.5),"-",IFERROR('Tabel 2 S'!I225/'Tabel 1 S'!G225*100,"-")) -> - | J225: =IF(OR('Tabel 1 S'!G225<5,'Tabel 2 S'!J225<0.5),"-",IFERROR('Tabel 2 S'!J225/'Tabel 1 S'!G225*100,"-")) -> -
A226: MA. Samf. | C226: =IF(OR('Tabel 1 S'!C226<5,'Tabel 2 S'!C226<0.5),"-",IFERROR('Tabel 2 S'!C226/'Tabel 1 S'!C226*100,"-")) -> - | D226: =IF(OR('Tabel 1 S'!C226<5,'Tabel 2 S'!D226<0.5),"-",IFERROR('Tabel 2 S'!D226/'Tabel 1 S'!C226*100,"-")) -> - | F226: =IF(OR('Tabel 1 S'!E226<5,'Tabel 2 S'!F226<0.5),"-",IFERROR('Tabel 2 S'!F226/'Tabel 1 S'!E226*100,"-")) -> 9.090909091 | G226: =IF(OR('Tabel 1 S'!E226<5,'Tabel 2 S'!G226<0.5),"-",IFERROR('Tabel 2 S'!G226/'Tabel 1 S'!E226*100,"-")) -> - | I226: =IF(OR('Tabel 1 S'!G226<5,'Tabel 2 S'!I226<0.5),"-",IFERROR('Tabel 2 S'!I226/'Tabel 1 S'!G226*100,"-")) -> 14.28571429 | J226: =IF(OR('Tabel 1 S'!G226<5,'Tabel 2 S'!J226<0.5),"-",IFERROR('Tabel 2 S'!J226/'Tabel 1 S'!G226*100,"-")) -> 7.987989058
A227: Øvrige Mag. | C227: =IF(OR('Tabel 1 S'!C227<5,'Tabel 2 S'!C227<0.5),"-",IFERROR('Tabel 2 S'!C227/'Tabel 1 S'!C227*100,"-")) -> - | D227: =IF(OR('Tabel 1 S'!C227<5,'Tabel 2 S'!D227<0.5),"-",IFERROR('Tabel 2 S'!D227/'Tabel 1 S'!C227*100,"-")) -> - | F227: =IF(OR('Tabel 1 S'!E227<5,'Tabel 2 S'!F227<0.5),"-",IFERROR('Tabel 2 S'!F227/'Tabel 1 S'!E227*100,"-")) -> - | G227: =IF(OR('Tabel 1 S'!E227<5,'Tabel 2 S'!G227<0.5),"-",IFERROR('Tabel 2 S'!G227/'Tabel 1 S'!E227*100,"-")) -> - | I227: =IF(OR('Tabel 1 S'!G227<5,'Tabel 2 S'!I227<0.5),"-",IFERROR('Tabel 2 S'!I227/'Tabel 1 S'!G227*100,"-")) -> - | J227: =IF(OR('Tabel 1 S'!G227<5,'Tabel 2 S'!J227<0.5),"-",IFERROR('Tabel 2 S'!J227/'Tabel 1 S'!G227*100,"-")) -> -
A228: Agronom | C228: =IF(OR('Tabel 1 S'!C228<5,'Tabel 2 S'!C228<0.5),"-",IFERROR('Tabel 2 S'!C228/'Tabel 1 S'!C228*100,"-")) -> - | D228: =IF(OR('Tabel 1 S'!C228<5,'Tabel 2 S'!D228<0.5),"-",IFERROR('Tabel 2 S'!D228/'Tabel 1 S'!C228*100,"-")) -> - | F228: =IF(OR('Tabel 1 S'!E228<5,'Tabel 2 S'!F228<0.5),"-",IFERROR('Tabel 2 S'!F228/'Tabel 1 S'!E228*100,"-")) -> - | G228: =IF(OR('Tabel 1 S'!E228<5,'Tabel 2 S'!G228<0.5),"-",IFERROR('Tabel 2 S'!G228/'Tabel 1 S'!E228*100,"-")) -> - | I228: =IF(OR('Tabel 1 S'!G228<5,'Tabel 2 S'!I228<0.5),"-",IFERROR('Tabel 2 S'!I228/'Tabel 1 S'!G228*100,"-")) -> - | J228: =IF(OR('Tabel 1 S'!G228<5,'Tabel 2 S'!J228<0.5),"-",IFERROR('Tabel 2 S'!J228/'Tabel 1 S'!G228*100,"-")) -> -
A229: Landsk. Arkt. | C229: =IF(OR('Tabel 1 S'!C229<5,'Tabel 2 S'!C229<0.5),"-",IFERROR('Tabel 2 S'!C229/'Tabel 1 S'!C229*100,"-")) -> - | D229: =IF(OR('Tabel 1 S'!C229<5,'Tabel 2 S'!D229<0.5),"-",IFERROR('Tabel 2 S'!D229/'Tabel 1 S'!C229*100,"-")) -> - | F229: =IF(OR('Tabel 1 S'!E229<5,'Tabel 2 S'!F229<0.5),"-",IFERROR('Tabel 2 S'!F229/'Tabel 1 S'!E229*100,"-")) -> - | G229: =IF(OR('Tabel 1 S'!E229<5,'Tabel 2 S'!G229<0.5),"-",IFERROR('Tabel 2 S'!G229/'Tabel 1 S'!E229*100,"-")) -> - | I229: =IF(OR('Tabel 1 S'!G229<5,'Tabel 2 S'!I229<0.5),"-",IFERROR('Tabel 2 S'!I229/'Tabel 1 S'!G229*100,"-")) -> - | J229: =IF(OR('Tabel 1 S'!G229<5,'Tabel 2 S'!J229<0.5),"-",IFERROR('Tabel 2 S'!J229/'Tabel 1 S'!G229*100,"-")) -> -
A230: Hortonom | C230: =IF(OR('Tabel 1 S'!C230<5,'Tabel 2 S'!C230<0.5),"-",IFERROR('Tabel 2 S'!C230/'Tabel 1 S'!C230*100,"-")) -> - | D230: =IF(OR('Tabel 1 S'!C230<5,'Tabel 2 S'!D230<0.5),"-",IFERROR('Tabel 2 S'!D230/'Tabel 1 S'!C230*100,"-")) -> - | F230: =IF(OR('Tabel 1 S'!E230<5,'Tabel 2 S'!F230<0.5),"-",IFERROR('Tabel 2 S'!F230/'Tabel 1 S'!E230*100,"-")) -> - | G230: =IF(OR('Tabel 1 S'!E230<5,'Tabel 2 S'!G230<0.5),"-",IFERROR('Tabel 2 S'!G230/'Tabel 1 S'!E230*100,"-")) -> - | I230: =IF(OR('Tabel 1 S'!G230<5,'Tabel 2 S'!I230<0.5),"-",IFERROR('Tabel 2 S'!I230/'Tabel 1 S'!G230*100,"-")) -> - | J230: =IF(OR('Tabel 1 S'!G230<5,'Tabel 2 S'!J230<0.5),"-",IFERROR('Tabel 2 S'!J230/'Tabel 1 S'!G230*100,"-")) -> -
A231: Forstkand. | C231: =IF(OR('Tabel 1 S'!C231<5,'Tabel 2 S'!C231<0.5),"-",IFERROR('Tabel 2 S'!C231/'Tabel 1 S'!C231*100,"-")) -> - | D231: =IF(OR('Tabel 1 S'!C231<5,'Tabel 2 S'!D231<0.5),"-",IFERROR('Tabel 2 S'!D231/'Tabel 1 S'!C231*100,"-")) -> - | F231: =IF(OR('Tabel 1 S'!E231<5,'Tabel 2 S'!F231<0.5),"-",IFERROR('Tabel 2 S'!F231/'Tabel 1 S'!E231*100,"-")) -> - | G231: =IF(OR('Tabel 1 S'!E231<5,'Tabel 2 S'!G231<0.5),"-",IFERROR('Tabel 2 S'!G231/'Tabel 1 S'!E231*100,"-")) -> - | I231: =IF(OR('Tabel 1 S'!G231<5,'Tabel 2 S'!I231<0.5),"-",IFERROR('Tabel 2 S'!I231/'Tabel 1 S'!G231*100,"-")) -> - | J231: =IF(OR('Tabel 1 S'!G231<5,'Tabel 2 S'!J231<0.5),"-",IFERROR('Tabel 2 S'!J231/'Tabel 1 S'!G231*100,"-")) -> -
A232: Jordbrugsakad. | C232: =IF(OR('Tabel 1 S'!C232<5,'Tabel 2 S'!C232<0.5),"-",IFERROR('Tabel 2 S'!C232/'Tabel 1 S'!C232*100,"-")) -> - | D232: =IF(OR('Tabel 1 S'!C232<5,'Tabel 2 S'!D232<0.5),"-",IFERROR('Tabel 2 S'!D232/'Tabel 1 S'!C232*100,"-")) -> - | F232: =IF(OR('Tabel 1 S'!E232<5,'Tabel 2 S'!F232<0.5),"-",IFERROR('Tabel 2 S'!F232/'Tabel 1 S'!E232*100,"-")) -> - | G232: =IF(OR('Tabel 1 S'!E232<5,'Tabel 2 S'!G232<0.5),"-",IFERROR('Tabel 2 S'!G232/'Tabel 1 S'!E232*100,"-")) -> - | I232: =IF(OR('Tabel 1 S'!G232<5,'Tabel 2 S'!I232<0.5),"-",IFERROR('Tabel 2 S'!I232/'Tabel 1 S'!G232*100,"-")) -> - | J232: =IF(OR('Tabel 1 S'!G232<5,'Tabel 2 S'!J232<0.5),"-",IFERROR('Tabel 2 S'!J232/'Tabel 1 S'!G232*100,"-")) -> -
A233: Mejeriing. | C233: =IF(OR('Tabel 1 S'!C233<5,'Tabel 2 S'!C233<0.5),"-",IFERROR('Tabel 2 S'!C233/'Tabel 1 S'!C233*100,"-")) -> - | D233: =IF(OR('Tabel 1 S'!C233<5,'Tabel 2 S'!D233<0.5),"-",IFERROR('Tabel 2 S'!D233/'Tabel 1 S'!C233*100,"-")) -> - | F233: =IF(OR('Tabel 1 S'!E233<5,'Tabel 2 S'!F233<0.5),"-",IFERROR('Tabel 2 S'!F233/'Tabel 1 S'!E233*100,"-")) -> - | G233: =IF(OR('Tabel 1 S'!E233<5,'Tabel 2 S'!G233<0.5),"-",IFERROR('Tabel 2 S'!G233/'Tabel 1 S'!E233*100,"-")) -> - | I233: =IF(OR('Tabel 1 S'!G233<5,'Tabel 2 S'!I233<0.5),"-",IFERROR('Tabel 2 S'!I233/'Tabel 1 S'!G233*100,"-")) -> - | J233: =IF(OR('Tabel 1 S'!G233<5,'Tabel 2 S'!J233<0.5),"-",IFERROR('Tabel 2 S'!J233/'Tabel 1 S'!G233*100,"-")) -> -
A234: Levn.m.kand. | C234: =IF(OR('Tabel 1 S'!C234<5,'Tabel 2 S'!C234<0.5),"-",IFERROR('Tabel 2 S'!C234/'Tabel 1 S'!C234*100,"-")) -> - | D234: =IF(OR('Tabel 1 S'!C234<5,'Tabel 2 S'!D234<0.5),"-",IFERROR('Tabel 2 S'!D234/'Tabel 1 S'!C234*100,"-")) -> - | F234: =IF(OR('Tabel 1 S'!E234<5,'Tabel 2 S'!F234<0.5),"-",IFERROR('Tabel 2 S'!F234/'Tabel 1 S'!E234*100,"-")) -> - | G234: =IF(OR('Tabel 1 S'!E234<5,'Tabel 2 S'!G234<0.5),"-",IFERROR('Tabel 2 S'!G234/'Tabel 1 S'!E234*100,"-")) -> - | I234: =IF(OR('Tabel 1 S'!G234<5,'Tabel 2 S'!I234<0.5),"-",IFERROR('Tabel 2 S'!I234/'Tabel 1 S'!G234*100,"-")) -> - | J234: =IF(OR('Tabel 1 S'!G234<5,'Tabel 2 S'!J234<0.5),"-",IFERROR('Tabel 2 S'!J234/'Tabel 1 S'!G234*100,"-")) -> -
A235: Dyrlæge | C235: =IF(OR('Tabel 1 S'!C235<5,'Tabel 2 S'!C235<0.5),"-",IFERROR('Tabel 2 S'!C235/'Tabel 1 S'!C235*100,"-")) -> - | D235: =IF(OR('Tabel 1 S'!C235<5,'Tabel 2 S'!D235<0.5),"-",IFERROR('Tabel 2 S'!D235/'Tabel 1 S'!C235*100,"-")) -> - | F235: =IF(OR('Tabel 1 S'!E235<5,'Tabel 2 S'!F235<0.5),"-",IFERROR('Tabel 2 S'!F235/'Tabel 1 S'!E235*100,"-")) -> - | G235: =IF(OR('Tabel 1 S'!E235<5,'Tabel 2 S'!G235<0.5),"-",IFERROR('Tabel 2 S'!G235/'Tabel 1 S'!E235*100,"-")) -> - | I235: =IF(OR('Tabel 1 S'!G235<5,'Tabel 2 S'!I235<0.5),"-",IFERROR('Tabel 2 S'!I235/'Tabel 1 S'!G235*100,"-")) -> - | J235: =IF(OR('Tabel 1 S'!G235<5,'Tabel 2 S'!J235<0.5),"-",IFERROR('Tabel 2 S'!J235/'Tabel 1 S'!G235*100,"-")) -> -
A236: Farmaceut | C236: =IF(OR('Tabel 1 S'!C236<5,'Tabel 2 S'!C236<0.5),"-",IFERROR('Tabel 2 S'!C236/'Tabel 1 S'!C236*100,"-")) -> - | D236: =IF(OR('Tabel 1 S'!C236<5,'Tabel 2 S'!D236<0.5),"-",IFERROR('Tabel 2 S'!D236/'Tabel 1 S'!C236*100,"-")) -> - | F236: =IF(OR('Tabel 1 S'!E236<5,'Tabel 2 S'!F236<0.5),"-",IFERROR('Tabel 2 S'!F236/'Tabel 1 S'!E236*100,"-")) -> 11.76470588 | G236: =IF(OR('Tabel 1 S'!E236<5,'Tabel 2 S'!G236<0.5),"-",IFERROR('Tabel 2 S'!G236/'Tabel 1 S'!E236*100,"-")) -> 8.90075983 | I236: =IF(OR('Tabel 1 S'!G236<5,'Tabel 2 S'!I236<0.5),"-",IFERROR('Tabel 2 S'!I236/'Tabel 1 S'!G236*100,"-")) -> 8.695652174 | J236: =IF(OR('Tabel 1 S'!G236<5,'Tabel 2 S'!J236<0.5),"-",IFERROR('Tabel 2 S'!J236/'Tabel 1 S'!G236*100,"-")) -> 6.578822483
A237: Læge | C237: =IF(OR('Tabel 1 S'!C237<5,'Tabel 2 S'!C237<0.5),"-",IFERROR('Tabel 2 S'!C237/'Tabel 1 S'!C237*100,"-")) -> - | D237: =IF(OR('Tabel 1 S'!C237<5,'Tabel 2 S'!D237<0.5),"-",IFERROR('Tabel 2 S'!D237/'Tabel 1 S'!C237*100,"-")) -> - | F237: =IF(OR('Tabel 1 S'!E237<5,'Tabel 2 S'!F237<0.5),"-",IFERROR('Tabel 2 S'!F237/'Tabel 1 S'!E237*100,"-")) -> - | G237: =IF(OR('Tabel 1 S'!E237<5,'Tabel 2 S'!G237<0.5),"-",IFERROR('Tabel 2 S'!G237/'Tabel 1 S'!E237*100,"-")) -> - | I237: =IF(OR('Tabel 1 S'!G237<5,'Tabel 2 S'!I237<0.5),"-",IFERROR('Tabel 2 S'!I237/'Tabel 1 S'!G237*100,"-")) -> - | J237: =IF(OR('Tabel 1 S'!G237<5,'Tabel 2 S'!J237<0.5),"-",IFERROR('Tabel 2 S'!J237/'Tabel 1 S'!G237*100,"-")) -> -
A238: Tandlæge | C238: =IF(OR('Tabel 1 S'!C238<5,'Tabel 2 S'!C238<0.5),"-",IFERROR('Tabel 2 S'!C238/'Tabel 1 S'!C238*100,"-")) -> - | D238: =IF(OR('Tabel 1 S'!C238<5,'Tabel 2 S'!D238<0.5),"-",IFERROR('Tabel 2 S'!D238/'Tabel 1 S'!C238*100,"-")) -> - | F238: =IF(OR('Tabel 1 S'!E238<5,'Tabel 2 S'!F238<0.5),"-",IFERROR('Tabel 2 S'!F238/'Tabel 1 S'!E238*100,"-")) -> - | G238: =IF(OR('Tabel 1 S'!E238<5,'Tabel 2 S'!G238<0.5),"-",IFERROR('Tabel 2 S'!G238/'Tabel 1 S'!E238*100,"-")) -> - | I238: =IF(OR('Tabel 1 S'!G238<5,'Tabel 2 S'!I238<0.5),"-",IFERROR('Tabel 2 S'!I238/'Tabel 1 S'!G238*100,"-")) -> - | J238: =IF(OR('Tabel 1 S'!G238<5,'Tabel 2 S'!J238<0.5),"-",IFERROR('Tabel 2 S'!J238/'Tabel 1 S'!G238*100,"-")) -> -
A239: Arkitekt | C239: =IF(OR('Tabel 1 S'!C239<5,'Tabel 2 S'!C239<0.5),"-",IFERROR('Tabel 2 S'!C239/'Tabel 1 S'!C239*100,"-")) -> - | D239: =IF(OR('Tabel 1 S'!C239<5,'Tabel 2 S'!D239<0.5),"-",IFERROR('Tabel 2 S'!D239/'Tabel 1 S'!C239*100,"-")) -> - | F239: =IF(OR('Tabel 1 S'!E239<5,'Tabel 2 S'!F239<0.5),"-",IFERROR('Tabel 2 S'!F239/'Tabel 1 S'!E239*100,"-")) -> - | G239: =IF(OR('Tabel 1 S'!E239<5,'Tabel 2 S'!G239<0.5),"-",IFERROR('Tabel 2 S'!G239/'Tabel 1 S'!E239*100,"-")) -> - | I239: =IF(OR('Tabel 1 S'!G239<5,'Tabel 2 S'!I239<0.5),"-",IFERROR('Tabel 2 S'!I239/'Tabel 1 S'!G239*100,"-")) -> - | J239: =IF(OR('Tabel 1 S'!G239<5,'Tabel 2 S'!J239<0.5),"-",IFERROR('Tabel 2 S'!J239/'Tabel 1 S'!G239*100,"-")) -> -
... 593 more rows

Sheet Tabel 4F S
A1: Tabel 4. Antal forsikrede - aldersfordelt
A3: Sjælland
C5: Under 30 år | D5: 30 - 39 år | E5: 40 - 49 år | F5: 50 - 59 år | G5: Over 60 år | I5: I alt
A7: Civ. ing. | C7: 148 | D7: 525 | E7: 631 | F7: 674 | G7: 175 | I7: 2153
A8: Diplom ing. | C8: 190 | D8: 523 | E8: 1134 | F8: 1520 | G8: 403 | I8: 3770
A9: Cand. Scient. Tek. | C9: 229 | D9: 491 | E9: 231 | F9: 90 | G9: 20 | I9: 1061
A10: MA. Hum. | C10: 235 | D10: 866 | E10: 1041 | F10: 456 | G10: 238 | I10: 2836
A11: MA. Nat. | C11: 44 | D11: 272 | E11: 542 | F11: 400 | G11: 164 | I11: 1422
A12: MA. Ph.d. | C12: 2 | D12: 37 | E12: 48 | F12: 40 | G12: 13 | I12: 140
A13: MA. Samf. | C13: 63 | D13: 136 | E13: 82 | F13: 40 | G13: 19 | I13: 340
A14: Øvrige Mag. | C14: 10 | D14: 32 | E14: 84 | F14: 85 | G14: 34 | I14: 245
A15: Agronom | C15: 10 | D15: 56 | E15: 135 | F15: 181 | G15: 74 | I15: 456
A16: Landsk. Arkt. | C16: 5 | D16: 23 | E16: 36 | F16: 25 | G16: 10 | I16: 99
A17: Hortonom | C17: 2 | D17: 4 | E17: 17 | F17: 24 | G17: 12 | I17: 59
A18: Forstkand. | C18: 3 | D18: 13 | E18: 32 | F18: 16 | G18: 11 | I18: 75
A19: Jordbrugsakad. | C19: 20 | D19: 96 | E19: 220 | F19: 246 | G19: 107 | I19: 689
A20: Mejeriing. | C20: 1 | D20: 7 | E20: 8 | F20: 15 | G20: 5 | I20: 36
A21: Levn.m.kand. | C21: 3 | D21: 27 | E21: 10 | F21: 5 | G21: 0 | I21: 45
A22: Dyrlæge | C22: 27 | D22: 120 | E22: 116 | F22: 97 | G22: 35 | I22: 395
A23: Farmaceut | C23: 61 | D23: 148 | E23: 169 | F23: 128 | G23: 39 | I23: 545
A24: Læge | C24: 83 | D24: 238 | E24: 162 | F24: 137 | G24: 64 | I24: 684
A25: Tandlæge | C25: 29 | D25: 42 | E25: 50 | F25: 41 | G25: 15 | I25: 177
A26: Arkitekt | C26: 7 | D26: 50 | E26: 66 | F26: 67 | G26: 40 | I26: 230
A27: Landinspek. | C27: 5 | D27: 19 | E27: 20 | F27: 20 | G27: 11 | I27: 75
A28: Bibliotekar | C28: 10 | D28: 66 | E28: 134 | F28: 114 | G28: 84 | I28: 408
A29: Musikudd. | C29: 1 | D29: 12 | E29: 27 | F29: 36 | G29: 33 | I29: 109
A30: Teolog | C30: 4 | D30: 28 | E30: 68 | F30: 87 | G30: 39 | I30: 226
A31: Psykolog | C31: 72 | D31: 150 | E31: 155 | F31: 109 | G31: 46 | I31: 532
A32: Jurist | C32: 93 | D32: 296 | E32: 312 | F32: 272 | G32: 73 | I32: 1046
A33: Økonom | C33: 47 | D33: 93 | E33: 187 | F33: 210 | G33: 41 | I33: 578
A34: Samf. Adm. | C34: 171 | D34: 570 | E34: 606 | F34: 378 | G34: 103 | I34: 1828
A35: Cand. Merc. | C35: 234 | D35: 594 | E35: 663 | F35: 445 | G35: 68 | I35: 2004
A36: HA | C36: 40 | D36: 52 | E36: 195 | F36: 215 | G36: 52 | I36: 554
A37: HD | C37: 30 | D37: 40 | E37: 126 | F37: 263 | G37: 70 | I37: 529
A38: Komm. og Sprog | C38: 42 | D38: 136 | E38: 176 | F38: 165 | G38: 90 | I38: 609
A39: Cand. IT. | C39: 32 | D39: 76 | E39: 57 | F39: 9 | G39: 0 | I39: 174
A40: Bac. Samf. | C40: 11 | D40: 23 | E40: 25 | F40: 27 | G40: 2 | I40: 88
A41: Bac. Hum. | C41: 54 | D41: 52 | E41: 68 | F41: 72 | G41: 17 | I41: 263
A42: Bac. Nat. | C42: 35 | D42: 60 | E42: 34 | F42: 23 | G42: 11 | I42: 163
A43: Andre | C43: 130 | D43: 448 | E43: 487 | F43: 396 | G43: 176 | I43: 1637
A45: Total | C45: 2163 | D45: 6325 | E45: 7934 | F45: 6882 | G45: 2287 | I45: 25591
A47: Ingeniører i alt | C47: 338 | D47: 1048 | E47: 1765 | F47: 2194 | G47: 578 | I47: 5923
A48: Magistre i alt | C48: 354 | D48: 1343 | E48: 1797 | F48: 1021 | G48: 468 | I48: 4983
A49: DJØF'ere i alt | C49: 585 | D49: 1605 | E49: 1963 | F49: 1520 | G49: 337 | I49: 6010
A56: Greve
C58: Under 30 år | D58: 30 - 39 år | E58: 40 - 49 år | F58: 50 - 59 år | G58: Over 60 år | I58: I alt
A60: Civ. ing. | C60: 8 | D60: 60 | E60: 50 | F60: 50 | G60: 13 | I60: 181
A61: Diplom ing. | C61: 18 | D61: 44 | E61: 108 | F61: 137 | G61: 30 | I61: 337
A62: Cand. Scient. Tek. | C62: 15 | D62: 32 | E62: 24 | F62: 11 | G62: 2 | I62: 84
A63: MA. Hum. | C63: 7 | D63: 45 | E63: 50 | F63: 13 | G63: 10 | I63: 125
A64: MA. Nat. | C64: 3 | D64: 19 | E64: 25 | F64: 28 | G64: 11 | I64: 86
A65: MA. Ph.d. | C65: 1 | D65: 3 | E65: 2 | F65: 0 | G65: 1 | I65: 7
A66: MA. Samf. | C66: 4 | D66: 4 | E66: 2 | F66: 0 | G66: 2 | I66: 12
A67: Øvrige Mag. | C67: 0 | D67: 4 | E67: 4 | F67: 7 | G67: 1 | I67: 16
A68: Agronom | C68: 1 | D68: 2 | E68: 6 | F68: 4 | G68: 1 | I68: 14
A69: Landsk. Arkt. | C69: 1 | D69: 2 | E69: 2 | F69: 0 | G69: 0 | I69: 5
A70: Hortonom | C70: 0 | D70: 0 | E70: 2 | F70: 0 | G70: 0 | I70: 2
A71: Forstkand. | C71: 0 | D71: 0 | E71: 0 | F71: 0 | G71: 1 | I71: 1
A72: Jordbrugsakad. | C72: 2 | D72: 4 | E72: 10 | F72: 4 | G72: 2 | I72: 22
A73: Mejeriing. | C73: 0 | D73: 0 | E73: 0 | F73: 2 | G73: 0 | I73: 2
A74: Levn.m.kand. | C74: 0 | D74: 1 | E74: 1 | F74: 0 | G74: 0 | I74: 2
A75: Dyrlæge | C75: 2 | D75: 4 | E75: 3 | F75: 4 | G75: 0 | I75: 13
A76: Farmaceut | C76: 10 | D76: 19 | E76: 20 | F76: 15 | G76: 3 | I76: 67
A77: Læge | C77: 7 | D77: 9 | E77: 8 | F77: 11 | G77: 10 | I77: 45
A78: Tandlæge | C78: 4 | D78: 4 | E78: 3 | F78: 6 | G78: 1 | I78: 18
A79: Arkitekt | C79: 2 | D79: 2 | E79: 4 | F79: 2 | G79: 2 | I79: 12
A80: Landinspek. | C80: 0 | D80: 1 | E80: 2 | F80: 2 | G80: 0 | I80: 5
A81: Bibliotekar | C81: 0 | D81: 1 | E81: 6 | F81: 6 | G81: 5 | I81: 18
A82: Musikudd. | C82: 0 | D82: 1 | E82: 2 | F82: 1 | G82: 2 | I82: 6
A83: Teolog | C83: 0 | D83: 4 | E83: 1 | F83: 9 | G83: 3 | I83: 17
A84: Psykolog | C84: 4 | D84: 10 | E84: 8 | F84: 1 | G84: 0 | I84: 23
A85: Jurist | C85: 8 | D85: 25 | E85: 37 | F85: 34 | G85: 7 | I85: 111
A86: Økonom | C86: 8 | D86: 11 | E86: 19 | F86: 18 | G86: 1 | I86: 57
A87: Samf. Adm. | C87: 15 | D87: 47 | E87: 35 | F87: 18 | G87: 3 | I87: 118
A88: Cand. Merc. | C88: 34 | D88: 76 | E88: 101 | F88: 56 | G88: 9 | I88: 276
A89: HA | C89: 6 | D89: 13 | E89: 24 | F89: 23 | G89: 7 | I89: 73
A90: HD | C90: 1 | D90: 8 | E90: 21 | F90: 38 | G90: 8 | I90: 76
A91: Komm. og Sprog | C91: 2 | D91: 15 | E91: 22 | F91: 15 | G91: 9 | I91: 63
A92: Cand. IT. | C92: 4 | D92: 10 | E92: 8 | F92: 0 | G92: 0 | I92: 22
A93: Bac. Samf. | C93: 1 | D93: 1 | E93: 1 | F93: 5 | G93: 0 | I93: 8
A94: Bac. Hum. | C94: 1 | D94: 4 | E94: 6 | F94: 4 | G94: 1 | I94: 16
A95: Bac. Nat. | C95: 3 | D95: 7 | E95: 2 | F95: 1 | G95: 1 | I95: 14
A96: Andre | C96: 8 | D96: 50 | E96: 47 | F96: 32 | G96: 6 | I96: 143
A98: Total | C98: 178 | D98: 538 | E98: 656 | F98: 553 | G98: 150 | I98: 2075
A100: Ingeniører i alt | C100: 26 | D100: 104 | E100: 158 | F100: 187 | G100: 43 | I100: 518
A101: Magistre i alt | C101: 15 | D101: 75 | E101: 83 | F101: 48 | G101: 25 | I101: 246
A102: DJØF'ere i alt | C102: 71 | D102: 172 | E102: 216 | F102: 149 | G102: 27 | I102: 635
A109: Køge
C111: Under 30 år | D111: 30 - 39 år | E111: 40 - 49 år | F111: 50 - 59 år | G111: Over 60 år | I111: I alt
A113: Civ. ing. | C113: 23 | D113: 42 | E113: 47 | F113: 64 | G113: 9 | I113: 185
A114: Diplom ing. | C114: 16 | D114: 55 | E114: 94 | F114: 151 | G114: 28 | I114: 344
A115: Cand. Scient. Tek. | C115: 15 | D115: 33 | E115: 15 | F115: 6 | G115: 0 | I115: 69
A116: MA. Hum. | C116: 16 | D116: 76 | E116: 73 | F116: 23 | G116: 15 | I116: 203
A117: MA. Nat. | C117: 9 | D117: 16 | E117: 29 | F117: 34 | G117: 6 | I117: 94
A118: MA. Ph.d. | C118: 0 | D118: 1 | E118: 1 | F118: 3 | G118: 0 | I118: 5
A119: MA. Samf. | C119: 12 | D119: 10 | E119: 8 | F119: 3 | G119: 1 | I119: 34
A120: Øvrige Mag. | C120: 1 | D120: 4 | E120: 7 | F120: 6 | G120: 3 | I120: 21
A121: Agronom | C121: 1 | D121: 6 | E121: 11 | F121: 13 | G121: 8 | I121: 39
A122: Landsk. Arkt. | C122: 1 | D122: 1 | E122: 2 | F122: 3 | G122: 1 | I122: 8
A123: Hortonom | C123: 0 | D123: 0 | E123: 3 | F123: 2 | G123: 2 | I123: 7
A124: Forstkand. | C124: 1 | D124: 1 | E124: 2 | F124: 0 | G124: 1 | I124: 5
A125: Jordbrugsakad. | C125: 3 | D125: 8 | E125: 18 | F125: 18 | G125: 12 | I125: 59
A126: Mejeriing. | C126: 0 | D126: 0 | E126: 0 | F126: 0 | G126: 0 | I126: 0
A127: Levn.m.kand. | C127: 1 | D127: 2 | E127: 1 | F127: 1 | G127: 0 | I127: 5
A128: Dyrlæge | C128: 2 | D128: 8 | E128: 10 | F128: 9 | G128: 2 | I128: 31
A129: Farmaceut | C129: 4 | D129: 15 | E129: 18 | F129: 8 | G129: 1 | I129: 46
A130: Læge | C130: 5 | D130: 16 | E130: 17 | F130: 11 | G130: 3 | I130: 52
A131: Tandlæge | C131: 2 | D131: 2 | E131: 9 | F131: 3 | G131: 0 | I131: 16
A132: Arkitekt | C132: 0 | D132: 6 | E132: 4 | F132: 2 | G132: 5 | I132: 17
A133: Landinspek. | C133: 0 | D133: 1 | E133: 1 | F133: 3 | G133: 3 | I133: 8
A134: Bibliotekar | C134: 0 | D134: 2 | E134: 10 | F134: 7 | G134: 7 | I134: 26
A135: Musikudd. | C135: 0 | D135: 0 | E135: 3 | F135: 2 | G135: 2 | I135: 7
A136: Teolog | C136: 0 | D136: 2 | E136: 4 | F136: 3 | G136: 0 | I136: 9
A137: Psykolog | C137: 8 | D137: 20 | E137: 9 | F137: 10 | G137: 4 | I137: 51
A138: Jurist | C138: 13 | D138: 39 | E138: 38 | F138: 17 | G138: 0 | I138: 107
A139: Økonom | C139: 5 | D139: 12 | E139: 26 | F139: 19 | G139: 3 | I139: 65
A140: Samf. Adm. | C140: 16 | D140: 56 | E140: 38 | F140: 26 | G140: 5 | I140: 141
A141: Cand. Merc. | C141: 27 | D141: 61 | E141: 80 | F141: 34 | G141: 6 | I141: 208
A142: HA | C142: 4 | D142: 2 | E142: 16 | F142: 15 | G142: 5 | I142: 42
A143: HD | C143: 4 | D143: 5 | E143: 14 | F143: 24 | G143: 3 | I143: 50
A144: Komm. og Sprog | C144: 4 | D144: 19 | E144: 11 | F144: 19 | G144: 13 | I144: 66
A145: Cand. IT. | C145: 4 | D145: 7 | E145: 5 | F145: 0 | G145: 0 | I145: 16
A146: Bac. Samf. | C146: 1 | D146: 2 | E146: 2 | F146: 0 | G146: 1 | I146: 6
A147: Bac. Hum. | C147: 3 | D147: 2 | E147: 12 | F147: 5 | G147: 1 | I147: 23
A148: Bac. Nat. | C148: 1 | D148: 1 | E148: 5 | F148: 2 | G148: 1 | I148: 10
A149: Andre | C149: 14 | D149: 46 | E149: 43 | F149: 35 | G149: 7 | I149: 145
A151: Total | C151: 213 | D151: 571 | E151: 668 | F151: 563 | G151: 146 | I151: 2161
A153: Ingeniører i alt | C153: 39 | D153: 97 | E153: 141 | F153: 215 | G153: 37 | I153: 529
A154: Magistre i alt | C154: 38 | D154: 107 | E154: 118 | F154: 69 | G154: 25 | I154: 357
A155: DJØF'ere i alt | C155: 65 | D155: 170 | E155: 198 | F155: 111 | G155: 19 | I155: 563
A162: Roskilde
C164: Under 30 år | D164: 30 - 39 år | E164: 40 - 49 år | F164: 50 - 59 år | G164: Over 60 år | I164: I alt
A166: Civ. ing. | C166: 34 | D166: 162 | E166: 203 | F166: 213 | G166: 65 | I166: 677
A167: Diplom ing. | C167: 36 | D167: 108 | E167: 238 | F167: 320 | G167: 80 | I167: 782
A168: Cand. Scient. Tek. | C168: 57 | D168: 131 | E168: 70 | F168: 27 | G168: 8 | I168: 293
A169: MA. Hum. | C169: 49 | D169: 196 | E169: 262 | F169: 115 | G169: 47 | I169: 669
A170: MA. Nat. | C170: 11 | D170: 55 | E170: 172 | F170: 108 | G170: 45 | I170: 391
A171: MA. Ph.d. | C171: 0 | D171: 8 | E171: 19 | F171: 20 | G171: 2 | I171: 49
A172: MA. Samf. | C172: 22 | D172: 38 | E172: 27 | F172: 19 | G172: 8 | I172: 114
A173: Øvrige Mag. | C173: 2 | D173: 6 | E173: 17 | F173: 23 | G173: 8 | I173: 56
A174: Agronom | C174: 1 | D174: 9 | E174: 26 | F174: 29 | G174: 13 | I174: 78
A175: Landsk. Arkt. | C175: 1 | D175: 7 | E175: 9 | F175: 7 | G175: 1 | I175: 25
A176: Hortonom | C176: 0 | D176: 0 | E176: 2 | F176: 1 | G176: 1 | I176: 4
A177: Forstkand. | C177: 0 | D177: 4 | E177: 6 | F177: 1 | G177: 2 | I177: 13
A178: Jordbrugsakad. | C178: 2 | D178: 20 | E178: 43 | F178: 38 | G178: 17 | I178: 120
A179: Mejeriing. | C179: 0 | D179: 1 | E179: 1 | F179: 1 | G179: 0 | I179: 3
A180: Levn.m.kand. | C180: 0 | D180: 8 | E180: 4 | F180: 0 | G180: 0 | I180: 12
A181: Dyrlæge | C181: 4 | D181: 14 | E181: 12 | F181: 19 | G181: 10 | I181: 59
A182: Farmaceut | C182: 6 | D182: 40 | E182: 55 | F182: 45 | G182: 14 | I182: 160
A183: Læge | C183: 15 | D183: 91 | E183: 55 | F183: 34 | G183: 19 | I183: 214
A184: Tandlæge | C184: 10 | D184: 11 | E184: 7 | F184: 10 | G184: 3 | I184: 41
A185: Arkitekt | C185: 0 | D185: 14 | E185: 23 | F185: 18 | G185: 5 | I185: 60
A186: Landinspek. | C186: 0 | D186: 3 | E186: 4 | F186: 6 | G186: 4 | I186: 17
A187: Bibliotekar | C187: 2 | D187: 15 | E187: 25 | F187: 32 | G187: 18 | I187: 92
A188: Musikudd. | C188: 0 | D188: 4 | E188: 4 | F188: 6 | G188: 3 | I188: 17
A189: Teolog | C189: 1 | D189: 1 | E189: 13 | F189: 12 | G189: 4 | I189: 31
A190: Psykolog | C190: 10 | D190: 28 | E190: 48 | F190: 22 | G190: 9 | I190: 117
A191: Jurist | C191: 13 | D191: 71 | E191: 70 | F191: 63 | G191: 18 | I191: 235
A192: Økonom | C192: 9 | D192: 24 | E192: 58 | F192: 64 | G192: 10 | I192: 165
A193: Samf. Adm. | C193: 43 | D193: 170 | E193: 230 | F193: 149 | G193: 40 | I193: 632
A194: Cand. Merc. | C194: 43 | D194: 161 | E194: 171 | F194: 121 | G194: 23 | I194: 519
A195: HA | C195: 7 | D195: 6 | E195: 33 | F195: 49 | G195: 9 | I195: 104
A196: HD | C196: 2 | D196: 6 | E196: 31 | F196: 48 | G196: 10 | I196: 97
A197: Komm. og Sprog | C197: 8 | D197: 21 | E197: 31 | F197: 38 | G197: 15 | I197: 113
A198: Cand. IT. | C198: 7 | D198: 20 | E198: 19 | F198: 4 | G198: 0 | I198: 50
A199: Bac. Samf. | C199: 0 | D199: 8 | E199: 6 | F199: 8 | G199: 0 | I199: 22
A200: Bac. Hum. | C200: 12 | D200: 14 | E200: 11 | F200: 17 | G200: 3 | I200: 57
A201: Bac. Nat. | C201: 5 | D201: 7 | E201: 7 | F201: 5 | G201: 3 | I201: 27
A202: Andre | C202: 21 | D202: 111 | E202: 102 | F202: 75 | G202: 23 | I202: 332
A204: Total | C204: 431 | D204: 1573 | E204: 2071 | F204: 1729 | G204: 523 | I204: 6327
A206: Ingeniører i alt | C206: 70 | D206: 270 | E206: 441 | F206: 533 | G206: 145 | I206: 1459
A207: Magistre i alt | C207: 84 | D207: 303 | E207: 497 | F207: 285 | G207: 110 | I207: 1279
A208: DJØF'ere i alt | C208: 115 | D208: 432 | E208: 562 | F208: 446 | G208: 100 | I208: 1655
A215: Solrød
C217: Under 30 år | D217: 30 - 39 år | E217: 40 - 49 år | F217: 50 - 59 år | G217: Over 60 år | I217: I alt
A219: Civ. ing. | C219: 5 | D219: 31 | E219: 43 | F219: 39 | G219: 5 | I219: 123
A220: Diplom ing. | C220: 6 | D220: 32 | E220: 48 | F220: 69 | G220: 24 | I220: 179
A221: Cand. Scient. Tek. | C221: 8 | D221: 17 | E221: 7 | F221: 4 | G221: 0 | I221: 36
A222: MA. Hum. | C222: 4 | D222: 25 | E222: 37 | F222: 10 | G222: 2 | I222: 78
A223: MA. Nat. | C223: 3 | D223: 8 | E223: 10 | F223: 9 | G223: 2 | I223: 32
A224: MA. Ph.d. | C224: 0 | D224: 0 | E224: 2 | F224: 1 | G224: 0 | I224: 3
A225: MA. Samf. | C225: 3 | D225: 6 | E225: 4 | F225: 1 | G225: 0 | I225: 14
A226: Øvrige Mag. | C226: 0 | D226: 1 | E226: 6 | F226: 2 | G226: 0 | I226: 9
A227: Agronom | C227: 1 | D227: 0 | E227: 2 | F227: 1 | G227: 0 | I227: 4
A228: Landsk. Arkt. | C228: 0 | D228: 0 | E228: 1 | F228: 0 | G228: 0 | I228: 1
A229: Hortonom | C229: 0 | D229: 0 | E229: 0 | F229: 1 | G229: 0 | I229: 1
A230: Forstkand. | C230: 0 | D230: 0 | E230: 1 | F230: 0 | G230: 0 | I230: 1
A231: Jordbrugsakad. | C231: 1 | D231: 0 | E231: 4 | F231: 2 | G231: 0 | I231: 7
A232: Mejeriing. | C232: 0 | D232: 0 | E232: 1 | F232: 1 | G232: 0 | I232: 2
A233: Levn.m.kand. | C233: 0 | D233: 2 | E233: 0 | F233: 1 | G233: 0 | I233: 3
A234: Dyrlæge | C234: 2 | D234: 5 | E234: 2 | F234: 2 | G234: 0 | I234: 11
A235: Farmaceut | C235: 3 | D235: 4 | E235: 7 | F235: 4 | G235: 5 | I235: 23
A236: Læge | C236: 4 | D236: 13 | E236: 8 | F236: 1 | G236: 1 | I236: 27
A237: Tandlæge | C237: 1 | D237: 1 | E237: 0 | F237: 3 | G237: 2 | I237: 7
A238: Arkitekt | C238: 0 | D238: 1 | E238: 2 | F238: 2 | G238: 2 | I238: 7
A239: Landinspek. | C239: 0 | D239: 2 | E239: 0 | F239: 0 | G239: 0 | I239: 2
A240: Bibliotekar | C240: 0 | D240: 2 | E240: 4 | F240: 4 | G240: 2 | I240: 12
A241: Musikudd. | C241: 0 | D241: 0 | E241: 1 | F241: 0 | G241: 1 | I241: 2
A242: Teolog | C242: 0 | D242: 1 | E242: 3 | F242: 3 | G242: 1 | I242: 8
A243: Psykolog | C243: 2 | D243: 9 | E243: 7 | F243: 1 | G243: 2 | I243: 21
... 575 more rows

Sheet Tabel 4 S
A1: Tabel 4. Ledighedsberørte - aldersfordelt
A3: Sjælland
C5: Under 30 år | D5: 30 - 39 år | E5: 40 - 49 år | F5: 50 - 59 år | G5: Over 60 år | I5: I alt
A7: Civ. ing. | C7: 13.01 | D7: 8 | E7: 4 | F7: 8 | G7: 6 | I7: 39.01
A8: Diplom ing. | C8: 10.01 | D8: 9 | E8: 15 | F8: 24 | G8: 12 | I8: 70.01
A9: Cand. Scient. Tek | C9: 48.01 | D9: 25 | E9: 7 | F9: 1 | G9: 1 | I9: 82.01
A10: MA. Hum. | C10: 56.01 | D10: 83 | E10: 40 | F10: 15 | G10: 8 | I10: 202.01
A11: MA. Nat. | C11: 3.01 | D11: 13 | E11: 10 | F11: 7 | G11: 0 | I11: 33.01
A12: MA. Ph.d. | C12: 0.01 | D12: 0 | E12: 2 | F12: 1 | G12: 1 | I12: 4.01
A13: MA. Samf. | C13: 21.01 | D13: 11 | E13: 3 | F13: 3 | G13: 2 | I13: 40.01
A14: Øvrige Mag. | C14: 0.01 | D14: 2 | E14: 3 | F14: 5 | G14: 1 | I14: 11.01
A15: Agronom | C15: 1.01 | D15: 7 | E15: 1 | F15: 1 | G15: 5 | I15: 15.01
A16: Landsk. Arkt. | C16: 1.01 | D16: 2 | E16: 0 | F16: 1 | G16: 0 | I16: 4.01
A17: Hortonom | C17: 0.01 | D17: 0 | E17: 0 | F17: 0 | G17: 0 | I17: 0.01
A18: Forstkand. | C18: 0.01 | D18: 0 | E18: 0 | F18: 1 | G18: 0 | I18: 1.01
A19: Jordbrugsakad. | C19: 2.04 | D19: 9 | E19: 1 | F19: 3 | G19: 5 | I19: 20.04
A20: Mejeriing. | C20: 0.01 | D20: 0 | E20: 0 | F20: 0 | G20: 0 | I20: 0.01
A21: Levn.m.kand. | C21: 0.01 | D21: 1 | E21: 0 | F21: 1 | G21: 0 | I21: 2.01
A22: Dyrlæge | C22: 3.01 | D22: 7 | E22: 2 | F22: 1 | G22: 0 | I22: 13.01
A23: Farmaceut | C23: 6.01 | D23: 1 | E23: 2 | F23: 2 | G23: 1 | I23: 12.01
A24: Læge | C24: 5.01 | D24: 1 | E24: 2 | F24: 0 | G24: 0 | I24: 8.01
A25: Tandlæge | C25: 0.01 | D25: 0 | E25: 0 | F25: 1 | G25: 0 | I25: 1.01
A26: Arkitekt | C26: 2.01 | D26: 2 | E26: 4 | F26: 1 | G26: 2 | I26: 11.01
A27: Landinspek. | C27: 0.01 | D27: 0 | E27: 0 | F27: 0 | G27: 0 | I27: 0.01
A28: Bibliotekar | C28: 4.01 | D28: 4 | E28: 5 | F28: 2 | G28: 2 | I28: 17.01
A29: Musikudd. | C29: 0.01 | D29: 0 | E29: 0 | F29: 0 | G29: 0 | I29: 0.01
A30: Teolog | C30: 0.01 | D30: 2 | E30: 0 | F30: 3 | G30: 0 | I30: 5.01
A31: Psykolog | C31: 10.01 | D31: 6 | E31: 2 | F31: 2 | G31: 1 | I31: 21.01
A32: Jurist | C32: 4.01 | D32: 6 | E32: 4 | F32: 6 | G32: 0 | I32: 20.01
A33: Økonom | C33: 4.01 | D33: 1 | E33: 2 | F33: 6 | G33: 2 | I33: 15.01
A34: Samf. Adm. | C34: 42.01 | D34: 27 | E34: 15 | F34: 11 | G34: 4 | I34: 99.01
A35: Cand. Merc. | C35: 37.01 | D35: 18 | E35: 22 | F35: 21 | G35: 7 | I35: 105.01
A36: HA | C36: 6.01 | D36: 2 | E36: 0 | F36: 9 | G36: 2 | I36: 19.01
A37: HD | C37: 9.01 | D37: 1 | E37: 3 | F37: 10 | G37: 5 | I37: 28.01
A38: Komm. og Sprog | C38: 12.01 | D38: 11 | E38: 4 | F38: 8 | G38: 10 | I38: 45.01
A39: Cand. IT. | C39: 3.01 | D39: 4 | E39: 2 | F39: 1 | G39: 0 | I39: 10.01
A40: Bac. Samf. | C40: 2.01 | D40: 0 | E40: 0 | F40: 3 | G40: 0 | I40: 5.01
A41: Bac. Hum. | C41: 13.01 | D41: 2 | E41: 1 | F41: 5 | G41: 5 | I41: 26.01
A42: Bac. Nat. | C42: 3.01 | D42: 5 | E42: 1 | F42: 0 | G42: 0 | I42: 9.01
A43: Andre | C43: 20.01 | D43: 30 | E43: 19 | F43: 25 | G43: 11 | I43: 105.01
A45: Total | C45: 338.36 | D45: 291 | E45: 175 | F45: 185 | G45: 88 | I45: 1077.36
A47: Ingeniører i alt | C47: 23.02 | D47: 17 | E47: 19 | F47: 32 | G47: 18 | I47: 109.02
A48: Magistre i alt | C48: 80.05 | D48: 109 | E48: 58 | F48: 31 | G48: 12 | I48: 290.05
A49: DJØF'ere i alt | C49: 93.05 | D49: 54 | E49: 43 | F49: 53 | G49: 15 | I49: 258.05
A56: Greve
C58: Under 30 år | D58: 30 - 39 år | E58: 40 - 49 år | F58: 50 - 59 år | G58: Over 60 år | I58: I alt
A60: Civ. ing. | C60: 2 | D60: 1 | E60: 0 | F60: 0 | G60: 0 | I60: 3
A61: Diplom ing. | C61: 1 | D61: 2 | E61: 0 | F61: 4 | G61: 2 | I61: 9
A62: Cand. Scient. Tek | C62: 3 | D62: 1 | E62: 1 | F62: 0 | G62: 0 | I62: 5
A63: MA. Hum. | C63: 1 | D63: 5 | E63: 2 | F63: 2 | G63: 1 | I63: 11
A64: MA. Nat. | C64: 0 | D64: 0 | E64: 0 | F64: 0 | G64: 0 | I64: 0
A65: MA. Ph.d. | C65: 0 | D65: 0 | E65: 0 | F65: 0 | G65: 0 | I65: 0
A66: MA. Samf. | C66: 2 | D66: 0 | E66: 1 | F66: 0 | G66: 1 | I66: 4
A67: Øvrige Mag. | C67: 0 | D67: 0 | E67: 1 | F67: 1 | G67: 0 | I67: 2
A68: Agronom | C68: 0 | D68: 0 | E68: 0 | F68: 0 | G68: 0 | I68: 0
A69: Landsk. Arkt. | C69: 1 | D69: 0 | E69: 0 | F69: 0 | G69: 0 | I69: 1
A70: Hortonom | C70: 0 | D70: 0 | E70: 0 | F70: 0 | G70: 0 | I70: 0
A71: Forstkand. | C71: 0 | D71: 0 | E71: 0 | F71: 0 | G71: 0 | I71: 0
A72: Jordbrugsakad. | C72: 1 | D72: 0 | E72: 0 | F72: 0 | G72: 0 | I72: 1
A73: Mejeriing. | C73: 0 | D73: 0 | E73: 0 | F73: 0 | G73: 0 | I73: 0
A74: Levn.m.kand. | C74: 0 | D74: 0 | E74: 0 | F74: 0 | G74: 0 | I74: 0
A75: Dyrlæge | C75: 1 | D75: 0 | E75: 0 | F75: 0 | G75: 0 | I75: 1
A76: Farmaceut | C76: 0 | D76: 0 | E76: 0 | F76: 0 | G76: 0 | I76: 0
A77: Læge | C77: 1 | D77: 0 | E77: 0 | F77: 0 | G77: 0 | I77: 1
A78: Tandlæge | C78: 0 | D78: 0 | E78: 0 | F78: 1 | G78: 0 | I78: 1
A79: Arkitekt | C79: 2 | D79: 0 | E79: 0 | F79: 0 | G79: 0 | I79: 2
A80: Landinspek. | C80: 0 | D80: 0 | E80: 0 | F80: 0 | G80: 0 | I80: 0
A81: Bibliotekar | C81: 0 | D81: 0 | E81: 0 | F81: 0 | G81: 0 | I81: 0
A82: Musikudd. | C82: 0 | D82: 0 | E82: 0 | F82: 0 | G82: 0 | I82: 0
A83: Teolog | C83: 0 | D83: 0 | E83: 0 | F83: 0 | G83: 0 | I83: 0
A84: Psykolog | C84: 1 | D84: 0 | E84: 0 | F84: 0 | G84: 0 | I84: 1
A85: Jurist | C85: 0 | D85: 1 | E85: 0 | F85: 1 | G85: 0 | I85: 2
A86: Økonom | C86: 0 | D86: 0 | E86: 0 | F86: 0 | G86: 0 | I86: 0
A87: Samf. Adm. | C87: 6 | D87: 3 | E87: 1 | F87: 0 | G87: 0 | I87: 10
A88: Cand. Merc. | C88: 7 | D88: 3 | E88: 1 | F88: 1 | G88: 1 | I88: 13
A89: HA | C89: 1 | D89: 0 | E89: 0 | F89: 3 | G89: 0 | I89: 4
A90: HD | C90: 1 | D90: 0 | E90: 0 | F90: 2 | G90: 0 | I90: 3
A91: Komm. og Sprog | C91: 1 | D91: 0 | E91: 1 | F91: 0 | G91: 0 | I91: 2
A92: Cand. IT. | C92: 0 | D92: 0 | E92: 0 | F92: 0 | G92: 0 | I92: 0
A93: Bac. Samf. | C93: 0 | D93: 0 | E93: 0 | F93: 0 | G93: 0 | I93: 0
A94: Bac. Hum. | C94: 0 | D94: 0 | E94: 0 | F94: 0 | G94: 1 | I94: 1
A95: Bac. Nat. | C95: 0 | D95: 0 | E95: 1 | F95: 0 | G95: 0 | I95: 1
A96: Andre | C96: 2 | D96: 3 | E96: 1 | F96: 1 | G96: 0 | I96: 7
A98: Total | C98: 33 | D98: 19 | E98: 10 | F98: 16 | G98: 6 | I98: 84
A100: Ingeniører i alt | C100: 3 | D100: 3 | E100: 0 | F100: 4 | G100: 2 | I100: 12
A101: Magistre i alt | C101: 3 | D101: 5 | E101: 4 | F101: 3 | G101: 2 | I101: 17
A102: DJØF'ere i alt | C102: 14 | D102: 7 | E102: 2 | F102: 5 | G102: 1 | I102: 29
A109: Køge
C111: Under 30 år | D111: 30 - 39 år | E111: 40 - 49 år | F111: 50 - 59 år | G111: Over 60 år | I111: I alt
A113: Civ. ing. | C113: 3 | D113: 1 | E113: 1 | F113: 0 | G113: 0 | I113: 5
A114: Diplom ing. | C114: 0 | D114: 2 | E114: 1 | F114: 3 | G114: 2 | I114: 8
A115: Cand. Scient. Tek | C115: 5 | D115: 4 | E115: 1 | F115: 0 | G115: 0 | I115: 10
A116: MA. Hum. | C116: 3 | D116: 5 | E116: 3 | F116: 0 | G116: 0 | I116: 11
A117: MA. Nat. | C117: 0 | D117: 2 | E117: 1 | F117: 0 | G117: 0 | I117: 3
A118: MA. Ph.d. | C118: 0 | D118: 0 | E118: 0 | F118: 0 | G118: 0 | I118: 0
A119: MA. Samf. | C119: 4 | D119: 0 | E119: 0 | F119: 0 | G119: 0 | I119: 4
A120: Øvrige Mag. | C120: 0 | D120: 1 | E120: 1 | F120: 1 | G120: 0 | I120: 3
A121: Agronom | C121: 0 | D121: 2 | E121: 0 | F121: 0 | G121: 1 | I121: 3
A122: Landsk. Arkt. | C122: 0 | D122: 0 | E122: 0 | F122: 0 | G122: 0 | I122: 0
A123: Hortonom | C123: 0 | D123: 0 | E123: 0 | F123: 0 | G123: 0 | I123: 0
A124: Forstkand. | C124: 0 | D124: 0 | E124: 0 | F124: 0 | G124: 0 | I124: 0
A125: Jordbrugsakad. | C125: 0 | D125: 2 | E125: 0 | F125: 0 | G125: 1 | I125: 3
A126: Mejeriing. | C126: 0 | D126: 0 | E126: 0 | F126: 0 | G126: 0 | I126: 0
A127: Levn.m.kand. | C127: 0 | D127: 0 | E127: 0 | F127: 0 | G127: 0 | I127: 0
A128: Dyrlæge | C128: 1 | D128: 0 | E128: 0 | F128: 0 | G128: 0 | I128: 1
A129: Farmaceut | C129: 1 | D129: 0 | E129: 1 | F129: 0 | G129: 0 | I129: 2
A130: Læge | C130: 0 | D130: 0 | E130: 0 | F130: 0 | G130: 0 | I130: 0
A131: Tandlæge | C131: 0 | D131: 0 | E131: 0 | F131: 0 | G131: 0 | I131: 0
A132: Arkitekt | C132: 0 | D132: 0 | E132: 0 | F132: 0 | G132: 0 | I132: 0
A133: Landinspek. | C133: 0 | D133: 0 | E133: 0 | F133: 0 | G133: 0 | I133: 0
A134: Bibliotekar | C134: 0 | D134: 0 | E134: 0 | F134: 0 | G134: 1 | I134: 1
A135: Musikudd. | C135: 0 | D135: 0 | E135: 0 | F135: 0 | G135: 0 | I135: 0
A136: Teolog | C136: 0 | D136: 1 | E136: 0 | F136: 0 | G136: 0 | I136: 1
A137: Psykolog | C137: 1 | D137: 2 | E137: 0 | F137: 1 | G137: 0 | I137: 4
A138: Jurist | C138: 0 | D138: 2 | E138: 0 | F138: 1 | G138: 0 | I138: 3
A139: Økonom | C139: 1 | D139: 0 | E139: 0 | F139: 1 | G139: 0 | I139: 2
A140: Samf. Adm. | C140: 4 | D140: 2 | E140: 0 | F140: 2 | G140: 1 | I140: 9
A141: Cand. Merc. | C141: 3 | D141: 3 | E141: 4 | F141: 2 | G141: 1 | I141: 13
A142: HA | C142: 0 | D142: 0 | E142: 0 | F142: 0 | G142: 0 | I142: 0
A143: HD | C143: 2 | D143: 0 | E143: 0 | F143: 0 | G143: 0 | I143: 2
A144: Komm. og Sprog | C144: 1 | D144: 3 | E144: 0 | F144: 3 | G144: 1 | I144: 8
A145: Cand. IT. | C145: 1 | D145: 0 | E145: 0 | F145: 0 | G145: 0 | I145: 1
A146: Bac. Samf. | C146: 1 | D146: 0 | E146: 0 | F146: 0 | G146: 0 | I146: 1
A147: Bac. Hum. | C147: 3 | D147: 0 | E147: 0 | F147: 0 | G147: 0 | I147: 3
A148: Bac. Nat. | C148: 0 | D148: 1 | E148: 0 | F148: 0 | G148: 0 | I148: 1
A149: Andre | C149: 1 | D149: 2 | E149: 0 | F149: 6 | G149: 0 | I149: 9
A151: Total | C151: 35 | D151: 33 | E151: 13 | F151: 20 | G151: 7 | I151: 108
A153: Ingeniører i alt | C153: 3 | D153: 3 | E153: 2 | F153: 3 | G153: 2 | I153: 13
A154: Magistre i alt | C154: 7 | D154: 8 | E154: 5 | F154: 1 | G154: 0 | I154: 21
A155: DJØF'ere i alt | C155: 8 | D155: 7 | E155: 4 | F155: 6 | G155: 2 | I155: 27
A162: Roskilde
C164: Under 30 år | D164: 30 - 39 år | E164: 40 - 49 år | F164: 50 - 59 år | G164: Over 60 år | I164: I alt
A166: Civ. ing. | C166: 1 | D166: 0 | E166: 2 | F166: 1 | G166: 3 | I166: 7
A167: Diplom ing. | C167: 3 | D167: 0 | E167: 5 | F167: 3 | G167: 3 | I167: 14
A168: Cand. Scient. Tek | C168: 14 | D168: 7 | E168: 2 | F168: 1 | G168: 0 | I168: 24
A169: MA. Hum. | C169: 11 | D169: 18 | E169: 9 | F169: 3 | G169: 1 | I169: 42
A170: MA. Nat. | C170: 3 | D170: 2 | E170: 1 | F170: 2 | G170: 0 | I170: 8
A171: MA. Ph.d. | C171: 0 | D171: 0 | E171: 0 | F171: 1 | G171: 1 | I171: 2
A172: MA. Samf. | C172: 8 | D172: 3 | E172: 0 | F172: 0 | G172: 0 | I172: 11
A173: Øvrige Mag. | C173: 0 | D173: 0 | E173: 0 | F173: 1 | G173: 1 | I173: 2
A174: Agronom | C174: 1 | D174: 1 | E174: 0 | F174: 1 | G174: 1 | I174: 4
A175: Landsk. Arkt. | C175: 0 | D175: 0 | E175: 0 | F175: 0 | G175: 0 | I175: 0
A176: Hortonom | C176: 0 | D176: 0 | E176: 0 | F176: 0 | G176: 0 | I176: 0
A177: Forstkand. | C177: 0 | D177: 0 | E177: 0 | F177: 0 | G177: 0 | I177: 0
A178: Jordbrugsakad. | C178: 1 | D178: 1 | E178: 0 | F178: 1 | G178: 1 | I178: 4
A179: Mejeriing. | C179: 0 | D179: 0 | E179: 0 | F179: 0 | G179: 0 | I179: 0
A180: Levn.m.kand. | C180: 0 | D180: 0 | E180: 0 | F180: 0 | G180: 0 | I180: 0
A181: Dyrlæge | C181: 0 | D181: 2 | E181: 1 | F181: 0 | G181: 0 | I181: 3
A182: Farmaceut | C182: 1 | D182: 1 | E182: 0 | F182: 1 | G182: 1 | I182: 4
A183: Læge | C183: 1 | D183: 0 | E183: 1 | F183: 0 | G183: 0 | I183: 2
A184: Tandlæge | C184: 0 | D184: 0 | E184: 0 | F184: 0 | G184: 0 | I184: 0
A185: Arkitekt | C185: 0 | D185: 0 | E185: 0 | F185: 1 | G185: 0 | I185: 1
A186: Landinspek. | C186: 0 | D186: 0 | E186: 0 | F186: 0 | G186: 0 | I186: 0
A187: Bibliotekar | C187: 1 | D187: 0 | E187: 1 | F187: 0 | G187: 0 | I187: 2
A188: Musikudd. | C188: 0 | D188: 0 | E188: 0 | F188: 0 | G188: 0 | I188: 0
A189: Teolog | C189: 0 | D189: 0 | E189: 0 | F189: 0 | G189: 0 | I189: 0
A190: Psykolog | C190: 1 | D190: 1 | E190: 1 | F190: 0 | G190: 0 | I190: 3
A191: Jurist | C191: 2 | D191: 0 | E191: 1 | F191: 0 | G191: 0 | I191: 3
A192: Økonom | C192: 0 | D192: 0 | E192: 1 | F192: 2 | G192: 0 | I192: 3
A193: Samf. Adm. | C193: 11 | D193: 8 | E193: 2 | F193: 3 | G193: 0 | I193: 24
A194: Cand. Merc. | C194: 5 | D194: 2 | E194: 5 | F194: 6 | G194: 2 | I194: 20
A195: HA | C195: 1 | D195: 0 | E195: 0 | F195: 1 | G195: 1 | I195: 3
A196: HD | C196: 1 | D196: 1 | E196: 0 | F196: 3 | G196: 1 | I196: 6
A197: Komm. og Sprog | C197: 4 | D197: 0 | E197: 0 | F197: 1 | G197: 3 | I197: 8
A198: Cand. IT. | C198: 1 | D198: 1 | E198: 0 | F198: 0 | G198: 0 | I198: 2
A199: Bac. Samf. | C199: 0 | D199: 0 | E199: 0 | F199: 0 | G199: 0 | I199: 0
A200: Bac. Hum. | C200: 3 | D200: 2 | E200: 1 | F200: 3 | G200: 1 | I200: 10
A201: Bac. Nat. | C201: 2 | D201: 0 | E201: 0 | F201: 0 | G201: 0 | I201: 2
A202: Andre | C202: 5 | D202: 9 | E202: 5 | F202: 5 | G202: 0 | I202: 24
A204: Total | C204: 80 | D204: 58 | E204: 38 | F204: 39 | G204: 19 | I204: 234
A206: Ingeniører i alt | C206: 4 | D206: 0 | E206: 7 | F206: 4 | G206: 6 | I206: 21
A207: Magistre i alt | C207: 22 | D207: 23 | E207: 10 | F207: 7 | G207: 3 | I207: 65
A208: DJØF'ere i alt | C208: 19 | D208: 10 | E208: 9 | F208: 12 | G208: 3 | I208: 53
A215: Solrød
C217: Under 30 år | D217: 30 - 39 år | E217: 40 - 49 år | F217: 50 - 59 år | G217: Over 60 år | I217: I alt
A219: Civ. ing. | C219: 0 | D219: 0 | E219: 0 | F219: 0 | G219: 1 | I219: 1
A220: Diplom ing. | C220: 0 | D220: 0 | E220: 1 | F220: 0 | G220: 1 | I220: 2
A221: Cand. Scient. Tek | C221: 2 | D221: 1 | E221: 0 | F221: 0 | G221: 0 | I221: 3
A222: MA. Hum. | C222: 1 | D222: 3 | E222: 0 | F222: 0 | G222: 0 | I222: 4
A223: MA. Nat. | C223: 0 | D223: 0 | E223: 0 | F223: 0 | G223: 0 | I223: 0
A224: MA. Ph.d. | C224: 0 | D224: 0 | E224: 0 | F224: 0 | G224: 0 | I224: 0
A225: MA. Samf. | C225: 1 | D225: 0 | E225: 0 | F225: 1 | G225: 0 | I225: 2
A226: Øvrige Mag. | C226: 0 | D226: 0 | E226: 0 | F226: 0 | G226: 0 | I226: 0
A227: Agronom | C227: 0 | D227: 0 | E227: 0 | F227: 0 | G227: 0 | I227: 0
A228: Landsk. Arkt. | C228: 0 | D228: 0 | E228: 0 | F228: 0 | G228: 0 | I228: 0
A229: Hortonom | C229: 0 | D229: 0 | E229: 0 | F229: 0 | G229: 0 | I229: 0
A230: Forstkand. | C230: 0 | D230: 0 | E230: 0 | F230: 0 | G230: 0 | I230: 0
A231: Jordbrugsakad. | C231: 0 | D231: 0 | E231: 0 | F231: 0 | G231: 0 | I231: 0
A232: Mejeriing. | C232: 0 | D232: 0 | E232: 0 | F232: 0 | G232: 0 | I232: 0
A233: Levn.m.kand. | C233: 0 | D233: 0 | E233: 0 | F233: 1 | G233: 0 | I233: 1
A234: Dyrlæge | C234: 0 | D234: 0 | E234: 0 | F234: 0 | G234: 0 | I234: 0
A235: Farmaceut | C235: 2 | D235: 0 | E235: 0 | F235: 0 | G235: 0 | I235: 2
A236: Læge | C236: 0 | D236: 0 | E236: 0 | F236: 0 | G236: 0 | I236: 0
A237: Tandlæge | C237: 0 | D237: 0 | E237: 0 | F237: 0 | G237: 0 | I237: 0
A238: Arkitekt | C238: 0 | D238: 0 | E238: 0 | F238: 0 | G238: 0 | I238: 0
A239: Landinspek. | C239: 0 | D239: 0 | E239: 0 | F239: 0 | G239: 0 | I239: 0
A240: Bibliotekar | C240: 0 | D240: 0 | E240: 0 | F240: 1 | G240: 0 | I240: 1
A241: Musikudd. | C241: 0 | D241: 0 | E241: 0 | F241: 0 | G241: 0 | I241: 0
A242: Teolog | C242: 0 | D242: 0 | E242: 0 | F242: 0 | G242: 0 | I242: 0
A243: Psykolog | C243: 1 | D243: 0 | E243: 0 | F243: 0 | G243: 0 | I243: 1
... 575 more rows

Sheet Tabel 4(Br) S
A1: Tabel 4. Ledighedsberørte - aldersfordelt
A3: Sjælland
C5: Under 30 år | D5: 30 - 39 år | E5: 40 - 49 år | F5: 50 - 59 år | G5: Over 60 år | I5: I alt
A7: Civ. ing. | C7: 10.50520802 | D7: 6.689951974 | E7: 3.192166157 | F7: 7.721574253 | G7: 5.711969064 | I7: 33.82086947
A8: Diplom ing. | C8: 8.307865038 | D8: 8.034054762 | E8: 13.07178943 | F8: 22.14931703 | G8: 10.73161604 | I8: 62.29464231
A9: Cand. Scient. Tek | C9: 44.77078527 | D9: 20.62121874 | E9: 6.827792678 | F9: 0.9998128859 | G9: 0.7690388574 | I9: 73.98864842
A10: MA. Hum. | C10: 49.64448326 | D10: 72.03081145 | E10: 36.2963887 | F10: 14.098422 | G10: 6.518430737 | I10: 178.5885362
A11: MA. Nat. | C11: 2.537890611 | D11: 12.1019148 | E11: 8.919104347 | F11: 6.998690201 | G11: 0 | I11: 30.55759996
A12: MA. Ph.d. | C12: 1e-08 | D12: 0 | E12: 1.677165845 | F12: 0.9998128859 | G12: 0.7690388574 | I12: 3.446017599
A13: MA. Samf. | C13: 18.22241628 | D13: 9.978793738 | E13: 2.399426183 | F13: 2.362003368 | G13: 1.999625772 | I13: 34.96226534
A14: Øvrige Mag. | C14: 1e-08 | D14: 1.288592278 | E14: 2.206698684 | F14: 4.824424624 | G14: 0.5232957026 | I14: 8.843011299
A15: Agronom | C15: 0.9998128959 | D15: 5.666437972 | E15: 0.9998128859 | F15: 0.6723632508 | G15: 4.02981351 | I15: 12.36824051
A16: Landsk. Arkt. | C16: 0.9998128959 | D16: 1.999625772 | E16: 0 | F16: 0.9998128859 | G16: 0 | I16: 3.999251554
A17: Hortonom | C17: 1e-08 | D17: 0 | E17: 0 | F17: 0 | G17: 0 | I17: 1e-08
A18: Forstkand. | C18: 1e-08 | D18: 0 | E18: 0 | F18: 0.9998128859 | G18: 0 | I18: 0.9998128959
A19: Jordbrugsakad. | C19: 1.999625812 | D19: 7.666063744 | E19: 0.9998128859 | F19: 2.671989023 | G19: 4.02981351 | I19: 17.36730497
A20: Mejeriing. | C20: 1e-08 | D20: 0 | E20: 0 | F20: 0 | G20: 0 | I20: 1e-08
A21: Levn.m.kand. | C21: 1e-08 | D21: 0.9998128859 | E21: 0 | F21: 0.9998128859 | G21: 0 | I21: 1.999625782
A22: Dyrlæge | C22: 2.23726066 | D22: 6.192852242 | E22: 1.193164099 | F22: 0.9998128859 | G22: 0 | I22: 10.62308989
A23: Farmaceut | C23: 4.192602767 | D23: 0.9998128859 | E23: 1.999625772 | F23: 1.999625772 | G23: 0.9998128859 | I23: 10.19148008
A24: Læge | C24: 3.664317355 | D24: 0.9998128859 | E24: 1.953470966 | F24: 0 | G24: 0 | I24: 6.617601208
A25: Tandlæge | C25: 1e-08 | D25: 0 | E25: 0 | F25: 0.5382648288 | G25: 0 | I25: 0.5382648388
A26: Arkitekt | C26: 1.953470976 | D26: 1.90731616 | E26: 3.999251544 | F26: 0.5756876442 | G26: 1.722696938 | I26: 10.15842326
A27: Landinspek. | C27: 1e-08 | D27: 0 | E27: 0 | F27: 0 | G27: 0 | I27: 1e-08
A28: Bibliotekar | C28: 2.937691022 | D28: 3.353084264 | E28: 4.810079212 | F28: 1.999625772 | G28: 1.999625772 | I28: 15.10010604
A29: Musikudd. | C29: 1e-08 | D29: 0 | E29: 0 | F29: 0 | G29: 0 | I29: 1e-08
A30: Teolog | C30: 1e-08 | D30: 1.675294705 | E30: 0 | F30: 2.137466475 | G30: 0 | I30: 3.81276119
A31: Psykolog | C31: 9.414332948 | D31: 5.282854113 | E31: 1.999625772 | F31: 1.491922909 | G31: 0.8052142456 | I31: 18.99394999
A32: Jurist | C32: 3.306929468 | D32: 3.69113703 | E32: 3.974303 | F32: 5.69575251 | G32: 0 | I32: 16.66812201
A33: Økonom | C33: 2.930830173 | D33: 0.9536580802 | E33: 1.953470966 | F33: 5.709474209 | G33: 1.103349342 | I33: 12.65078277
A34: Samf. Adm. | C34: 38.26295766 | D34: 22.94080958 | E34: 13.75725067 | F34: 9.832221044 | G34: 3.347470841 | I34: 88.1407098
A35: Cand. Merc. | C35: 31.40647416 | D35: 16.89889603 | E35: 17.34796981 | F35: 19.17420321 | G35: 5.924031685 | I35: 90.75157489
A36: HA | C36: 5.607185191 | D36: 1.30106655 | E36: 0 | F36: 7.773342481 | G36: 1.999625772 | I36: 16.68121999
A37: HD | C37: 7.890600646 | D37: 0.8501216242 | E37: 2.999438658 | F37: 8.683964324 | G37: 3.106717395 | I37: 23.53084265
A38: Komm. og Sprog | C38: 11.20938066 | D38: 8.996444833 | E38: 2.001496913 | F38: 6.765421319 | G38: 9.628890414 | I38: 38.60163414
A39: Cand. IT. | C39: 2.578431994 | D39: 3.953096738 | E39: 1.810640554 | F39: 0.361130169 | G39: 0 | I39: 8.703299455
A40: Bac. Samf. | C40: 1.999625782 | D40: 0 | E40: 0 | F40: 2.537890601 | G40: 0 | I40: 4.537516382
A41: Bac. Hum. | C41: 10.50084202 | D41: 1.953470966 | E41: 0.9998128859 | F41: 4.026071228 | G41: 3.977421568 | I41: 21.45761867
A42: Bac. Nat. | C42: 2.013971194 | D42: 3.674296763 | E42: 0.9998128859 | F42: 0 | G42: 0 | I42: 6.688080843
A43: Andre | C43: 16.70741596 | D43: 25.12754943 | E43: 17.16085574 | F43: 20.50583172 | G43: 9.675045219 | I43: 89.17669807
A45: Total | C45: 294.802595 | D45: 250.1627892 | E45: 154.5506144 | F45: 164.6335683 | G45: 75.34273062 | I45: 939.4922975
A47: Ingeniører i alt | C47: 18.81307306 | D47: 14.72400674 | E47: 16.26395559 | F47: 29.87089129 | G47: 16.44358511 | I47: 96.11551178
A48: Magistre i alt | C48: 70.40479017 | D48: 95.40011227 | E48: 51.49878376 | F48: 29.28335308 | G48: 9.810391068 | I48: 256.3974304
A49: DJØF'ere i alt | C49: 81.51437665 | D49: 45.78556727 | E49: 37.03299445 | F49: 48.18499345 | G49: 12.37447764 | I49: 224.8924095
A56: Greve
C58: Under 30 år | D58: 30 - 39 år | E58: 40 - 49 år | F58: 50 - 59 år | G58: Over 60 år | I58: I alt
A60: Civ. ing. | C60: 1.122684463 | D60: 0.7509511632 | E60: 0 | F60: 0 | G60: 0 | I60: 1.873635627
A61: Diplom ing. | C61: 0.9998128859 | D61: 1.999625772 | E61: 0 | F61: 3.630013098 | G61: 1.488180627 | I61: 8.117632383
A62: Cand. Scient. Tek | C62: 2.999438658 | D62: 0.9998128859 | E62: 0.9998128859 | F62: 0 | G62: 0 | I62: 4.99906443
A63: MA. Hum. | C63: 0.9998128859 | D63: 3.928771908 | E63: 1.90731616 | F63: 1.999625772 | G63: 0.9536580802 | I63: 9.789184806
A64: MA. Nat. | C64: 0 | D64: 0 | E64: 0 | F64: 0 | G64: 0 | I64: 0
A65: MA. Ph.d. | C65: 0 | D65: 0 | E65: 0 | F65: 0 | G65: 0 | I65: 0
A66: MA. Samf. | C66: 1.999625772 | D66: 0 | E66: 0.9998128859 | F66: 0 | G66: 0.9998128859 | I66: 3.999251544
A67: Øvrige Mag. | C67: 0 | D67: 0 | E67: 0.3455373293 | F67: 0.9000187114 | G67: 0 | I67: 1.245556041
A68: Agronom | C68: 0 | D68: 0 | E68: 0 | F68: 0 | G68: 0 | I68: 0
A69: Landsk. Arkt. | C69: 0.9998128859 | D69: 0 | E69: 0 | F69: 0 | G69: 0 | I69: 0.9998128859
A70: Hortonom | C70: 0 | D70: 0 | E70: 0 | F70: 0 | G70: 0 | I70: 0
A71: Forstkand. | C71: 0 | D71: 0 | E71: 0 | F71: 0 | G71: 0 | I71: 0
A72: Jordbrugsakad. | C72: 0.9998128859 | D72: 0 | E72: 0 | F72: 0 | G72: 0 | I72: 0.9998128859
A73: Mejeriing. | C73: 0 | D73: 0 | E73: 0 | F73: 0 | G73: 0 | I73: 0
A74: Levn.m.kand. | C74: 0 | D74: 0 | E74: 0 | F74: 0 | G74: 0 | I74: 0
A75: Dyrlæge | C75: 0.9998128859 | D75: 0 | E75: 0 | F75: 0 | G75: 0 | I75: 0.9998128859
A76: Farmaceut | C76: 0 | D76: 0 | E76: 0 | F76: 0 | G76: 0 | I76: 0
A77: Læge | C77: 0.4122746835 | D77: 0 | E77: 0 | F77: 0 | G77: 0 | I77: 0.4122746835
A78: Tandlæge | C78: 0 | D78: 0 | E78: 0 | F78: 0.5382648288 | G78: 0 | I78: 0.5382648288
A79: Arkitekt | C79: 1.953470966 | D79: 0 | E79: 0 | F79: 0 | G79: 0 | I79: 1.953470966
A80: Landinspek. | C80: 0 | D80: 0 | E80: 0 | F80: 0 | G80: 0 | I80: 0
A81: Bibliotekar | C81: 0 | D81: 0 | E81: 0 | F81: 0 | G81: 0 | I81: 0
A82: Musikudd. | C82: 0 | D82: 0 | E82: 0 | F82: 0 | G82: 0 | I82: 0
A83: Teolog | C83: 0 | D83: 0 | E83: 0 | F83: 0 | G83: 0 | I83: 0
A84: Psykolog | C84: 0.9998128859 | D84: 0 | E84: 0 | F84: 0 | G84: 0 | I84: 0.9998128859
A85: Jurist | C85: 0 | D85: 0.2613359945 | E85: 0 | F85: 0.7228840516 | G85: 0 | I85: 0.9842200462
A86: Økonom | C86: 0 | D86: 0 | E86: 0 | F86: 0 | G86: 0 | I86: 0
A87: Samf. Adm. | C87: 5.018399551 | D87: 2.537890601 | E87: 0.9998128859 | F87: 0 | G87: 0 | I87: 8.556103037
A88: Cand. Merc. | C88: 6.370610616 | D88: 2.890912493 | E88: 0.1602943928 | F88: 0.9998128859 | G88: 0.9998128859 | I88: 11.42144327
A89: HA | C89: 0.9998128859 | D89: 0 | E89: 0 | F89: 2.753695503 | G89: 0 | I89: 3.753508389
A90: HD | C90: 0.9998128859 | D90: 0 | E90: 0 | F90: 1.90731616 | G90: 0 | I90: 2.907129046
A91: Komm. og Sprog | C91: 0.9998128859 | D91: 0 | E91: 0.4459552174 | F91: 0 | G91: 0 | I91: 1.445768103
A92: Cand. IT. | C92: 0 | D92: 0 | E92: 0 | F92: 0 | G92: 0 | I92: 0
A93: Bac. Samf. | C93: 0 | D93: 0 | E93: 0 | F93: 0 | G93: 0 | I93: 0
A94: Bac. Hum. | C94: 0 | D94: 0 | E94: 0 | F94: 0 | G94: 0.5382648288 | I94: 0.5382648288
A95: Bac. Nat. | C95: 0 | D95: 0 | E95: 0.9998128859 | F95: 0 | G95: 0 | I95: 0.9998128859
A96: Andre | C96: 1.953470966 | D96: 2.722509823 | E96: 0.9998128859 | F96: 0.5382648288 | G96: 0 | I96: 6.214058504
A98: Total | C98: 29.82847876 | D98: 16.09181064 | E98: 7.858167529 | F98: 13.98989584 | G98: 4.979729308 | I98: 72.74808208
A100: Ingeniører i alt | C100: 2.122497349 | D100: 2.750576935 | E100: 0 | F100: 3.630013098 | G100: 1.488180627 | I100: 9.99126801
A101: Magistre i alt | C101: 2.999438658 | D101: 3.928771908 | E101: 3.252666376 | F101: 2.899644483 | G101: 1.953470966 | I101: 15.03399239
A102: DJØF'ere i alt | C102: 12.38882305 | D102: 5.690139088 | E102: 1.160107279 | F102: 4.476392441 | G102: 0.9998128859 | I102: 24.71527475
A109: Køge
C111: Under 30 år | D111: 30 - 39 år | E111: 40 - 49 år | F111: 50 - 59 år | G111: Over 60 år | I111: I alt
A113: Civ. ing. | C113: 2.999438658 | D113: 0.9998128859 | E113: 0.9998128859 | F113: 0 | G113: 0 | I113: 4.99906443
A114: Diplom ing. | C114: 0 | D114: 1.503149754 | E114: 0.9998128859 | F114: 2.676355018 | G114: 1.861161355 | I114: 7.040479012
A115: Cand. Scient. Tek | C115: 4.784506954 | D115: 3.953096738 | E115: 0.9998128859 | F115: 0 | G115: 0 | I115: 9.737416578
A116: MA. Hum. | C116: 2.814819435 | D116: 4.695315911 | E116: 2.676355018 | F116: 0 | G116: 0 | I116: 10.18649036
A117: MA. Nat. | C117: 0 | D117: 1.999625772 | E117: 0.9592715025 | F117: 0 | G117: 0 | I117: 2.958897274
A118: MA. Ph.d. | C118: 0 | D118: 0 | E118: 0 | F118: 0 | G118: 0 | I118: 0
A119: MA. Samf. | C119: 3.999251544 | D119: 0 | E119: 0 | F119: 0 | G119: 0 | I119: 3.999251544
A120: Øvrige Mag. | C120: 0 | D120: 0.9998128859 | E120: 0.9998128859 | F120: 0.9998128859 | G120: 0 | I120: 2.999438658
A121: Agronom | C121: 0 | D121: 1.313540822 | E121: 0 | F121: 0 | G121: 0.8151936631 | I121: 2.128734485
A122: Landsk. Arkt. | C122: 0 | D122: 0 | E122: 0 | F122: 0 | G122: 0 | I122: 0
A123: Hortonom | C123: 0 | D123: 0 | E123: 0 | F123: 0 | G123: 0 | I123: 0
A124: Forstkand. | C124: 0 | D124: 0 | E124: 0 | F124: 0 | G124: 0 | I124: 0
A125: Jordbrugsakad. | C125: 0 | D125: 1.313540822 | E125: 0 | F125: 0 | G125: 0.8151936631 | I125: 2.128734485
A126: Mejeriing. | C126: 0 | D126: 0 | E126: 0 | F126: 0 | G126: 0 | I126: 0
A127: Levn.m.kand. | C127: 0 | D127: 0 | E127: 0 | F127: 0 | G127: 0 | I127: 0
A128: Dyrlæge | C128: 0.7690388574 | D128: 0 | E128: 0 | F128: 0 | G128: 0 | I128: 0.7690388574
A129: Farmaceut | C129: 0.9998128859 | D129: 0 | E129: 0.9998128859 | F129: 0 | G129: 0 | I129: 1.999625772
A130: Læge | C130: 0 | D130: 0 | E130: 0 | F130: 0 | G130: 0 | I130: 0
A131: Tandlæge | C131: 0 | D131: 0 | E131: 0 | F131: 0 | G131: 0 | I131: 0
A132: Arkitekt | C132: 0 | D132: 0 | E132: 0 | F132: 0 | G132: 0 | I132: 0
A133: Landinspek. | C133: 0 | D133: 0 | E133: 0 | F133: 0 | G133: 0 | I133: 0
A134: Bibliotekar | C134: 0 | D134: 0 | E134: 0 | F134: 0 | G134: 0.9998128859 | I134: 0.9998128859
A135: Musikudd. | C135: 0 | D135: 0 | E135: 0 | F135: 0 | G135: 0 | I135: 0
A136: Teolog | C136: 0 | D136: 0.6754818187 | E136: 0 | F136: 0 | G136: 0 | I136: 0.6754818187
A137: Psykolog | C137: 0.9998128859 | D137: 1.694006112 | E137: 0 | F137: 0.7228840516 | G137: 0 | I137: 3.41670305
A138: Jurist | C138: 0 | D138: 1.999625772 | E138: 0 | F138: 0.9998128859 | G138: 0 | I138: 2.999438658
A139: Økonom | C139: 0.5382648288 | D139: 0 | E139: 0 | F139: 0.9998128859 | G139: 0 | I139: 1.538077715
A140: Samf. Adm. | C140: 3.445393875 | D140: 1.999625772 | E140: 0 | F140: 1.953470966 | G140: 0.3480321836 | I140: 7.746522797
A141: Cand. Merc. | C141: 1.417077278 | D141: 2.974490114 | E141: 2.429988149 | F141: 1.999625772 | G141: 0.9998128859 | I141: 9.820994199
A142: HA | C142: 0 | D142: 0 | E142: 0 | F142: 0 | G142: 0 | I142: 0
A143: HD | C143: 1.445768103 | D143: 0 | E143: 0 | F143: 0 | G143: 0 | I143: 1.445768103
A144: Komm. og Sprog | C144: 0.4921100231 | D144: 2.768664629 | E144: 0 | F144: 2.860974241 | G144: 0.9998128859 | I144: 7.121561779
A145: Cand. IT. | C145: 0.5788062122 | D145: 0 | E145: 0 | F145: 0 | G145: 0 | I145: 0.5788062122
A146: Bac. Samf. | C146: 0.9998128859 | D146: 0 | E146: 0 | F146: 0 | G146: 0 | I146: 0.9998128859
A147: Bac. Hum. | C147: 2.216054388 | D147: 0 | E147: 0 | F147: 0 | G147: 0 | I147: 2.216054388
A148: Bac. Nat. | C148: 0 | D148: 0.9499157987 | E148: 0 | F148: 0 | G148: 0 | I148: 0.9499157987
A149: Andre | C149: 0.9998128859 | D149: 1.788810578 | E149: 0 | F149: 5.504272438 | G149: 0 | I149: 8.292895902
A151: Total | C151: 29.4997817 | D151: 30.31497536 | E151: 11.0646791 | F151: 18.71702114 | G151: 6.023825859 | I151: 95.62028317
A153: Ingeniører i alt | C153: 2.999438658 | D153: 2.50296264 | E153: 1.999625772 | F153: 2.676355018 | G153: 1.861161355 | I153: 12.03954344
A154: Magistre i alt | C154: 6.814070979 | D154: 7.694754569 | E154: 4.635439406 | F154: 0.9998128859 | G154: 0 | I154: 20.14407784
A155: DJØF'ere i alt | C155: 5.400735982 | D155: 6.973741658 | E155: 2.429988149 | F155: 5.95272251 | G155: 1.34784507 | I155: 22.10503337
A162: Roskilde
C164: Under 30 år | D164: 30 - 39 år | E164: 40 - 49 år | F164: 50 - 59 år | G164: Over 60 år | I164: I alt
A166: Civ. ing. | C166: 0.3074908002 | D166: 0 | E166: 1.192540385 | F166: 0.9998128859 | G166: 2.98945924 | I166: 5.489303312
A167: Diplom ing. | C167: 2.400673611 | D167: 0 | E167: 3.904447078 | F167: 2.999438658 | G167: 2.999438658 | I167: 12.303998
A168: Cand. Scient. Tek | C168: 13.15474334 | D168: 5.424437098 | E168: 1.999625772 | F168: 0.9998128859 | G168: 0 | I168: 21.5786191
A169: MA. Hum. | C169: 8.735108838 | D169: 16.20657394 | E169: 8.071477577 | F169: 2.999438658 | G169: 0.9998128859 | I169: 37.0124119
A170: MA. Nat. | C170: 2.537890601 | D170: 1.999625772 | E170: 0.9998128859 | F170: 1.999625772 | G170: 0 | I170: 7.53695503
A171: MA. Ph.d. | C171: 0 | D171: 0 | E171: 0 | F171: 0.9998128859 | G171: 0.7690388574 | I171: 1.768851743
A172: MA. Samf. | C172: 7.444645419 | D172: 2.723133537 | E172: 0 | F172: 0 | G172: 0 | I172: 10.16777896
A173: Øvrige Mag. | C173: 0 | D173: 0 | E173: 0 | F173: 0.9998128859 | G173: 0.5232957026 | I173: 1.523108589
A174: Agronom | C174: 0.9998128859 | D174: 0.9998128859 | E174: 0 | F174: 0.6723632508 | G174: 0.3074908002 | I174: 2.979479823
A175: Landsk. Arkt. | C175: 0 | D175: 0 | E175: 0 | F175: 0 | G175: 0 | I175: 0
A176: Hortonom | C176: 0 | D176: 0 | E176: 0 | F176: 0 | G176: 0 | I176: 0
A177: Forstkand. | C177: 0 | D177: 0 | E177: 0 | F177: 0 | G177: 0 | I177: 0
A178: Jordbrugsakad. | C178: 0.9998128859 | D178: 0.9998128859 | E178: 0 | F178: 0.6723632508 | G178: 0.3074908002 | I178: 2.979479823
A179: Mejeriing. | C179: 0 | D179: 0 | E179: 0 | F179: 0 | G179: 0 | I179: 0
A180: Levn.m.kand. | C180: 0 | D180: 0 | E180: 0 | F180: 0 | G180: 0 | I180: 0
A181: Dyrlæge | C181: 0 | D181: 1.74577434 | E181: 0.1933512131 | F181: 0 | G181: 0 | I181: 1.939125554
A182: Farmaceut | C182: 0.8151936631 | D182: 0.9998128859 | E182: 0 | F182: 0.9998128859 | G182: 0.9998128859 | I182: 3.814632321
A183: Læge | C183: 0.9075032745 | D183: 0 | E183: 0.9998128859 | F183: 0 | G183: 0 | I183: 1.90731616
A184: Tandlæge | C184: 0 | D184: 0 | E184: 0 | F184: 0 | G184: 0 | I184: 0
A185: Arkitekt | C185: 0 | D185: 0 | E185: 0 | F185: 0.5756876442 | G185: 0 | I185: 0.5756876442
A186: Landinspek. | C186: 0 | D186: 0 | E186: 0 | F186: 0 | G186: 0 | I186: 0
A187: Bibliotekar | C187: 0.9998128859 | D187: 0 | E187: 0.8108276679 | F187: 0 | G187: 0 | I187: 1.810640554
A188: Musikudd. | C188: 0 | D188: 0 | E188: 0 | F188: 0 | G188: 0 | I188: 0
A189: Teolog | C189: 0 | D189: 0 | E189: 0 | F189: 0 | G189: 0 | I189: 0
A190: Psykolog | C190: 0.9998128859 | D190: 0.5894093432 | E190: 0.9998128859 | F190: 0 | G190: 0 | I190: 2.589035115
A191: Jurist | C191: 1.307303686 | D191: 0 | E191: 0.9998128859 | F191: 0 | G191: 0 | I191: 2.307116572
A192: Økonom | C192: 0 | D192: 0 | E192: 0.9536580802 | F192: 1.9871515 | G192: 0 | I192: 2.94080958
A193: Samf. Adm. | C193: 10.41788811 | D193: 6.675606561 | E193: 1.953470966 | F193: 2.999438658 | G193: 0 | I193: 22.04640429
A194: Cand. Merc. | C194: 4.99906443 | D194: 1.953470966 | E194: 4.075968315 | F194: 5.860412898 | G194: 1.017276866 | I194: 17.90619348
A195: HA | C195: 0.9998128859 | D195: 0 | E195: 0 | F195: 0.9998128859 | G195: 0.9998128859 | I195: 2.999438658
A196: HD | C196: 0.9536580802 | D196: 0.8501216242 | E196: 0 | F196: 2.838520551 | G196: 0.7690388574 | I196: 5.411339113
A197: Komm. og Sprog | C197: 3.999251544 | D197: 0 | E197: 0 | F197: 0.8126988087 | G197: 2.907129046 | I197: 7.719079399
A198: Cand. IT. | C198: 0.9998128859 | D198: 0.9998128859 | E198: 0 | F198: 0 | G198: 0 | I198: 1.999625772
A199: Bac. Samf. | C199: 0 | D199: 0 | E199: 0 | F199: 0 | G199: 0 | I199: 0
A200: Bac. Hum. | C200: 2.814819435 | D200: 1.953470966 | E200: 0.9998128859 | F200: 2.026445456 | G200: 0.9998128859 | I200: 8.794361629
A201: Bac. Nat. | C201: 1.353458492 | D201: 0 | E201: 0 | F201: 0 | G201: 0 | I201: 1.353458492
A202: Andre | C202: 4.549990644 | D202: 8.380839518 | E202: 4.456433606 | F202: 4.629825984 | G202: 0 | I202: 22.01708975
A204: Total | C204: 71.69774839 | D204: 51.50190233 | E204: 32.61086509 | F204: 36.39992515 | G204: 16.28141957 | I204: 208.4918605
A206: Ingeniører i alt | C206: 2.708164411 | D206: 0 | E206: 5.096987463 | F206: 3.999251544 | G206: 5.988897898 | I206: 17.79330132
A207: Magistre i alt | C207: 18.71764486 | D207: 20.92933325 | E207: 9.071290463 | F207: 6.998690201 | G207: 2.292147446 | I207: 58.00910622
A208: DJØF'ere i alt | C208: 17.72406911 | D208: 8.629077528 | E208: 7.982910248 | F208: 11.84681594 | G208: 2.017089752 | I208: 48.19996258
A215: Solrød
C217: Under 30 år | D217: 30 - 39 år | E217: 40 - 49 år | F217: 50 - 59 år | G217: Over 60 år | I217: I alt
A219: Civ. ing. | C219: 0 | D219: 0 | E219: 0 | F219: 0 | G219: 0.9536580802 | I219: 0.9536580802
A220: Diplom ing. | C220: 0 | D220: 0 | E220: 0.9998128859 | F220: 0 | G220: 0.9075032745 | I220: 1.90731616
A221: Cand. Scient. Tek | C221: 1.999625772 | D221: 0.9998128859 | E221: 0 | F221: 0 | G221: 0 | I221: 2.999438658
A222: MA. Hum. | C222: 0.8151936631 | D222: 2.716272688 | E222: 0 | F222: 0 | G222: 0 | I222: 3.531466351
A223: MA. Nat. | C223: 0 | D223: 0 | E223: 0 | F223: 0 | G223: 0 | I223: 0
A224: MA. Ph.d. | C224: 0 | D224: 0 | E224: 0 | F224: 0 | G224: 0 | I224: 0
A225: MA. Samf. | C225: 0.1185055822 | D225: 0 | E225: 0 | F225: 0.9998128859 | G225: 0 | I225: 1.118318468
A226: Øvrige Mag. | C226: 0 | D226: 0 | E226: 0 | F226: 0 | G226: 0 | I226: 0
A227: Agronom | C227: 0 | D227: 0 | E227: 0 | F227: 0 | G227: 0 | I227: 0
A228: Landsk. Arkt. | C228: 0 | D228: 0 | E228: 0 | F228: 0 | G228: 0 | I228: 0
A229: Hortonom | C229: 0 | D229: 0 | E229: 0 | F229: 0 | G229: 0 | I229: 0
A230: Forstkand. | C230: 0 | D230: 0 | E230: 0 | F230: 0 | G230: 0 | I230: 0
A231: Jordbrugsakad. | C231: 0 | D231: 0 | E231: 0 | F231: 0 | G231: 0 | I231: 0
A232: Mejeriing. | C232: 0 | D232: 0 | E232: 0 | F232: 0 | G232: 0 | I232: 0
A233: Levn.m.kand. | C233: 0 | D233: 0 | E233: 0 | F233: 0.9998128859 | G233: 0 | I233: 0.9998128859
A234: Dyrlæge | C234: 0 | D234: 0 | E234: 0 | F234: 0 | G234: 0 | I234: 0
A235: Farmaceut | C235: 1.513129171 | D235: 0 | E235: 0 | F235: 0 | G235: 0 | I235: 1.513129171
A236: Læge | C236: 0 | D236: 0 | E236: 0 | F236: 0 | G236: 0 | I236: 0
A237: Tandlæge | C237: 0 | D237: 0 | E237: 0 | F237: 0 | G237: 0 | I237: 0
A238: Arkitekt | C238: 0 | D238: 0 | E238: 0 | F238: 0 | G238: 0 | I238: 0
A239: Landinspek. | C239: 0 | D239: 0 | E239: 0 | F239: 0 | G239: 0 | I239: 0
A240: Bibliotekar | C240: 0 | D240: 0 | E240: 0 | F240: 0.9998128859 | G240: 0 | I240: 0.9998128859
A241: Musikudd. | C241: 0 | D241: 0 | E241: 0 | F241: 0 | G241: 0 | I241: 0
A242: Teolog | C242: 0 | D242: 0 | E242: 0 | F242: 0 | G242: 0 | I242: 0
A243: Psykolog | C243: 0.9998128859 | D243: 0 | E243: 0 | F243: 0 | G243: 0 | I243: 0.9998128859
... 575 more rows

Sheet Tabel 4P S
A1: Tabel 4. Ledighedsberørte - aldersfordelt
A3: Sjælland
C5: Under 30 år | D5: 30 - 39 år | E5: 40 - 49 år | F5: 50 - 59 år | G5: Over 60 år | I5: I alt
A7: Civ. ing. | C7: =IF(OR('Tabel 4F S'!C7<5,'Tabel 4 S'!C7<0.5),"-",IFERROR('Tabel 4 S'!C7/'Tabel 4F S'!C7*100,"-")) -> 8.790540541 | D7: =IF(OR('Tabel 4F S'!D7<5,'Tabel 4 S'!D7<0.5),"-",IFERROR('Tabel 4 S'!D7/'Tabel 4F S'!D7*100,"-")) -> 1.523809524 | E7: =IF(OR('Tabel 4F S'!E7<5,'Tabel 4 S'!E7<0.5),"-",IFERROR('Tabel 4 S'!E7/'Tabel 4F S'!E7*100,"-")) -> 0.6339144216 | F7: =IF(OR('Tabel 4F S'!F7<5,'Tabel 4 S'!F7<0.5),"-",IFERROR('Tabel 4 S'!F7/'Tabel 4F S'!F7*100,"-")) -> 1.18694362 | G7: =IF(OR('Tabel 4F S'!G7<5,'Tabel 4 S'!G7<0.5),"-",IFERROR('Tabel 4 S'!G7/'Tabel 4F S'!G7*100,"-")) -> 3.428571429 | I7: =IF(OR('Tabel 4F S'!I7<5,'Tabel 4 S'!I7<0.5),"-",IFERROR('Tabel 4 S'!I7/'Tabel 4F S'!I7*100,"-")) -> 1.811890386
A8: Diplom ing. | C8: =IF(OR('Tabel 4F S'!C8<5,'Tabel 4 S'!C8<0.5),"-",IFERROR('Tabel 4 S'!C8/'Tabel 4F S'!C8*100,"-")) -> 5.268421053 | D8: =IF(OR('Tabel 4F S'!D8<5,'Tabel 4 S'!D8<0.5),"-",IFERROR('Tabel 4 S'!D8/'Tabel 4F S'!D8*100,"-")) -> 1.7208413 | E8: =IF(OR('Tabel 4F S'!E8<5,'Tabel 4 S'!E8<0.5),"-",IFERROR('Tabel 4 S'!E8/'Tabel 4F S'!E8*100,"-")) -> 1.322751323 | F8: =IF(OR('Tabel 4F S'!F8<5,'Tabel 4 S'!F8<0.5),"-",IFERROR('Tabel 4 S'!F8/'Tabel 4F S'!F8*100,"-")) -> 1.578947368 | G8: =IF(OR('Tabel 4F S'!G8<5,'Tabel 4 S'!G8<0.5),"-",IFERROR('Tabel 4 S'!G8/'Tabel 4F S'!G8*100,"-")) -> 2.977667494 | I8: =IF(OR('Tabel 4F S'!I8<5,'Tabel 4 S'!I8<0.5),"-",IFERROR('Tabel 4 S'!I8/'Tabel 4F S'!I8*100,"-")) -> 1.857029178
A9: Cand. Scient. Tek | C9: =IF(OR('Tabel 4F S'!C9<5,'Tabel 4 S'!C9<0.5),"-",IFERROR('Tabel 4 S'!C9/'Tabel 4F S'!C9*100,"-")) -> 20.9650655 | D9: =IF(OR('Tabel 4F S'!D9<5,'Tabel 4 S'!D9<0.5),"-",IFERROR('Tabel 4 S'!D9/'Tabel 4F S'!D9*100,"-")) -> 5.091649695 | E9: =IF(OR('Tabel 4F S'!E9<5,'Tabel 4 S'!E9<0.5),"-",IFERROR('Tabel 4 S'!E9/'Tabel 4F S'!E9*100,"-")) -> 3.03030303 | F9: =IF(OR('Tabel 4F S'!F9<5,'Tabel 4 S'!F9<0.5),"-",IFERROR('Tabel 4 S'!F9/'Tabel 4F S'!F9*100,"-")) -> 1.111111111 | G9: =IF(OR('Tabel 4F S'!G9<5,'Tabel 4 S'!G9<0.5),"-",IFERROR('Tabel 4 S'!G9/'Tabel 4F S'!G9*100,"-")) -> 5 | I9: =IF(OR('Tabel 4F S'!I9<5,'Tabel 4 S'!I9<0.5),"-",IFERROR('Tabel 4 S'!I9/'Tabel 4F S'!I9*100,"-")) -> 7.729500471
A10: MA. Hum. | C10: =IF(OR('Tabel 4F S'!C10<5,'Tabel 4 S'!C10<0.5),"-",IFERROR('Tabel 4 S'!C10/'Tabel 4F S'!C10*100,"-")) -> 23.83404255 | D10: =IF(OR('Tabel 4F S'!D10<5,'Tabel 4 S'!D10<0.5),"-",IFERROR('Tabel 4 S'!D10/'Tabel 4F S'!D10*100,"-")) -> 9.584295612 | E10: =IF(OR('Tabel 4F S'!E10<5,'Tabel 4 S'!E10<0.5),"-",IFERROR('Tabel 4 S'!E10/'Tabel 4F S'!E10*100,"-")) -> 3.842459174 | F10: =IF(OR('Tabel 4F S'!F10<5,'Tabel 4 S'!F10<0.5),"-",IFERROR('Tabel 4 S'!F10/'Tabel 4F S'!F10*100,"-")) -> 3.289473684 | G10: =IF(OR('Tabel 4F S'!G10<5,'Tabel 4 S'!G10<0.5),"-",IFERROR('Tabel 4 S'!G10/'Tabel 4F S'!G10*100,"-")) -> 3.361344538 | I10: =IF(OR('Tabel 4F S'!I10<5,'Tabel 4 S'!I10<0.5),"-",IFERROR('Tabel 4 S'!I10/'Tabel 4F S'!I10*100,"-")) -> 7.123060649
A11: MA. Nat. | C11: =IF(OR('Tabel 4F S'!C11<5,'Tabel 4 S'!C11<0.5),"-",IFERROR('Tabel 4 S'!C11/'Tabel 4F S'!C11*100,"-")) -> 6.840909091 | D11: =IF(OR('Tabel 4F S'!D11<5,'Tabel 4 S'!D11<0.5),"-",IFERROR('Tabel 4 S'!D11/'Tabel 4F S'!D11*100,"-")) -> 4.779411765 | E11: =IF(OR('Tabel 4F S'!E11<5,'Tabel 4 S'!E11<0.5),"-",IFERROR('Tabel 4 S'!E11/'Tabel 4F S'!E11*100,"-")) -> 1.84501845 | F11: =IF(OR('Tabel 4F S'!F11<5,'Tabel 4 S'!F11<0.5),"-",IFERROR('Tabel 4 S'!F11/'Tabel 4F S'!F11*100,"-")) -> 1.75 | G11: =IF(OR('Tabel 4F S'!G11<5,'Tabel 4 S'!G11<0.5),"-",IFERROR('Tabel 4 S'!G11/'Tabel 4F S'!G11*100,"-")) -> - | I11: =IF(OR('Tabel 4F S'!I11<5,'Tabel 4 S'!I11<0.5),"-",IFERROR('Tabel 4 S'!I11/'Tabel 4F S'!I11*100,"-")) -> 2.32137834
A12: MA. Ph.d. | C12: =IF(OR('Tabel 4F S'!C12<5,'Tabel 4 S'!C12<0.5),"-",IFERROR('Tabel 4 S'!C12/'Tabel 4F S'!C12*100,"-")) -> - | D12: =IF(OR('Tabel 4F S'!D12<5,'Tabel 4 S'!D12<0.5),"-",IFERROR('Tabel 4 S'!D12/'Tabel 4F S'!D12*100,"-")) -> - | E12: =IF(OR('Tabel 4F S'!E12<5,'Tabel 4 S'!E12<0.5),"-",IFERROR('Tabel 4 S'!E12/'Tabel 4F S'!E12*100,"-")) -> 4.166666667 | F12: =IF(OR('Tabel 4F S'!F12<5,'Tabel 4 S'!F12<0.5),"-",IFERROR('Tabel 4 S'!F12/'Tabel 4F S'!F12*100,"-")) -> 2.5 | G12: =IF(OR('Tabel 4F S'!G12<5,'Tabel 4 S'!G12<0.5),"-",IFERROR('Tabel 4 S'!G12/'Tabel 4F S'!G12*100,"-")) -> 7.692307692 | I12: =IF(OR('Tabel 4F S'!I12<5,'Tabel 4 S'!I12<0.5),"-",IFERROR('Tabel 4 S'!I12/'Tabel 4F S'!I12*100,"-")) -> 2.864285714
A13: MA. Samf. | C13: =IF(OR('Tabel 4F S'!C13<5,'Tabel 4 S'!C13<0.5),"-",IFERROR('Tabel 4 S'!C13/'Tabel 4F S'!C13*100,"-")) -> 33.34920635 | D13: =IF(OR('Tabel 4F S'!D13<5,'Tabel 4 S'!D13<0.5),"-",IFERROR('Tabel 4 S'!D13/'Tabel 4F S'!D13*100,"-")) -> 8.088235294 | E13: =IF(OR('Tabel 4F S'!E13<5,'Tabel 4 S'!E13<0.5),"-",IFERROR('Tabel 4 S'!E13/'Tabel 4F S'!E13*100,"-")) -> 3.658536585 | F13: =IF(OR('Tabel 4F S'!F13<5,'Tabel 4 S'!F13<0.5),"-",IFERROR('Tabel 4 S'!F13/'Tabel 4F S'!F13*100,"-")) -> 7.5 | G13: =IF(OR('Tabel 4F S'!G13<5,'Tabel 4 S'!G13<0.5),"-",IFERROR('Tabel 4 S'!G13/'Tabel 4F S'!G13*100,"-")) -> 10.52631579 | I13: =IF(OR('Tabel 4F S'!I13<5,'Tabel 4 S'!I13<0.5),"-",IFERROR('Tabel 4 S'!I13/'Tabel 4F S'!I13*100,"-")) -> 11.76764706
A14: Øvrige Mag. | C14: =IF(OR('Tabel 4F S'!C14<5,'Tabel 4 S'!C14<0.5),"-",IFERROR('Tabel 4 S'!C14/'Tabel 4F S'!C14*100,"-")) -> - | D14: =IF(OR('Tabel 4F S'!D14<5,'Tabel 4 S'!D14<0.5),"-",IFERROR('Tabel 4 S'!D14/'Tabel 4F S'!D14*100,"-")) -> 6.25 | E14: =IF(OR('Tabel 4F S'!E14<5,'Tabel 4 S'!E14<0.5),"-",IFERROR('Tabel 4 S'!E14/'Tabel 4F S'!E14*100,"-")) -> 3.571428571 | F14: =IF(OR('Tabel 4F S'!F14<5,'Tabel 4 S'!F14<0.5),"-",IFERROR('Tabel 4 S'!F14/'Tabel 4F S'!F14*100,"-")) -> 5.882352941 | G14: =IF(OR('Tabel 4F S'!G14<5,'Tabel 4 S'!G14<0.5),"-",IFERROR('Tabel 4 S'!G14/'Tabel 4F S'!G14*100,"-")) -> 2.941176471 | I14: =IF(OR('Tabel 4F S'!I14<5,'Tabel 4 S'!I14<0.5),"-",IFERROR('Tabel 4 S'!I14/'Tabel 4F S'!I14*100,"-")) -> 4.493877551
A15: Agronom | C15: =IF(OR('Tabel 4F S'!C15<5,'Tabel 4 S'!C15<0.5),"-",IFERROR('Tabel 4 S'!C15/'Tabel 4F S'!C15*100,"-")) -> 10.1 | D15: =IF(OR('Tabel 4F S'!D15<5,'Tabel 4 S'!D15<0.5),"-",IFERROR('Tabel 4 S'!D15/'Tabel 4F S'!D15*100,"-")) -> 12.5 | E15: =IF(OR('Tabel 4F S'!E15<5,'Tabel 4 S'!E15<0.5),"-",IFERROR('Tabel 4 S'!E15/'Tabel 4F S'!E15*100,"-")) -> 0.7407407407 | F15: =IF(OR('Tabel 4F S'!F15<5,'Tabel 4 S'!F15<0.5),"-",IFERROR('Tabel 4 S'!F15/'Tabel 4F S'!F15*100,"-")) -> 0.5524861878 | G15: =IF(OR('Tabel 4F S'!G15<5,'Tabel 4 S'!G15<0.5),"-",IFERROR('Tabel 4 S'!G15/'Tabel 4F S'!G15*100,"-")) -> 6.756756757 | I15: =IF(OR('Tabel 4F S'!I15<5,'Tabel 4 S'!I15<0.5),"-",IFERROR('Tabel 4 S'!I15/'Tabel 4F S'!I15*100,"-")) -> 3.291666667
A16: Landsk. Arkt. | C16: =IF(OR('Tabel 4F S'!C16<5,'Tabel 4 S'!C16<0.5),"-",IFERROR('Tabel 4 S'!C16/'Tabel 4F S'!C16*100,"-")) -> 20.2 | D16: =IF(OR('Tabel 4F S'!D16<5,'Tabel 4 S'!D16<0.5),"-",IFERROR('Tabel 4 S'!D16/'Tabel 4F S'!D16*100,"-")) -> 8.695652174 | E16: =IF(OR('Tabel 4F S'!E16<5,'Tabel 4 S'!E16<0.5),"-",IFERROR('Tabel 4 S'!E16/'Tabel 4F S'!E16*100,"-")) -> - | F16: =IF(OR('Tabel 4F S'!F16<5,'Tabel 4 S'!F16<0.5),"-",IFERROR('Tabel 4 S'!F16/'Tabel 4F S'!F16*100,"-")) -> 4 | G16: =IF(OR('Tabel 4F S'!G16<5,'Tabel 4 S'!G16<0.5),"-",IFERROR('Tabel 4 S'!G16/'Tabel 4F S'!G16*100,"-")) -> - | I16: =IF(OR('Tabel 4F S'!I16<5,'Tabel 4 S'!I16<0.5),"-",IFERROR('Tabel 4 S'!I16/'Tabel 4F S'!I16*100,"-")) -> 4.050505051
A17: Hortonom | C17: =IF(OR('Tabel 4F S'!C17<5,'Tabel 4 S'!C17<0.5),"-",IFERROR('Tabel 4 S'!C17/'Tabel 4F S'!C17*100,"-")) -> - | D17: =IF(OR('Tabel 4F S'!D17<5,'Tabel 4 S'!D17<0.5),"-",IFERROR('Tabel 4 S'!D17/'Tabel 4F S'!D17*100,"-")) -> - | E17: =IF(OR('Tabel 4F S'!E17<5,'Tabel 4 S'!E17<0.5),"-",IFERROR('Tabel 4 S'!E17/'Tabel 4F S'!E17*100,"-")) -> - | F17: =IF(OR('Tabel 4F S'!F17<5,'Tabel 4 S'!F17<0.5),"-",IFERROR('Tabel 4 S'!F17/'Tabel 4F S'!F17*100,"-")) -> - | G17: =IF(OR('Tabel 4F S'!G17<5,'Tabel 4 S'!G17<0.5),"-",IFERROR('Tabel 4 S'!G17/'Tabel 4F S'!G17*100,"-")) -> - | I17: =IF(OR('Tabel 4F S'!I17<5,'Tabel 4 S'!I17<0.5),"-",IFERROR('Tabel 4 S'!I17/'Tabel 4F S'!I17*100,"-")) -> -
A18: Forstkand. | C18: =IF(OR('Tabel 4F S'!C18<5,'Tabel 4 S'!C18<0.5),"-",IFERROR('Tabel 4 S'!C18/'Tabel 4F S'!C18*100,"-")) -> - | D18: =IF(OR('Tabel 4F S'!D18<5,'Tabel 4 S'!D18<0.5),"-",IFERROR('Tabel 4 S'!D18/'Tabel 4F S'!D18*100,"-")) -> - | E18: =IF(OR('Tabel 4F S'!E18<5,'Tabel 4 S'!E18<0.5),"-",IFERROR('Tabel 4 S'!E18/'Tabel 4F S'!E18*100,"-")) -> - | F18: =IF(OR('Tabel 4F S'!F18<5,'Tabel 4 S'!F18<0.5),"-",IFERROR('Tabel 4 S'!F18/'Tabel 4F S'!F18*100,"-")) -> 6.25 | G18: =IF(OR('Tabel 4F S'!G18<5,'Tabel 4 S'!G18<0.5),"-",IFERROR('Tabel 4 S'!G18/'Tabel 4F S'!G18*100,"-")) -> - | I18: =IF(OR('Tabel 4F S'!I18<5,'Tabel 4 S'!I18<0.5),"-",IFERROR('Tabel 4 S'!I18/'Tabel 4F S'!I18*100,"-")) -> 1.346666667
A19: Jordbrugsakad. | C19: =IF(OR('Tabel 4F S'!C19<5,'Tabel 4 S'!C19<0.5),"-",IFERROR('Tabel 4 S'!C19/'Tabel 4F S'!C19*100,"-")) -> 10.2 | D19: =IF(OR('Tabel 4F S'!D19<5,'Tabel 4 S'!D19<0.5),"-",IFERROR('Tabel 4 S'!D19/'Tabel 4F S'!D19*100,"-")) -> 9.375 | E19: =IF(OR('Tabel 4F S'!E19<5,'Tabel 4 S'!E19<0.5),"-",IFERROR('Tabel 4 S'!E19/'Tabel 4F S'!E19*100,"-")) -> 0.4545454545 | F19: =IF(OR('Tabel 4F S'!F19<5,'Tabel 4 S'!F19<0.5),"-",IFERROR('Tabel 4 S'!F19/'Tabel 4F S'!F19*100,"-")) -> 1.219512195 | G19: =IF(OR('Tabel 4F S'!G19<5,'Tabel 4 S'!G19<0.5),"-",IFERROR('Tabel 4 S'!G19/'Tabel 4F S'!G19*100,"-")) -> 4.672897196 | I19: =IF(OR('Tabel 4F S'!I19<5,'Tabel 4 S'!I19<0.5),"-",IFERROR('Tabel 4 S'!I19/'Tabel 4F S'!I19*100,"-")) -> 2.908563135
A20: Mejeriing. | C20: =IF(OR('Tabel 4F S'!C20<5,'Tabel 4 S'!C20<0.5),"-",IFERROR('Tabel 4 S'!C20/'Tabel 4F S'!C20*100,"-")) -> - | D20: =IF(OR('Tabel 4F S'!D20<5,'Tabel 4 S'!D20<0.5),"-",IFERROR('Tabel 4 S'!D20/'Tabel 4F S'!D20*100,"-")) -> - | E20: =IF(OR('Tabel 4F S'!E20<5,'Tabel 4 S'!E20<0.5),"-",IFERROR('Tabel 4 S'!E20/'Tabel 4F S'!E20*100,"-")) -> - | F20: =IF(OR('Tabel 4F S'!F20<5,'Tabel 4 S'!F20<0.5),"-",IFERROR('Tabel 4 S'!F20/'Tabel 4F S'!F20*100,"-")) -> - | G20: =IF(OR('Tabel 4F S'!G20<5,'Tabel 4 S'!G20<0.5),"-",IFERROR('Tabel 4 S'!G20/'Tabel 4F S'!G20*100,"-")) -> - | I20: =IF(OR('Tabel 4F S'!I20<5,'Tabel 4 S'!I20<0.5),"-",IFERROR('Tabel 4 S'!I20/'Tabel 4F S'!I20*100,"-")) -> -
A21: Levn.m.kand. | C21: =IF(OR('Tabel 4F S'!C21<5,'Tabel 4 S'!C21<0.5),"-",IFERROR('Tabel 4 S'!C21/'Tabel 4F S'!C21*100,"-")) -> - | D21: =IF(OR('Tabel 4F S'!D21<5,'Tabel 4 S'!D21<0.5),"-",IFERROR('Tabel 4 S'!D21/'Tabel 4F S'!D21*100,"-")) -> 3.703703704 | E21: =IF(OR('Tabel 4F S'!E21<5,'Tabel 4 S'!E21<0.5),"-",IFERROR('Tabel 4 S'!E21/'Tabel 4F S'!E21*100,"-")) -> - | F21: =IF(OR('Tabel 4F S'!F21<5,'Tabel 4 S'!F21<0.5),"-",IFERROR('Tabel 4 S'!F21/'Tabel 4F S'!F21*100,"-")) -> 20 | G21: =IF(OR('Tabel 4F S'!G21<5,'Tabel 4 S'!G21<0.5),"-",IFERROR('Tabel 4 S'!G21/'Tabel 4F S'!G21*100,"-")) -> - | I21: =IF(OR('Tabel 4F S'!I21<5,'Tabel 4 S'!I21<0.5),"-",IFERROR('Tabel 4 S'!I21/'Tabel 4F S'!I21*100,"-")) -> 4.466666667
A22: Dyrlæge | C22: =IF(OR('Tabel 4F S'!C22<5,'Tabel 4 S'!C22<0.5),"-",IFERROR('Tabel 4 S'!C22/'Tabel 4F S'!C22*100,"-")) -> 11.14814815 | D22: =IF(OR('Tabel 4F S'!D22<5,'Tabel 4 S'!D22<0.5),"-",IFERROR('Tabel 4 S'!D22/'Tabel 4F S'!D22*100,"-")) -> 5.833333333 | E22: =IF(OR('Tabel 4F S'!E22<5,'Tabel 4 S'!E22<0.5),"-",IFERROR('Tabel 4 S'!E22/'Tabel 4F S'!E22*100,"-")) -> 1.724137931 | F22: =IF(OR('Tabel 4F S'!F22<5,'Tabel 4 S'!F22<0.5),"-",IFERROR('Tabel 4 S'!F22/'Tabel 4F S'!F22*100,"-")) -> 1.030927835 | G22: =IF(OR('Tabel 4F S'!G22<5,'Tabel 4 S'!G22<0.5),"-",IFERROR('Tabel 4 S'!G22/'Tabel 4F S'!G22*100,"-")) -> - | I22: =IF(OR('Tabel 4F S'!I22<5,'Tabel 4 S'!I22<0.5),"-",IFERROR('Tabel 4 S'!I22/'Tabel 4F S'!I22*100,"-")) -> 3.293670886
A23: Farmaceut | C23: =IF(OR('Tabel 4F S'!C23<5,'Tabel 4 S'!C23<0.5),"-",IFERROR('Tabel 4 S'!C23/'Tabel 4F S'!C23*100,"-")) -> 9.852459016 | D23: =IF(OR('Tabel 4F S'!D23<5,'Tabel 4 S'!D23<0.5),"-",IFERROR('Tabel 4 S'!D23/'Tabel 4F S'!D23*100,"-")) -> 0.6756756757 | E23: =IF(OR('Tabel 4F S'!E23<5,'Tabel 4 S'!E23<0.5),"-",IFERROR('Tabel 4 S'!E23/'Tabel 4F S'!E23*100,"-")) -> 1.183431953 | F23: =IF(OR('Tabel 4F S'!F23<5,'Tabel 4 S'!F23<0.5),"-",IFERROR('Tabel 4 S'!F23/'Tabel 4F S'!F23*100,"-")) -> 1.5625 | G23: =IF(OR('Tabel 4F S'!G23<5,'Tabel 4 S'!G23<0.5),"-",IFERROR('Tabel 4 S'!G23/'Tabel 4F S'!G23*100,"-")) -> 2.564102564 | I23: =IF(OR('Tabel 4F S'!I23<5,'Tabel 4 S'!I23<0.5),"-",IFERROR('Tabel 4 S'!I23/'Tabel 4F S'!I23*100,"-")) -> 2.203669725
A24: Læge | C24: =IF(OR('Tabel 4F S'!C24<5,'Tabel 4 S'!C24<0.5),"-",IFERROR('Tabel 4 S'!C24/'Tabel 4F S'!C24*100,"-")) -> 6.036144578 | D24: =IF(OR('Tabel 4F S'!D24<5,'Tabel 4 S'!D24<0.5),"-",IFERROR('Tabel 4 S'!D24/'Tabel 4F S'!D24*100,"-")) -> 0.4201680672 | E24: =IF(OR('Tabel 4F S'!E24<5,'Tabel 4 S'!E24<0.5),"-",IFERROR('Tabel 4 S'!E24/'Tabel 4F S'!E24*100,"-")) -> 1.234567901 | F24: =IF(OR('Tabel 4F S'!F24<5,'Tabel 4 S'!F24<0.5),"-",IFERROR('Tabel 4 S'!F24/'Tabel 4F S'!F24*100,"-")) -> - | G24: =IF(OR('Tabel 4F S'!G24<5,'Tabel 4 S'!G24<0.5),"-",IFERROR('Tabel 4 S'!G24/'Tabel 4F S'!G24*100,"-")) -> - | I24: =IF(OR('Tabel 4F S'!I24<5,'Tabel 4 S'!I24<0.5),"-",IFERROR('Tabel 4 S'!I24/'Tabel 4F S'!I24*100,"-")) -> 1.171052632
A25: Tandlæge | C25: =IF(OR('Tabel 4F S'!C25<5,'Tabel 4 S'!C25<0.5),"-",IFERROR('Tabel 4 S'!C25/'Tabel 4F S'!C25*100,"-")) -> - | D25: =IF(OR('Tabel 4F S'!D25<5,'Tabel 4 S'!D25<0.5),"-",IFERROR('Tabel 4 S'!D25/'Tabel 4F S'!D25*100,"-")) -> - | E25: =IF(OR('Tabel 4F S'!E25<5,'Tabel 4 S'!E25<0.5),"-",IFERROR('Tabel 4 S'!E25/'Tabel 4F S'!E25*100,"-")) -> - | F25: =IF(OR('Tabel 4F S'!F25<5,'Tabel 4 S'!F25<0.5),"-",IFERROR('Tabel 4 S'!F25/'Tabel 4F S'!F25*100,"-")) -> 2.43902439 | G25: =IF(OR('Tabel 4F S'!G25<5,'Tabel 4 S'!G25<0.5),"-",IFERROR('Tabel 4 S'!G25/'Tabel 4F S'!G25*100,"-")) -> - | I25: =IF(OR('Tabel 4F S'!I25<5,'Tabel 4 S'!I25<0.5),"-",IFERROR('Tabel 4 S'!I25/'Tabel 4F S'!I25*100,"-")) -> 0.5706214689
A26: Arkitekt | C26: =IF(OR('Tabel 4F S'!C26<5,'Tabel 4 S'!C26<0.5),"-",IFERROR('Tabel 4 S'!C26/'Tabel 4F S'!C26*100,"-")) -> 28.71428571 | D26: =IF(OR('Tabel 4F S'!D26<5,'Tabel 4 S'!D26<0.5),"-",IFERROR('Tabel 4 S'!D26/'Tabel 4F S'!D26*100,"-")) -> 4 | E26: =IF(OR('Tabel 4F S'!E26<5,'Tabel 4 S'!E26<0.5),"-",IFERROR('Tabel 4 S'!E26/'Tabel 4F S'!E26*100,"-")) -> 6.060606061 | F26: =IF(OR('Tabel 4F S'!F26<5,'Tabel 4 S'!F26<0.5),"-",IFERROR('Tabel 4 S'!F26/'Tabel 4F S'!F26*100,"-")) -> 1.492537313 | G26: =IF(OR('Tabel 4F S'!G26<5,'Tabel 4 S'!G26<0.5),"-",IFERROR('Tabel 4 S'!G26/'Tabel 4F S'!G26*100,"-")) -> 5 | I26: =IF(OR('Tabel 4F S'!I26<5,'Tabel 4 S'!I26<0.5),"-",IFERROR('Tabel 4 S'!I26/'Tabel 4F S'!I26*100,"-")) -> 4.786956522
A27: Landinspek. | C27: =IF(OR('Tabel 4F S'!C27<5,'Tabel 4 S'!C27<0.5),"-",IFERROR('Tabel 4 S'!C27/'Tabel 4F S'!C27*100,"-")) -> - | D27: =IF(OR('Tabel 4F S'!D27<5,'Tabel 4 S'!D27<0.5),"-",IFERROR('Tabel 4 S'!D27/'Tabel 4F S'!D27*100,"-")) -> - | E27: =IF(OR('Tabel 4F S'!E27<5,'Tabel 4 S'!E27<0.5),"-",IFERROR('Tabel 4 S'!E27/'Tabel 4F S'!E27*100,"-")) -> - | F27: =IF(OR('Tabel 4F S'!F27<5,'Tabel 4 S'!F27<0.5),"-",IFERROR('Tabel 4 S'!F27/'Tabel 4F S'!F27*100,"-")) -> - | G27: =IF(OR('Tabel 4F S'!G27<5,'Tabel 4 S'!G27<0.5),"-",IFERROR('Tabel 4 S'!G27/'Tabel 4F S'!G27*100,"-")) -> - | I27: =IF(OR('Tabel 4F S'!I27<5,'Tabel 4 S'!I27<0.5),"-",IFERROR('Tabel 4 S'!I27/'Tabel 4F S'!I27*100,"-")) -> -
A28: Bibliotekar | C28: =IF(OR('Tabel 4F S'!C28<5,'Tabel 4 S'!C28<0.5),"-",IFERROR('Tabel 4 S'!C28/'Tabel 4F S'!C28*100,"-")) -> 40.1 | D28: =IF(OR('Tabel 4F S'!D28<5,'Tabel 4 S'!D28<0.5),"-",IFERROR('Tabel 4 S'!D28/'Tabel 4F S'!D28*100,"-")) -> 6.060606061 | E28: =IF(OR('Tabel 4F S'!E28<5,'Tabel 4 S'!E28<0.5),"-",IFERROR('Tabel 4 S'!E28/'Tabel 4F S'!E28*100,"-")) -> 3.731343284 | F28: =IF(OR('Tabel 4F S'!F28<5,'Tabel 4 S'!F28<0.5),"-",IFERROR('Tabel 4 S'!F28/'Tabel 4F S'!F28*100,"-")) -> 1.754385965 | G28: =IF(OR('Tabel 4F S'!G28<5,'Tabel 4 S'!G28<0.5),"-",IFERROR('Tabel 4 S'!G28/'Tabel 4F S'!G28*100,"-")) -> 2.380952381 | I28: =IF(OR('Tabel 4F S'!I28<5,'Tabel 4 S'!I28<0.5),"-",IFERROR('Tabel 4 S'!I28/'Tabel 4F S'!I28*100,"-")) -> 4.169117647
A29: Musikudd. | C29: =IF(OR('Tabel 4F S'!C29<5,'Tabel 4 S'!C29<0.5),"-",IFERROR('Tabel 4 S'!C29/'Tabel 4F S'!C29*100,"-")) -> - | D29: =IF(OR('Tabel 4F S'!D29<5,'Tabel 4 S'!D29<0.5),"-",IFERROR('Tabel 4 S'!D29/'Tabel 4F S'!D29*100,"-")) -> - | E29: =IF(OR('Tabel 4F S'!E29<5,'Tabel 4 S'!E29<0.5),"-",IFERROR('Tabel 4 S'!E29/'Tabel 4F S'!E29*100,"-")) -> - | F29: =IF(OR('Tabel 4F S'!F29<5,'Tabel 4 S'!F29<0.5),"-",IFERROR('Tabel 4 S'!F29/'Tabel 4F S'!F29*100,"-")) -> - | G29: =IF(OR('Tabel 4F S'!G29<5,'Tabel 4 S'!G29<0.5),"-",IFERROR('Tabel 4 S'!G29/'Tabel 4F S'!G29*100,"-")) -> - | I29: =IF(OR('Tabel 4F S'!I29<5,'Tabel 4 S'!I29<0.5),"-",IFERROR('Tabel 4 S'!I29/'Tabel 4F S'!I29*100,"-")) -> -
A30: Teolog | C30: =IF(OR('Tabel 4F S'!C30<5,'Tabel 4 S'!C30<0.5),"-",IFERROR('Tabel 4 S'!C30/'Tabel 4F S'!C30*100,"-")) -> - | D30: =IF(OR('Tabel 4F S'!D30<5,'Tabel 4 S'!D30<0.5),"-",IFERROR('Tabel 4 S'!D30/'Tabel 4F S'!D30*100,"-")) -> 7.142857143 | E30: =IF(OR('Tabel 4F S'!E30<5,'Tabel 4 S'!E30<0.5),"-",IFERROR('Tabel 4 S'!E30/'Tabel 4F S'!E30*100,"-")) -> - | F30: =IF(OR('Tabel 4F S'!F30<5,'Tabel 4 S'!F30<0.5),"-",IFERROR('Tabel 4 S'!F30/'Tabel 4F S'!F30*100,"-")) -> 3.448275862 | G30: =IF(OR('Tabel 4F S'!G30<5,'Tabel 4 S'!G30<0.5),"-",IFERROR('Tabel 4 S'!G30/'Tabel 4F S'!G30*100,"-")) -> - | I30: =IF(OR('Tabel 4F S'!I30<5,'Tabel 4 S'!I30<0.5),"-",IFERROR('Tabel 4 S'!I30/'Tabel 4F S'!I30*100,"-")) -> 2.216814159
A31: Psykolog | C31: =IF(OR('Tabel 4F S'!C31<5,'Tabel 4 S'!C31<0.5),"-",IFERROR('Tabel 4 S'!C31/'Tabel 4F S'!C31*100,"-")) -> 13.90277778 | D31: =IF(OR('Tabel 4F S'!D31<5,'Tabel 4 S'!D31<0.5),"-",IFERROR('Tabel 4 S'!D31/'Tabel 4F S'!D31*100,"-")) -> 4 | E31: =IF(OR('Tabel 4F S'!E31<5,'Tabel 4 S'!E31<0.5),"-",IFERROR('Tabel 4 S'!E31/'Tabel 4F S'!E31*100,"-")) -> 1.290322581 | F31: =IF(OR('Tabel 4F S'!F31<5,'Tabel 4 S'!F31<0.5),"-",IFERROR('Tabel 4 S'!F31/'Tabel 4F S'!F31*100,"-")) -> 1.834862385 | G31: =IF(OR('Tabel 4F S'!G31<5,'Tabel 4 S'!G31<0.5),"-",IFERROR('Tabel 4 S'!G31/'Tabel 4F S'!G31*100,"-")) -> 2.173913043 | I31: =IF(OR('Tabel 4F S'!I31<5,'Tabel 4 S'!I31<0.5),"-",IFERROR('Tabel 4 S'!I31/'Tabel 4F S'!I31*100,"-")) -> 3.94924812
A32: Jurist | C32: =IF(OR('Tabel 4F S'!C32<5,'Tabel 4 S'!C32<0.5),"-",IFERROR('Tabel 4 S'!C32/'Tabel 4F S'!C32*100,"-")) -> 4.311827957 | D32: =IF(OR('Tabel 4F S'!D32<5,'Tabel 4 S'!D32<0.5),"-",IFERROR('Tabel 4 S'!D32/'Tabel 4F S'!D32*100,"-")) -> 2.027027027 | E32: =IF(OR('Tabel 4F S'!E32<5,'Tabel 4 S'!E32<0.5),"-",IFERROR('Tabel 4 S'!E32/'Tabel 4F S'!E32*100,"-")) -> 1.282051282 | F32: =IF(OR('Tabel 4F S'!F32<5,'Tabel 4 S'!F32<0.5),"-",IFERROR('Tabel 4 S'!F32/'Tabel 4F S'!F32*100,"-")) -> 2.205882353 | G32: =IF(OR('Tabel 4F S'!G32<5,'Tabel 4 S'!G32<0.5),"-",IFERROR('Tabel 4 S'!G32/'Tabel 4F S'!G32*100,"-")) -> - | I32: =IF(OR('Tabel 4F S'!I32<5,'Tabel 4 S'!I32<0.5),"-",IFERROR('Tabel 4 S'!I32/'Tabel 4F S'!I32*100,"-")) -> 1.913001912
A33: Økonom | C33: =IF(OR('Tabel 4F S'!C33<5,'Tabel 4 S'!C33<0.5),"-",IFERROR('Tabel 4 S'!C33/'Tabel 4F S'!C33*100,"-")) -> 8.531914894 | D33: =IF(OR('Tabel 4F S'!D33<5,'Tabel 4 S'!D33<0.5),"-",IFERROR('Tabel 4 S'!D33/'Tabel 4F S'!D33*100,"-")) -> 1.075268817 | E33: =IF(OR('Tabel 4F S'!E33<5,'Tabel 4 S'!E33<0.5),"-",IFERROR('Tabel 4 S'!E33/'Tabel 4F S'!E33*100,"-")) -> 1.069518717 | F33: =IF(OR('Tabel 4F S'!F33<5,'Tabel 4 S'!F33<0.5),"-",IFERROR('Tabel 4 S'!F33/'Tabel 4F S'!F33*100,"-")) -> 2.857142857 | G33: =IF(OR('Tabel 4F S'!G33<5,'Tabel 4 S'!G33<0.5),"-",IFERROR('Tabel 4 S'!G33/'Tabel 4F S'!G33*100,"-")) -> 4.87804878 | I33: =IF(OR('Tabel 4F S'!I33<5,'Tabel 4 S'!I33<0.5),"-",IFERROR('Tabel 4 S'!I33/'Tabel 4F S'!I33*100,"-")) -> 2.596885813
A34: Samf. Adm. | C34: =IF(OR('Tabel 4F S'!C34<5,'Tabel 4 S'!C34<0.5),"-",IFERROR('Tabel 4 S'!C34/'Tabel 4F S'!C34*100,"-")) -> 24.56725146 | D34: =IF(OR('Tabel 4F S'!D34<5,'Tabel 4 S'!D34<0.5),"-",IFERROR('Tabel 4 S'!D34/'Tabel 4F S'!D34*100,"-")) -> 4.736842105 | E34: =IF(OR('Tabel 4F S'!E34<5,'Tabel 4 S'!E34<0.5),"-",IFERROR('Tabel 4 S'!E34/'Tabel 4F S'!E34*100,"-")) -> 2.475247525 | F34: =IF(OR('Tabel 4F S'!F34<5,'Tabel 4 S'!F34<0.5),"-",IFERROR('Tabel 4 S'!F34/'Tabel 4F S'!F34*100,"-")) -> 2.91005291 | G34: =IF(OR('Tabel 4F S'!G34<5,'Tabel 4 S'!G34<0.5),"-",IFERROR('Tabel 4 S'!G34/'Tabel 4F S'!G34*100,"-")) -> 3.883495146 | I34: =IF(OR('Tabel 4F S'!I34<5,'Tabel 4 S'!I34<0.5),"-",IFERROR('Tabel 4 S'!I34/'Tabel 4F S'!I34*100,"-")) -> 5.416301969
A35: Cand. Merc. | C35: =IF(OR('Tabel 4F S'!C35<5,'Tabel 4 S'!C35<0.5),"-",IFERROR('Tabel 4 S'!C35/'Tabel 4F S'!C35*100,"-")) -> 15.81623932 | D35: =IF(OR('Tabel 4F S'!D35<5,'Tabel 4 S'!D35<0.5),"-",IFERROR('Tabel 4 S'!D35/'Tabel 4F S'!D35*100,"-")) -> 3.03030303 | E35: =IF(OR('Tabel 4F S'!E35<5,'Tabel 4 S'!E35<0.5),"-",IFERROR('Tabel 4 S'!E35/'Tabel 4F S'!E35*100,"-")) -> 3.318250377 | F35: =IF(OR('Tabel 4F S'!F35<5,'Tabel 4 S'!F35<0.5),"-",IFERROR('Tabel 4 S'!F35/'Tabel 4F S'!F35*100,"-")) -> 4.719101124 | G35: =IF(OR('Tabel 4F S'!G35<5,'Tabel 4 S'!G35<0.5),"-",IFERROR('Tabel 4 S'!G35/'Tabel 4F S'!G35*100,"-")) -> 10.29411765 | I35: =IF(OR('Tabel 4F S'!I35<5,'Tabel 4 S'!I35<0.5),"-",IFERROR('Tabel 4 S'!I35/'Tabel 4F S'!I35*100,"-")) -> 5.24001996
A36: HA | C36: =IF(OR('Tabel 4F S'!C36<5,'Tabel 4 S'!C36<0.5),"-",IFERROR('Tabel 4 S'!C36/'Tabel 4F S'!C36*100,"-")) -> 15.025 | D36: =IF(OR('Tabel 4F S'!D36<5,'Tabel 4 S'!D36<0.5),"-",IFERROR('Tabel 4 S'!D36/'Tabel 4F S'!D36*100,"-")) -> 3.846153846 | E36: =IF(OR('Tabel 4F S'!E36<5,'Tabel 4 S'!E36<0.5),"-",IFERROR('Tabel 4 S'!E36/'Tabel 4F S'!E36*100,"-")) -> - | F36: =IF(OR('Tabel 4F S'!F36<5,'Tabel 4 S'!F36<0.5),"-",IFERROR('Tabel 4 S'!F36/'Tabel 4F S'!F36*100,"-")) -> 4.186046512 | G36: =IF(OR('Tabel 4F S'!G36<5,'Tabel 4 S'!G36<0.5),"-",IFERROR('Tabel 4 S'!G36/'Tabel 4F S'!G36*100,"-")) -> 3.846153846 | I36: =IF(OR('Tabel 4F S'!I36<5,'Tabel 4 S'!I36<0.5),"-",IFERROR('Tabel 4 S'!I36/'Tabel 4F S'!I36*100,"-")) -> 3.431407942
A37: HD | C37: =IF(OR('Tabel 4F S'!C37<5,'Tabel 4 S'!C37<0.5),"-",IFERROR('Tabel 4 S'!C37/'Tabel 4F S'!C37*100,"-")) -> 30.03333333 | D37: =IF(OR('Tabel 4F S'!D37<5,'Tabel 4 S'!D37<0.5),"-",IFERROR('Tabel 4 S'!D37/'Tabel 4F S'!D37*100,"-")) -> 2.5 | E37: =IF(OR('Tabel 4F S'!E37<5,'Tabel 4 S'!E37<0.5),"-",IFERROR('Tabel 4 S'!E37/'Tabel 4F S'!E37*100,"-")) -> 2.380952381 | F37: =IF(OR('Tabel 4F S'!F37<5,'Tabel 4 S'!F37<0.5),"-",IFERROR('Tabel 4 S'!F37/'Tabel 4F S'!F37*100,"-")) -> 3.802281369 | G37: =IF(OR('Tabel 4F S'!G37<5,'Tabel 4 S'!G37<0.5),"-",IFERROR('Tabel 4 S'!G37/'Tabel 4F S'!G37*100,"-")) -> 7.142857143 | I37: =IF(OR('Tabel 4F S'!I37<5,'Tabel 4 S'!I37<0.5),"-",IFERROR('Tabel 4 S'!I37/'Tabel 4F S'!I37*100,"-")) -> 5.29489603
A38: Komm. og Sprog | C38: =IF(OR('Tabel 4F S'!C38<5,'Tabel 4 S'!C38<0.5),"-",IFERROR('Tabel 4 S'!C38/'Tabel 4F S'!C38*100,"-")) -> 28.5952381 | D38: =IF(OR('Tabel 4F S'!D38<5,'Tabel 4 S'!D38<0.5),"-",IFERROR('Tabel 4 S'!D38/'Tabel 4F S'!D38*100,"-")) -> 8.088235294 | E38: =IF(OR('Tabel 4F S'!E38<5,'Tabel 4 S'!E38<0.5),"-",IFERROR('Tabel 4 S'!E38/'Tabel 4F S'!E38*100,"-")) -> 2.272727273 | F38: =IF(OR('Tabel 4F S'!F38<5,'Tabel 4 S'!F38<0.5),"-",IFERROR('Tabel 4 S'!F38/'Tabel 4F S'!F38*100,"-")) -> 4.848484848 | G38: =IF(OR('Tabel 4F S'!G38<5,'Tabel 4 S'!G38<0.5),"-",IFERROR('Tabel 4 S'!G38/'Tabel 4F S'!G38*100,"-")) -> 11.11111111 | I38: =IF(OR('Tabel 4F S'!I38<5,'Tabel 4 S'!I38<0.5),"-",IFERROR('Tabel 4 S'!I38/'Tabel 4F S'!I38*100,"-")) -> 7.390804598
A39: Cand. IT. | C39: =IF(OR('Tabel 4F S'!C39<5,'Tabel 4 S'!C39<0.5),"-",IFERROR('Tabel 4 S'!C39/'Tabel 4F S'!C39*100,"-")) -> 9.40625 | D39: =IF(OR('Tabel 4F S'!D39<5,'Tabel 4 S'!D39<0.5),"-",IFERROR('Tabel 4 S'!D39/'Tabel 4F S'!D39*100,"-")) -> 5.263157895 | E39: =IF(OR('Tabel 4F S'!E39<5,'Tabel 4 S'!E39<0.5),"-",IFERROR('Tabel 4 S'!E39/'Tabel 4F S'!E39*100,"-")) -> 3.50877193 | F39: =IF(OR('Tabel 4F S'!F39<5,'Tabel 4 S'!F39<0.5),"-",IFERROR('Tabel 4 S'!F39/'Tabel 4F S'!F39*100,"-")) -> 11.11111111 | G39: =IF(OR('Tabel 4F S'!G39<5,'Tabel 4 S'!G39<0.5),"-",IFERROR('Tabel 4 S'!G39/'Tabel 4F S'!G39*100,"-")) -> - | I39: =IF(OR('Tabel 4F S'!I39<5,'Tabel 4 S'!I39<0.5),"-",IFERROR('Tabel 4 S'!I39/'Tabel 4F S'!I39*100,"-")) -> 5.752873563
A40: Bac. Samf. | C40: =IF(OR('Tabel 4F S'!C40<5,'Tabel 4 S'!C40<0.5),"-",IFERROR('Tabel 4 S'!C40/'Tabel 4F S'!C40*100,"-")) -> 18.27272727 | D40: =IF(OR('Tabel 4F S'!D40<5,'Tabel 4 S'!D40<0.5),"-",IFERROR('Tabel 4 S'!D40/'Tabel 4F S'!D40*100,"-")) -> - | E40: =IF(OR('Tabel 4F S'!E40<5,'Tabel 4 S'!E40<0.5),"-",IFERROR('Tabel 4 S'!E40/'Tabel 4F S'!E40*100,"-")) -> - | F40: =IF(OR('Tabel 4F S'!F40<5,'Tabel 4 S'!F40<0.5),"-",IFERROR('Tabel 4 S'!F40/'Tabel 4F S'!F40*100,"-")) -> 11.11111111 | G40: =IF(OR('Tabel 4F S'!G40<5,'Tabel 4 S'!G40<0.5),"-",IFERROR('Tabel 4 S'!G40/'Tabel 4F S'!G40*100,"-")) -> - | I40: =IF(OR('Tabel 4F S'!I40<5,'Tabel 4 S'!I40<0.5),"-",IFERROR('Tabel 4 S'!I40/'Tabel 4F S'!I40*100,"-")) -> 5.693181818
A41: Bac. Hum. | C41: =IF(OR('Tabel 4F S'!C41<5,'Tabel 4 S'!C41<0.5),"-",IFERROR('Tabel 4 S'!C41/'Tabel 4F S'!C41*100,"-")) -> 24.09259259 | D41: =IF(OR('Tabel 4F S'!D41<5,'Tabel 4 S'!D41<0.5),"-",IFERROR('Tabel 4 S'!D41/'Tabel 4F S'!D41*100,"-")) -> 3.846153846 | E41: =IF(OR('Tabel 4F S'!E41<5,'Tabel 4 S'!E41<0.5),"-",IFERROR('Tabel 4 S'!E41/'Tabel 4F S'!E41*100,"-")) -> 1.470588235 | F41: =IF(OR('Tabel 4F S'!F41<5,'Tabel 4 S'!F41<0.5),"-",IFERROR('Tabel 4 S'!F41/'Tabel 4F S'!F41*100,"-")) -> 6.944444444 | G41: =IF(OR('Tabel 4F S'!G41<5,'Tabel 4 S'!G41<0.5),"-",IFERROR('Tabel 4 S'!G41/'Tabel 4F S'!G41*100,"-")) -> 29.41176471 | I41: =IF(OR('Tabel 4F S'!I41<5,'Tabel 4 S'!I41<0.5),"-",IFERROR('Tabel 4 S'!I41/'Tabel 4F S'!I41*100,"-")) -> 9.88973384
A42: Bac. Nat. | C42: =IF(OR('Tabel 4F S'!C42<5,'Tabel 4 S'!C42<0.5),"-",IFERROR('Tabel 4 S'!C42/'Tabel 4F S'!C42*100,"-")) -> 8.6 | D42: =IF(OR('Tabel 4F S'!D42<5,'Tabel 4 S'!D42<0.5),"-",IFERROR('Tabel 4 S'!D42/'Tabel 4F S'!D42*100,"-")) -> 8.333333333 | E42: =IF(OR('Tabel 4F S'!E42<5,'Tabel 4 S'!E42<0.5),"-",IFERROR('Tabel 4 S'!E42/'Tabel 4F S'!E42*100,"-")) -> 2.941176471 | F42: =IF(OR('Tabel 4F S'!F42<5,'Tabel 4 S'!F42<0.5),"-",IFERROR('Tabel 4 S'!F42/'Tabel 4F S'!F42*100,"-")) -> - | G42: =IF(OR('Tabel 4F S'!G42<5,'Tabel 4 S'!G42<0.5),"-",IFERROR('Tabel 4 S'!G42/'Tabel 4F S'!G42*100,"-")) -> - | I42: =IF(OR('Tabel 4F S'!I42<5,'Tabel 4 S'!I42<0.5),"-",IFERROR('Tabel 4 S'!I42/'Tabel 4F S'!I42*100,"-")) -> 5.527607362
A43: Andre | C43: =IF(OR('Tabel 4F S'!C43<5,'Tabel 4 S'!C43<0.5),"-",IFERROR('Tabel 4 S'!C43/'Tabel 4F S'!C43*100,"-")) -> 15.39230769 | D43: =IF(OR('Tabel 4F S'!D43<5,'Tabel 4 S'!D43<0.5),"-",IFERROR('Tabel 4 S'!D43/'Tabel 4F S'!D43*100,"-")) -> 6.696428571 | E43: =IF(OR('Tabel 4F S'!E43<5,'Tabel 4 S'!E43<0.5),"-",IFERROR('Tabel 4 S'!E43/'Tabel 4F S'!E43*100,"-")) -> 3.901437372 | F43: =IF(OR('Tabel 4F S'!F43<5,'Tabel 4 S'!F43<0.5),"-",IFERROR('Tabel 4 S'!F43/'Tabel 4F S'!F43*100,"-")) -> 6.313131313 | G43: =IF(OR('Tabel 4F S'!G43<5,'Tabel 4 S'!G43<0.5),"-",IFERROR('Tabel 4 S'!G43/'Tabel 4F S'!G43*100,"-")) -> 6.25 | I43: =IF(OR('Tabel 4F S'!I43<5,'Tabel 4 S'!I43<0.5),"-",IFERROR('Tabel 4 S'!I43/'Tabel 4F S'!I43*100,"-")) -> 6.41478314
A45: Total | C45: =IF(OR('Tabel 4F S'!C45<5,'Tabel 4 S'!C45<0.5),"-",IFERROR('Tabel 4 S'!C45/'Tabel 4F S'!C45*100,"-")) -> 15.6430883 | D45: =IF(OR('Tabel 4F S'!D45<5,'Tabel 4 S'!D45<0.5),"-",IFERROR('Tabel 4 S'!D45/'Tabel 4F S'!D45*100,"-")) -> 4.600790514 | E45: =IF(OR('Tabel 4F S'!E45<5,'Tabel 4 S'!E45<0.5),"-",IFERROR('Tabel 4 S'!E45/'Tabel 4F S'!E45*100,"-")) -> 2.205697 | F45: =IF(OR('Tabel 4F S'!F45<5,'Tabel 4 S'!F45<0.5),"-",IFERROR('Tabel 4 S'!F45/'Tabel 4F S'!F45*100,"-")) -> 2.688172043 | G45: =IF(OR('Tabel 4F S'!G45<5,'Tabel 4 S'!G45<0.5),"-",IFERROR('Tabel 4 S'!G45/'Tabel 4F S'!G45*100,"-")) -> 3.847835592 | I45: =IF(OR('Tabel 4F S'!I45<5,'Tabel 4 S'!I45<0.5),"-",IFERROR('Tabel 4 S'!I45/'Tabel 4F S'!I45*100,"-")) -> 4.209917549
A47: Ingeniører i alt | C47: =IF(OR('Tabel 4F S'!C47<5,'Tabel 4 S'!C47<0.5),"-",IFERROR('Tabel 4 S'!C47/'Tabel 4F S'!C47*100,"-")) -> 6.810650888 | D47: =IF(OR('Tabel 4F S'!D47<5,'Tabel 4 S'!D47<0.5),"-",IFERROR('Tabel 4 S'!D47/'Tabel 4F S'!D47*100,"-")) -> 1.622137405 | E47: =IF(OR('Tabel 4F S'!E47<5,'Tabel 4 S'!E47<0.5),"-",IFERROR('Tabel 4 S'!E47/'Tabel 4F S'!E47*100,"-")) -> 1.076487252 | F47: =IF(OR('Tabel 4F S'!F47<5,'Tabel 4 S'!F47<0.5),"-",IFERROR('Tabel 4 S'!F47/'Tabel 4F S'!F47*100,"-")) -> 1.458523245 | G47: =IF(OR('Tabel 4F S'!G47<5,'Tabel 4 S'!G47<0.5),"-",IFERROR('Tabel 4 S'!G47/'Tabel 4F S'!G47*100,"-")) -> 3.114186851 | I47: =IF(OR('Tabel 4F S'!I47<5,'Tabel 4 S'!I47<0.5),"-",IFERROR('Tabel 4 S'!I47/'Tabel 4F S'!I47*100,"-")) -> 1.840621307
A48: Magistre i alt | C48: =IF(OR('Tabel 4F S'!C48<5,'Tabel 4 S'!C48<0.5),"-",IFERROR('Tabel 4 S'!C48/'Tabel 4F S'!C48*100,"-")) -> 22.61299435 | D48: =IF(OR('Tabel 4F S'!D48<5,'Tabel 4 S'!D48<0.5),"-",IFERROR('Tabel 4 S'!D48/'Tabel 4F S'!D48*100,"-")) -> 8.116157856 | E48: =IF(OR('Tabel 4F S'!E48<5,'Tabel 4 S'!E48<0.5),"-",IFERROR('Tabel 4 S'!E48/'Tabel 4F S'!E48*100,"-")) -> 3.227601558 | F48: =IF(OR('Tabel 4F S'!F48<5,'Tabel 4 S'!F48<0.5),"-",IFERROR('Tabel 4 S'!F48/'Tabel 4F S'!F48*100,"-")) -> 3.036238981 | G48: =IF(OR('Tabel 4F S'!G48<5,'Tabel 4 S'!G48<0.5),"-",IFERROR('Tabel 4 S'!G48/'Tabel 4F S'!G48*100,"-")) -> 2.564102564 | I48: =IF(OR('Tabel 4F S'!I48<5,'Tabel 4 S'!I48<0.5),"-",IFERROR('Tabel 4 S'!I48/'Tabel 4F S'!I48*100,"-")) -> 5.820790688
A49: DJØF'ere i alt | C49: =IF(OR('Tabel 4F S'!C49<5,'Tabel 4 S'!C49<0.5),"-",IFERROR('Tabel 4 S'!C49/'Tabel 4F S'!C49*100,"-")) -> 15.90598291 | D49: =IF(OR('Tabel 4F S'!D49<5,'Tabel 4 S'!D49<0.5),"-",IFERROR('Tabel 4 S'!D49/'Tabel 4F S'!D49*100,"-")) -> 3.364485981 | E49: =IF(OR('Tabel 4F S'!E49<5,'Tabel 4 S'!E49<0.5),"-",IFERROR('Tabel 4 S'!E49/'Tabel 4F S'!E49*100,"-")) -> 2.190524707 | F49: =IF(OR('Tabel 4F S'!F49<5,'Tabel 4 S'!F49<0.5),"-",IFERROR('Tabel 4 S'!F49/'Tabel 4F S'!F49*100,"-")) -> 3.486842105 | G49: =IF(OR('Tabel 4F S'!G49<5,'Tabel 4 S'!G49<0.5),"-",IFERROR('Tabel 4 S'!G49/'Tabel 4F S'!G49*100,"-")) -> 4.451038576 | I49: =IF(OR('Tabel 4F S'!I49<5,'Tabel 4 S'!I49<0.5),"-",IFERROR('Tabel 4 S'!I49/'Tabel 4F S'!I49*100,"-")) -> 4.293677205
A56: Greve
C58: Under 30 år | D58: 30 - 39 år | E58: 40 - 49 år | F58: 50 - 59 år | G58: Over 60 år | I58: I alt
A60: Civ. ing. | C60: =IF(OR('Tabel 4F S'!C60<5,'Tabel 4 S'!C60<0.5),"-",IFERROR('Tabel 4 S'!C60/'Tabel 4F S'!C60*100,"-")) -> 25 | D60: =IF(OR('Tabel 4F S'!D60<5,'Tabel 4 S'!D60<0.5),"-",IFERROR('Tabel 4 S'!D60/'Tabel 4F S'!D60*100,"-")) -> 1.666666667 | E60: =IF(OR('Tabel 4F S'!E60<5,'Tabel 4 S'!E60<0.5),"-",IFERROR('Tabel 4 S'!E60/'Tabel 4F S'!E60*100,"-")) -> - | F60: =IF(OR('Tabel 4F S'!F60<5,'Tabel 4 S'!F60<0.5),"-",IFERROR('Tabel 4 S'!F60/'Tabel 4F S'!F60*100,"-")) -> - | G60: =IF(OR('Tabel 4F S'!G60<5,'Tabel 4 S'!G60<0.5),"-",IFERROR('Tabel 4 S'!G60/'Tabel 4F S'!G60*100,"-")) -> - | I60: =IF(OR('Tabel 4F S'!I60<5,'Tabel 4 S'!I60<0.5),"-",IFERROR('Tabel 4 S'!I60/'Tabel 4F S'!I60*100,"-")) -> 1.657458564
A61: Diplom ing. | C61: =IF(OR('Tabel 4F S'!C61<5,'Tabel 4 S'!C61<0.5),"-",IFERROR('Tabel 4 S'!C61/'Tabel 4F S'!C61*100,"-")) -> 5.555555556 | D61: =IF(OR('Tabel 4F S'!D61<5,'Tabel 4 S'!D61<0.5),"-",IFERROR('Tabel 4 S'!D61/'Tabel 4F S'!D61*100,"-")) -> 4.545454545 | E61: =IF(OR('Tabel 4F S'!E61<5,'Tabel 4 S'!E61<0.5),"-",IFERROR('Tabel 4 S'!E61/'Tabel 4F S'!E61*100,"-")) -> - | F61: =IF(OR('Tabel 4F S'!F61<5,'Tabel 4 S'!F61<0.5),"-",IFERROR('Tabel 4 S'!F61/'Tabel 4F S'!F61*100,"-")) -> 2.919708029 | G61: =IF(OR('Tabel 4F S'!G61<5,'Tabel 4 S'!G61<0.5),"-",IFERROR('Tabel 4 S'!G61/'Tabel 4F S'!G61*100,"-")) -> 6.666666667 | I61: =IF(OR('Tabel 4F S'!I61<5,'Tabel 4 S'!I61<0.5),"-",IFERROR('Tabel 4 S'!I61/'Tabel 4F S'!I61*100,"-")) -> 2.670623145
A62: Cand. Scient. Tek | C62: =IF(OR('Tabel 4F S'!C62<5,'Tabel 4 S'!C62<0.5),"-",IFERROR('Tabel 4 S'!C62/'Tabel 4F S'!C62*100,"-")) -> 20 | D62: =IF(OR('Tabel 4F S'!D62<5,'Tabel 4 S'!D62<0.5),"-",IFERROR('Tabel 4 S'!D62/'Tabel 4F S'!D62*100,"-")) -> 3.125 | E62: =IF(OR('Tabel 4F S'!E62<5,'Tabel 4 S'!E62<0.5),"-",IFERROR('Tabel 4 S'!E62/'Tabel 4F S'!E62*100,"-")) -> 4.166666667 | F62: =IF(OR('Tabel 4F S'!F62<5,'Tabel 4 S'!F62<0.5),"-",IFERROR('Tabel 4 S'!F62/'Tabel 4F S'!F62*100,"-")) -> - | G62: =IF(OR('Tabel 4F S'!G62<5,'Tabel 4 S'!G62<0.5),"-",IFERROR('Tabel 4 S'!G62/'Tabel 4F S'!G62*100,"-")) -> - | I62: =IF(OR('Tabel 4F S'!I62<5,'Tabel 4 S'!I62<0.5),"-",IFERROR('Tabel 4 S'!I62/'Tabel 4F S'!I62*100,"-")) -> 5.952380952
A63: MA. Hum. | C63: =IF(OR('Tabel 4F S'!C63<5,'Tabel 4 S'!C63<0.5),"-",IFERROR('Tabel 4 S'!C63/'Tabel 4F S'!C63*100,"-")) -> 14.28571429 | D63: =IF(OR('Tabel 4F S'!D63<5,'Tabel 4 S'!D63<0.5),"-",IFERROR('Tabel 4 S'!D63/'Tabel 4F S'!D63*100,"-")) -> 11.11111111 | E63: =IF(OR('Tabel 4F S'!E63<5,'Tabel 4 S'!E63<0.5),"-",IFERROR('Tabel 4 S'!E63/'Tabel 4F S'!E63*100,"-")) -> 4 | F63: =IF(OR('Tabel 4F S'!F63<5,'Tabel 4 S'!F63<0.5),"-",IFERROR('Tabel 4 S'!F63/'Tabel 4F S'!F63*100,"-")) -> 15.38461538 | G63: =IF(OR('Tabel 4F S'!G63<5,'Tabel 4 S'!G63<0.5),"-",IFERROR('Tabel 4 S'!G63/'Tabel 4F S'!G63*100,"-")) -> 10 | I63: =IF(OR('Tabel 4F S'!I63<5,'Tabel 4 S'!I63<0.5),"-",IFERROR('Tabel 4 S'!I63/'Tabel 4F S'!I63*100,"-")) -> 8.8
A64: MA. Nat. | C64: =IF(OR('Tabel 4F S'!C64<5,'Tabel 4 S'!C64<0.5),"-",IFERROR('Tabel 4 S'!C64/'Tabel 4F S'!C64*100,"-")) -> - | D64: =IF(OR('Tabel 4F S'!D64<5,'Tabel 4 S'!D64<0.5),"-",IFERROR('Tabel 4 S'!D64/'Tabel 4F S'!D64*100,"-")) -> - | E64: =IF(OR('Tabel 4F S'!E64<5,'Tabel 4 S'!E64<0.5),"-",IFERROR('Tabel 4 S'!E64/'Tabel 4F S'!E64*100,"-")) -> - | F64: =IF(OR('Tabel 4F S'!F64<5,'Tabel 4 S'!F64<0.5),"-",IFERROR('Tabel 4 S'!F64/'Tabel 4F S'!F64*100,"-")) -> - | G64: =IF(OR('Tabel 4F S'!G64<5,'Tabel 4 S'!G64<0.5),"-",IFERROR('Tabel 4 S'!G64/'Tabel 4F S'!G64*100,"-")) -> - | I64: =IF(OR('Tabel 4F S'!I64<5,'Tabel 4 S'!I64<0.5),"-",IFERROR('Tabel 4 S'!I64/'Tabel 4F S'!I64*100,"-")) -> -
A65: MA. Ph.d. | C65: =IF(OR('Tabel 4F S'!C65<5,'Tabel 4 S'!C65<0.5),"-",IFERROR('Tabel 4 S'!C65/'Tabel 4F S'!C65*100,"-")) -> - | D65: =IF(OR('Tabel 4F S'!D65<5,'Tabel 4 S'!D65<0.5),"-",IFERROR('Tabel 4 S'!D65/'Tabel 4F S'!D65*100,"-")) -> - | E65: =IF(OR('Tabel 4F S'!E65<5,'Tabel 4 S'!E65<0.5),"-",IFERROR('Tabel 4 S'!E65/'Tabel 4F S'!E65*100,"-")) -> - | F65: =IF(OR('Tabel 4F S'!F65<5,'Tabel 4 S'!F65<0.5),"-",IFERROR('Tabel 4 S'!F65/'Tabel 4F S'!F65*100,"-")) -> - | G65: =IF(OR('Tabel 4F S'!G65<5,'Tabel 4 S'!G65<0.5),"-",IFERROR('Tabel 4 S'!G65/'Tabel 4F S'!G65*100,"-")) -> - | I65: =IF(OR('Tabel 4F S'!I65<5,'Tabel 4 S'!I65<0.5),"-",IFERROR('Tabel 4 S'!I65/'Tabel 4F S'!I65*100,"-")) -> -
A66: MA. Samf. | C66: =IF(OR('Tabel 4F S'!C66<5,'Tabel 4 S'!C66<0.5),"-",IFERROR('Tabel 4 S'!C66/'Tabel 4F S'!C66*100,"-")) -> - | D66: =IF(OR('Tabel 4F S'!D66<5,'Tabel 4 S'!D66<0.5),"-",IFERROR('Tabel 4 S'!D66/'Tabel 4F S'!D66*100,"-")) -> - | E66: =IF(OR('Tabel 4F S'!E66<5,'Tabel 4 S'!E66<0.5),"-",IFERROR('Tabel 4 S'!E66/'Tabel 4F S'!E66*100,"-")) -> - | F66: =IF(OR('Tabel 4F S'!F66<5,'Tabel 4 S'!F66<0.5),"-",IFERROR('Tabel 4 S'!F66/'Tabel 4F S'!F66*100,"-")) -> - | G66: =IF(OR('Tabel 4F S'!G66<5,'Tabel 4 S'!G66<0.5),"-",IFERROR('Tabel 4 S'!G66/'Tabel 4F S'!G66*100,"-")) -> - | I66: =IF(OR('Tabel 4F S'!I66<5,'Tabel 4 S'!I66<0.5),"-",IFERROR('Tabel 4 S'!I66/'Tabel 4F S'!I66*100,"-")) -> 33.33333333
A67: Øvrige Mag. | C67: =IF(OR('Tabel 4F S'!C67<5,'Tabel 4 S'!C67<0.5),"-",IFERROR('Tabel 4 S'!C67/'Tabel 4F S'!C67*100,"-")) -> - | D67: =IF(OR('Tabel 4F S'!D67<5,'Tabel 4 S'!D67<0.5),"-",IFERROR('Tabel 4 S'!D67/'Tabel 4F S'!D67*100,"-")) -> - | E67: =IF(OR('Tabel 4F S'!E67<5,'Tabel 4 S'!E67<0.5),"-",IFERROR('Tabel 4 S'!E67/'Tabel 4F S'!E67*100,"-")) -> - | F67: =IF(OR('Tabel 4F S'!F67<5,'Tabel 4 S'!F67<0.5),"-",IFERROR('Tabel 4 S'!F67/'Tabel 4F S'!F67*100,"-")) -> 14.28571429 | G67: =IF(OR('Tabel 4F S'!G67<5,'Tabel 4 S'!G67<0.5),"-",IFERROR('Tabel 4 S'!G67/'Tabel 4F S'!G67*100,"-")) -> - | I67: =IF(OR('Tabel 4F S'!I67<5,'Tabel 4 S'!I67<0.5),"-",IFERROR('Tabel 4 S'!I67/'Tabel 4F S'!I67*100,"-")) -> 12.5
A68: Agronom | C68: =IF(OR('Tabel 4F S'!C68<5,'Tabel 4 S'!C68<0.5),"-",IFERROR('Tabel 4 S'!C68/'Tabel 4F S'!C68*100,"-")) -> - | D68: =IF(OR('Tabel 4F S'!D68<5,'Tabel 4 S'!D68<0.5),"-",IFERROR('Tabel 4 S'!D68/'Tabel 4F S'!D68*100,"-")) -> - | E68: =IF(OR('Tabel 4F S'!E68<5,'Tabel 4 S'!E68<0.5),"-",IFERROR('Tabel 4 S'!E68/'Tabel 4F S'!E68*100,"-")) -> - | F68: =IF(OR('Tabel 4F S'!F68<5,'Tabel 4 S'!F68<0.5),"-",IFERROR('Tabel 4 S'!F68/'Tabel 4F S'!F68*100,"-")) -> - | G68: =IF(OR('Tabel 4F S'!G68<5,'Tabel 4 S'!G68<0.5),"-",IFERROR('Tabel 4 S'!G68/'Tabel 4F S'!G68*100,"-")) -> - | I68: =IF(OR('Tabel 4F S'!I68<5,'Tabel 4 S'!I68<0.5),"-",IFERROR('Tabel 4 S'!I68/'Tabel 4F S'!I68*100,"-")) -> -
A69: Landsk. Arkt. | C69: =IF(OR('Tabel 4F S'!C69<5,'Tabel 4 S'!C69<0.5),"-",IFERROR('Tabel 4 S'!C69/'Tabel 4F S'!C69*100,"-")) -> - | D69: =IF(OR('Tabel 4F S'!D69<5,'Tabel 4 S'!D69<0.5),"-",IFERROR('Tabel 4 S'!D69/'Tabel 4F S'!D69*100,"-")) -> - | E69: =IF(OR('Tabel 4F S'!E69<5,'Tabel 4 S'!E69<0.5),"-",IFERROR('Tabel 4 S'!E69/'Tabel 4F S'!E69*100,"-")) -> - | F69: =IF(OR('Tabel 4F S'!F69<5,'Tabel 4 S'!F69<0.5),"-",IFERROR('Tabel 4 S'!F69/'Tabel 4F S'!F69*100,"-")) -> - | G69: =IF(OR('Tabel 4F S'!G69<5,'Tabel 4 S'!G69<0.5),"-",IFERROR('Tabel 4 S'!G69/'Tabel 4F S'!G69*100,"-")) -> - | I69: =IF(OR('Tabel 4F S'!I69<5,'Tabel 4 S'!I69<0.5),"-",IFERROR('Tabel 4 S'!I69/'Tabel 4F S'!I69*100,"-")) -> 20
A70: Hortonom | C70: =IF(OR('Tabel 4F S'!C70<5,'Tabel 4 S'!C70<0.5),"-",IFERROR('Tabel 4 S'!C70/'Tabel 4F S'!C70*100,"-")) -> - | D70: =IF(OR('Tabel 4F S'!D70<5,'Tabel 4 S'!D70<0.5),"-",IFERROR('Tabel 4 S'!D70/'Tabel 4F S'!D70*100,"-")) -> - | E70: =IF(OR('Tabel 4F S'!E70<5,'Tabel 4 S'!E70<0.5),"-",IFERROR('Tabel 4 S'!E70/'Tabel 4F S'!E70*100,"-")) -> - | F70: =IF(OR('Tabel 4F S'!F70<5,'Tabel 4 S'!F70<0.5),"-",IFERROR('Tabel 4 S'!F70/'Tabel 4F S'!F70*100,"-")) -> - | G70: =IF(OR('Tabel 4F S'!G70<5,'Tabel 4 S'!G70<0.5),"-",IFERROR('Tabel 4 S'!G70/'Tabel 4F S'!G70*100,"-")) -> - | I70: =IF(OR('Tabel 4F S'!I70<5,'Tabel 4 S'!I70<0.5),"-",IFERROR('Tabel 4 S'!I70/'Tabel 4F S'!I70*100,"-")) -> -
A71: Forstkand. | C71: =IF(OR('Tabel 4F S'!C71<5,'Tabel 4 S'!C71<0.5),"-",IFERROR('Tabel 4 S'!C71/'Tabel 4F S'!C71*100,"-")) -> - | D71: =IF(OR('Tabel 4F S'!D71<5,'Tabel 4 S'!D71<0.5),"-",IFERROR('Tabel 4 S'!D71/'Tabel 4F S'!D71*100,"-")) -> - | E71: =IF(OR('Tabel 4F S'!E71<5,'Tabel 4 S'!E71<0.5),"-",IFERROR('Tabel 4 S'!E71/'Tabel 4F S'!E71*100,"-")) -> - | F71: =IF(OR('Tabel 4F S'!F71<5,'Tabel 4 S'!F71<0.5),"-",IFERROR('Tabel 4 S'!F71/'Tabel 4F S'!F71*100,"-")) -> - | G71: =IF(OR('Tabel 4F S'!G71<5,'Tabel 4 S'!G71<0.5),"-",IFERROR('Tabel 4 S'!G71/'Tabel 4F S'!G71*100,"-")) -> - | I71: =IF(OR('Tabel 4F S'!I71<5,'Tabel 4 S'!I71<0.5),"-",IFERROR('Tabel 4 S'!I71/'Tabel 4F S'!I71*100,"-")) -> -
A72: Jordbrugsakad. | C72: =IF(OR('Tabel 4F S'!C72<5,'Tabel 4 S'!C72<0.5),"-",IFERROR('Tabel 4 S'!C72/'Tabel 4F S'!C72*100,"-")) -> - | D72: =IF(OR('Tabel 4F S'!D72<5,'Tabel 4 S'!D72<0.5),"-",IFERROR('Tabel 4 S'!D72/'Tabel 4F S'!D72*100,"-")) -> - | E72: =IF(OR('Tabel 4F S'!E72<5,'Tabel 4 S'!E72<0.5),"-",IFERROR('Tabel 4 S'!E72/'Tabel 4F S'!E72*100,"-")) -> - | F72: =IF(OR('Tabel 4F S'!F72<5,'Tabel 4 S'!F72<0.5),"-",IFERROR('Tabel 4 S'!F72/'Tabel 4F S'!F72*100,"-")) -> - | G72: =IF(OR('Tabel 4F S'!G72<5,'Tabel 4 S'!G72<0.5),"-",IFERROR('Tabel 4 S'!G72/'Tabel 4F S'!G72*100,"-")) -> - | I72: =IF(OR('Tabel 4F S'!I72<5,'Tabel 4 S'!I72<0.5),"-",IFERROR('Tabel 4 S'!I72/'Tabel 4F S'!I72*100,"-")) -> 4.545454545
A73: Mejeriing. | C73: =IF(OR('Tabel 4F S'!C73<5,'Tabel 4 S'!C73<0.5),"-",IFERROR('Tabel 4 S'!C73/'Tabel 4F S'!C73*100,"-")) -> - | D73: =IF(OR('Tabel 4F S'!D73<5,'Tabel 4 S'!D73<0.5),"-",IFERROR('Tabel 4 S'!D73/'Tabel 4F S'!D73*100,"-")) -> - | E73: =IF(OR('Tabel 4F S'!E73<5,'Tabel 4 S'!E73<0.5),"-",IFERROR('Tabel 4 S'!E73/'Tabel 4F S'!E73*100,"-")) -> - | F73: =IF(OR('Tabel 4F S'!F73<5,'Tabel 4 S'!F73<0.5),"-",IFERROR('Tabel 4 S'!F73/'Tabel 4F S'!F73*100,"-")) -> - | G73: =IF(OR('Tabel 4F S'!G73<5,'Tabel 4 S'!G73<0.5),"-",IFERROR('Tabel 4 S'!G73/'Tabel 4F S'!G73*100,"-")) -> - | I73: =IF(OR('Tabel 4F S'!I73<5,'Tabel 4 S'!I73<0.5),"-",IFERROR('Tabel 4 S'!I73/'Tabel 4F S'!I73*100,"-")) -> -
A74: Levn.m.kand. | C74: =IF(OR('Tabel 4F S'!C74<5,'Tabel 4 S'!C74<0.5),"-",IFERROR('Tabel 4 S'!C74/'Tabel 4F S'!C74*100,"-")) -> - | D74: =IF(OR('Tabel 4F S'!D74<5,'Tabel 4 S'!D74<0.5),"-",IFERROR('Tabel 4 S'!D74/'Tabel 4F S'!D74*100,"-")) -> - | E74: =IF(OR('Tabel 4F S'!E74<5,'Tabel 4 S'!E74<0.5),"-",IFERROR('Tabel 4 S'!E74/'Tabel 4F S'!E74*100,"-")) -> - | F74: =IF(OR('Tabel 4F S'!F74<5,'Tabel 4 S'!F74<0.5),"-",IFERROR('Tabel 4 S'!F74/'Tabel 4F S'!F74*100,"-")) -> - | G74: =IF(OR('Tabel 4F S'!G74<5,'Tabel 4 S'!G74<0.5),"-",IFERROR('Tabel 4 S'!G74/'Tabel 4F S'!G74*100,"-")) -> - | I74: =IF(OR('Tabel 4F S'!I74<5,'Tabel 4 S'!I74<0.5),"-",IFERROR('Tabel 4 S'!I74/'Tabel 4F S'!I74*100,"-")) -> -
A75: Dyrlæge | C75: =IF(OR('Tabel 4F S'!C75<5,'Tabel 4 S'!C75<0.5),"-",IFERROR('Tabel 4 S'!C75/'Tabel 4F S'!C75*100,"-")) -> - | D75: =IF(OR('Tabel 4F S'!D75<5,'Tabel 4 S'!D75<0.5),"-",IFERROR('Tabel 4 S'!D75/'Tabel 4F S'!D75*100,"-")) -> - | E75: =IF(OR('Tabel 4F S'!E75<5,'Tabel 4 S'!E75<0.5),"-",IFERROR('Tabel 4 S'!E75/'Tabel 4F S'!E75*100,"-")) -> - | F75: =IF(OR('Tabel 4F S'!F75<5,'Tabel 4 S'!F75<0.5),"-",IFERROR('Tabel 4 S'!F75/'Tabel 4F S'!F75*100,"-")) -> - | G75: =IF(OR('Tabel 4F S'!G75<5,'Tabel 4 S'!G75<0.5),"-",IFERROR('Tabel 4 S'!G75/'Tabel 4F S'!G75*100,"-")) -> - | I75: =IF(OR('Tabel 4F S'!I75<5,'Tabel 4 S'!I75<0.5),"-",IFERROR('Tabel 4 S'!I75/'Tabel 4F S'!I75*100,"-")) -> 7.692307692
A76: Farmaceut | C76: =IF(OR('Tabel 4F S'!C76<5,'Tabel 4 S'!C76<0.5),"-",IFERROR('Tabel 4 S'!C76/'Tabel 4F S'!C76*100,"-")) -> - | D76: =IF(OR('Tabel 4F S'!D76<5,'Tabel 4 S'!D76<0.5),"-",IFERROR('Tabel 4 S'!D76/'Tabel 4F S'!D76*100,"-")) -> - | E76: =IF(OR('Tabel 4F S'!E76<5,'Tabel 4 S'!E76<0.5),"-",IFERROR('Tabel 4 S'!E76/'Tabel 4F S'!E76*100,"-")) -> - | F76: =IF(OR('Tabel 4F S'!F76<5,'Tabel 4 S'!F76<0.5),"-",IFERROR('Tabel 4 S'!F76/'Tabel 4F S'!F76*100,"-")) -> - | G76: =IF(OR('Tabel 4F S'!G76<5,'Tabel 4 S'!G76<0.5),"-",IFERROR('Tabel 4 S'!G76/'Tabel 4F S'!G76*100,"-")) -> - | I76: =IF(OR('Tabel 4F S'!I76<5,'Tabel 4 S'!I76<0.5),"-",IFERROR('Tabel 4 S'!I76/'Tabel 4F S'!I76*100,"-")) -> -
A77: Læge | C77: =IF(OR('Tabel 4F S'!C77<5,'Tabel 4 S'!C77<0.5),"-",IFERROR('Tabel 4 S'!C77/'Tabel 4F S'!C77*100,"-")) -> 14.28571429 | D77: =IF(OR('Tabel 4F S'!D77<5,'Tabel 4 S'!D77<0.5),"-",IFERROR('Tabel 4 S'!D77/'Tabel 4F S'!D77*100,"-")) -> - | E77: =IF(OR('Tabel 4F S'!E77<5,'Tabel 4 S'!E77<0.5),"-",IFERROR('Tabel 4 S'!E77/'Tabel 4F S'!E77*100,"-")) -> - | F77: =IF(OR('Tabel 4F S'!F77<5,'Tabel 4 S'!F77<0.5),"-",IFERROR('Tabel 4 S'!F77/'Tabel 4F S'!F77*100,"-")) -> - | G77: =IF(OR('Tabel 4F S'!G77<5,'Tabel 4 S'!G77<0.5),"-",IFERROR('Tabel 4 S'!G77/'Tabel 4F S'!G77*100,"-")) -> - | I77: =IF(OR('Tabel 4F S'!I77<5,'Tabel 4 S'!I77<0.5),"-",IFERROR('Tabel 4 S'!I77/'Tabel 4F S'!I77*100,"-")) -> 2.222222222
A78: Tandlæge | C78: =IF(OR('Tabel 4F S'!C78<5,'Tabel 4 S'!C78<0.5),"-",IFERROR('Tabel 4 S'!C78/'Tabel 4F S'!C78*100,"-")) -> - | D78: =IF(OR('Tabel 4F S'!D78<5,'Tabel 4 S'!D78<0.5),"-",IFERROR('Tabel 4 S'!D78/'Tabel 4F S'!D78*100,"-")) -> - | E78: =IF(OR('Tabel 4F S'!E78<5,'Tabel 4 S'!E78<0.5),"-",IFERROR('Tabel 4 S'!E78/'Tabel 4F S'!E78*100,"-")) -> - | F78: =IF(OR('Tabel 4F S'!F78<5,'Tabel 4 S'!F78<0.5),"-",IFERROR('Tabel 4 S'!F78/'Tabel 4F S'!F78*100,"-")) -> 16.66666667 | G78: =IF(OR('Tabel 4F S'!G78<5,'Tabel 4 S'!G78<0.5),"-",IFERROR('Tabel 4 S'!G78/'Tabel 4F S'!G78*100,"-")) -> - | I78: =IF(OR('Tabel 4F S'!I78<5,'Tabel 4 S'!I78<0.5),"-",IFERROR('Tabel 4 S'!I78/'Tabel 4F S'!I78*100,"-")) -> 5.555555556
A79: Arkitekt | C79: =IF(OR('Tabel 4F S'!C79<5,'Tabel 4 S'!C79<0.5),"-",IFERROR('Tabel 4 S'!C79/'Tabel 4F S'!C79*100,"-")) -> - | D79: =IF(OR('Tabel 4F S'!D79<5,'Tabel 4 S'!D79<0.5),"-",IFERROR('Tabel 4 S'!D79/'Tabel 4F S'!D79*100,"-")) -> - | E79: =IF(OR('Tabel 4F S'!E79<5,'Tabel 4 S'!E79<0.5),"-",IFERROR('Tabel 4 S'!E79/'Tabel 4F S'!E79*100,"-")) -> - | F79: =IF(OR('Tabel 4F S'!F79<5,'Tabel 4 S'!F79<0.5),"-",IFERROR('Tabel 4 S'!F79/'Tabel 4F S'!F79*100,"-")) -> - | G79: =IF(OR('Tabel 4F S'!G79<5,'Tabel 4 S'!G79<0.5),"-",IFERROR('Tabel 4 S'!G79/'Tabel 4F S'!G79*100,"-")) -> - | I79: =IF(OR('Tabel 4F S'!I79<5,'Tabel 4 S'!I79<0.5),"-",IFERROR('Tabel 4 S'!I79/'Tabel 4F S'!I79*100,"-")) -> 16.66666667
A80: Landinspek. | C80: =IF(OR('Tabel 4F S'!C80<5,'Tabel 4 S'!C80<0.5),"-",IFERROR('Tabel 4 S'!C80/'Tabel 4F S'!C80*100,"-")) -> - | D80: =IF(OR('Tabel 4F S'!D80<5,'Tabel 4 S'!D80<0.5),"-",IFERROR('Tabel 4 S'!D80/'Tabel 4F S'!D80*100,"-")) -> - | E80: =IF(OR('Tabel 4F S'!E80<5,'Tabel 4 S'!E80<0.5),"-",IFERROR('Tabel 4 S'!E80/'Tabel 4F S'!E80*100,"-")) -> - | F80: =IF(OR('Tabel 4F S'!F80<5,'Tabel 4 S'!F80<0.5),"-",IFERROR('Tabel 4 S'!F80/'Tabel 4F S'!F80*100,"-")) -> - | G80: =IF(OR('Tabel 4F S'!G80<5,'Tabel 4 S'!G80<0.5),"-",IFERROR('Tabel 4 S'!G80/'Tabel 4F S'!G80*100,"-")) -> - | I80: =IF(OR('Tabel 4F S'!I80<5,'Tabel 4 S'!I80<0.5),"-",IFERROR('Tabel 4 S'!I80/'Tabel 4F S'!I80*100,"-")) -> -
A81: Bibliotekar | C81: =IF(OR('Tabel 4F S'!C81<5,'Tabel 4 S'!C81<0.5),"-",IFERROR('Tabel 4 S'!C81/'Tabel 4F S'!C81*100,"-")) -> - | D81: =IF(OR('Tabel 4F S'!D81<5,'Tabel 4 S'!D81<0.5),"-",IFERROR('Tabel 4 S'!D81/'Tabel 4F S'!D81*100,"-")) -> - | E81: =IF(OR('Tabel 4F S'!E81<5,'Tabel 4 S'!E81<0.5),"-",IFERROR('Tabel 4 S'!E81/'Tabel 4F S'!E81*100,"-")) -> - | F81: =IF(OR('Tabel 4F S'!F81<5,'Tabel 4 S'!F81<0.5),"-",IFERROR('Tabel 4 S'!F81/'Tabel 4F S'!F81*100,"-")) -> - | G81: =IF(OR('Tabel 4F S'!G81<5,'Tabel 4 S'!G81<0.5),"-",IFERROR('Tabel 4 S'!G81/'Tabel 4F S'!G81*100,"-")) -> - | I81: =IF(OR('Tabel 4F S'!I81<5,'Tabel 4 S'!I81<0.5),"-",IFERROR('Tabel 4 S'!I81/'Tabel 4F S'!I81*100,"-")) -> -
A82: Musikudd. | C82: =IF(OR('Tabel 4F S'!C82<5,'Tabel 4 S'!C82<0.5),"-",IFERROR('Tabel 4 S'!C82/'Tabel 4F S'!C82*100,"-")) -> - | D82: =IF(OR('Tabel 4F S'!D82<5,'Tabel 4 S'!D82<0.5),"-",IFERROR('Tabel 4 S'!D82/'Tabel 4F S'!D82*100,"-")) -> - | E82: =IF(OR('Tabel 4F S'!E82<5,'Tabel 4 S'!E82<0.5),"-",IFERROR('Tabel 4 S'!E82/'Tabel 4F S'!E82*100,"-")) -> - | F82: =IF(OR('Tabel 4F S'!F82<5,'Tabel 4 S'!F82<0.5),"-",IFERROR('Tabel 4 S'!F82/'Tabel 4F S'!F82*100,"-")) -> - | G82: =IF(OR('Tabel 4F S'!G82<5,'Tabel 4 S'!G82<0.5),"-",IFERROR('Tabel 4 S'!G82/'Tabel 4F S'!G82*100,"-")) -> - | I82: =IF(OR('Tabel 4F S'!I82<5,'Tabel 4 S'!I82<0.5),"-",IFERROR('Tabel 4 S'!I82/'Tabel 4F S'!I82*100,"-")) -> -
A83: Teolog | C83: =IF(OR('Tabel 4F S'!C83<5,'Tabel 4 S'!C83<0.5),"-",IFERROR('Tabel 4 S'!C83/'Tabel 4F S'!C83*100,"-")) -> - | D83: =IF(OR('Tabel 4F S'!D83<5,'Tabel 4 S'!D83<0.5),"-",IFERROR('Tabel 4 S'!D83/'Tabel 4F S'!D83*100,"-")) -> - | E83: =IF(OR('Tabel 4F S'!E83<5,'Tabel 4 S'!E83<0.5),"-",IFERROR('Tabel 4 S'!E83/'Tabel 4F S'!E83*100,"-")) -> - | F83: =IF(OR('Tabel 4F S'!F83<5,'Tabel 4 S'!F83<0.5),"-",IFERROR('Tabel 4 S'!F83/'Tabel 4F S'!F83*100,"-")) -> - | G83: =IF(OR('Tabel 4F S'!G83<5,'Tabel 4 S'!G83<0.5),"-",IFERROR('Tabel 4 S'!G83/'Tabel 4F S'!G83*100,"-")) -> - | I83: =IF(OR('Tabel 4F S'!I83<5,'Tabel 4 S'!I83<0.5),"-",IFERROR('Tabel 4 S'!I83/'Tabel 4F S'!I83*100,"-")) -> -
A84: Psykolog | C84: =IF(OR('Tabel 4F S'!C84<5,'Tabel 4 S'!C84<0.5),"-",IFERROR('Tabel 4 S'!C84/'Tabel 4F S'!C84*100,"-")) -> - | D84: =IF(OR('Tabel 4F S'!D84<5,'Tabel 4 S'!D84<0.5),"-",IFERROR('Tabel 4 S'!D84/'Tabel 4F S'!D84*100,"-")) -> - | E84: =IF(OR('Tabel 4F S'!E84<5,'Tabel 4 S'!E84<0.5),"-",IFERROR('Tabel 4 S'!E84/'Tabel 4F S'!E84*100,"-")) -> - | F84: =IF(OR('Tabel 4F S'!F84<5,'Tabel 4 S'!F84<0.5),"-",IFERROR('Tabel 4 S'!F84/'Tabel 4F S'!F84*100,"-")) -> - | G84: =IF(OR('Tabel 4F S'!G84<5,'Tabel 4 S'!G84<0.5),"-",IFERROR('Tabel 4 S'!G84/'Tabel 4F S'!G84*100,"-")) -> - | I84: =IF(OR('Tabel 4F S'!I84<5,'Tabel 4 S'!I84<0.5),"-",IFERROR('Tabel 4 S'!I84/'Tabel 4F S'!I84*100,"-")) -> 4.347826087
A85: Jurist | C85: =IF(OR('Tabel 4F S'!C85<5,'Tabel 4 S'!C85<0.5),"-",IFERROR('Tabel 4 S'!C85/'Tabel 4F S'!C85*100,"-")) -> - | D85: =IF(OR('Tabel 4F S'!D85<5,'Tabel 4 S'!D85<0.5),"-",IFERROR('Tabel 4 S'!D85/'Tabel 4F S'!D85*100,"-")) -> 4 | E85: =IF(OR('Tabel 4F S'!E85<5,'Tabel 4 S'!E85<0.5),"-",IFERROR('Tabel 4 S'!E85/'Tabel 4F S'!E85*100,"-")) -> - | F85: =IF(OR('Tabel 4F S'!F85<5,'Tabel 4 S'!F85<0.5),"-",IFERROR('Tabel 4 S'!F85/'Tabel 4F S'!F85*100,"-")) -> 2.941176471 | G85: =IF(OR('Tabel 4F S'!G85<5,'Tabel 4 S'!G85<0.5),"-",IFERROR('Tabel 4 S'!G85/'Tabel 4F S'!G85*100,"-")) -> - | I85: =IF(OR('Tabel 4F S'!I85<5,'Tabel 4 S'!I85<0.5),"-",IFERROR('Tabel 4 S'!I85/'Tabel 4F S'!I85*100,"-")) -> 1.801801802
A86: Økonom | C86: =IF(OR('Tabel 4F S'!C86<5,'Tabel 4 S'!C86<0.5),"-",IFERROR('Tabel 4 S'!C86/'Tabel 4F S'!C86*100,"-")) -> - | D86: =IF(OR('Tabel 4F S'!D86<5,'Tabel 4 S'!D86<0.5),"-",IFERROR('Tabel 4 S'!D86/'Tabel 4F S'!D86*100,"-")) -> - | E86: =IF(OR('Tabel 4F S'!E86<5,'Tabel 4 S'!E86<0.5),"-",IFERROR('Tabel 4 S'!E86/'Tabel 4F S'!E86*100,"-")) -> - | F86: =IF(OR('Tabel 4F S'!F86<5,'Tabel 4 S'!F86<0.5),"-",IFERROR('Tabel 4 S'!F86/'Tabel 4F S'!F86*100,"-")) -> - | G86: =IF(OR('Tabel 4F S'!G86<5,'Tabel 4 S'!G86<0.5),"-",IFERROR('Tabel 4 S'!G86/'Tabel 4F S'!G86*100,"-")) -> - | I86: =IF(OR('Tabel 4F S'!I86<5,'Tabel 4 S'!I86<0.5),"-",IFERROR('Tabel 4 S'!I86/'Tabel 4F S'!I86*100,"-")) -> -
A87: Samf. Adm. | C87: =IF(OR('Tabel 4F S'!C87<5,'Tabel 4 S'!C87<0.5),"-",IFERROR('Tabel 4 S'!C87/'Tabel 4F S'!C87*100,"-")) -> 40 | D87: =IF(OR('Tabel 4F S'!D87<5,'Tabel 4 S'!D87<0.5),"-",IFERROR('Tabel 4 S'!D87/'Tabel 4F S'!D87*100,"-")) -> 6.382978723 | E87: =IF(OR('Tabel 4F S'!E87<5,'Tabel 4 S'!E87<0.5),"-",IFERROR('Tabel 4 S'!E87/'Tabel 4F S'!E87*100,"-")) -> 2.857142857 | F87: =IF(OR('Tabel 4F S'!F87<5,'Tabel 4 S'!F87<0.5),"-",IFERROR('Tabel 4 S'!F87/'Tabel 4F S'!F87*100,"-")) -> - | G87: =IF(OR('Tabel 4F S'!G87<5,'Tabel 4 S'!G87<0.5),"-",IFERROR('Tabel 4 S'!G87/'Tabel 4F S'!G87*100,"-")) -> - | I87: =IF(OR('Tabel 4F S'!I87<5,'Tabel 4 S'!I87<0.5),"-",IFERROR('Tabel 4 S'!I87/'Tabel 4F S'!I87*100,"-")) -> 8.474576271
A88: Cand. Merc. | C88: =IF(OR('Tabel 4F S'!C88<5,'Tabel 4 S'!C88<0.5),"-",IFERROR('Tabel 4 S'!C88/'Tabel 4F S'!C88*100,"-")) -> 20.58823529 | D88: =IF(OR('Tabel 4F S'!D88<5,'Tabel 4 S'!D88<0.5),"-",IFERROR('Tabel 4 S'!D88/'Tabel 4F S'!D88*100,"-")) -> 3.947368421 | E88: =IF(OR('Tabel 4F S'!E88<5,'Tabel 4 S'!E88<0.5),"-",IFERROR('Tabel 4 S'!E88/'Tabel 4F S'!E88*100,"-")) -> 0.9900990099 | F88: =IF(OR('Tabel 4F S'!F88<5,'Tabel 4 S'!F88<0.5),"-",IFERROR('Tabel 4 S'!F88/'Tabel 4F S'!F88*100,"-")) -> 1.785714286 | G88: =IF(OR('Tabel 4F S'!G88<5,'Tabel 4 S'!G88<0.5),"-",IFERROR('Tabel 4 S'!G88/'Tabel 4F S'!G88*100,"-")) -> 11.11111111 | I88: =IF(OR('Tabel 4F S'!I88<5,'Tabel 4 S'!I88<0.5),"-",IFERROR('Tabel 4 S'!I88/'Tabel 4F S'!I88*100,"-")) -> 4.710144928
A89: HA | C89: =IF(OR('Tabel 4F S'!C89<5,'Tabel 4 S'!C89<0.5),"-",IFERROR('Tabel 4 S'!C89/'Tabel 4F S'!C89*100,"-")) -> 16.66666667 | D89: =IF(OR('Tabel 4F S'!D89<5,'Tabel 4 S'!D89<0.5),"-",IFERROR('Tabel 4 S'!D89/'Tabel 4F S'!D89*100,"-")) -> - | E89: =IF(OR('Tabel 4F S'!E89<5,'Tabel 4 S'!E89<0.5),"-",IFERROR('Tabel 4 S'!E89/'Tabel 4F S'!E89*100,"-")) -> - | F89: =IF(OR('Tabel 4F S'!F89<5,'Tabel 4 S'!F89<0.5),"-",IFERROR('Tabel 4 S'!F89/'Tabel 4F S'!F89*100,"-")) -> 13.04347826 | G89: =IF(OR('Tabel 4F S'!G89<5,'Tabel 4 S'!G89<0.5),"-",IFERROR('Tabel 4 S'!G89/'Tabel 4F S'!G89*100,"-")) -> - | I89: =IF(OR('Tabel 4F S'!I89<5,'Tabel 4 S'!I89<0.5),"-",IFERROR('Tabel 4 S'!I89/'Tabel 4F S'!I89*100,"-")) -> 5.479452055
A90: HD | C90: =IF(OR('Tabel 4F S'!C90<5,'Tabel 4 S'!C90<0.5),"-",IFERROR('Tabel 4 S'!C90/'Tabel 4F S'!C90*100,"-")) -> - | D90: =IF(OR('Tabel 4F S'!D90<5,'Tabel 4 S'!D90<0.5),"-",IFERROR('Tabel 4 S'!D90/'Tabel 4F S'!D90*100,"-")) -> - | E90: =IF(OR('Tabel 4F S'!E90<5,'Tabel 4 S'!E90<0.5),"-",IFERROR('Tabel 4 S'!E90/'Tabel 4F S'!E90*100,"-")) -> - | F90: =IF(OR('Tabel 4F S'!F90<5,'Tabel 4 S'!F90<0.5),"-",IFERROR('Tabel 4 S'!F90/'Tabel 4F S'!F90*100,"-")) -> 5.263157895 | G90: =IF(OR('Tabel 4F S'!G90<5,'Tabel 4 S'!G90<0.5),"-",IFERROR('Tabel 4 S'!G90/'Tabel 4F S'!G90*100,"-")) -> - | I90: =IF(OR('Tabel 4F S'!I90<5,'Tabel 4 S'!I90<0.5),"-",IFERROR('Tabel 4 S'!I90/'Tabel 4F S'!I90*100,"-")) -> 3.947368421
A91: Komm. og Sprog | C91: =IF(OR('Tabel 4F S'!C91<5,'Tabel 4 S'!C91<0.5),"-",IFERROR('Tabel 4 S'!C91/'Tabel 4F S'!C91*100,"-")) -> - | D91: =IF(OR('Tabel 4F S'!D91<5,'Tabel 4 S'!D91<0.5),"-",IFERROR('Tabel 4 S'!D91/'Tabel 4F S'!D91*100,"-")) -> - | E91: =IF(OR('Tabel 4F S'!E91<5,'Tabel 4 S'!E91<0.5),"-",IFERROR('Tabel 4 S'!E91/'Tabel 4F S'!E91*100,"-")) -> 4.545454545 | F91: =IF(OR('Tabel 4F S'!F91<5,'Tabel 4 S'!F91<0.5),"-",IFERROR('Tabel 4 S'!F91/'Tabel 4F S'!F91*100,"-")) -> - | G91: =IF(OR('Tabel 4F S'!G91<5,'Tabel 4 S'!G91<0.5),"-",IFERROR('Tabel 4 S'!G91/'Tabel 4F S'!G91*100,"-")) -> - | I91: =IF(OR('Tabel 4F S'!I91<5,'Tabel 4 S'!I91<0.5),"-",IFERROR('Tabel 4 S'!I91/'Tabel 4F S'!I91*100,"-")) -> 3.174603175
A92: Cand. IT. | C92: =IF(OR('Tabel 4F S'!C92<5,'Tabel 4 S'!C92<0.5),"-",IFERROR('Tabel 4 S'!C92/'Tabel 4F S'!C92*100,"-")) -> - | D92: =IF(OR('Tabel 4F S'!D92<5,'Tabel 4 S'!D92<0.5),"-",IFERROR('Tabel 4 S'!D92/'Tabel 4F S'!D92*100,"-")) -> - | E92: =IF(OR('Tabel 4F S'!E92<5,'Tabel 4 S'!E92<0.5),"-",IFERROR('Tabel 4 S'!E92/'Tabel 4F S'!E92*100,"-")) -> - | F92: =IF(OR('Tabel 4F S'!F92<5,'Tabel 4 S'!F92<0.5),"-",IFERROR('Tabel 4 S'!F92/'Tabel 4F S'!F92*100,"-")) -> - | G92: =IF(OR('Tabel 4F S'!G92<5,'Tabel 4 S'!G92<0.5),"-",IFERROR('Tabel 4 S'!G92/'Tabel 4F S'!G92*100,"-")) -> - | I92: =IF(OR('Tabel 4F S'!I92<5,'Tabel 4 S'!I92<0.5),"-",IFERROR('Tabel 4 S'!I92/'Tabel 4F S'!I92*100,"-")) -> -
A93: Bac. Samf. | C93: =IF(OR('Tabel 4F S'!C93<5,'Tabel 4 S'!C93<0.5),"-",IFERROR('Tabel 4 S'!C93/'Tabel 4F S'!C93*100,"-")) -> - | D93: =IF(OR('Tabel 4F S'!D93<5,'Tabel 4 S'!D93<0.5),"-",IFERROR('Tabel 4 S'!D93/'Tabel 4F S'!D93*100,"-")) -> - | E93: =IF(OR('Tabel 4F S'!E93<5,'Tabel 4 S'!E93<0.5),"-",IFERROR('Tabel 4 S'!E93/'Tabel 4F S'!E93*100,"-")) -> - | F93: =IF(OR('Tabel 4F S'!F93<5,'Tabel 4 S'!F93<0.5),"-",IFERROR('Tabel 4 S'!F93/'Tabel 4F S'!F93*100,"-")) -> - | G93: =IF(OR('Tabel 4F S'!G93<5,'Tabel 4 S'!G93<0.5),"-",IFERROR('Tabel 4 S'!G93/'Tabel 4F S'!G93*100,"-")) -> - | I93: =IF(OR('Tabel 4F S'!I93<5,'Tabel 4 S'!I93<0.5),"-",IFERROR('Tabel 4 S'!I93/'Tabel 4F S'!I93*100,"-")) -> -
A94: Bac. Hum. | C94: =IF(OR('Tabel 4F S'!C94<5,'Tabel 4 S'!C94<0.5),"-",IFERROR('Tabel 4 S'!C94/'Tabel 4F S'!C94*100,"-")) -> - | D94: =IF(OR('Tabel 4F S'!D94<5,'Tabel 4 S'!D94<0.5),"-",IFERROR('Tabel 4 S'!D94/'Tabel 4F S'!D94*100,"-")) -> - | E94: =IF(OR('Tabel 4F S'!E94<5,'Tabel 4 S'!E94<0.5),"-",IFERROR('Tabel 4 S'!E94/'Tabel 4F S'!E94*100,"-")) -> - | F94: =IF(OR('Tabel 4F S'!F94<5,'Tabel 4 S'!F94<0.5),"-",IFERROR('Tabel 4 S'!F94/'Tabel 4F S'!F94*100,"-")) -> - | G94: =IF(OR('Tabel 4F S'!G94<5,'Tabel 4 S'!G94<0.5),"-",IFERROR('Tabel 4 S'!G94/'Tabel 4F S'!G94*100,"-")) -> - | I94: =IF(OR('Tabel 4F S'!I94<5,'Tabel 4 S'!I94<0.5),"-",IFERROR('Tabel 4 S'!I94/'Tabel 4F S'!I94*100,"-")) -> 6.25
A95: Bac. Nat. | C95: =IF(OR('Tabel 4F S'!C95<5,'Tabel 4 S'!C95<0.5),"-",IFERROR('Tabel 4 S'!C95/'Tabel 4F S'!C95*100,"-")) -> - | D95: =IF(OR('Tabel 4F S'!D95<5,'Tabel 4 S'!D95<0.5),"-",IFERROR('Tabel 4 S'!D95/'Tabel 4F S'!D95*100,"-")) -> - | E95: =IF(OR('Tabel 4F S'!E95<5,'Tabel 4 S'!E95<0.5),"-",IFERROR('Tabel 4 S'!E95/'Tabel 4F S'!E95*100,"-")) -> - | F95: =IF(OR('Tabel 4F S'!F95<5,'Tabel 4 S'!F95<0.5),"-",IFERROR('Tabel 4 S'!F95/'Tabel 4F S'!F95*100,"-")) -> - | G95: =IF(OR('Tabel 4F S'!G95<5,'Tabel 4 S'!G95<0.5),"-",IFERROR('Tabel 4 S'!G95/'Tabel 4F S'!G95*100,"-")) -> - | I95: =IF(OR('Tabel 4F S'!I95<5,'Tabel 4 S'!I95<0.5),"-",IFERROR('Tabel 4 S'!I95/'Tabel 4F S'!I95*100,"-")) -> 7.142857143
A96: Andre | C96: =IF(OR('Tabel 4F S'!C96<5,'Tabel 4 S'!C96<0.5),"-",IFERROR('Tabel 4 S'!C96/'Tabel 4F S'!C96*100,"-")) -> 25 | D96: =IF(OR('Tabel 4F S'!D96<5,'Tabel 4 S'!D96<0.5),"-",IFERROR('Tabel 4 S'!D96/'Tabel 4F S'!D96*100,"-")) -> 6 | E96: =IF(OR('Tabel 4F S'!E96<5,'Tabel 4 S'!E96<0.5),"-",IFERROR('Tabel 4 S'!E96/'Tabel 4F S'!E96*100,"-")) -> 2.127659574 | F96: =IF(OR('Tabel 4F S'!F96<5,'Tabel 4 S'!F96<0.5),"-",IFERROR('Tabel 4 S'!F96/'Tabel 4F S'!F96*100,"-")) -> 3.125 | G96: =IF(OR('Tabel 4F S'!G96<5,'Tabel 4 S'!G96<0.5),"-",IFERROR('Tabel 4 S'!G96/'Tabel 4F S'!G96*100,"-")) -> - | I96: =IF(OR('Tabel 4F S'!I96<5,'Tabel 4 S'!I96<0.5),"-",IFERROR('Tabel 4 S'!I96/'Tabel 4F S'!I96*100,"-")) -> 4.895104895
A98: Total | C98: =IF(OR('Tabel 4F S'!C98<5,'Tabel 4 S'!C98<0.5),"-",IFERROR('Tabel 4 S'!C98/'Tabel 4F S'!C98*100,"-")) -> 18.53932584 | D98: =IF(OR('Tabel 4F S'!D98<5,'Tabel 4 S'!D98<0.5),"-",IFERROR('Tabel 4 S'!D98/'Tabel 4F S'!D98*100,"-")) -> 3.531598513 | E98: =IF(OR('Tabel 4F S'!E98<5,'Tabel 4 S'!E98<0.5),"-",IFERROR('Tabel 4 S'!E98/'Tabel 4F S'!E98*100,"-")) -> 1.524390244 | F98: =IF(OR('Tabel 4F S'!F98<5,'Tabel 4 S'!F98<0.5),"-",IFERROR('Tabel 4 S'!F98/'Tabel 4F S'!F98*100,"-")) -> 2.893309222 | G98: =IF(OR('Tabel 4F S'!G98<5,'Tabel 4 S'!G98<0.5),"-",IFERROR('Tabel 4 S'!G98/'Tabel 4F S'!G98*100,"-")) -> 4 | I98: =IF(OR('Tabel 4F S'!I98<5,'Tabel 4 S'!I98<0.5),"-",IFERROR('Tabel 4 S'!I98/'Tabel 4F S'!I98*100,"-")) -> 4.048192771
A100: Ingeniører i alt | C100: =IF(OR('Tabel 4F S'!C100<5,'Tabel 4 S'!C100<0.5),"-",IFERROR('Tabel 4 S'!C100/'Tabel 4F S'!C100*100,"-")) -> 11.53846154 | D100: =IF(OR('Tabel 4F S'!D100<5,'Tabel 4 S'!D100<0.5),"-",IFERROR('Tabel 4 S'!D100/'Tabel 4F S'!D100*100,"-")) -> 2.884615385 | E100: =IF(OR('Tabel 4F S'!E100<5,'Tabel 4 S'!E100<0.5),"-",IFERROR('Tabel 4 S'!E100/'Tabel 4F S'!E100*100,"-")) -> - | F100: =IF(OR('Tabel 4F S'!F100<5,'Tabel 4 S'!F100<0.5),"-",IFERROR('Tabel 4 S'!F100/'Tabel 4F S'!F100*100,"-")) -> 2.139037433 | G100: =IF(OR('Tabel 4F S'!G100<5,'Tabel 4 S'!G100<0.5),"-",IFERROR('Tabel 4 S'!G100/'Tabel 4F S'!G100*100,"-")) -> 4.651162791 | I100: =IF(OR('Tabel 4F S'!I100<5,'Tabel 4 S'!I100<0.5),"-",IFERROR('Tabel 4 S'!I100/'Tabel 4F S'!I100*100,"-")) -> 2.316602317
A101: Magistre i alt | C101: =IF(OR('Tabel 4F S'!C101<5,'Tabel 4 S'!C101<0.5),"-",IFERROR('Tabel 4 S'!C101/'Tabel 4F S'!C101*100,"-")) -> 20 | D101: =IF(OR('Tabel 4F S'!D101<5,'Tabel 4 S'!D101<0.5),"-",IFERROR('Tabel 4 S'!D101/'Tabel 4F S'!D101*100,"-")) -> 6.666666667 | E101: =IF(OR('Tabel 4F S'!E101<5,'Tabel 4 S'!E101<0.5),"-",IFERROR('Tabel 4 S'!E101/'Tabel 4F S'!E101*100,"-")) -> 4.819277108 | F101: =IF(OR('Tabel 4F S'!F101<5,'Tabel 4 S'!F101<0.5),"-",IFERROR('Tabel 4 S'!F101/'Tabel 4F S'!F101*100,"-")) -> 6.25 | G101: =IF(OR('Tabel 4F S'!G101<5,'Tabel 4 S'!G101<0.5),"-",IFERROR('Tabel 4 S'!G101/'Tabel 4F S'!G101*100,"-")) -> 8 | I101: =IF(OR('Tabel 4F S'!I101<5,'Tabel 4 S'!I101<0.5),"-",IFERROR('Tabel 4 S'!I101/'Tabel 4F S'!I101*100,"-")) -> 6.910569106
A102: DJØF'ere i alt | C102: =IF(OR('Tabel 4F S'!C102<5,'Tabel 4 S'!C102<0.5),"-",IFERROR('Tabel 4 S'!C102/'Tabel 4F S'!C102*100,"-")) -> 19.71830986 | D102: =IF(OR('Tabel 4F S'!D102<5,'Tabel 4 S'!D102<0.5),"-",IFERROR('Tabel 4 S'!D102/'Tabel 4F S'!D102*100,"-")) -> 4.069767442 | E102: =IF(OR('Tabel 4F S'!E102<5,'Tabel 4 S'!E102<0.5),"-",IFERROR('Tabel 4 S'!E102/'Tabel 4F S'!E102*100,"-")) -> 0.9259259259 | F102: =IF(OR('Tabel 4F S'!F102<5,'Tabel 4 S'!F102<0.5),"-",IFERROR('Tabel 4 S'!F102/'Tabel 4F S'!F102*100,"-")) -> 3.355704698 | G102: =IF(OR('Tabel 4F S'!G102<5,'Tabel 4 S'!G102<0.5),"-",IFERROR('Tabel 4 S'!G102/'Tabel 4F S'!G102*100,"-")) -> 3.703703704 | I102: =IF(OR('Tabel 4F S'!I102<5,'Tabel 4 S'!I102<0.5),"-",IFERROR('Tabel 4 S'!I102/'Tabel 4F S'!I102*100,"-")) -> 4.566929134
A109: Køge
C111: Under 30 år | D111: 30 - 39 år | E111: 40 - 49 år | F111: 50 - 59 år | G111: Over 60 år | I111: I alt
A113: Civ. ing. | C113: =IF(OR('Tabel 4F S'!C113<5,'Tabel 4 S'!C113<0.5),"-",IFERROR('Tabel 4 S'!C113/'Tabel 4F S'!C113*100,"-")) -> 13.04347826 | D113: =IF(OR('Tabel 4F S'!D113<5,'Tabel 4 S'!D113<0.5),"-",IFERROR('Tabel 4 S'!D113/'Tabel 4F S'!D113*100,"-")) -> 2.380952381 | E113: =IF(OR('Tabel 4F S'!E113<5,'Tabel 4 S'!E113<0.5),"-",IFERROR('Tabel 4 S'!E113/'Tabel 4F S'!E113*100,"-")) -> 2.127659574 | F113: =IF(OR('Tabel 4F S'!F113<5,'Tabel 4 S'!F113<0.5),"-",IFERROR('Tabel 4 S'!F113/'Tabel 4F S'!F113*100,"-")) -> - | G113: =IF(OR('Tabel 4F S'!G113<5,'Tabel 4 S'!G113<0.5),"-",IFERROR('Tabel 4 S'!G113/'Tabel 4F S'!G113*100,"-")) -> - | I113: =IF(OR('Tabel 4F S'!I113<5,'Tabel 4 S'!I113<0.5),"-",IFERROR('Tabel 4 S'!I113/'Tabel 4F S'!I113*100,"-")) -> 2.702702703
A114: Diplom ing. | C114: =IF(OR('Tabel 4F S'!C114<5,'Tabel 4 S'!C114<0.5),"-",IFERROR('Tabel 4 S'!C114/'Tabel 4F S'!C114*100,"-")) -> - | D114: =IF(OR('Tabel 4F S'!D114<5,'Tabel 4 S'!D114<0.5),"-",IFERROR('Tabel 4 S'!D114/'Tabel 4F S'!D114*100,"-")) -> 3.636363636 | E114: =IF(OR('Tabel 4F S'!E114<5,'Tabel 4 S'!E114<0.5),"-",IFERROR('Tabel 4 S'!E114/'Tabel 4F S'!E114*100,"-")) -> 1.063829787 | F114: =IF(OR('Tabel 4F S'!F114<5,'Tabel 4 S'!F114<0.5),"-",IFERROR('Tabel 4 S'!F114/'Tabel 4F S'!F114*100,"-")) -> 1.986754967 | G114: =IF(OR('Tabel 4F S'!G114<5,'Tabel 4 S'!G114<0.5),"-",IFERROR('Tabel 4 S'!G114/'Tabel 4F S'!G114*100,"-")) -> 7.142857143 | I114: =IF(OR('Tabel 4F S'!I114<5,'Tabel 4 S'!I114<0.5),"-",IFERROR('Tabel 4 S'!I114/'Tabel 4F S'!I114*100,"-")) -> 2.325581395
A115: Cand. Scient. Tek | C115: =IF(OR('Tabel 4F S'!C115<5,'Tabel 4 S'!C115<0.5),"-",IFERROR('Tabel 4 S'!C115/'Tabel 4F S'!C115*100,"-")) -> 33.33333333 | D115: =IF(OR('Tabel 4F S'!D115<5,'Tabel 4 S'!D115<0.5),"-",IFERROR('Tabel 4 S'!D115/'Tabel 4F S'!D115*100,"-")) -> 12.12121212 | E115: =IF(OR('Tabel 4F S'!E115<5,'Tabel 4 S'!E115<0.5),"-",IFERROR('Tabel 4 S'!E115/'Tabel 4F S'!E115*100,"-")) -> 6.666666667 | F115: =IF(OR('Tabel 4F S'!F115<5,'Tabel 4 S'!F115<0.5),"-",IFERROR('Tabel 4 S'!F115/'Tabel 4F S'!F115*100,"-")) -> - | G115: =IF(OR('Tabel 4F S'!G115<5,'Tabel 4 S'!G115<0.5),"-",IFERROR('Tabel 4 S'!G115/'Tabel 4F S'!G115*100,"-")) -> - | I115: =IF(OR('Tabel 4F S'!I115<5,'Tabel 4 S'!I115<0.5),"-",IFERROR('Tabel 4 S'!I115/'Tabel 4F S'!I115*100,"-")) -> 14.49275362
A116: MA. Hum. | C116: =IF(OR('Tabel 4F S'!C116<5,'Tabel 4 S'!C116<0.5),"-",IFERROR('Tabel 4 S'!C116/'Tabel 4F S'!C116*100,"-")) -> 18.75 | D116: =IF(OR('Tabel 4F S'!D116<5,'Tabel 4 S'!D116<0.5),"-",IFERROR('Tabel 4 S'!D116/'Tabel 4F S'!D116*100,"-")) -> 6.578947368 | E116: =IF(OR('Tabel 4F S'!E116<5,'Tabel 4 S'!E116<0.5),"-",IFERROR('Tabel 4 S'!E116/'Tabel 4F S'!E116*100,"-")) -> 4.109589041 | F116: =IF(OR('Tabel 4F S'!F116<5,'Tabel 4 S'!F116<0.5),"-",IFERROR('Tabel 4 S'!F116/'Tabel 4F S'!F116*100,"-")) -> - | G116: =IF(OR('Tabel 4F S'!G116<5,'Tabel 4 S'!G116<0.5),"-",IFERROR('Tabel 4 S'!G116/'Tabel 4F S'!G116*100,"-")) -> - | I116: =IF(OR('Tabel 4F S'!I116<5,'Tabel 4 S'!I116<0.5),"-",IFERROR('Tabel 4 S'!I116/'Tabel 4F S'!I116*100,"-")) -> 5.418719212
A117: MA. Nat. | C117: =IF(OR('Tabel 4F S'!C117<5,'Tabel 4 S'!C117<0.5),"-",IFERROR('Tabel 4 S'!C117/'Tabel 4F S'!C117*100,"-")) -> - | D117: =IF(OR('Tabel 4F S'!D117<5,'Tabel 4 S'!D117<0.5),"-",IFERROR('Tabel 4 S'!D117/'Tabel 4F S'!D117*100,"-")) -> 12.5 | E117: =IF(OR('Tabel 4F S'!E117<5,'Tabel 4 S'!E117<0.5),"-",IFERROR('Tabel 4 S'!E117/'Tabel 4F S'!E117*100,"-")) -> 3.448275862 | F117: =IF(OR('Tabel 4F S'!F117<5,'Tabel 4 S'!F117<0.5),"-",IFERROR('Tabel 4 S'!F117/'Tabel 4F S'!F117*100,"-")) -> - | G117: =IF(OR('Tabel 4F S'!G117<5,'Tabel 4 S'!G117<0.5),"-",IFERROR('Tabel 4 S'!G117/'Tabel 4F S'!G117*100,"-")) -> - | I117: =IF(OR('Tabel 4F S'!I117<5,'Tabel 4 S'!I117<0.5),"-",IFERROR('Tabel 4 S'!I117/'Tabel 4F S'!I117*100,"-")) -> 3.191489362
A118: MA. Ph.d. | C118: =IF(OR('Tabel 4F S'!C118<5,'Tabel 4 S'!C118<0.5),"-",IFERROR('Tabel 4 S'!C118/'Tabel 4F S'!C118*100,"-")) -> - | D118: =IF(OR('Tabel 4F S'!D118<5,'Tabel 4 S'!D118<0.5),"-",IFERROR('Tabel 4 S'!D118/'Tabel 4F S'!D118*100,"-")) -> - | E118: =IF(OR('Tabel 4F S'!E118<5,'Tabel 4 S'!E118<0.5),"-",IFERROR('Tabel 4 S'!E118/'Tabel 4F S'!E118*100,"-")) -> - | F118: =IF(OR('Tabel 4F S'!F118<5,'Tabel 4 S'!F118<0.5),"-",IFERROR('Tabel 4 S'!F118/'Tabel 4F S'!F118*100,"-")) -> - | G118: =IF(OR('Tabel 4F S'!G118<5,'Tabel 4 S'!G118<0.5),"-",IFERROR('Tabel 4 S'!G118/'Tabel 4F S'!G118*100,"-")) -> - | I118: =IF(OR('Tabel 4F S'!I118<5,'Tabel 4 S'!I118<0.5),"-",IFERROR('Tabel 4 S'!I118/'Tabel 4F S'!I118*100,"-")) -> -
A119: MA. Samf. | C119: =IF(OR('Tabel 4F S'!C119<5,'Tabel 4 S'!C119<0.5),"-",IFERROR('Tabel 4 S'!C119/'Tabel 4F S'!C119*100,"-")) -> 33.33333333 | D119: =IF(OR('Tabel 4F S'!D119<5,'Tabel 4 S'!D119<0.5),"-",IFERROR('Tabel 4 S'!D119/'Tabel 4F S'!D119*100,"-")) -> - | E119: =IF(OR('Tabel 4F S'!E119<5,'Tabel 4 S'!E119<0.5),"-",IFERROR('Tabel 4 S'!E119/'Tabel 4F S'!E119*100,"-")) -> - | F119: =IF(OR('Tabel 4F S'!F119<5,'Tabel 4 S'!F119<0.5),"-",IFERROR('Tabel 4 S'!F119/'Tabel 4F S'!F119*100,"-")) -> - | G119: =IF(OR('Tabel 4F S'!G119<5,'Tabel 4 S'!G119<0.5),"-",IFERROR('Tabel 4 S'!G119/'Tabel 4F S'!G119*100,"-")) -> - | I119: =IF(OR('Tabel 4F S'!I119<5,'Tabel 4 S'!I119<0.5),"-",IFERROR('Tabel 4 S'!I119/'Tabel 4F S'!I119*100,"-")) -> 11.76470588
A120: Øvrige Mag. | C120: =IF(OR('Tabel 4F S'!C120<5,'Tabel 4 S'!C120<0.5),"-",IFERROR('Tabel 4 S'!C120/'Tabel 4F S'!C120*100,"-")) -> - | D120: =IF(OR('Tabel 4F S'!D120<5,'Tabel 4 S'!D120<0.5),"-",IFERROR('Tabel 4 S'!D120/'Tabel 4F S'!D120*100,"-")) -> - | E120: =IF(OR('Tabel 4F S'!E120<5,'Tabel 4 S'!E120<0.5),"-",IFERROR('Tabel 4 S'!E120/'Tabel 4F S'!E120*100,"-")) -> 14.28571429 | F120: =IF(OR('Tabel 4F S'!F120<5,'Tabel 4 S'!F120<0.5),"-",IFERROR('Tabel 4 S'!F120/'Tabel 4F S'!F120*100,"-")) -> 16.66666667 | G120: =IF(OR('Tabel 4F S'!G120<5,'Tabel 4 S'!G120<0.5),"-",IFERROR('Tabel 4 S'!G120/'Tabel 4F S'!G120*100,"-")) -> - | I120: =IF(OR('Tabel 4F S'!I120<5,'Tabel 4 S'!I120<0.5),"-",IFERROR('Tabel 4 S'!I120/'Tabel 4F S'!I120*100,"-")) -> 14.28571429
A121: Agronom | C121: =IF(OR('Tabel 4F S'!C121<5,'Tabel 4 S'!C121<0.5),"-",IFERROR('Tabel 4 S'!C121/'Tabel 4F S'!C121*100,"-")) -> - | D121: =IF(OR('Tabel 4F S'!D121<5,'Tabel 4 S'!D121<0.5),"-",IFERROR('Tabel 4 S'!D121/'Tabel 4F S'!D121*100,"-")) -> 33.33333333 | E121: =IF(OR('Tabel 4F S'!E121<5,'Tabel 4 S'!E121<0.5),"-",IFERROR('Tabel 4 S'!E121/'Tabel 4F S'!E121*100,"-")) -> - | F121: =IF(OR('Tabel 4F S'!F121<5,'Tabel 4 S'!F121<0.5),"-",IFERROR('Tabel 4 S'!F121/'Tabel 4F S'!F121*100,"-")) -> - | G121: =IF(OR('Tabel 4F S'!G121<5,'Tabel 4 S'!G121<0.5),"-",IFERROR('Tabel 4 S'!G121/'Tabel 4F S'!G121*100,"-")) -> 12.5 | I121: =IF(OR('Tabel 4F S'!I121<5,'Tabel 4 S'!I121<0.5),"-",IFERROR('Tabel 4 S'!I121/'Tabel 4F S'!I121*100,"-")) -> 7.692307692
A122: Landsk. Arkt. | C122: =IF(OR('Tabel 4F S'!C122<5,'Tabel 4 S'!C122<0.5),"-",IFERROR('Tabel 4 S'!C122/'Tabel 4F S'!C122*100,"-")) -> - | D122: =IF(OR('Tabel 4F S'!D122<5,'Tabel 4 S'!D122<0.5),"-",IFERROR('Tabel 4 S'!D122/'Tabel 4F S'!D122*100,"-")) -> - | E122: =IF(OR('Tabel 4F S'!E122<5,'Tabel 4 S'!E122<0.5),"-",IFERROR('Tabel 4 S'!E122/'Tabel 4F S'!E122*100,"-")) -> - | F122: =IF(OR('Tabel 4F S'!F122<5,'Tabel 4 S'!F122<0.5),"-",IFERROR('Tabel 4 S'!F122/'Tabel 4F S'!F122*100,"-")) -> - | G122: =IF(OR('Tabel 4F S'!G122<5,'Tabel 4 S'!G122<0.5),"-",IFERROR('Tabel 4 S'!G122/'Tabel 4F S'!G122*100,"-")) -> - | I122: =IF(OR('Tabel 4F S'!I122<5,'Tabel 4 S'!I122<0.5),"-",IFERROR('Tabel 4 S'!I122/'Tabel 4F S'!I122*100,"-")) -> -
A123: Hortonom | C123: =IF(OR('Tabel 4F S'!C123<5,'Tabel 4 S'!C123<0.5),"-",IFERROR('Tabel 4 S'!C123/'Tabel 4F S'!C123*100,"-")) -> - | D123: =IF(OR('Tabel 4F S'!D123<5,'Tabel 4 S'!D123<0.5),"-",IFERROR('Tabel 4 S'!D123/'Tabel 4F S'!D123*100,"-")) -> - | E123: =IF(OR('Tabel 4F S'!E123<5,'Tabel 4 S'!E123<0.5),"-",IFERROR('Tabel 4 S'!E123/'Tabel 4F S'!E123*100,"-")) -> - | F123: =IF(OR('Tabel 4F S'!F123<5,'Tabel 4 S'!F123<0.5),"-",IFERROR('Tabel 4 S'!F123/'Tabel 4F S'!F123*100,"-")) -> - | G123: =IF(OR('Tabel 4F S'!G123<5,'Tabel 4 S'!G123<0.5),"-",IFERROR('Tabel 4 S'!G123/'Tabel 4F S'!G123*100,"-")) -> - | I123: =IF(OR('Tabel 4F S'!I123<5,'Tabel 4 S'!I123<0.5),"-",IFERROR('Tabel 4 S'!I123/'Tabel 4F S'!I123*100,"-")) -> -
A124: Forstkand. | C124: =IF(OR('Tabel 4F S'!C124<5,'Tabel 4 S'!C124<0.5),"-",IFERROR('Tabel 4 S'!C124/'Tabel 4F S'!C124*100,"-")) -> - | D124: =IF(OR('Tabel 4F S'!D124<5,'Tabel 4 S'!D124<0.5),"-",IFERROR('Tabel 4 S'!D124/'Tabel 4F S'!D124*100,"-")) -> - | E124: =IF(OR('Tabel 4F S'!E124<5,'Tabel 4 S'!E124<0.5),"-",IFERROR('Tabel 4 S'!E124/'Tabel 4F S'!E124*100,"-")) -> - | F124: =IF(OR('Tabel 4F S'!F124<5,'Tabel 4 S'!F124<0.5),"-",IFERROR('Tabel 4 S'!F124/'Tabel 4F S'!F124*100,"-")) -> - | G124: =IF(OR('Tabel 4F S'!G124<5,'Tabel 4 S'!G124<0.5),"-",IFERROR('Tabel 4 S'!G124/'Tabel 4F S'!G124*100,"-")) -> - | I124: =IF(OR('Tabel 4F S'!I124<5,'Tabel 4 S'!I124<0.5),"-",IFERROR('Tabel 4 S'!I124/'Tabel 4F S'!I124*100,"-")) -> -
A125: Jordbrugsakad. | C125: =IF(OR('Tabel 4F S'!C125<5,'Tabel 4 S'!C125<0.5),"-",IFERROR('Tabel 4 S'!C125/'Tabel 4F S'!C125*100,"-")) -> - | D125: =IF(OR('Tabel 4F S'!D125<5,'Tabel 4 S'!D125<0.5),"-",IFERROR('Tabel 4 S'!D125/'Tabel 4F S'!D125*100,"-")) -> 25 | E125: =IF(OR('Tabel 4F S'!E125<5,'Tabel 4 S'!E125<0.5),"-",IFERROR('Tabel 4 S'!E125/'Tabel 4F S'!E125*100,"-")) -> - | F125: =IF(OR('Tabel 4F S'!F125<5,'Tabel 4 S'!F125<0.5),"-",IFERROR('Tabel 4 S'!F125/'Tabel 4F S'!F125*100,"-")) -> - | G125: =IF(OR('Tabel 4F S'!G125<5,'Tabel 4 S'!G125<0.5),"-",IFERROR('Tabel 4 S'!G125/'Tabel 4F S'!G125*100,"-")) -> 8.333333333 | I125: =IF(OR('Tabel 4F S'!I125<5,'Tabel 4 S'!I125<0.5),"-",IFERROR('Tabel 4 S'!I125/'Tabel 4F S'!I125*100,"-")) -> 5.084745763
A126: Mejeriing. | C126: =IF(OR('Tabel 4F S'!C126<5,'Tabel 4 S'!C126<0.5),"-",IFERROR('Tabel 4 S'!C126/'Tabel 4F S'!C126*100,"-")) -> - | D126: =IF(OR('Tabel 4F S'!D126<5,'Tabel 4 S'!D126<0.5),"-",IFERROR('Tabel 4 S'!D126/'Tabel 4F S'!D126*100,"-")) -> - | E126: =IF(OR('Tabel 4F S'!E126<5,'Tabel 4 S'!E126<0.5),"-",IFERROR('Tabel 4 S'!E126/'Tabel 4F S'!E126*100,"-")) -> - | F126: =IF(OR('Tabel 4F S'!F126<5,'Tabel 4 S'!F126<0.5),"-",IFERROR('Tabel 4 S'!F126/'Tabel 4F S'!F126*100,"-")) -> - | G126: =IF(OR('Tabel 4F S'!G126<5,'Tabel 4 S'!G126<0.5),"-",IFERROR('Tabel 4 S'!G126/'Tabel 4F S'!G126*100,"-")) -> - | I126: =IF(OR('Tabel 4F S'!I126<5,'Tabel 4 S'!I126<0.5),"-",IFERROR('Tabel 4 S'!I126/'Tabel 4F S'!I126*100,"-")) -> -
A127: Levn.m.kand. | C127: =IF(OR('Tabel 4F S'!C127<5,'Tabel 4 S'!C127<0.5),"-",IFERROR('Tabel 4 S'!C127/'Tabel 4F S'!C127*100,"-")) -> - | D127: =IF(OR('Tabel 4F S'!D127<5,'Tabel 4 S'!D127<0.5),"-",IFERROR('Tabel 4 S'!D127/'Tabel 4F S'!D127*100,"-")) -> - | E127: =IF(OR('Tabel 4F S'!E127<5,'Tabel 4 S'!E127<0.5),"-",IFERROR('Tabel 4 S'!E127/'Tabel 4F S'!E127*100,"-")) -> - | F127: =IF(OR('Tabel 4F S'!F127<5,'Tabel 4 S'!F127<0.5),"-",IFERROR('Tabel 4 S'!F127/'Tabel 4F S'!F127*100,"-")) -> - | G127: =IF(OR('Tabel 4F S'!G127<5,'Tabel 4 S'!G127<0.5),"-",IFERROR('Tabel 4 S'!G127/'Tabel 4F S'!G127*100,"-")) -> - | I127: =IF(OR('Tabel 4F S'!I127<5,'Tabel 4 S'!I127<0.5),"-",IFERROR('Tabel 4 S'!I127/'Tabel 4F S'!I127*100,"-")) -> -
A128: Dyrlæge | C128: =IF(OR('Tabel 4F S'!C128<5,'Tabel 4 S'!C128<0.5),"-",IFERROR('Tabel 4 S'!C128/'Tabel 4F S'!C128*100,"-")) -> - | D128: =IF(OR('Tabel 4F S'!D128<5,'Tabel 4 S'!D128<0.5),"-",IFERROR('Tabel 4 S'!D128/'Tabel 4F S'!D128*100,"-")) -> - | E128: =IF(OR('Tabel 4F S'!E128<5,'Tabel 4 S'!E128<0.5),"-",IFERROR('Tabel 4 S'!E128/'Tabel 4F S'!E128*100,"-")) -> - | F128: =IF(OR('Tabel 4F S'!F128<5,'Tabel 4 S'!F128<0.5),"-",IFERROR('Tabel 4 S'!F128/'Tabel 4F S'!F128*100,"-")) -> - | G128: =IF(OR('Tabel 4F S'!G128<5,'Tabel 4 S'!G128<0.5),"-",IFERROR('Tabel 4 S'!G128/'Tabel 4F S'!G128*100,"-")) -> - | I128: =IF(OR('Tabel 4F S'!I128<5,'Tabel 4 S'!I128<0.5),"-",IFERROR('Tabel 4 S'!I128/'Tabel 4F S'!I128*100,"-")) -> 3.225806452
A129: Farmaceut | C129: =IF(OR('Tabel 4F S'!C129<5,'Tabel 4 S'!C129<0.5),"-",IFERROR('Tabel 4 S'!C129/'Tabel 4F S'!C129*100,"-")) -> - | D129: =IF(OR('Tabel 4F S'!D129<5,'Tabel 4 S'!D129<0.5),"-",IFERROR('Tabel 4 S'!D129/'Tabel 4F S'!D129*100,"-")) -> - | E129: =IF(OR('Tabel 4F S'!E129<5,'Tabel 4 S'!E129<0.5),"-",IFERROR('Tabel 4 S'!E129/'Tabel 4F S'!E129*100,"-")) -> 5.555555556 | F129: =IF(OR('Tabel 4F S'!F129<5,'Tabel 4 S'!F129<0.5),"-",IFERROR('Tabel 4 S'!F129/'Tabel 4F S'!F129*100,"-")) -> - | G129: =IF(OR('Tabel 4F S'!G129<5,'Tabel 4 S'!G129<0.5),"-",IFERROR('Tabel 4 S'!G129/'Tabel 4F S'!G129*100,"-")) -> - | I129: =IF(OR('Tabel 4F S'!I129<5,'Tabel 4 S'!I129<0.5),"-",IFERROR('Tabel 4 S'!I129/'Tabel 4F S'!I129*100,"-")) -> 4.347826087
A130: Læge | C130: =IF(OR('Tabel 4F S'!C130<5,'Tabel 4 S'!C130<0.5),"-",IFERROR('Tabel 4 S'!C130/'Tabel 4F S'!C130*100,"-")) -> - | D130: =IF(OR('Tabel 4F S'!D130<5,'Tabel 4 S'!D130<0.5),"-",IFERROR('Tabel 4 S'!D130/'Tabel 4F S'!D130*100,"-")) -> - | E130: =IF(OR('Tabel 4F S'!E130<5,'Tabel 4 S'!E130<0.5),"-",IFERROR('Tabel 4 S'!E130/'Tabel 4F S'!E130*100,"-")) -> - | F130: =IF(OR('Tabel 4F S'!F130<5,'Tabel 4 S'!F130<0.5),"-",IFERROR('Tabel 4 S'!F130/'Tabel 4F S'!F130*100,"-")) -> - | G130: =IF(OR('Tabel 4F S'!G130<5,'Tabel 4 S'!G130<0.5),"-",IFERROR('Tabel 4 S'!G130/'Tabel 4F S'!G130*100,"-")) -> - | I130: =IF(OR('Tabel 4F S'!I130<5,'Tabel 4 S'!I130<0.5),"-",IFERROR('Tabel 4 S'!I130/'Tabel 4F S'!I130*100,"-")) -> -
A131: Tandlæge | C131: =IF(OR('Tabel 4F S'!C131<5,'Tabel 4 S'!C131<0.5),"-",IFERROR('Tabel 4 S'!C131/'Tabel 4F S'!C131*100,"-")) -> - | D131: =IF(OR('Tabel 4F S'!D131<5,'Tabel 4 S'!D131<0.5),"-",IFERROR('Tabel 4 S'!D131/'Tabel 4F S'!D131*100,"-")) -> - | E131: =IF(OR('Tabel 4F S'!E131<5,'Tabel 4 S'!E131<0.5),"-",IFERROR('Tabel 4 S'!E131/'Tabel 4F S'!E131*100,"-")) -> - | F131: =IF(OR('Tabel 4F S'!F131<5,'Tabel 4 S'!F131<0.5),"-",IFERROR('Tabel 4 S'!F131/'Tabel 4F S'!F131*100,"-")) -> - | G131: =IF(OR('Tabel 4F S'!G131<5,'Tabel 4 S'!G131<0.5),"-",IFERROR('Tabel 4 S'!G131/'Tabel 4F S'!G131*100,"-")) -> - | I131: =IF(OR('Tabel 4F S'!I131<5,'Tabel 4 S'!I131<0.5),"-",IFERROR('Tabel 4 S'!I131/'Tabel 4F S'!I131*100,"-")) -> -
A132: Arkitekt | C132: =IF(OR('Tabel 4F S'!C132<5,'Tabel 4 S'!C132<0.5),"-",IFERROR('Tabel 4 S'!C132/'Tabel 4F S'!C132*100,"-")) -> - | D132: =IF(OR('Tabel 4F S'!D132<5,'Tabel 4 S'!D132<0.5),"-",IFERROR('Tabel 4 S'!D132/'Tabel 4F S'!D132*100,"-")) -> - | E132: =IF(OR('Tabel 4F S'!E132<5,'Tabel 4 S'!E132<0.5),"-",IFERROR('Tabel 4 S'!E132/'Tabel 4F S'!E132*100,"-")) -> - | F132: =IF(OR('Tabel 4F S'!F132<5,'Tabel 4 S'!F132<0.5),"-",IFERROR('Tabel 4 S'!F132/'Tabel 4F S'!F132*100,"-")) -> - | G132: =IF(OR('Tabel 4F S'!G132<5,'Tabel 4 S'!G132<0.5),"-",IFERROR('Tabel 4 S'!G132/'Tabel 4F S'!G132*100,"-")) -> - | I132: =IF(OR('Tabel 4F S'!I132<5,'Tabel 4 S'!I132<0.5),"-",IFERROR('Tabel 4 S'!I132/'Tabel 4F S'!I132*100,"-")) -> -
A133: Landinspek. | C133: =IF(OR('Tabel 4F S'!C133<5,'Tabel 4 S'!C133<0.5),"-",IFERROR('Tabel 4 S'!C133/'Tabel 4F S'!C133*100,"-")) -> - | D133: =IF(OR('Tabel 4F S'!D133<5,'Tabel 4 S'!D133<0.5),"-",IFERROR('Tabel 4 S'!D133/'Tabel 4F S'!D133*100,"-")) -> - | E133: =IF(OR('Tabel 4F S'!E133<5,'Tabel 4 S'!E133<0.5),"-",IFERROR('Tabel 4 S'!E133/'Tabel 4F S'!E133*100,"-")) -> - | F133: =IF(OR('Tabel 4F S'!F133<5,'Tabel 4 S'!F133<0.5),"-",IFERROR('Tabel 4 S'!F133/'Tabel 4F S'!F133*100,"-")) -> - | G133: =IF(OR('Tabel 4F S'!G133<5,'Tabel 4 S'!G133<0.5),"-",IFERROR('Tabel 4 S'!G133/'Tabel 4F S'!G133*100,"-")) -> - | I133: =IF(OR('Tabel 4F S'!I133<5,'Tabel 4 S'!I133<0.5),"-",IFERROR('Tabel 4 S'!I133/'Tabel 4F S'!I133*100,"-")) -> -
A134: Bibliotekar | C134: =IF(OR('Tabel 4F S'!C134<5,'Tabel 4 S'!C134<0.5),"-",IFERROR('Tabel 4 S'!C134/'Tabel 4F S'!C134*100,"-")) -> - | D134: =IF(OR('Tabel 4F S'!D134<5,'Tabel 4 S'!D134<0.5),"-",IFERROR('Tabel 4 S'!D134/'Tabel 4F S'!D134*100,"-")) -> - | E134: =IF(OR('Tabel 4F S'!E134<5,'Tabel 4 S'!E134<0.5),"-",IFERROR('Tabel 4 S'!E134/'Tabel 4F S'!E134*100,"-")) -> - | F134: =IF(OR('Tabel 4F S'!F134<5,'Tabel 4 S'!F134<0.5),"-",IFERROR('Tabel 4 S'!F134/'Tabel 4F S'!F134*100,"-")) -> - | G134: =IF(OR('Tabel 4F S'!G134<5,'Tabel 4 S'!G134<0.5),"-",IFERROR('Tabel 4 S'!G134/'Tabel 4F S'!G134*100,"-")) -> 14.28571429 | I134: =IF(OR('Tabel 4F S'!I134<5,'Tabel 4 S'!I134<0.5),"-",IFERROR('Tabel 4 S'!I134/'Tabel 4F S'!I134*100,"-")) -> 3.846153846
A135: Musikudd. | C135: =IF(OR('Tabel 4F S'!C135<5,'Tabel 4 S'!C135<0.5),"-",IFERROR('Tabel 4 S'!C135/'Tabel 4F S'!C135*100,"-")) -> - | D135: =IF(OR('Tabel 4F S'!D135<5,'Tabel 4 S'!D135<0.5),"-",IFERROR('Tabel 4 S'!D135/'Tabel 4F S'!D135*100,"-")) -> - | E135: =IF(OR('Tabel 4F S'!E135<5,'Tabel 4 S'!E135<0.5),"-",IFERROR('Tabel 4 S'!E135/'Tabel 4F S'!E135*100,"-")) -> - | F135: =IF(OR('Tabel 4F S'!F135<5,'Tabel 4 S'!F135<0.5),"-",IFERROR('Tabel 4 S'!F135/'Tabel 4F S'!F135*100,"-")) -> - | G135: =IF(OR('Tabel 4F S'!G135<5,'Tabel 4 S'!G135<0.5),"-",IFERROR('Tabel 4 S'!G135/'Tabel 4F S'!G135*100,"-")) -> - | I135: =IF(OR('Tabel 4F S'!I135<5,'Tabel 4 S'!I135<0.5),"-",IFERROR('Tabel 4 S'!I135/'Tabel 4F S'!I135*100,"-")) -> -
A136: Teolog | C136: =IF(OR('Tabel 4F S'!C136<5,'Tabel 4 S'!C136<0.5),"-",IFERROR('Tabel 4 S'!C136/'Tabel 4F S'!C136*100,"-")) -> - | D136: =IF(OR('Tabel 4F S'!D136<5,'Tabel 4 S'!D136<0.5),"-",IFERROR('Tabel 4 S'!D136/'Tabel 4F S'!D136*100,"-")) -> - | E136: =IF(OR('Tabel 4F S'!E136<5,'Tabel 4 S'!E136<0.5),"-",IFERROR('Tabel 4 S'!E136/'Tabel 4F S'!E136*100,"-")) -> - | F136: =IF(OR('Tabel 4F S'!F136<5,'Tabel 4 S'!F136<0.5),"-",IFERROR('Tabel 4 S'!F136/'Tabel 4F S'!F136*100,"-")) -> - | G136: =IF(OR('Tabel 4F S'!G136<5,'Tabel 4 S'!G136<0.5),"-",IFERROR('Tabel 4 S'!G136/'Tabel 4F S'!G136*100,"-")) -> - | I136: =IF(OR('Tabel 4F S'!I136<5,'Tabel 4 S'!I136<0.5),"-",IFERROR('Tabel 4 S'!I136/'Tabel 4F S'!I136*100,"-")) -> 11.11111111
A137: Psykolog | C137: =IF(OR('Tabel 4F S'!C137<5,'Tabel 4 S'!C137<0.5),"-",IFERROR('Tabel 4 S'!C137/'Tabel 4F S'!C137*100,"-")) -> 12.5 | D137: =IF(OR('Tabel 4F S'!D137<5,'Tabel 4 S'!D137<0.5),"-",IFERROR('Tabel 4 S'!D137/'Tabel 4F S'!D137*100,"-")) -> 10 | E137: =IF(OR('Tabel 4F S'!E137<5,'Tabel 4 S'!E137<0.5),"-",IFERROR('Tabel 4 S'!E137/'Tabel 4F S'!E137*100,"-")) -> - | F137: =IF(OR('Tabel 4F S'!F137<5,'Tabel 4 S'!F137<0.5),"-",IFERROR('Tabel 4 S'!F137/'Tabel 4F S'!F137*100,"-")) -> 10 | G137: =IF(OR('Tabel 4F S'!G137<5,'Tabel 4 S'!G137<0.5),"-",IFERROR('Tabel 4 S'!G137/'Tabel 4F S'!G137*100,"-")) -> - | I137: =IF(OR('Tabel 4F S'!I137<5,'Tabel 4 S'!I137<0.5),"-",IFERROR('Tabel 4 S'!I137/'Tabel 4F S'!I137*100,"-")) -> 7.843137255
